{"text_format":"1","workbook":"xlsx","n_sheets":4,"sheets":["vyhledávání dílů","seznamy dílů_BalTec","seznamy dílů_TOX","seznamy dílů_Stöger"],"not_rendered":{"charts":0,"images":4,"macros":1,"external_links":0,"defined_names":0,"comments":0,"pivot_tables":0},"unopened":[],"bounds":{"document_bytes":16777216,"sheet_cells":100000,"rows_first":2000,"rows_last":500,"rows_between":2000,"halvings":0,"cell_chars":16384,"cell_head_chars":4096},"cells_cut":0,"cells_raw":0,"read":"whole","date_system":"1900"}

{"sheet":"vyhledávání dílů","index":0,"n_rows":29,"n_cols":11,"rows_kept":29,"cut":false,"hidden":false,"merged":[[24,0,29,0],[24,1,25,6],[24,7,29,7],[28,1,29,6],[0,1,1,6],[4,1,5,6],[0,7,5,7],[0,0,5,0],[12,0,17,0],[12,1,13,6],[12,7,17,7],[16,1,17,6]]}
[40034,"Vyhledávání skladových zásob BalTec"]
[null,null,null,null,null,null,null,null,null,null,"NENÍ SKLADEM"]
[null,"číslo hledaného dílu","český název","anglický název","pozice","počet","poznámka",null,null,null,"POSLEDNÍ POLOŽKA NA SKLADĚ"]
[null,"040034",{"$f":"IF(B4=0,K5,VLOOKUP(B4,'seznamy dílů_BalTec'!A1:G1550,3,FALSE))","v":0},{"$f":"IF(B4=0,K5,VLOOKUP(B4,'seznamy dílů_BalTec'!A1:G1550,4,FALSE))","v":"Oil hose PA/B 2,5 x 0,5 Mecanyl PA6"},{"$f":"IF(B4=0,K5,VLOOKUP(B4,'seznamy dílů_BalTec'!A1:G1550,5,FALSE))","v":0},{"$f":"IF(B4=0,0,VLOOKUP(B4,'seznamy dílů_BalTec'!A1:G1550,2,FALSE))","v":11},{"$f":"IF(B4=0,K5,VLOOKUP(B4,'seznamy dílů_BalTec'!A1:G1550,6,FALSE))","v":40034},null,null,null,"SKLADEM"]
[null,{"$f":"IF(B4<>'seznamy dílů_BalTec'!$H$2046,'vyhledávání dílů'!K6,IF(F4=0,K2,IF(F4=1,K3,K4)))","v":"#DÍL S TÍMTO ČÍSLEM NENÍ EVIDOVÁN V SEZNAMU DÍLŮ#"},null,null,null,null,null,null,null,null,"#VLOŽTE ČÍSLO DÍLU#"]
[null,null,null,null,null,null,null,null,null,null,"#DÍL S TÍMTO ČÍSLEM NENÍ EVIDOVÁN V SEZNAMU DÍLŮ#"]
[]
[]
[]
[]
[]
[]
[null,"Vyhledávání skladových zásob TOX"]
[]
[null,"číslo hledaného dílu","český název","anglický název","pozice","počet","poznámka"]
[null,"104610",{"$f":"IF(B16=0,K5,VLOOKUP(B16,'seznamy dílů_TOX'!A2:F100,3,FALSE))","v":"Doraz"},{"$f":"IF(B16=0,K5,VLOOKUP(B16,'seznamy dílů_TOX'!A2:F100,4,FALSE))","v":"Cushion"},{"$f":"IF(B16=0,K5,VLOOKUP(B16,'seznamy dílů_TOX'!A2:F100,5,FALSE))","v":0},{"$f":"IF(B16=0,0,VLOOKUP(B16,'seznamy dílů_TOX'!A2:F100,2,FALSE))","v":0},{"$f":"IF(B16=0,K5,VLOOKUP(B16,'seznamy dílů_TOX'!A2:F100,6,FALSE))","v":0}]
[null,{"$f":"IF(B16<>'seznamy dílů_TOX'!H100,'vyhledávání dílů'!K6,IF(F16=0,$K$2,IF(F16=1,$K$3,$K$4)))","v":"#DÍL S TÍMTO ČÍSLEM NENÍ EVIDOVÁN V SEZNAMU DÍLŮ#"}]
[]
[]
[]
[]
[]
[]
[]
[null,"Vyhledávání skladových zásob Stöger"]
[]
[null,"číslo hledaného dílu","český název","anglický název","pozice","počet","poznámka"]
[null,"210031",{"$f":"IF(B28=0,K5,VLOOKUP(B28,'seznamy dílů_Stöger'!A2:F100,3,FALSE))","v":"Sada těsnění"},{"$f":"IF(B28=0,K5,VLOOKUP(B28,'seznamy dílů_Stöger'!A2:F100,4,FALSE))","v":"Sealing kit"},{"$f":"IF(B28=0,K5,VLOOKUP(B28,'seznamy dílů_Stöger'!A2:F100,5,FALSE))","v":0},{"$f":"IF(B28=0,0,VLOOKUP(B28,'seznamy dílů_Stöger'!A2:F100,2,FALSE))","v":1},{"$f":"IF(B28=0,K5,VLOOKUP(B28,'seznamy dílů_Stöger'!A2:F100,6,FALSE))","v":0}]
[null,{"$f":"IF(B28<>'seznamy dílů_Stöger'!H100,'vyhledávání dílů'!K6,IF(F28=0,$K$2,IF(F28=1,$K$3,$K$4)))","v":"#DÍL S TÍMTO ČÍSLEM NENÍ EVIDOVÁN V SEZNAMU DÍLŮ#"}]

{"sheet":"seznamy dílů_BalTec","index":1,"n_rows":2046,"n_cols":17,"rows_kept":2046,"cut":false,"hidden":false,"merged":[]}
["040034",11,null,"Oil hose PA/B 2,5 x 0,5 Mecanyl PA6",null,{"$f":"VALUE(A1)","v":40034},{"$f":"IF(A1='vyhledávání dílů'!$B$4,'seznamy dílů_BalTec'!A1,0)","v":"040034"},null,{"$f":"TEXT(F1,\"000000\")","v":"040034"},null,1,"Key pad",null,null,null,0]
["040037",0,null,"Plastic hose, PA ø4/2.7, yellow",null,null,{"$f":"IF(A2='vyhledávání dílů'!$B$4,'seznamy dílů_BalTec'!A2,0)","v":0},null,null,null,null,"snímač elektromagnetického ventilu",null,null,null,3]
["040507",0,null,"Rubber mat strips black NBR Typ 2003, ripple scour 1000x13x3",null,null,{"$f":"IF(A3='vyhledávání dílů'!$B$4,'seznamy dílů_BalTec'!A3,0)","v":0},null,null,null,null,"kompletní řízení RC 10 s NS",null,null,null,1]
["040508",0,null,"Rubber mat strips black NBR Typ 2003, ripple scour 1000x19x3",null,null,{"$f":"IF(A4='vyhledávání dílů'!$B$4,'seznamy dílů_BalTec'!A4,0)","v":0},null,null,null,null,"Displej HPP 25 - samostatný"]
["040903",0,null,"Polyester rope spiral meshwork w/o core  ø1.7mm yellow",null,null,{"$f":"IF(A5='vyhledávání dílů'!$B$4,'seznamy dílů_BalTec'!A5,0)","v":0},null,null,null,null,"regulátor vzduchu s odlučovačem","???","???","???",0,"malá"]
["060030",0,null,"hydraulic oil HLP 32 ISO 32",null,null,{"$f":"IF(A6='vyhledávání dílů'!$B$4,'seznamy dílů_BalTec'!A6,0)","v":0},null,null,null,null,"vedení hřídele motoru pro RNEL","cam","p. ???","???",1,"RNEL malá "]
["060031",0,null,"High pressure gear oil OMALA 100",null,null,{"$f":"IF(A7='vyhledávání dílů'!$B$4,'seznamy dílů_BalTec'!A7,0)","v":0}]
["060035",0,null,"Air maintenance oil Mobilarma 522",null,null,{"$f":"IF(A8='vyhledávání dílů'!$B$4,'seznamy dílů_BalTec'!A8,0)","v":0}]
["060306",0,null,"Assembling grease Molykote G-Rapid paste 50g",null,null,{"$f":"IF(A9='vyhledávání dílů'!$B$4,'seznamy dílů_BalTec'!A9,0)","v":0}]
["060309",0,null,"Grease Kl\u0081uebersynth GE 46-1200 (1 kg)",null,null,{"$f":"IF(A10='vyhledávání dílů'!$B$4,'seznamy dílů_BalTec'!A10,0)","v":0}]
["060310",0,null,"Klueber paste 46 MR 401 (fitting grease 0.75 kg container)",null,null,{"$f":"IF(A11='vyhledávání dílů'!$B$4,'seznamy dílů_BalTec'!A11,0)","v":0}]
["060317",0,null,"Grease Kl\u0081uebersynth  (0.75 kg)",null,null,{"$f":"IF(A12='vyhledávání dílů'!$B$4,'seznamy dílů_BalTec'!A12,0)","v":0}]
["143277",0,"modul do servo lisu ",null,null,null,{"$f":"IF(A13='vyhledávání dílů'!$B$4,'seznamy dílů_BalTec'!A13,0)","v":0}]
["170004",0,null,"metal protective hose Type DE ø5/7 steel galvanised",null,null,{"$f":"IF(A14='vyhledávání dílů'!$B$4,'seznamy dílů_BalTec'!A14,0)","v":0}]
["250004",0,null,"Adhesive label: oil grades for air maintenance unit",null,null,{"$f":"IF(A15='vyhledávání dílů'!$B$4,'seznamy dílů_BalTec'!A15,0)","v":0}]
["250006",0,null,"Adhesive label:  MOBIL Mobil-DTE 24",null,null,{"$f":"IF(A16='vyhledávání dílů'!$B$4,'seznamy dílů_BalTec'!A16,0)","v":0}]
["270001",0,null,"Jerrican 0,5 l with cap S 5146 Z2",null,null,{"$f":"IF(A17='vyhledávání dílů'!$B$4,'seznamy dílů_BalTec'!A17,0)","v":0}]
["270002",0,null,"Jerrican 25 l UN 1350 G ",null,null,{"$f":"IF(A18='vyhledávání dílů'!$B$4,'seznamy dílů_BalTec'!A18,0)","v":0}]
["270003",0,null,"Can 0,25 l with screw cap",null,null,{"$f":"IF(A19='vyhledávání dílů'!$B$4,'seznamy dílů_BalTec'!A19,0)","v":0}]
["270021",0,null,"Jerrican 0.5 l Shell Omala 100 JSO",null,null,{"$f":"IF(A20='vyhledávání dílů'!$B$4,'seznamy dílů_BalTec'!A20,0)","v":0}]
["270023",0,null,"Jerrican 0.2 l Mobil DTE 24 ",null,null,{"$f":"IF(A21='vyhledávání dílů'!$B$4,'seznamy dílů_BalTec'!A21,0)","v":0}]
["310306",0,null,"Ball handle 1028-0-M8",null,null,{"$f":"IF(A22='vyhledávání dílů'!$B$4,'seznamy dílů_BalTec'!A22,0)","v":0}]
["312511",0,null,"Adjustment ring D= 16 DIN 705 A",null,null,{"$f":"IF(A23='vyhledávání dílů'!$B$4,'seznamy dílů_BalTec'!A23,0)","v":0}]
["314016",0,null,"washer spring C 8,0x4,2x0,2 DIN 2093",null,null,{"$f":"IF(A24='vyhledávání dílů'!$B$4,'seznamy dílů_BalTec'!A24,0)","v":0}]
["314057",0,null,"washer spring 31,5x16,3x1,5",null,null,{"$f":"IF(A25='vyhledávání dílů'!$B$4,'seznamy dílů_BalTec'!A25,0)","v":0}]
["314075",0,null,"washer spring C 45,0x22,4x1,25 DIN 2093",null,null,{"$f":"IF(A26='vyhledávání dílů'!$B$4,'seznamy dílů_BalTec'!A26,0)","v":0}]
["314214",0,null,"washer spring A 45,0x22,4x2,5 DIN 2093",null,null,{"$f":"IF(A27='vyhledávání dílů'!$B$4,'seznamy dílů_BalTec'!A27,0)","v":0}]
["314218",0,null,"washer spring A 71,0x36,0x4,0 DIN 2093",null,null,{"$f":"IF(A28='vyhledávání dílů'!$B$4,'seznamy dílů_BalTec'!A28,0)","v":0}]
["314243",0,null,"washer spring  B 71,0x36,0x2,5 DIN 2093",null,null,{"$f":"IF(A29='vyhledávání dílů'!$B$4,'seznamy dílů_BalTec'!A29,0)","v":0}]
["314252",0,null,"washer spring D 80,0 41,0x2,25 DIN 2093",null,null,{"$f":"IF(A30='vyhledávání dílů'!$B$4,'seznamy dílů_BalTec'!A30,0)","v":0}]
["314253",0,null,"washer spring B 80,0x41,0x3,0 DIN 2093",null,null,{"$f":"IF(A31='vyhledávání dílů'!$B$4,'seznamy dílů_BalTec'!A31,0)","v":0}]
["314254",0,null,"washer spring 80,0x41,0x4,0",null,null,{"$f":"IF(A32='vyhledávání dílů'!$B$4,'seznamy dílů_BalTec'!A32,0)","v":0}]
["314301",0,null,"washer spring 45,0x28,5x0,9",null,null,{"$f":"IF(A33='vyhledávání dílů'!$B$4,'seznamy dílů_BalTec'!A33,0)","v":0}]
["314407",0,null,"washer spring 23,7x14,3x0,4",null,null,{"$f":"IF(A34='vyhledávání dílů'!$B$4,'seznamy dílů_BalTec'!A34,0)","v":0}]
["314504",0,null,"Star spring D=61.0/d=40/s=1.15 1051.061.001",null,null,{"$f":"IF(A35='vyhledávání dílů'!$B$4,'seznamy dílů_BalTec'!A35,0)","v":0}]
["315203",0,null,"Spring key 2x2x10",null,null,{"$f":"IF(A36='vyhledávání dílů'!$B$4,'seznamy dílů_BalTec'!A36,0)","v":0}]
["315258",0,null,"Spring key 5x5x10 VSM 15161 A",null,null,{"$f":"IF(A37='vyhledávání dílů'!$B$4,'seznamy dílů_BalTec'!A37,0)","v":0}]
["315261",0,null,"Spring key 5x5x16 VSM 15161 A",null,null,{"$f":"IF(A38='vyhledávání dílů'!$B$4,'seznamy dílů_BalTec'!A38,0)","v":0}]
["316110",0,null,"Standard pressure spring 1,0x8,7x12,0",null,null,{"$f":"IF(A39='vyhledávání dílů'!$B$4,'seznamy dílů_BalTec'!A39,0)","v":0}]
["316136",0,null,"Standard pressure spring 1,25x6,8x13,0",null,null,{"$f":"IF(A40='vyhledávání dílů'!$B$4,'seznamy dílů_BalTec'!A40,0)","v":0}]
["316235",0,null,"Standard pressure spring 2,5x15,5x63,0",null,null,{"$f":"IF(A41='vyhledávání dílů'!$B$4,'seznamy dílů_BalTec'!A41,0)","v":0}]
["316267",0,null,"Standard pressure spring 3,2x17,0x70,0",null,null,{"$f":"IF(A42='vyhledávání dílů'!$B$4,'seznamy dílů_BalTec'!A42,0)","v":0}]
["316609",0,null,"Standard pressure spring 1,0x8,0x40,5",null,null,{"$f":"IF(A43='vyhledávání dílů'!$B$4,'seznamy dílů_BalTec'!A43,0)","v":0}]
["316619",0,null,"Spiral spring",null,null,{"$f":"IF(A44='vyhledávání dílů'!$B$4,'seznamy dílů_BalTec'!A44,0)","v":0}]
["316620",0,null,"Tension spring ",null,null,{"$f":"IF(A45='vyhledávání dílů'!$B$4,'seznamy dílů_BalTec'!A45,0)","v":0}]
["316622",0,null,"Standard pressure spring 1.25x10.0x64.0",null,null,{"$f":"IF(A46='vyhledávání dílů'!$B$4,'seznamy dílů_BalTec'!A46,0)","v":0}]
["316632",0,null,"Standard pressure spring C 0.8 x 8.0 x 32",null,null,{"$f":"IF(A47='vyhledávání dílů'!$B$4,'seznamy dílů_BalTec'!A47,0)","v":0}]
["316637",0,null,"Torsion spring",null,null,{"$f":"IF(A48='vyhledávání dílů'!$B$4,'seznamy dílů_BalTec'!A48,0)","v":0}]
["319013",0,null,"Level foot",null,null,{"$f":"IF(A49='vyhledávání dílů'!$B$4,'seznamy dílů_BalTec'!A49,0)","v":0}]
["319615",0,null,"Lubrication nipple D=6 Nr.228 Typ D1a",null,null,{"$f":"IF(A50='vyhledávání dílů'!$B$4,'seznamy dílů_BalTec'!A50,0)","v":0}]
["319717",0,null,"Lubricating nipple G 1/8  D1 Nr. 18140",null,null,{"$f":"IF(A51='vyhledávání dílů'!$B$4,'seznamy dílů_BalTec'!A51,0)","v":0}]
["319718",12,"mazací nipl M5","Lubricating nipple D1 M5 04.000/1.57","p.18",null,{"$f":"IF(A52='vyhledávání dílů'!$B$4,'seznamy dílů_BalTec'!A52,0)","v":0}]
["319725",0,null,"Oil nipple D=6  D2a Nr.04.200",null,null,{"$f":"IF(A53='vyhledávání dílů'!$B$4,'seznamy dílů_BalTec'!A53,0)","v":0}]
["319801",0,null,"Grease gun",null,null,{"$f":"IF(A54='vyhledávání dílů'!$B$4,'seznamy dílů_BalTec'!A54,0)","v":0}]
["320225",0,null,"Flat belt 849,5x10 S2-E 1,5V",null,null,{"$f":"IF(A55='vyhledávání dílů'!$B$4,'seznamy dílů_BalTec'!A55,0)","v":0}]
["320229",0,null,"Flat-belt 1040x10 S2-E 1,5V endless",null,null,{"$f":"IF(A56='vyhledávání dílů'!$B$4,'seznamy dílů_BalTec'!A56,0)","v":0}]
["320232",0,null,"Flat belt 1169x10 S2-E 1,5V",null,null,{"$f":"IF(A57='vyhledávání dílů'!$B$4,'seznamy dílů_BalTec'!A57,0)","v":0}]
["320236",0,null,"Flat belt 1169x10 S2-E 1,5V",null,null,{"$f":"IF(A58='vyhledávání dílů'!$B$4,'seznamy dílů_BalTec'!A58,0)","v":0}]
["320238",0,null,"Flat belt 1180x10 endless",null,null,{"$f":"IF(A59='vyhledávání dílů'!$B$4,'seznamy dílů_BalTec'!A59,0)","v":0}]
["320240",0,null,"Flat belt 1198x10 E 1,5V",null,null,{"$f":"IF(A60='vyhledávání dílů'!$B$4,'seznamy dílů_BalTec'!A60,0)","v":0}]
["320968",0,null,"Thooted belt 480L/062",null,null,{"$f":"IF(A61='vyhledávání dílů'!$B$4,'seznamy dílů_BalTec'!A61,0)","v":0}]
["321106",0,null,"Round belt 8x944,5",null,null,{"$f":"IF(A62='vyhledávání dílů'!$B$4,'seznamy dílů_BalTec'!A62,0)","v":0}]
["321110",0,null,"Round belt 8x1071 e.o.V.",null,null,{"$f":"IF(A63='vyhledávání dílů'!$B$4,'seznamy dílů_BalTec'!A63,0)","v":0}]
["325802",0,null,"Spherical plain bearing GE 8 DO",null,null,{"$f":"IF(A64='vyhledávání dílů'!$B$4,'seznamy dílů_BalTec'!A64,0)","v":0}]
["325804",0,null,"Spherical plain bearing GE 12 DO",null,null,{"$f":"IF(A65='vyhledávání dílů'!$B$4,'seznamy dílů_BalTec'!A65,0)","v":0}]
["325805",0,null,"Spherical plain bearing GE 15 ES",null,null,{"$f":"IF(A66='vyhledávání dílů'!$B$4,'seznamy dílů_BalTec'!A66,0)","v":0}]
["325807",0,null,"Spherical plain bearing GE 20 DO",null,null,{"$f":"IF(A67='vyhledávání dílů'!$B$4,'seznamy dílů_BalTec'!A67,0)","v":0}]
["325811",0,null,"Spherical plain bearing GEG 15 ES 2RS",null,null,{"$f":"IF(A68='vyhledávání dílů'!$B$4,'seznamy dílů_BalTec'!A68,0)","v":0}]
["325812",0,null,"Spherical plain bearing GE 10 FO",null,null,{"$f":"IF(A69='vyhledávání dílů'!$B$4,'seznamy dílů_BalTec'!A69,0)","v":0}]
["328304",0,null,"Flange bush self-lubricating 12E7x16r7x 6 ",null,null,{"$f":"IF(A70='vyhledávání dílů'!$B$4,'seznamy dílů_BalTec'!A70,0)","v":0}]
["328305",0,null,"Flange bush GLISSA 16E7 x 22r7 x 28X (12+4)",null,null,{"$f":"IF(A71='vyhledávání dílů'!$B$4,'seznamy dílů_BalTec'!A71,0)","v":0}]
["328401",0,null,"Slide bearing self-lubricating MB 0606 DU",null,null,{"$f":"IF(A72='vyhledávání dílů'!$B$4,'seznamy dílů_BalTec'!A72,0)","v":0}]
["328405",0,null,"Slide bearing self-lubricating MB 1010 DU",null,null,{"$f":"IF(A73='vyhledávání dílů'!$B$4,'seznamy dílů_BalTec'!A73,0)","v":0}]
["328406",0,null,"Slide bearing self-lubricating MB 1015 DU",null,null,{"$f":"IF(A74='vyhledávání dílů'!$B$4,'seznamy dílů_BalTec'!A74,0)","v":0}]
["328463",0,null,"Slide bearing self-lubricating MB 2215 DU",null,null,{"$f":"IF(A75='vyhledávání dílů'!$B$4,'seznamy dílů_BalTec'!A75,0)","v":0}]
["328464",0,null,"Slide bearing self-lubricating MB 2220 DU",null,null,{"$f":"IF(A76='vyhledávání dílů'!$B$4,'seznamy dílů_BalTec'!A76,0)","v":0}]
["328467",0,null,"Slide bearing self-lubricating MB 0810 DU",null,null,{"$f":"IF(A77='vyhledávání dílů'!$B$4,'seznamy dílů_BalTec'!A77,0)","v":0}]
["328468",0,null,"Slide bearing self-lubricating MB 1008 DU",null,null,{"$f":"IF(A78='vyhledávání dílů'!$B$4,'seznamy dílů_BalTec'!A78,0)","v":0}]
["328471",0,null,"Slide bearing self-lubricating MB 1210 DU",null,null,{"$f":"IF(A79='vyhledávání dílů'!$B$4,'seznamy dílů_BalTec'!A79,0)","v":0}]
["328491",0,null,"Slide bearing self-lubricating 5020 DU",null,null,{"$f":"IF(A80='vyhledávání dílů'!$B$4,'seznamy dílů_BalTec'!A80,0)","v":0}]
["328550",0,null,"Slide bearing self lubricating MB 7540 DX",null,null,{"$f":"IF(A81='vyhledávání dílů'!$B$4,'seznamy dílů_BalTec'!A81,0)","v":0}]
["328560",0,null,"Slide bearing MB 4520 DX",null,null,{"$f":"IF(A82='vyhledávání dílů'!$B$4,'seznamy dílů_BalTec'!A82,0)","v":0}]
["328602",0,null,"Bearing Glacier type MB 5515 DX",null,null,{"$f":"IF(A83='vyhledávání dílů'!$B$4,'seznamy dílů_BalTec'!A83,0)","v":0}]
["328610",0,null,"Collar bushing BB0810DU",null,null,{"$f":"IF(A84='vyhledávání dílů'!$B$4,'seznamy dílů_BalTec'!A84,0)","v":0}]
["330004",0,null,"Axial needle bearing AXK 4 15 28",null,null,{"$f":"IF(A85='vyhledávání dílů'!$B$4,'seznamy dílů_BalTec'!A85,0)","v":0}]
["330005",0,null,"Axial needle bearing AXK 4 15 28",null,null,{"$f":"IF(A86='vyhledávání dílů'!$B$4,'seznamy dílů_BalTec'!A86,0)","v":0}]
["330008",0,null,"Axial needle bearing AXK 3552",null,null,{"$f":"IF(A87='vyhledávání dílů'!$B$4,'seznamy dílů_BalTec'!A87,0)","v":0}]
["330056",0,null,"Axial Grooved ball-bearing 51106",null,null,{"$f":"IF(A88='vyhledávání dílů'!$B$4,'seznamy dílů_BalTec'!A88,0)","v":0}]
["330059",0,null,"Axial Grooved ball-bearing 51109",null,null,{"$f":"IF(A89='vyhledávání dílů'!$B$4,'seznamy dílů_BalTec'!A89,0)","v":0}]
["330107",0,null,"Axial Grooved ball-bearing 51405 25x60/24 DIN 711",null,null,{"$f":"IF(A90='vyhledávání dílů'!$B$4,'seznamy dílů_BalTec'!A90,0)","v":0}]
["330130",0,null,"Inclined ball-bearing 7208 BE 2RS Ø40xØ80x18",null,null,{"$f":"IF(A91='vyhledávání dílů'!$B$4,'seznamy dílů_BalTec'!A91,0)","v":0}]
["330144",0,null,"Axial washer",null,null,{"$f":"IF(A92='vyhledávání dílů'!$B$4,'seznamy dílů_BalTec'!A92,0)","v":0}]
["330182",0,null,"Casing washer GS 81104",null,null,{"$f":"IF(A93='vyhledávání dílů'!$B$4,'seznamy dílů_BalTec'!A93,0)","v":0}]
["330185",0,null,"Casing washer GS 81107",null,null,{"$f":"IF(A94='vyhledávání dílů'!$B$4,'seznamy dílů_BalTec'!A94,0)","v":0}]
["330241",0,null,"Counter washer CP 2 14 26",null,null,{"$f":"IF(A95='vyhledávání dílů'!$B$4,'seznamy dílů_BalTec'!A95,0)","v":0}]
["330248",0,null,"Counter washer CP 33552",null,null,{"$f":"IF(A96='vyhledávání dílů'!$B$4,'seznamy dílů_BalTec'!A96,0)","v":0}]
["330251",0,null,"Counter washer  CP 1426",null,null,{"$f":"IF(A97='vyhledávání dílů'!$B$4,'seznamy dílů_BalTec'!A97,0)","v":0}]
["330540",0,null,"Internal ring INA   IR 25x30x20,5",null,null,{"$f":"IF(A98='vyhledávání dílů'!$B$4,'seznamy dílů_BalTec'!A98,0)","v":0}]
["330545",0,null,"Internal ring IR 30x35x20,5",null,null,{"$f":"IF(A99='vyhledávání dílů'!$B$4,'seznamy dílů_BalTec'!A99,0)","v":0}]
["330702",0,null,"Washer washer LS 1528",null,null,{"$f":"IF(A100='vyhledávání dílů'!$B$4,'seznamy dílů_BalTec'!A100,0)","v":0}]
["330704",0,null,"Washer washer LS 2035",null,null,{"$f":"IF(A101='vyhledávání dílů'!$B$4,'seznamy dílů_BalTec'!A101,0)","v":0}]
["330834",0,null,"Needle bearing HK 2012",null,null,{"$f":"IF(A102='vyhledávání dílů'!$B$4,'seznamy dílů_BalTec'!A102,0)","v":0}]
["330835",0,null,"Needle bearing HK 2016",null,null,{"$f":"IF(A103='vyhledávání dílů'!$B$4,'seznamy dílů_BalTec'!A103,0)","v":0}]
["330849",0,null,"Needle bearing HK 3016",null,null,{"$f":"IF(A104='vyhledávání dílů'!$B$4,'seznamy dílů_BalTec'!A104,0)","v":0}]
["330850",0,null,"Needle bearing HK 3020",null,null,{"$f":"IF(A105='vyhledávání dílů'!$B$4,'seznamy dílů_BalTec'!A105,0)","v":0}]
["330855",0,null,"Needle bearing HK 3520",null,null,{"$f":"IF(A106='vyhledávání dílů'!$B$4,'seznamy dílů_BalTec'!A106,0)","v":0}]
["330860",0,null,"Needle bearing HK 4520",null,null,{"$f":"IF(A107='vyhledávání dílů'!$B$4,'seznamy dílů_BalTec'!A107,0)","v":0}]
["330875",0,null,"Needle bearing HK 1412",null,null,{"$f":"IF(A108='vyhledávání dílů'!$B$4,'seznamy dílů_BalTec'!A108,0)","v":0}]
["331024",0,null,"Needle ring K 14x18x13",null,null,{"$f":"IF(A109='vyhledávání dílů'!$B$4,'seznamy dílů_BalTec'!A109,0)","v":0}]
["331048",0,null,"Needle ring INA 20x24x17",null,null,{"$f":"IF(A110='vyhledávání dílů'!$B$4,'seznamy dílů_BalTec'!A110,0)","v":0}]
["331049",0,null,"Needle ring INA K 20x28x25",null,null,{"$f":"IF(A111='vyhledávání dílů'!$B$4,'seznamy dílů_BalTec'!A111,0)","v":0}]
["331080",0,null,"Needle ring K 35x42x16",null,null,{"$f":"IF(A112='vyhledávání dílů'!$B$4,'seznamy dílů_BalTec'!A112,0)","v":0}]
["331082",0,null,"Needle ring K 35x45x30",null,null,{"$f":"IF(A113='vyhledávání dílů'!$B$4,'seznamy dílů_BalTec'!A113,0)","v":0}]
["331252",0,null,"Needle bearing without inner ring NK 30/20",null,null,{"$f":"IF(A114='vyhledávání dílů'!$B$4,'seznamy dílů_BalTec'!A114,0)","v":0}]
["331267",0,null,"Needle bearing without inner ring NK 45/20",null,null,{"$f":"IF(A115='vyhledávání dílů'!$B$4,'seznamy dílů_BalTec'!A115,0)","v":0}]
["331279",0,null,"Needle bearing INA without inner ring NK 70/25-XL, HKR +39+30",null,null,{"$f":"IF(A116='vyhledávání dílů'!$B$4,'seznamy dílů_BalTec'!A116,0)","v":0}]
["331440",0,null,"Needle bearing without inner ring NK 12/16",null,null,{"$f":"IF(A117='vyhledávání dílů'!$B$4,'seznamy dílů_BalTec'!A117,0)","v":0}]
["331704",0,null,"Needle bearing combined RAX 420",null,null,{"$f":"IF(A118='vyhledávání dílů'!$B$4,'seznamy dílů_BalTec'!A118,0)","v":0}]
["331721",0,null,"Needle bearing combined RAX 714",null,null,{"$f":"IF(A119='vyhledávání dílů'!$B$4,'seznamy dílů_BalTec'!A119,0)","v":0}]
["332046",0,null,"Grooved ball-bearing 6206 Z DIN 625",null,null,{"$f":"IF(A120='vyhledávání dílů'!$B$4,'seznamy dílů_BalTec'!A120,0)","v":0}]
["332120",0,null,"Grooved ball-bearing  61908 ø40xø60x12",null,null,{"$f":"IF(A121='vyhledávání dílů'!$B$4,'seznamy dílů_BalTec'!A121,0)","v":0}]
["332214",0,null,"Grooved ball-bearing 6204-2RS DIN 625",null,null,{"$f":"IF(A122='vyhledávání dílů'!$B$4,'seznamy dílů_BalTec'!A122,0)","v":0}]
["332232",0,null,"Grooved ball-bearing 6001-2 R Z",null,null,{"$f":"IF(A123='vyhledávání dílů'!$B$4,'seznamy dílů_BalTec'!A123,0)","v":0}]
["332235",0,null,"Grooved ball-bearing 6005-2RS DIN 625",null,null,{"$f":"IF(A124='vyhledávání dílů'!$B$4,'seznamy dílů_BalTec'!A124,0)","v":0}]
["332238",0,null,"Grooved ball-bearing 6008 2RSR Ø40xØ68x15",null,null,{"$f":"IF(A125='vyhledávání dílů'!$B$4,'seznamy dílů_BalTec'!A125,0)","v":0}]
["332707",0,null,"Grooved nut M35x1.5 KM 7",null,null,{"$f":"IF(A126='vyhledávání dílů'!$B$4,'seznamy dílů_BalTec'!A126,0)","v":0}]
["332857",0,null,"Axial needle bearing AX 4 15 28",null,null,{"$f":"IF(A127='vyhledávání dílů'!$B$4,'seznamy dílů_BalTec'!A127,0)","v":0}]
["333077",0,null,"Grooved ball-bearing 695-ZZ NTN",null,null,{"$f":"IF(A128='vyhledávání dílů'!$B$4,'seznamy dílů_BalTec'!A128,0)","v":0}]
["333333",0,null,"Cylinder roller RC-12x12",null,null,{"$f":"IF(A129='vyhledávání dílů'!$B$4,'seznamy dílů_BalTec'!A129,0)","v":0}]
["333335",0,null,"Cylinder roller ZRO 14x14",null,null,{"$f":"IF(A130='vyhledávání dílů'!$B$4,'seznamy dílů_BalTec'!A130,0)","v":0}]
["333400",0,null,"Set of bearings for RN/RNE 080",null,null,{"$f":"IF(A131='vyhledávání dílů'!$B$4,'seznamy dílů_BalTec'!A131,0)","v":0}]
["333401",0,null,"Set of bearings for RN/RNE 180",null,null,{"$f":"IF(A132='vyhledávání dílů'!$B$4,'seznamy dílů_BalTec'!A132,0)","v":0}]
["333402",0,null,"Set of bearings for RN/RNE 280",null,null,{"$f":"IF(A133='vyhledávání dílů'!$B$4,'seznamy dílů_BalTec'!A133,0)","v":0}]
["333403",0,null,"Set of bearings for RN/RNE 330/380",null,null,{"$f":"IF(A134='vyhledávání dílů'!$B$4,'seznamy dílů_BalTec'!A134,0)","v":0}]
["333409",0,null,"Set of bearing for RNE 481 tangential ",null,null,{"$f":"IF(A135='vyhledávání dílů'!$B$4,'seznamy dílů_BalTec'!A135,0)","v":0}]
["333410",0,null,"Set of bearings for RN/RNE 081",null,null,{"$f":"IF(A136='vyhledávání dílů'!$B$4,'seznamy dílů_BalTec'!A136,0)","v":0}]
["333411",4,"Ložiska RN/RNE 181/231/231L","Set of bearings for RN/RNE 181/231/231L standard and with STF",null,null,{"$f":"IF(A137='vyhledávání dílů'!$B$4,'seznamy dílů_BalTec'!A137,0)","v":0}]
["333412",2,"Ložiska RN/RNE 281/331/381","Set of bearings for RN/RNE 281/331/381 281L/331L",null,null,{"$f":"IF(A138='vyhledávání dílů'!$B$4,'seznamy dílů_BalTec'!A138,0)","v":0}]
["333413",0,null,"Set of bearings for RNE 481 standard and with STF",null,null,{"$f":"IF(A139='vyhledávání dílů'!$B$4,'seznamy dílů_BalTec'!A139,0)","v":0}]
["333414",0,null,"Set of bearings for RN/RNE 241",null,null,{"$f":"IF(A140='vyhledávání dílů'!$B$4,'seznamy dílů_BalTec'!A140,0)","v":0}]
["333415",0,null,"Set of bearings for SN/SNE 170/220",null,null,{"$f":"IF(A141='vyhledávání dílů'!$B$4,'seznamy dílů_BalTec'!A141,0)","v":0}]
["333416",0,null,"Set of bearings for SN/SNE 270",null,null,{"$f":"IF(A142='vyhledávání dílů'!$B$4,'seznamy dílů_BalTec'!A142,0)","v":0}]
["333417",0,null,"Set of bearings for RN/RNE 381L standard and with STF",null,null,{"$f":"IF(A143='vyhledávání dílů'!$B$4,'seznamy dílů_BalTec'!A143,0)","v":0}]
["333418",0,null,"Set of bearings for RN/RNE 181/231 tangential and with STF",null,null,{"$f":"IF(A144='vyhledávání dílů'!$B$4,'seznamy dílů_BalTec'!A144,0)","v":0}]
["333419",0,null,"Set of bearings for RN/RNE 281/331/381 tangential, standard and with STF",null,null,{"$f":"IF(A145='vyhledávání dílů'!$B$4,'seznamy dílů_BalTec'!A145,0)","v":0}]
["337002",2,"Vyrovnávací podložka","Spacer washer for ball-bearing  6015 K2 104/114x0,6","p.21",null,{"$f":"IF(A146='vyhledávání dílů'!$B$4,'seznamy dílů_BalTec'!A146,0)","v":0}]
["337003",6,"pružinová podložka 19,3/25,8x0,35","Spacer washer 629 K2 19,3 / 25,8 x 0,35",null,null,{"$f":"IF(A147='vyhledávání dílů'!$B$4,'seznamy dílů_BalTec'!A147,0)","v":0}]
["337004",0,null,"Spacer washer for ball-bearing 6011 K2 79/89x0,6",null,null,{"$f":"IF(A148='vyhledávání dílů'!$B$4,'seznamy dílů_BalTec'!A148,0)","v":0}]
["337005",8,"pružinová podložka 40/46x0,5","Spacer washer for ball-bearing 6005 K2 40/46,5x0,5",null,null,{"$f":"IF(A149='vyhledávání dílů'!$B$4,'seznamy dílů_BalTec'!A149,0)","v":0}]
["337006",9,"pružinová podložka 51/61x0,5","L&M spacer washer 51/61x0,5",null,null,{"$f":"IF(A150='vyhledávání dílů'!$B$4,'seznamy dílů_BalTec'!A150,0)","v":0}]
["337007",16,"pružinová podložka 28/34,5x0,5","L&M spacer washer 28/34,5x0,5",null,null,{"$f":"IF(A151='vyhledávání dílů'!$B$4,'seznamy dílů_BalTec'!A151,0)","v":0}]
["337008",0,null,"Spacer washer for ball-bearing 6304 K3 44/51 x 0,4",null,null,{"$f":"IF(A152='vyhledávání dílů'!$B$4,'seznamy dílů_BalTec'!A152,0)","v":0}]
["338015",0,null,"Spherical bearing unibal SS 8  (drilling G7)",null,null,{"$f":"IF(A153='vyhledávání dílů'!$B$4,'seznamy dílů_BalTec'!A153,0)","v":0}]
["341002",1,"šroub","Screw","p.11",null,{"$f":"IF(A154='vyhledávání dílů'!$B$4,'seznamy dílů_BalTec'!A154,0)","v":0}]
["341006",10," šroub M3x12","screw","p.100",null,{"$f":"IF(A155='vyhledávání dílů'!$B$4,'seznamy dílů_BalTec'!A155,0)","v":0}]
["341010",16,"šroub M4x10","screw","p.080",null,{"$f":"IF(A156='vyhledávání dílů'!$B$4,'seznamy dílů_BalTec'!A156,0)","v":0}]
["341011",13,"šroub M4x12","screw","p. 190",null,{"$f":"IF(A157='vyhledávání dílů'!$B$4,'seznamy dílů_BalTec'!A157,0)","v":0}]
["341018",2,"šroub M5x16","screw","p. 010",null,{"$f":"IF(A158='vyhledávání dílů'!$B$4,'seznamy dílů_BalTec'!A158,0)","v":0}]
["341019",12,"šroub M5x20","screw","P.040",null,{"$f":"IF(A159='vyhledávání dílů'!$B$4,'seznamy dílů_BalTec'!A159,0)","v":0}]
["341070",4,"šroub M4x20","screw","p.070",null,{"$f":"IF(A160='vyhledávání dílů'!$B$4,'seznamy dílů_BalTec'!A160,0)","v":0}]
["341100",2,"šroub","Screw","p. 10",null,{"$f":"IF(A161='vyhledávání dílů'!$B$4,'seznamy dílů_BalTec'!A161,0)","v":0}]
["341104",2,"šroub","Screw","p. 13",null,{"$f":"IF(A162='vyhledávání dílů'!$B$4,'seznamy dílů_BalTec'!A162,0)","v":0}]
["341398",0,null,"Fitting bolt Ø 6x20 M5",null,null,{"$f":"IF(A163='vyhledávání dílů'!$B$4,'seznamy dílů_BalTec'!A163,0)","v":0}]
["341399",0,null,"Fitting bolt Ø 6x25 M5",null,null,{"$f":"IF(A164='vyhledávání dílů'!$B$4,'seznamy dílů_BalTec'!A164,0)","v":0}]
["341412",0,null,"Fitting bolt (refinishing)",null,null,{"$f":"IF(A165='vyhledávání dílů'!$B$4,'seznamy dílů_BalTec'!A165,0)","v":0}]
["341520",4,"šroub M6x35","Screw","p. 30",null,{"$f":"IF(A166='vyhledávání dílů'!$B$4,'seznamy dílů_BalTec'!A166,0)","v":0}]
["341911",2,"šroub M5x12","screw","p.120",null,{"$f":"IF(A167='vyhledávání dílů'!$B$4,'seznamy dílů_BalTec'!A167,0)","v":0}]
["342810",8,"šroub M5 x 10","screw","p.18",null,{"$f":"IF(A168='vyhledávání dílů'!$B$4,'seznamy dílů_BalTec'!A168,0)","v":0}]
["345305",0,null,"Clamping screw CK4 M8x0,75",null,null,{"$f":"IF(A169='vyhledávání dílů'!$B$4,'seznamy dílů_BalTec'!A169,0)","v":0}]
["348325",0,null,"Extension nut M10x30, galvinised",null,null,{"$f":"IF(A170='vyhledávání dílů'!$B$4,'seznamy dílů_BalTec'!A170,0)","v":0}]
["348923",8,"Podložka M5 VSM","screw","p.19",null,{"$f":"IF(A171='vyhledávání dílů'!$B$4,'seznamy dílů_BalTec'!A171,0)","v":0}]
["348991",5,"matka M5","Lock nut galvinised M5 DIN 985",null,null,{"$f":"IF(A172='vyhledávání dílů'!$B$4,'seznamy dílů_BalTec'!A172,0)","v":0}]
["348993",2,"matka M8","Lock nut galvinised M8 DIN 985",null,null,{"$f":"IF(A173='vyhledávání dílů'!$B$4,'seznamy dílů_BalTec'!A173,0)","v":0}]
["349423",0,null,"Ring screw M12 DIN 580",null,null,{"$f":"IF(A174='vyhledávání dílů'!$B$4,'seznamy dílů_BalTec'!A174,0)","v":0}]
["349424",0,null,"Ring screw galvinised M16 DIN 580",null,null,{"$f":"IF(A175='vyhledávání dílů'!$B$4,'seznamy dílů_BalTec'!A175,0)","v":0}]
["349425",0,null,"Ring screw M20",null,null,{"$f":"IF(A176='vyhledávání dílů'!$B$4,'seznamy dílů_BalTec'!A176,0)","v":0}]
["349891",0,"pojistný červík na držáku nástroje M4","Spring-loaded pressure piece M4 form K ",null,null,{"$f":"IF(A177='vyhledávání dílů'!$B$4,'seznamy dílů_BalTec'!A177,0)","v":0}]
["349901",0,null,"Spring-loaded pressure piece M5 GN 615-M5-KS",null,null,{"$f":"IF(A178='vyhledávání dílů'!$B$4,'seznamy dílů_BalTec'!A178,0)","v":0}]
["351343",0,null,"V-Snap ring ø62 drilling",null,null,{"$f":"IF(A179='vyhledávání dílů'!$B$4,'seznamy dílů_BalTec'!A179,0)","v":0}]
["351516",0,null,"Lock screw for shaft D=3,2 DIN 6799",null,null,{"$f":"IF(A180='vyhledávání dílů'!$B$4,'seznamy dílů_BalTec'!A180,0)","v":0}]
["351517",0,null,"Lock screw for shaft D=4,0 DIN 6799",null,null,{"$f":"IF(A181='vyhledávání dílů'!$B$4,'seznamy dílů_BalTec'!A181,0)","v":0}]
["351520",0,null,"Lock screw for shaft D=7,0 DIN 6799",null,null,{"$f":"IF(A182='vyhledávání dílů'!$B$4,'seznamy dílů_BalTec'!A182,0)","v":0}]
["351707",34,"zajišťovací podložka M5","washer","p.67",null,{"$f":"IF(A183='vyhledávání dílů'!$B$4,'seznamy dílů_BalTec'!A183,0)","v":0}]
["351708",84,"zajišťovací podložka M6","washer","p.67",null,{"$f":"IF(A184='vyhledávání dílů'!$B$4,'seznamy dílů_BalTec'!A184,0)","v":0}]
["351709",27,"zajišťovací podložka M8","washer","p.30",null,{"$f":"IF(A185='vyhledávání dílů'!$B$4,'seznamy dílů_BalTec'!A185,0)","v":0}]
["352424",0,null,"Fitting bolt 16x22x0,2 DIN 988",null,null,{"$f":"IF(A186='vyhledávání dílů'!$B$4,'seznamy dílů_BalTec'!A186,0)","v":0}]
["354053",4,"pojistný kroužek spodního pístu Ø","Lock ring for shaft Ø56x2 DIN 471 A","p.53",null,{"$f":"IF(A187='vyhledávání dílů'!$B$4,'seznamy dílů_BalTec'!A187,0)","v":0}]
["354064",4,"pojistný kroužek spodního pístu Ø75","Lock ring for shaft Ø75 DIN 471","p.58",null,{"$f":"IF(A188='vyhledávání dílů'!$B$4,'seznamy dílů_BalTec'!A188,0)","v":0}]
["354215",0,null,"Lock ring for drilling Ø22 DIN 472",null,null,{"$f":"IF(A189='vyhledávání dílů'!$B$4,'seznamy dílů_BalTec'!A189,0)","v":0}]
["354239",0,null,"Lock ring for drilling  Ø46 DIN 472",null,null,{"$f":"IF(A190='vyhledávání dílů'!$B$4,'seznamy dílů_BalTec'!A190,0)","v":0}]
["354240",0,null,"Lock ring for drilling Ø47 DIN 472",null,null,{"$f":"IF(A191='vyhledávání dílů'!$B$4,'seznamy dílů_BalTec'!A191,0)","v":0}]
["354259",0,null,"Lock ring for drilling Ø72 DIN 472",null,null,{"$f":"IF(A192='vyhledávání dílů'!$B$4,'seznamy dílů_BalTec'!A192,0)","v":0}]
["354264",0,null,"Lock ring for drilling Ø82 x 2.5 DIN 472",null,null,{"$f":"IF(A193='vyhledávání dílů'!$B$4,'seznamy dílů_BalTec'!A193,0)","v":0}]
["354409",0,null,"Snap ring SW 12 Christen",null,null,{"$f":"IF(A194='vyhledávání dílů'!$B$4,'seznamy dílů_BalTec'!A194,0)","v":0}]
["354412",0,null,"Snap ring SW 15",null,null,{"$f":"IF(A195='vyhledávání dílů'!$B$4,'seznamy dílů_BalTec'!A195,0)","v":0}]
["354510",0,null,"Snap ring SB 15",null,null,{"$f":"IF(A196='vyhledávání dílů'!$B$4,'seznamy dílů_BalTec'!A196,0)","v":0}]
["354514",0,null,"Snap ring SB 22",null,null,{"$f":"IF(A197='vyhledávání dílů'!$B$4,'seznamy dílů_BalTec'!A197,0)","v":0}]
["354517",0,null,"Snap ring SB 26",null,null,{"$f":"IF(A198='vyhledávání dílů'!$B$4,'seznamy dílů_BalTec'!A198,0)","v":0}]
["354519",0,null,"Snap ring SB 30 Christen",null,null,{"$f":"IF(A199='vyhledávání dílů'!$B$4,'seznamy dílů_BalTec'!A199,0)","v":0}]
["354522",0,null,"Snap ring SB 35",null,null,{"$f":"IF(A200='vyhledávání dílů'!$B$4,'seznamy dílů_BalTec'!A200,0)","v":0}]
["355030",0,null,"Cylinder pin, hardened 2-h6x 6 DIN 6325",null,null,{"$f":"IF(A201='vyhledávání dílů'!$B$4,'seznamy dílů_BalTec'!A201,0)","v":0}]
["355031",0,null,"Cylinder pin, hardened 2-h6x 8 DIN 6325",null,null,{"$f":"IF(A202='vyhledávání dílů'!$B$4,'seznamy dílů_BalTec'!A202,0)","v":0}]
["355033",0,null,"Cylinder pin, hardened 2-h6x12 DIN 6325",null,null,{"$f":"IF(A203='vyhledávání dílů'!$B$4,'seznamy dílů_BalTec'!A203,0)","v":0}]
["355068",0,null,"Cylinder pin, hardened 3-h6x10 DIN 6325",null,null,{"$f":"IF(A204='vyhledávání dílů'!$B$4,'seznamy dílů_BalTec'!A204,0)","v":0}]
["355069",0,null,"Cylinder pin, hardened 3-h6x12 DIN 6325",null,null,{"$f":"IF(A205='vyhledávání dílů'!$B$4,'seznamy dílů_BalTec'!A205,0)","v":0}]
["355070",0,null,"Cylinder pin, hardened 3-h6x14 DIN 6325",null,null,{"$f":"IF(A206='vyhledávání dílů'!$B$4,'seznamy dílů_BalTec'!A206,0)","v":0}]
["355071",0,null,"Cylinder pin, hardened 3-h6x16 DIN 6325",null,null,{"$f":"IF(A207='vyhledávání dílů'!$B$4,'seznamy dílů_BalTec'!A207,0)","v":0}]
["355087",0,null,"Cylinder pin, hardened 4-h6x10 DIN 6325",null,null,{"$f":"IF(A208='vyhledávání dílů'!$B$4,'seznamy dílů_BalTec'!A208,0)","v":0}]
["355090",0,null,"Cylinder pin, hardened 4-h6x16 DIN 6325",null,null,{"$f":"IF(A209='vyhledávání dílů'!$B$4,'seznamy dílů_BalTec'!A209,0)","v":0}]
["355091",0,null,"Cylinder pin, hardened 4-h6x18 DIN 6325",null,null,{"$f":"IF(A210='vyhledávání dílů'!$B$4,'seznamy dílů_BalTec'!A210,0)","v":0}]
["355112",0,null,"Cylinder pin, hardened 5-h6x22",null,null,{"$f":"IF(A211='vyhledávání dílů'!$B$4,'seznamy dílů_BalTec'!A211,0)","v":0}]
["355113",0,null,"Cylinder pin, hardened 5-h6x24 DIN 6325",null,null,{"$f":"IF(A212='vyhledávání dílů'!$B$4,'seznamy dílů_BalTec'!A212,0)","v":0}]
["355116",0,null,"Cylinder pin, hardened 5-h6x30 DIN 6325",null,null,{"$f":"IF(A213='vyhledávání dílů'!$B$4,'seznamy dílů_BalTec'!A213,0)","v":0}]
["355134",4,"kolíky RN 330","Cylinder pin, hardened 6-h6x28 DIN 6325",null,null,{"$f":"IF(A214='vyhledávání dílů'!$B$4,'seznamy dílů_BalTec'!A214,0)","v":0}]
["355135",0,null,"Cylinder pin, hardened 6-h6x30 DIN 6325",null,null,{"$f":"IF(A215='vyhledávání dílů'!$B$4,'seznamy dílů_BalTec'!A215,0)","v":0}]
["355147",0,null,"Cylinder pin, hardened 6-h6x100",null,null,{"$f":"IF(A216='vyhledávání dílů'!$B$4,'seznamy dílů_BalTec'!A216,0)","v":0}]
["355252",0,null,"Cylinder pin, hardened 6-m6x120 DIN 6325",null,null,{"$f":"IF(A217='vyhledávání dílů'!$B$4,'seznamy dílů_BalTec'!A217,0)","v":0}]
["355253",0,null,"Cylinder pin, hardened 6-m6x24 m. Innengewinde ISO 8735A",null,null,{"$f":"IF(A218='vyhledávání dílů'!$B$4,'seznamy dílů_BalTec'!A218,0)","v":0}]
["355333",0,null,"Spiral spring pin L=24 M4 DIN 7343",null,null,{"$f":"IF(A219='vyhledávání dílů'!$B$4,'seznamy dílů_BalTec'!A219,0)","v":0}]
["355347",0,null,"Spiral spring pin L=28 M5 DIN 7343",null,null,{"$f":"IF(A220='vyhledávání dílů'!$B$4,'seznamy dílů_BalTec'!A220,0)","v":0}]
["355349",0,null,"Spiral spring pin L=32 M5 DIN 7343",null,null,{"$f":"IF(A221='vyhledávání dílů'!$B$4,'seznamy dílů_BalTec'!A221,0)","v":0}]
["355401",2,"pojistný kolík hřídele motoru 331","Spiral spring pin PRYM  5x35 ISO 8748 (DIN 7344)",null,null,{"$f":"IF(A222='vyhledávání dílů'!$B$4,'seznamy dílů_BalTec'!A222,0)","v":0}]
["355402",0,null,"Spiral spring pin 6x30, schwere Ausf. ISO 8748",null,null,{"$f":"IF(A223='vyhledávání dílů'!$B$4,'seznamy dílů_BalTec'!A223,0)","v":0}]
["355403",0,null,"Spiral spring pin PRYM 6x40 ISO 8748 (DIN 7344)",null,null,{"$f":"IF(A224='vyhledávání dílů'!$B$4,'seznamy dílů_BalTec'!A224,0)","v":0}]
["355435",0,null,"Cylinder pin, hardened ",null,null,{"$f":"IF(A225='vyhledávání dílů'!$B$4,'seznamy dílů_BalTec'!A225,0)","v":0}]
["355923",0,null,"Conical pin with LH-thread 6x30 DIN 7978 A",null,null,{"$f":"IF(A226='vyhledávání dílů'!$B$4,'seznamy dílů_BalTec'!A226,0)","v":0}]
["355932",0,null,"Conical pin with LH-thread 8x30 DIN 7978 A",null,null,{"$f":"IF(A227='vyhledávání dílů'!$B$4,'seznamy dílů_BalTec'!A227,0)","v":0}]
["355934",0,null,"Conical pin with LH-thread 8x40 DIN 7978 A",null,null,{"$f":"IF(A228='vyhledávání dílů'!$B$4,'seznamy dílů_BalTec'!A228,0)","v":0}]
["356025",0,null,"Heavy duty dowl pin 2x6 VSM 12785",null,null,{"$f":"IF(A229='vyhledávání dílů'!$B$4,'seznamy dílů_BalTec'!A229,0)","v":0}]
["356060",0,null,"Heavy duty dowl pin 3x8 VSM 12785",null,null,{"$f":"IF(A230='vyhledávání dílů'!$B$4,'seznamy dílů_BalTec'!A230,0)","v":0}]
["356062",0,null,"Heavy duty dowl pin 3x12 VSM 12785",null,null,{"$f":"IF(A231='vyhledávání dílů'!$B$4,'seznamy dílů_BalTec'!A231,0)","v":0}]
["356065",10,"poziční kolík 3x16","Heavy duty dowl pin 3x16 VSM 12785",null,null,{"$f":"IF(A232='vyhledávání dílů'!$B$4,'seznamy dílů_BalTec'!A232,0)","v":0}]
["356066",0,null,"Heavy duty dowl pin 3x18 VSM 12785",null,null,{"$f":"IF(A233='vyhledávání dílů'!$B$4,'seznamy dílů_BalTec'!A233,0)","v":0}]
["356108",0,null,"Heavy duty dowl pin 4x16 VSM 12785",null,null,{"$f":"IF(A234='vyhledávání dílů'!$B$4,'seznamy dílů_BalTec'!A234,0)","v":0}]
["356113",0,null,"Heavy duty dowl pin D=4 x 25",null,null,{"$f":"IF(A235='vyhledávání dílů'!$B$4,'seznamy dílů_BalTec'!A235,0)","v":0}]
["359137",0,null,"Screw cross slot M4x8 eco-fix Form H, BN 4825 4H",null,null,{"$f":"IF(A236='vyhledávání dílů'!$B$4,'seznamy dílů_BalTec'!A236,0)","v":0}]
["359651",0,null,"Counter-sunk screw, galvanized, M5x8 VSM 13320-8.8",null,null,{"$f":"IF(A237='vyhledávání dílů'!$B$4,'seznamy dílů_BalTec'!A237,0)","v":0}]
["359678",0,null,"Copper washer M5",null,null,{"$f":"IF(A238='vyhledávání dílů'!$B$4,'seznamy dílů_BalTec'!A238,0)","v":0}]
["359930",0,null,"Hexagonal nut M14 DIN 934 galvinised",null,null,{"$f":"IF(A239='vyhledávání dílů'!$B$4,'seznamy dílů_BalTec'!A239,0)","v":0}]
["360007",0,null,"Scraper/stripper AS 20/30 x 4/6",null,null,{"$f":"IF(A240='vyhledávání dílů'!$B$4,'seznamy dílů_BalTec'!A240,0)","v":0}]
["360063",0,null,"Scraper/stripper NBR EL 1016 N3767 10x16,2x6",null,null,{"$f":"IF(A241='vyhledávání dílů'!$B$4,'seznamy dílů_BalTec'!A241,0)","v":0}]
["360302",0,null,"Piston seal",null,null,{"$f":"IF(A242='vyhledávání dílů'!$B$4,'seznamy dílů_BalTec'!A242,0)","v":0}]
["360316",0,null,"I.D. seal  KT KSD-ring spec.",null,null,{"$f":"IF(A243='vyhledávání dílů'!$B$4,'seznamy dílů_BalTec'!A243,0)","v":0}]
["360317",0,null,"I.D. seal  KT KSD-ring spec. Typ SD 55-56.2x3-PTFE 155/NBR",null,null,{"$f":"IF(A244='vyhledávání dílů'!$B$4,'seznamy dílů_BalTec'!A244,0)","v":0}]
["360319",0,null,"I.D. seal  KT KSD-ring spec. Typ SD 60-61.2x5.7-PTFE 155/NBR",null,null,{"$f":"IF(A245='vyhledávání dílů'!$B$4,'seznamy dílů_BalTec'!A245,0)","v":0}]
["360322",0,null,"I.D. seal  KT KSD-ring spec. Typ SD 70-71.2x5.7-PTFE 155/NBR",null,null,{"$f":"IF(A246='vyhledávání dílů'!$B$4,'seznamy dílů_BalTec'!A246,0)","v":0}]
["360323",0,null,"I.D. seal  KT KSD-ring spec. Typ SD 80-81.2x5.7-PTFE 155/NBR",null,null,{"$f":"IF(A247='vyhledávání dílů'!$B$4,'seznamy dílů_BalTec'!A247,0)","v":0}]
["360325",0,null,"I.D. seal  KT KSD-ring spec. Typ SD 75-76.2x5.7-PTFE 155/NBR",null,null,{"$f":"IF(A248='vyhledávání dílů'!$B$4,'seznamy dílů_BalTec'!A248,0)","v":0}]
["360331",0,null,"I.D. seal  KT KSD-ring SDS 50-227 PTFE 600/NBR",null,null,{"$f":"IF(A249='vyhledávání dílů'!$B$4,'seznamy dílů_BalTec'!A249,0)","v":0}]
["360349",0,null,"I.D. seal  KT KSD SD 65-232- PTFE-Grafit/NBR-Quadring",null,null,{"$f":"IF(A250='vyhledávání dílů'!$B$4,'seznamy dílů_BalTec'!A250,0)","v":0}]
["360350",0,null,"I.D. seal  KT KSD-ring spec. Typ SD 48-226-PTFE 430/NBR-Quadring",null,null,{"$f":"IF(A251='vyhledávání dílů'!$B$4,'seznamy dílů_BalTec'!A251,0)","v":0}]
["360351",0,null,"I.D. seal  KT KSD-ring spec. Typ SD 55-228-PTFE 430/NBR-Quadring",null,null,{"$f":"IF(A252='vyhledávání dílů'!$B$4,'seznamy dílů_BalTec'!A252,0)","v":0}]
["360352",0,null,"I.D. seal  KT KSD-ring spec. Typ SD 60-226-PTFE 430/NBR-Quadring",null,null,{"$f":"IF(A253='vyhledávání dílů'!$B$4,'seznamy dílů_BalTec'!A253,0)","v":0}]
["360353",0,null,"I.D. seal  KT KSD-ring spec. Typ SD 75-235-PTFE 430/NBR-Quadring",null,null,{"$f":"IF(A254='vyhledávání dílů'!$B$4,'seznamy dílů_BalTec'!A254,0)","v":0}]
["360354",0,null,"I.D. seal  KT KSD-ring spec. Typ KD ",null,null,{"$f":"IF(A255='vyhledávání dílů'!$B$4,'seznamy dílů_BalTec'!A255,0)","v":0}]
["360355",0,null,"O.D. seal KT KSD-ring spec. Typ KD 100-238-PTFE 430/NBR-Quadring",null,null,{"$f":"IF(A256='vyhledávání dílů'!$B$4,'seznamy dílů_BalTec'!A256,0)","v":0}]
["360356",0,null,"O.D. seal KT KSD-ring spec. Typ KD 125-246-PTFE 430/NBR-Quadring",null,null,{"$f":"IF(A257='vyhledávání dílů'!$B$4,'seznamy dílů_BalTec'!A257,0)","v":0}]
["360357",0,null,"O.D. seal KT KSD-ring spec. Typ KD 150-253-PTFE 430/NBR-Quadring",null,null,{"$f":"IF(A258='vyhledávání dílů'!$B$4,'seznamy dílů_BalTec'!A258,0)","v":0}]
["360358",0,null,"O.D. seal KT KSD-ring spec. Typ KD 200-366-PTFE 430/NBR-Quadring",null,null,{"$f":"IF(A259='vyhledávání dílů'!$B$4,'seznamy dílů_BalTec'!A259,0)","v":0}]
["360372",0,null,"O.D. seal KT KSD-ring spec. Typ KD  100-340-PTFE 155/NBR",null,null,{"$f":"IF(A260='vyhledávání dílů'!$B$4,'seznamy dílů_BalTec'!A260,0)","v":0}]
["360389",0,null,"O.D. seal KT KSD-ring spec. Typ KD 150-134.2x5.7-PTFE 155/NBR",null,null,{"$f":"IF(A261='vyhledávání dílů'!$B$4,'seznamy dílů_BalTec'!A261,0)","v":0}]
["361021",0,null,"DUBO joint ring M4 (nylon 6)",null,null,{"$f":"IF(A262='vyhledávání dílů'!$B$4,'seznamy dílů_BalTec'!A262,0)","v":0}]
["361108",35,"těsnící podložka 5,7x9x1 ","Screw seal galvinized Ø5,7x9x1mm NBR 85-90 Shore A verzinkt","p. 35",null,{"$f":"IF(A263='vyhledávání dílů'!$B$4,'seznamy dílů_BalTec'!A263,0)","v":0}]
["361109",0,null,"Usit Ring U 4,5-7-1",null,null,{"$f":"IF(A264='vyhledávání dílů'!$B$4,'seznamy dílů_BalTec'!A264,0)","v":0}]
["361650",0,null,"Retaining ring 30/40/7 BA",null,null,{"$f":"IF(A265='vyhledávání dílů'!$B$4,'seznamy dílů_BalTec'!A265,0)","v":0}]
["361651",0,null,"Retaining ring 25/35/7 BA",null,null,{"$f":"IF(A266='vyhledávání dílů'!$B$4,'seznamy dílů_BalTec'!A266,0)","v":0}]
["361652",0,null,"Retaining ring 35/47/7 BA",null,null,{"$f":"IF(A267='vyhledávání dílů'!$B$4,'seznamy dílů_BalTec'!A267,0)","v":0}]
["361945",0,null,"Damping seal ring CYBU PEJ 52x62",null,null,{"$f":"IF(A268='vyhledávání dílů'!$B$4,'seznamy dílů_BalTec'!A268,0)","v":0}]
["361951",0,null,"Damping seal ring CYBU PEJ 78x95",null,null,{"$f":"IF(A269='vyhledávání dílů'!$B$4,'seznamy dílů_BalTec'!A269,0)","v":0}]
["362009",0,null,"O-ring 5-1,5 NBR 70 Shore",null,null,{"$f":"IF(A270='vyhledávání dílů'!$B$4,'seznamy dílů_BalTec'!A270,0)","v":0}]
["362011",0,null,"O-ring 8-1,5 NF - 776",null,null,{"$f":"IF(A271='vyhledávání dílů'!$B$4,'seznamy dílů_BalTec'!A271,0)","v":0}]
["362014",0,null,"O-ring 7-1,5 NBR 70 Shore",null,null,{"$f":"IF(A272='vyhledávání dílů'!$B$4,'seznamy dílů_BalTec'!A272,0)","v":0}]
["362024",0,null,"O-ring 12-1.5 NBR 70 Shore",null,null,{"$f":"IF(A273='vyhledávání dílů'!$B$4,'seznamy dílů_BalTec'!A273,0)","v":0}]
["362033",0,null,"O-ring 15,3-2,4 NBR 70 Shore",null,null,{"$f":"IF(A274='vyhledávání dílů'!$B$4,'seznamy dílů_BalTec'!A274,0)","v":0}]
["362038",0,null,"O-ring 20-2 NBR 70 Shore",null,null,{"$f":"IF(A275='vyhledávání dílů'!$B$4,'seznamy dílů_BalTec'!A275,0)","v":0}]
["362039",0,null,"O-ring 24-2,5 NBR 70 Shore",null,null,{"$f":"IF(A276='vyhledávání dílů'!$B$4,'seznamy dílů_BalTec'!A276,0)","v":0}]
["362045",0,null,"O-ring 22-1,5, NBR 70 Shore",null,null,{"$f":"IF(A277='vyhledávání dílů'!$B$4,'seznamy dílů_BalTec'!A277,0)","v":0}]
["362051",0,null,"O-ring 36-2 NBR 70 Shore",null,null,{"$f":"IF(A278='vyhledávání dílů'!$B$4,'seznamy dílů_BalTec'!A278,0)","v":0}]
["362055",0,null,"O-ring 37-1,5, NBR 70 Shore",null,null,{"$f":"IF(A279='vyhledávání dílů'!$B$4,'seznamy dílů_BalTec'!A279,0)","v":0}]
["362057",0,null,"O-ring 42-2,5 NBR 70 Shore",null,null,{"$f":"IF(A280='vyhledávání dílů'!$B$4,'seznamy dílů_BalTec'!A280,0)","v":0}]
["362065",0,null,"O-ring 45-2,5 NBR 70 Shore",null,null,{"$f":"IF(A281='vyhledávání dílů'!$B$4,'seznamy dílů_BalTec'!A281,0)","v":0}]
["362066",0,null,"O-ring 45-3 NBR 70 Shore",null,null,{"$f":"IF(A282='vyhledávání dílů'!$B$4,'seznamy dílů_BalTec'!A282,0)","v":0}]
["362068",0,null,"O-ring 50-2 NBR 70 Shore",null,null,{"$f":"IF(A283='vyhledávání dílů'!$B$4,'seznamy dílů_BalTec'!A283,0)","v":0}]
["362069",0,null,"O-ring 52-3 NBR 70 Shore",null,null,{"$f":"IF(A284='vyhledávání dílů'!$B$4,'seznamy dílů_BalTec'!A284,0)","v":0}]
["362077",0,null,"O-ring 54-3 NBR 70 Shore",null,null,{"$f":"IF(A285='vyhledávání dílů'!$B$4,'seznamy dílů_BalTec'!A285,0)","v":0}]
["362078",0,null,"O-ring 50-3 NBR 70 Shore",null,null,{"$f":"IF(A286='vyhledávání dílů'!$B$4,'seznamy dílů_BalTec'!A286,0)","v":0}]
["362081",0,null,"O-ring 60-2,5 NBR 70 Shore",null,null,{"$f":"IF(A287='vyhledávání dílů'!$B$4,'seznamy dílů_BalTec'!A287,0)","v":0}]
["362082",0,null,"O-ring 59,5-3 NBR 70 Shore",null,null,{"$f":"IF(A288='vyhledávání dílů'!$B$4,'seznamy dílů_BalTec'!A288,0)","v":0}]
["362085",0,null,"O-ring 65-2,5 NBR 70 Shore",null,null,{"$f":"IF(A289='vyhledávání dílů'!$B$4,'seznamy dílů_BalTec'!A289,0)","v":0}]
["362086",1,"těsnění misky 231","O-ring 60-1,5 NBR 70 Shore","p.7",null,{"$f":"IF(A290='vyhledávání dílů'!$B$4,'seznamy dílů_BalTec'!A290,0)","v":0}]
["362087",0,null,"O-ring 67-3 NBR 70 Shore",null,null,{"$f":"IF(A291='vyhledávání dílů'!$B$4,'seznamy dílů_BalTec'!A291,0)","v":0}]
["362088",0,null,"O-ring 60-3 NBR 70 Shore",null,null,{"$f":"IF(A292='vyhledávání dílů'!$B$4,'seznamy dílů_BalTec'!A292,0)","v":0}]
["362092",0,null,"O-ring 75-2 NBR 70 Shore",null,null,{"$f":"IF(A293='vyhledávání dílů'!$B$4,'seznamy dílů_BalTec'!A293,0)","v":0}]
["362100",0,null,"O-ring 77-3 NBR 70 Shore",null,null,{"$f":"IF(A294='vyhledávání dílů'!$B$4,'seznamy dílů_BalTec'!A294,0)","v":0}]
["362109",0,null,"O-ring 82,2-5,7 NBR 70 Shore",null,null,{"$f":"IF(A295='vyhledávání dílů'!$B$4,'seznamy dílů_BalTec'!A295,0)","v":0}]
["362113",0,null,"O-ring 85-2,5 NBR 70 Shore",null,null,{"$f":"IF(A296='vyhledávání dílů'!$B$4,'seznamy dílů_BalTec'!A296,0)","v":0}]
["362115",0,null,"O-ring 87-4 NBR 70 Shore",null,null,{"$f":"IF(A297='vyhledávání dílů'!$B$4,'seznamy dílů_BalTec'!A297,0)","v":0}]
["362116",0,null,"O-ring 89,2-5,7 NBR 70 Shore",null,null,{"$f":"IF(A298='vyhledávání dílů'!$B$4,'seznamy dílů_BalTec'!A298,0)","v":0}]
["362121",0,null,"O-ring 94-3 NBR 70 Shore",null,null,{"$f":"IF(A299='vyhledávání dílů'!$B$4,'seznamy dílů_BalTec'!A299,0)","v":0}]
["362125",0,null,"O-ring 96-2 NBR 70 Shore",null,null,{"$f":"IF(A300='vyhledávání dílů'!$B$4,'seznamy dílů_BalTec'!A300,0)","v":0}]
["362128",0,null,"O-ring 100-2,5 NBR 70 Shore",null,null,{"$f":"IF(A301='vyhledávání dílů'!$B$4,'seznamy dílů_BalTec'!A301,0)","v":0}]
["362129",1,"těsnění misky 281","O-ring 100-2 NBR 70 Shore","p.4",null,{"$f":"IF(A302='vyhledávání dílů'!$B$4,'seznamy dílů_BalTec'!A302,0)","v":0}]
["362137",0,null,"O-ring 105-3 NBR 70 Shore",null,null,{"$f":"IF(A303='vyhledávání dílů'!$B$4,'seznamy dílů_BalTec'!A303,0)","v":0}]
["362138",0,null,"O-ring 105-2,5 NBR 70 Shore",null,null,{"$f":"IF(A304='vyhledávání dílů'!$B$4,'seznamy dílů_BalTec'!A304,0)","v":0}]
["362139",0,null,"O-ring 120-2,5 NBR 70 Shore",null,null,{"$f":"IF(A305='vyhledávání dílů'!$B$4,'seznamy dílů_BalTec'!A305,0)","v":0}]
["362140",0,null,"O-ring 120-2 NBR 70 Shore",null,null,{"$f":"IF(A306='vyhledávání dílů'!$B$4,'seznamy dílů_BalTec'!A306,0)","v":0}]
["362145",0,null,"O-ring 137-4 NBR 70 Shore",null,null,{"$f":"IF(A307='vyhledávání dílů'!$B$4,'seznamy dílů_BalTec'!A307,0)","v":0}]
["362146",0,null,"O-ring 144,5-3 NBR 70 Shore",null,null,{"$f":"IF(A308='vyhledávání dílů'!$B$4,'seznamy dílů_BalTec'!A308,0)","v":0}]
["362155",0,null,"O-ring 152-4 NBR 70 Shore",null,null,{"$f":"IF(A309='vyhledávání dílů'!$B$4,'seznamy dílů_BalTec'!A309,0)","v":0}]
["362159",0,null,"O-ring 192-4 NBR 70 Shore",null,null,{"$f":"IF(A310='vyhledávání dílů'!$B$4,'seznamy dílů_BalTec'!A310,0)","v":0}]
["362201",0,null,"O-ring 79x2 NBR 70 Shore",null,null,{"$f":"IF(A311='vyhledávání dílů'!$B$4,'seznamy dílů_BalTec'!A311,0)","v":0}]
["362214",0,null,"O-ring 9,25-1,78 NBR 70 Shore",null,null,{"$f":"IF(A312='vyhledávání dílů'!$B$4,'seznamy dílů_BalTec'!A312,0)","v":0}]
["362404",0,null,"K-RING KA-93 N896/93",null,null,{"$f":"IF(A313='vyhledávání dílů'!$B$4,'seznamy dílů_BalTec'!A313,0)","v":0}]
["362431",0,null,"O.D. seal NTH-Ring K 100 238",null,null,{"$f":"IF(A314='vyhledávání dílů'!$B$4,'seznamy dílů_BalTec'!A314,0)","v":0}]
["362440",0,null,"O.D. seal NTH-Ring K 145252 D= 145mm",null,null,{"$f":"IF(A315='vyhledávání dílů'!$B$4,'seznamy dílů_BalTec'!A315,0)","v":0}]
["362441",0,null,"I.D. seal NTH-L-Ring L 45225",null,null,{"$f":"IF(A316='vyhledávání dílů'!$B$4,'seznamy dílů_BalTec'!A316,0)","v":0}]
["362442",0,null,"I.D. seal NTH-L-Ring L 75338",null,null,{"$f":"IF(A317='vyhledávání dílů'!$B$4,'seznamy dílů_BalTec'!A317,0)","v":0}]
["362509",0,null,"Grooved Ring AUNI 20-54",null,null,{"$f":"IF(A318='vyhledávání dílů'!$B$4,'seznamy dílů_BalTec'!A318,0)","v":0}]
["362855",0,null,"O.D. seal E4 NBR 2014 N3578 20x14x4",null,null,{"$f":"IF(A319='vyhledávání dílů'!$B$4,'seznamy dílů_BalTec'!A319,0)","v":0}]
["363550",0,null,"Seal kit for RN/RNE 080",null,null,{"$f":"IF(A320='vyhledávání dílů'!$B$4,'seznamy dílů_BalTec'!A320,0)","v":0}]
["363551",0,null,"Seal kit for RN/RNE 180",null,null,{"$f":"IF(A321='vyhledávání dílů'!$B$4,'seznamy dílů_BalTec'!A321,0)","v":0}]
["363552",0,null,"Seal kit for RN/RNE 280",null,null,{"$f":"IF(A322='vyhledávání dílů'!$B$4,'seznamy dílů_BalTec'!A322,0)","v":0}]
["363553",0,null,"Seal kit for RN/RNE 330",null,null,{"$f":"IF(A323='vyhledávání dílů'!$B$4,'seznamy dílů_BalTec'!A323,0)","v":0}]
["363554",0,null,"Seal kit for RN/RNE 380",null,null,{"$f":"IF(A324='vyhledávání dílů'!$B$4,'seznamy dílů_BalTec'!A324,0)","v":0}]
["363558",0,null,"Seal kit for RN/RNE 181 reduced for machine body 825304/825301",null,null,{"$f":"IF(A325='vyhledávání dílů'!$B$4,'seznamy dílů_BalTec'!A325,0)","v":0}]
["363560",1,"Těsnění RN/RNE 081","Seal kit for RN/RNE 081",null,null,{"$f":"IF(A326='vyhledávání dílů'!$B$4,'seznamy dílů_BalTec'!A326,0)","v":0}]
["363561",4,"Těsnění RN/RNE 181","Seal kit for RN/RNE 181",null,null,{"$f":"IF(A327='vyhledávání dílů'!$B$4,'seznamy dílů_BalTec'!A327,0)","v":0}]
["363562",3,"Těsnění RN/RNE 231","Seal Kit for RN/RNE 231",null,null,{"$f":"IF(A328='vyhledávání dílů'!$B$4,'seznamy dílů_BalTec'!A328,0)","v":0}]
["363563",0,null,"Seal Kit for RN/RNE 241 standard",null,null,{"$f":"IF(A329='vyhledávání dílů'!$B$4,'seznamy dílů_BalTec'!A329,0)","v":0}]
["363564",0,"Těsnění RN/RNE 281 ","Seal kit for RN/RNE 281",null,null,{"$f":"IF(A330='vyhledávání dílů'!$B$4,'seznamy dílů_BalTec'!A330,0)","v":0}]
["363565",3,"Těsnění RN/RNE 331","Seal kit for RN/RNE 331",null,null,{"$f":"IF(A331='vyhledávání dílů'!$B$4,'seznamy dílů_BalTec'!A331,0)","v":0}]
["363566",0,null,"Seal kit for RN/RNE 381",null,null,{"$f":"IF(A332='vyhledávání dílů'!$B$4,'seznamy dílů_BalTec'!A332,0)","v":0}]
["363567",0,null,"Seal kit for RN/RNE 481 standard and with STF",null,null,{"$f":"IF(A333='vyhledávání dílů'!$B$4,'seznamy dílů_BalTec'!A333,0)","v":0}]
["363568",0,null,"Seal kit for RN/RNE 241",null,null,{"$f":"IF(A334='vyhledávání dílů'!$B$4,'seznamy dílů_BalTec'!A334,0)","v":0}]
["363581",1,"Těsnění RN/RNE 231L","Sealing kit RN/RNE 231L",null,null,{"$f":"IF(A335='vyhledávání dílů'!$B$4,'seznamy dílů_BalTec'!A335,0)","v":0}]
["363583",0,null,"Seal kit for RN/RNE 281L",null,null,{"$f":"IF(A336='vyhledávání dílů'!$B$4,'seznamy dílů_BalTec'!A336,0)","v":0}]
["363584",0,null,"Seal kit for RN/RNE 281L-STF",null,null,{"$f":"IF(A337='vyhledávání dílů'!$B$4,'seznamy dílů_BalTec'!A337,0)","v":0}]
["363591",0,null,"Seal kit for SN/SNE 170",null,null,{"$f":"IF(A338='vyhledávání dílů'!$B$4,'seznamy dílů_BalTec'!A338,0)","v":0}]
["363592",1,"Těsnění SN/SNE 220","Seal kit for SN/SNE 220",null,null,{"$f":"IF(A339='vyhledávání dílů'!$B$4,'seznamy dílů_BalTec'!A339,0)","v":0}]
["363593",0,null,"Seal kit for SN/SNE 270",null,null,{"$f":"IF(A340='vyhledávání dílů'!$B$4,'seznamy dílů_BalTec'!A340,0)","v":0}]
["363631",0,null,"Copper seal 5,5x8,0x1 DIN 7603",null,null,{"$f":"IF(A341='vyhledávání dílů'!$B$4,'seznamy dílů_BalTec'!A341,0)","v":0}]
["363634",0,null,"Copper seal 5,5x8,0x1 ",null,null,{"$f":"IF(A342='vyhledávání dílů'!$B$4,'seznamy dílů_BalTec'!A342,0)","v":0}]
["363681",0,null,"Alu seal DA M5",null,null,{"$f":"IF(A343='vyhledávání dílů'!$B$4,'seznamy dílů_BalTec'!A343,0)","v":0}]
["363684",0,null,"Sealring DA 1/2",null,null,{"$f":"IF(A344='vyhledávání dílů'!$B$4,'seznamy dílů_BalTec'!A344,0)","v":0}]
["363692",0,null,"Copper sealring Gruss 1/4 (for manometer)",null,null,{"$f":"IF(A345='vyhledávání dílů'!$B$4,'seznamy dílů_BalTec'!A345,0)","v":0}]
["363694",0,null,"Nylon seal DP 14",null,null,{"$f":"IF(A346='vyhledávání dílů'!$B$4,'seznamy dílů_BalTec'!A346,0)","v":0}]
["363851",0,null,"Dense pCam MB 700-70",null,null,{"$f":"IF(A347='vyhledávání dílů'!$B$4,'seznamy dílů_BalTec'!A347,0)","v":0}]
["363854",0,null,"Dense pCam MB 700-090",null,null,{"$f":"IF(A348='vyhledávání dílů'!$B$4,'seznamy dílů_BalTec'!A348,0)","v":0}]
["363856",0,null,"Dense pCam MB 700-120",null,null,{"$f":"IF(A349='vyhledávání dílů'!$B$4,'seznamy dílů_BalTec'!A349,0)","v":0}]
["363857",0,null,"Dense pCam expander MB 700-140",null,null,{"$f":"IF(A350='vyhledávání dílů'!$B$4,'seznamy dílů_BalTec'!A350,0)","v":0}]
["363859",0,null,"Dense pCam MB 700-040",null,null,{"$f":"IF(A351='vyhledávání dílů'!$B$4,'seznamy dílů_BalTec'!A351,0)","v":0}]
["363861",0,null,"Dense pCam expander",null,null,{"$f":"IF(A352='vyhledávání dílů'!$B$4,'seznamy dílů_BalTec'!A352,0)","v":0}]
["366041",0,null,"Straight insert GE15LR3/8CF",null,null,{"$f":"IF(A353='vyhledávání dílů'!$B$4,'seznamy dílů_BalTec'!A353,0)","v":0}]
["366053",0,null,"Straight insert GE06SRCF",null,null,{"$f":"IF(A354='vyhledávání dílů'!$B$4,'seznamy dílů_BalTec'!A354,0)","v":0}]
["366055",0,null,"Straight insert GE20SR1/2CF",null,null,{"$f":"IF(A355='vyhledávání dílů'!$B$4,'seznamy dílů_BalTec'!A355,0)","v":0}]
["366082",0,null,"Straight insert GE06LREDCF",null,null,{"$f":"IF(A356='vyhledávání dílů'!$B$4,'seznamy dílů_BalTec'!A356,0)","v":0}]
["366085",0,null,"Straight insert GE15LREDCF",null,null,{"$f":"IF(A357='vyhledávání dílů'!$B$4,'seznamy dílů_BalTec'!A357,0)","v":0}]
["366090",0,null,"Straight insert GE06SREDCF",null,null,{"$f":"IF(A358='vyhledávání dílů'!$B$4,'seznamy dílů_BalTec'!A358,0)","v":0}]
["366098",0,null,"Straight insert GE20SREDCF",null,null,{"$f":"IF(A359='vyhledávání dílů'!$B$4,'seznamy dílů_BalTec'!A359,0)","v":0}]
["366131",0,null,"Straight insert 1/8\" D=4",null,null,{"$f":"IF(A360='vyhledávání dílů'!$B$4,'seznamy dílů_BalTec'!A360,0)","v":0}]
["366150",0,null,"Angle swing fixture 1/8\" D=4 (0199 04 10)",null,null,{"$f":"IF(A361='vyhledávání dílů'!$B$4,'seznamy dílů_BalTec'!A361,0)","v":0}]
["366511",0,null,"Sliding plate",null,null,{"$f":"IF(A362='vyhledávání dílů'!$B$4,'seznamy dílů_BalTec'!A362,0)","v":0}]
["366532",0,null,"Counter plate",null,null,{"$f":"IF(A363='vyhledávání dílů'!$B$4,'seznamy dílů_BalTec'!A363,0)","v":0}]
["366553",0,null,"Bulkhead screw fitting G1/2\"-G3/8\"  71-0805",null,null,{"$f":"IF(A364='vyhledávání dílů'!$B$4,'seznamy dílů_BalTec'!A364,0)","v":0}]
["366907",0,null,"Angle swing fixture high pressure WH08LRKDSCF",null,null,{"$f":"IF(A365='vyhledávání dílů'!$B$4,'seznamy dílů_BalTec'!A365,0)","v":0}]
["366913",0,null,"Connection fixture 2 parts PL 08185 (Typ A)",null,null,{"$f":"IF(A366='vyhledávání dílů'!$B$4,'seznamy dílů_BalTec'!A366,0)","v":0}]
["366916",0,null,"Ring socket",null,null,{"$f":"IF(A367='vyhledávání dílů'!$B$4,'seznamy dílů_BalTec'!A367,0)","v":0}]
["366921",0,null,"Swing fixture SWVE06LRCF",null,null,{"$f":"IF(A368='vyhledávání dílů'!$B$4,'seznamy dílů_BalTec'!A368,0)","v":0}]
["367514",0,null,"Clamping piece RN/E 381 STF",null,null,{"$f":"IF(A369='vyhledávání dílů'!$B$4,'seznamy dílů_BalTec'!A369,0)","v":0}]
["367515",0,null,"L-screw fitting with shank EVL20SCF",null,null,{"$f":"IF(A370='vyhledávání dílů'!$B$4,'seznamy dílů_BalTec'!A370,0)","v":0}]
["367572",0,null,"T-screw fitting EVT06LCF",null,null,{"$f":"IF(A371='vyhledávání dílů'!$B$4,'seznamy dílů_BalTec'!A371,0)","v":0}]
["367712",0,null,"Straight fitting G 1/4",null,null,{"$f":"IF(A372='vyhledávání dílů'!$B$4,'seznamy dílů_BalTec'!A372,0)","v":0}]
["367713",0,null,"Straight fitting G3/8 d12",null,null,{"$f":"IF(A373='vyhledávání dílů'!$B$4,'seznamy dílů_BalTec'!A373,0)","v":0}]
["367732",0,null,"Straight fitting 1/8",null,null,{"$f":"IF(A374='vyhledávání dílů'!$B$4,'seznamy dílů_BalTec'!A374,0)","v":0}]
["367734",0,null,"Straight fitting M5 Nr. 629-5003",null,null,{"$f":"IF(A375='vyhledávání dílů'!$B$4,'seznamy dílů_BalTec'!A375,0)","v":0}]
["367735",0,null,"Straight fitting M5 ",null,null,{"$f":"IF(A376='vyhledávání dílů'!$B$4,'seznamy dílů_BalTec'!A376,0)","v":0}]
["367736",0,null,"Straight fitting 1/8 incl. PCam",null,null,{"$f":"IF(A377='vyhledávání dílů'!$B$4,'seznamy dílů_BalTec'!A377,0)","v":0}]
["367737",0,null,"Straight fitting 1/8 DA8",null,null,{"$f":"IF(A378='vyhledávání dílů'!$B$4,'seznamy dílů_BalTec'!A378,0)","v":0}]
["367738",0,null,"Straight fitting 1/4",null,null,{"$f":"IF(A379='vyhledávání dílů'!$B$4,'seznamy dílů_BalTec'!A379,0)","v":0}]
["367739",0,null,"Straight fitting with VS seal",null,null,{"$f":"IF(A380='vyhledávání dílů'!$B$4,'seznamy dílů_BalTec'!A380,0)","v":0}]
["367740",5,"vstup ","Straight fitting G1/4\"xØ10mm","p.17",null,{"$f":"IF(A381='vyhledávání dílů'!$B$4,'seznamy dílů_BalTec'!A381,0)","v":0}]
["367744",0,null,"Swivelling fitting 1/8\"",null,null,{"$f":"IF(A382='vyhledávání dílů'!$B$4,'seznamy dílů_BalTec'!A382,0)","v":0}]
["367746",0,null,"Swivelling fitting 1/4",null,null,{"$f":"IF(A383='vyhledávání dílů'!$B$4,'seznamy dílů_BalTec'!A383,0)","v":0}]
["367747",0,null,"Swivel connection single G 1/4\"\"  634-0406K\"",null,null,{"$f":"IF(A384='vyhledávání dílů'!$B$4,'seznamy dílů_BalTec'!A384,0)","v":0}]
["367748",0,null,"Swivel connection single 634-0408 K",null,null,{"$f":"IF(A385='vyhledávání dílů'!$B$4,'seznamy dílů_BalTec'!A385,0)","v":0}]
["367751",0,null,"Straight fitting 3/8",null,null,{"$f":"IF(A386='vyhledávání dílů'!$B$4,'seznamy dílů_BalTec'!A386,0)","v":0}]
["367753",5,"vstup ","Straight fitting d.12 G3/8\" Ms nickelised","p.19",null,{"$f":"IF(A387='vyhledávání dílů'!$B$4,'seznamy dílů_BalTec'!A387,0)","v":0}]
["367754",0,null,"Straight fitting 628-0809",null,null,{"$f":"IF(A388='vyhledávání dílů'!$B$4,'seznamy dílů_BalTec'!A388,0)","v":0}]
["367760",0,null,"Cone reducing connection with seal cone RED20/10SCF",null,null,{"$f":"IF(A389='vyhledávání dílů'!$B$4,'seznamy dílů_BalTec'!A389,0)","v":0}]
["367761",0,null,"Straight fitting  1/4\"  828-0808",null,null,{"$f":"IF(A390='vyhledávání dílů'!$B$4,'seznamy dílů_BalTec'!A390,0)","v":0}]
["367812",0,null,"Cone reducing connection KOR15/10LCF",null,null,{"$f":"IF(A391='vyhledávání dílů'!$B$4,'seznamy dílů_BalTec'!A391,0)","v":0}]
["367901",0,null,"Angle swing fixture LV 3M5",null,null,{"$f":"IF(A392='vyhledávání dílů'!$B$4,'seznamy dílů_BalTec'!A392,0)","v":0}]
["367904",0,null,"Angle swing fixture LV 418",null,null,{"$f":"IF(A393='vyhledávání dílů'!$B$4,'seznamy dílů_BalTec'!A393,0)","v":0}]
["367919",0,null,"Angle swing fixture 886-0609",null,null,{"$f":"IF(A394='vyhledávání dílů'!$B$4,'seznamy dílů_BalTec'!A394,0)","v":0}]
["367920",0,null,"Angle swing fixture G1/2",null,null,{"$f":"IF(A395='vyhledávání dílů'!$B$4,'seznamy dílů_BalTec'!A395,0)","v":0}]
["368101",0,null,"Pressure relief cartridge DPA-3-HL, with red turning knob",null,null,{"$f":"IF(A396='vyhledávání dílů'!$B$4,'seznamy dílů_BalTec'!A396,0)","v":0}]
["368215",0,null,"Pressure regulator R00-C2-000 0,4-8,5 Bar",null,null,{"$f":"IF(A397='vyhledávání dílů'!$B$4,'seznamy dílů_BalTec'!A397,0)","v":0}]
["368228",0,null,"Pressure regulator valve G 1/4  MRS-08 PB 21649-010",null,null,{"$f":"IF(A398='vyhledávání dílů'!$B$4,'seznamy dílů_BalTec'!A398,0)","v":0}]
["368229",0,null,"Fixing angle PL 15531",null,null,{"$f":"IF(A399='vyhledávání dílů'!$B$4,'seznamy dílů_BalTec'!A399,0)","v":0}]
["368245",0,null,"Pressure regulator valve MRS -06 1/8",null,null,{"$f":"IF(A400='vyhledávání dílů'!$B$4,'seznamy dílů_BalTec'!A400,0)","v":0}]
["368247",0,null,"Pressure regulator valve  DR.022-00G1/8  pressure at 6bar",null,null,{"$f":"IF(A401='vyhledávání dílů'!$B$4,'seznamy dílů_BalTec'!A401,0)","v":0}]
["368300",0,null,"Air maintenance device dual completely mounted",null,null,{"$f":"IF(A402='vyhledávání dílů'!$B$4,'seznamy dílů_BalTec'!A402,0)","v":0}]
["368301",0,null,"Air maintenance device completely mounted",null,null,{"$f":"IF(A403='vyhledávání dílů'!$B$4,'seznamy dílů_BalTec'!A403,0)","v":0}]
["368308",0,null,"Air maintenance device 4-part completely mounted",null,null,{"$f":"IF(A404='vyhledávání dílů'!$B$4,'seznamy dílů_BalTec'!A404,0)","v":0}]
["368320",0,null,"Pneumatic assembly completely mounted",null,null,{"$f":"IF(A405='vyhledávání dílů'!$B$4,'seznamy dílů_BalTec'!A405,0)","v":0}]
["368324",0,null,"Pneumatic assembly with mist oiler completely mounted",null,null,{"$f":"IF(A406='vyhledávání dílů'!$B$4,'seznamy dílů_BalTec'!A406,0)","v":0}]
["368325",0,null,"Pressure regulating unit assembly DR.022-L378 completely mounted",null,null,{"$f":"IF(A407='vyhledávání dílů'!$B$4,'seznamy dílů_BalTec'!A407,0)","v":0}]
["368336",0,null,"Silencer LE 0674 0013 G1/4",null,null,{"$f":"IF(A408='vyhledávání dílů'!$B$4,'seznamy dílů_BalTec'!A408,0)","v":0}]
["368503",0,null,"Quick ventilation valve SE-1/4-B",null,null,{"$f":"IF(A409='vyhledávání dílů'!$B$4,'seznamy dílů_BalTec'!A409,0)","v":0}]
["368613",0,null,"Throttle relief valve AS2301F-01-06",null,null,{"$f":"IF(A410='vyhledávání dílů'!$B$4,'seznamy dílů_BalTec'!A410,0)","v":0}]
["368614",0,null,"Throttle relief valve AS2301F-01-08",null,null,{"$f":"IF(A411='vyhledávání dílů'!$B$4,'seznamy dílů_BalTec'!A411,0)","v":0}]
["368615",6,"škrtící ventil ","Throttle relief valve AS2301F-U02-10","p.50",null,{"$f":"IF(A412='vyhledávání dílů'!$B$4,'seznamy dílů_BalTec'!A412,0)","v":0}]
["368616",6,"škrtící ventil ","Throttle relief valve AS2301F-03-12S","p.55",null,{"$f":"IF(A413='vyhledávání dílů'!$B$4,'seznamy dílů_BalTec'!A413,0)","v":0}]
["368701",0,null,"Speed regulation valve HGR 14S ST06",null,null,{"$f":"IF(A414='vyhledávání dílů'!$B$4,'seznamy dílů_BalTec'!A414,0)","v":0}]
["368851",0,null,"Injector Typ  G-M4-0,3 HA",null,null,{"$f":"IF(A415='vyhledávání dílů'!$B$4,'seznamy dílů_BalTec'!A415,0)","v":0}]
["368853",0,null,"Injector Typ  G-M5-0,8 HA",null,null,{"$f":"IF(A416='vyhledávání dílů'!$B$4,'seznamy dílů_BalTec'!A416,0)","v":0}]
["368854",0,null,"Injector Typ  LG-M5-0,35 HA",null,null,{"$f":"IF(A417='vyhledávání dílů'!$B$4,'seznamy dílů_BalTec'!A417,0)","v":0}]
["369345",0,null,"5/2-way valve 1/4\"",null,null,{"$f":"IF(A418='vyhledávání dílů'!$B$4,'seznamy dílů_BalTec'!A418,0)","v":0}]
["369346",0,null,"5/2-way valve 3/8\"\"",null,null,{"$f":"IF(A419='vyhledávání dílů'!$B$4,'seznamy dílů_BalTec'!A419,0)","v":0}]
["369347",0,null,"PCam socket",null,null,{"$f":"IF(A420='vyhledávání dílů'!$B$4,'seznamy dílů_BalTec'!A420,0)","v":0}]
["369348",0,null,"PCam socket",null,null,{"$f":"IF(A421='vyhledávání dílů'!$B$4,'seznamy dílů_BalTec'!A421,0)","v":0}]
["369349",0,null,"PCam socket",null,null,{"$f":"IF(A422='vyhledávání dílů'!$B$4,'seznamy dílů_BalTec'!A422,0)","v":0}]
["369362",0,null,"5/2-way valve 1/4  24 VDC mon with flat socket/pCam",null,null,{"$f":"IF(A423='vyhledávání dílů'!$B$4,'seznamy dílů_BalTec'!A423,0)","v":0}]
["369501",0,null,"3/2-way solenoid valve  (3/2-Wege) 131 M75 coil 488980 24/DC",null,null,{"$f":"IF(A424='vyhledávání dílů'!$B$4,'seznamy dílů_BalTec'!A424,0)","v":0}]
["369808",0,null,"Manometer N6 63",null,null,{"$f":"IF(A425='vyhledávání dílů'!$B$4,'seznamy dílů_BalTec'!A425,0)","v":0}]
["369809",0,null,"Glyzerin-Manometer",null,null,{"$f":"IF(A426='vyhledávání dílů'!$B$4,'seznamy dílů_BalTec'!A426,0)","v":0}]
["369852",0,null,"Manometer-fitting MAV 6-PLR/A3C",null,null,{"$f":"IF(A427='vyhledávání dílů'!$B$4,'seznamy dílů_BalTec'!A427,0)","v":0}]
["369854",0,null,"Manometer-fitting MAVE 10-LR",null,null,{"$f":"IF(A428='vyhledávání dílů'!$B$4,'seznamy dílů_BalTec'!A428,0)","v":0}]
["369855",0,null,"Manometer-fitting with seal cone  EO+MAVE10SR1/4CF",null,null,{"$f":"IF(A429='vyhledávání dílů'!$B$4,'seznamy dílů_BalTec'!A429,0)","v":0}]
["371012",0,null,"Screw pCam B18 23-02 1149TR18 (incl. Seal ring E15-01PVC)",null,null,{"$f":"IF(A430='vyhledávání dílů'!$B$4,'seznamy dílů_BalTec'!A430,0)","v":0}]
["371013",0,null,"Blind pCam without seal ring B 14",null,null,{"$f":"IF(A431='vyhledávání dílů'!$B$4,'seznamy dílů_BalTec'!A431,0)","v":0}]
["371015",0,null,"Screw pCam B12",null,null,{"$f":"IF(A432='vyhledávání dílů'!$B$4,'seznamy dílů_BalTec'!A432,0)","v":0}]
["371223",0,null,"Screw pCam R 3/8“ DIN 906",null,null,{"$f":"IF(A433='vyhledávání dílů'!$B$4,'seznamy dílů_BalTec'!A433,0)","v":0}]
["371416",0,null,"Screw pCam VSTI1/2EDCF",null,null,{"$f":"IF(A434='vyhledávání dílů'!$B$4,'seznamy dílů_BalTec'!A434,0)","v":0}]
["371417",0,null,"Screw pCam VSTI3/4EDCF",null,null,{"$f":"IF(A435='vyhledávání dílů'!$B$4,'seznamy dílů_BalTec'!A435,0)","v":0}]
["371426",0,null,"Screw pCam G 1/8  with sealring DIN 908/BN 47",null,null,{"$f":"IF(A436='vyhledávání dílů'!$B$4,'seznamy dílů_BalTec'!A436,0)","v":0}]
["371427",0,null,"Screw pCam In-6kt. R 1/8\" kegelig 18-02",null,null,{"$f":"IF(A437='vyhledávání dílů'!$B$4,'seznamy dílů_BalTec'!A437,0)","v":0}]
["371441",0,null,"PCam BUZ06LCFX galvinised yellow",null,null,{"$f":"IF(A438='vyhledávání dílů'!$B$4,'seznamy dílů_BalTec'!A438,0)","v":0}]
["371503",0,null,"Protective pCam TL-4-044 f\u0081or M5",null,null,{"$f":"IF(A439='vyhledávání dílů'!$B$4,'seznamy dílů_BalTec'!A439,0)","v":0}]
["371504",0,null,"Stopper ø 7mm Typ 6019 metrical",null,null,{"$f":"IF(A440='vyhledávání dílů'!$B$4,'seznamy dílů_BalTec'!A440,0)","v":0}]
["371505",0,null,"Protective pCam TL-4-052 f\u0081or M6",null,null,{"$f":"IF(A441='vyhledávání dílů'!$B$4,'seznamy dílů_BalTec'!A441,0)","v":0}]
["371507",1,"držák senzoru základní polohy","Protective pCam TL-4-093 for M10x1","p. 17",null,{"$f":"IF(A442='vyhledávání dílů'!$B$4,'seznamy dílů_BalTec'!A442,0)","v":0}]
["371509",0,null,"Stopper ø 11mm Typ 6019 metrisch",null,null,{"$f":"IF(A443='vyhledávání dílů'!$B$4,'seznamy dílů_BalTec'!A443,0)","v":0}]
["371510",0,null,"Protective pCam TL-4-119 for R1/4\"/Pg7",null,null,{"$f":"IF(A444='vyhledávání dílů'!$B$4,'seznamy dílů_BalTec'!A444,0)","v":0}]
["371512",0,null,"Protective pCam TL-4-248 for M25x1",null,null,{"$f":"IF(A445='vyhledávání dílů'!$B$4,'seznamy dílů_BalTec'!A445,0)","v":0}]
["371513",0,null,"Protective pCam TL-4-193 for  M20x1",null,null,{"$f":"IF(A446='vyhledávání dílů'!$B$4,'seznamy dílů_BalTec'!A446,0)","v":0}]
["371517",0,null,"Stopper ø 9mm Typ 6019 metrical",null,null,{"$f":"IF(A447='vyhledávání dílů'!$B$4,'seznamy dílů_BalTec'!A447,0)","v":0}]
["371525",0,null,"Protective pCam TL-2-204",null,null,{"$f":"IF(A448='vyhledávání dílů'!$B$4,'seznamy dílů_BalTec'!A448,0)","v":0}]
["371531",0,null,"Stopper PE ø 4.5mm",null,null,{"$f":"IF(A449='vyhledávání dílů'!$B$4,'seznamy dílů_BalTec'!A449,0)","v":0}]
["372224",0,null,"Double nipple 63-0202 1/8\"\" cone\"",null,null,{"$f":"IF(A450='vyhledávání dílů'!$B$4,'seznamy dílů_BalTec'!A450,0)","v":0}]
["372225",0,null,"Double nipple R1/4\"\"",null,null,{"$f":"IF(A451='vyhledávání dílů'!$B$4,'seznamy dílů_BalTec'!A451,0)","v":0}]
["372226",0,null,"Double nipple releasable 63-0402 R1/4\"\" keg.-R1/8\"\" cone",null,null,{"$f":"IF(A452='vyhledávání dílů'!$B$4,'seznamy dílů_BalTec'!A452,0)","v":0}]
["372444",0,null,"Step-down nipple G1/2\"-G3/8\"",null,null,{"$f":"IF(A453='vyhledávání dílů'!$B$4,'seznamy dílů_BalTec'!A453,0)","v":0}]
["372453",0,null,"Amplifying fitting G3/8\"-G1/2\"",null,null,{"$f":"IF(A454='vyhledávání dílů'!$B$4,'seznamy dílů_BalTec'!A454,0)","v":0}]
["374022",0,null,"Distributor block VB 14",null,null,{"$f":"IF(A455='vyhledávání dílů'!$B$4,'seznamy dílů_BalTec'!A455,0)","v":0}]
["374024",0,null,"Distributor block VB 12 83-07",null,null,{"$f":"IF(A456='vyhledávání dílů'!$B$4,'seznamy dílů_BalTec'!A456,0)","v":0}]
["374160",0,null,"Ring connector simple 634-04041",null,null,{"$f":"IF(A457='vyhledávání dílů'!$B$4,'seznamy dílů_BalTec'!A457,0)","v":0}]
["374161",0,null,"Ring connector simple1/4  41068 ",null,null,{"$f":"IF(A458='vyhledávání dílů'!$B$4,'seznamy dílů_BalTec'!A458,0)","v":0}]
["374168",0,null,"Ring connector simple  1/8\", 6/4",null,null,{"$f":"IF(A459='vyhledávání dílů'!$B$4,'seznamy dílů_BalTec'!A459,0)","v":0}]
["374179",0,null,"Hollow core screw H 1 M5K 35- 5000 K",null,null,{"$f":"IF(A460='vyhledávání dílů'!$B$4,'seznamy dílů_BalTec'!A460,0)","v":0}]
["374184",0,null,"Hollow core screw 50-0400",null,null,{"$f":"IF(A461='vyhledávání dílů'!$B$4,'seznamy dílů_BalTec'!A461,0)","v":0}]
["374189",0,null,"Hollow-core screw 50-0200",null,null,{"$f":"IF(A462='vyhledávání dílů'!$B$4,'seznamy dílů_BalTec'!A462,0)","v":0}]
["374190",0,null,"Hollow-core screw 3/8  50-0600",null,null,{"$f":"IF(A463='vyhledávání dílů'!$B$4,'seznamy dílů_BalTec'!A463,0)","v":0}]
["374192",0,null,"Hollow-core screw G1/8  HI 118 K",null,null,{"$f":"IF(A464='vyhledávání dílů'!$B$4,'seznamy dílů_BalTec'!A464,0)","v":0}]
["374193",0,null,"Hollow-core screw G1/4\"  HI 114 K",null,null,{"$f":"IF(A465='vyhledávání dílů'!$B$4,'seznamy dílů_BalTec'!A465,0)","v":0}]
["374194",0,null,"Hollow-core screw G3/8\"  HI 138 K",null,null,{"$f":"IF(A466='vyhledávání dílů'!$B$4,'seznamy dílů_BalTec'!A466,0)","v":0}]
["374195",0,null,"Ring connector simple 634-06081",null,null,{"$f":"IF(A467='vyhledávání dílů'!$B$4,'seznamy dílů_BalTec'!A467,0)","v":0}]
["374196",0,null,"Ring connector simple 834-06081",null,null,{"$f":"IF(A468='vyhledávání dílů'!$B$4,'seznamy dílů_BalTec'!A468,0)","v":0}]
["374206",0,null,"Angle piece G 3/8 ali",null,null,{"$f":"IF(A469='vyhledávání dílů'!$B$4,'seznamy dílů_BalTec'!A469,0)","v":0}]
["374416",0,null,"Angled screw coupling EVW10SCF",null,null,{"$f":"IF(A470='vyhledávání dílů'!$B$4,'seznamy dílů_BalTec'!A470,0)","v":0}]
["374417",0,null,"Angle connecting tube EVW10LCF",null,null,{"$f":"IF(A471='vyhledávání dílů'!$B$4,'seznamy dílů_BalTec'!A471,0)","v":0}]
["374419",0,null,"Angle connection tube EVW15LCF",null,null,{"$f":"IF(A472='vyhledávání dílů'!$B$4,'seznamy dílů_BalTec'!A472,0)","v":0}]
["374879",0,null,"Hydraulic aggregate 3x220-240/380- 420V 50Hz/ 255-275/445-480V 60Hz",null,null,{"$f":"IF(A473='vyhledávání dílů'!$B$4,'seznamy dílů_BalTec'!A473,0)","v":0}]
["374914",0,null,"Hydraulic aggregate RN/RNE 381 3x255-275/440-485V, 60Hz",null,null,{"$f":"IF(A474='vyhledávání dílů'!$B$4,'seznamy dílů_BalTec'!A474,0)","v":0}]
["374925",0,null,"Hydraulic aggregate 3x220-240/380-420V 50Hz 3x255-275/440-485V 60Hz",null,null,{"$f":"IF(A475='vyhledávání dílů'!$B$4,'seznamy dílů_BalTec'!A475,0)","v":0}]
["374959",0,null,"Hydraulic aggregate 3x380V, 60Hz",null,null,{"$f":"IF(A476='vyhledávání dílů'!$B$4,'seznamy dílů_BalTec'!A476,0)","v":0}]
["378008",0,null,"Grease injector  L11 R1/8\" KY 2033",null,null,{"$f":"IF(A477='vyhledávání dílů'!$B$4,'seznamy dílů_BalTec'!A477,0)","v":0}]
["378052",0,null,"Coupling set for oil vaporiser Typ 15.025",null,null,{"$f":"IF(A478='vyhledávání dílů'!$B$4,'seznamy dílů_BalTec'!A478,0)","v":0}]
["378053",0,null,"Spare bowl to  Art. No. 379008 PL 08930",null,null,{"$f":"IF(A479='vyhledávání dílů'!$B$4,'seznamy dílů_BalTec'!A479,0)","v":0}]
["378054",0,null,"Spare bowl for Art. Nr. 379427 PL 08990",null,null,{"$f":"IF(A480='vyhledávání dílů'!$B$4,'seznamy dílů_BalTec'!A480,0)","v":0}]
["378056",0,null,"Spare bowl for Art. Nr. 379 707 PL 15100",null,null,{"$f":"IF(A481='vyhledávání dílů'!$B$4,'seznamy dílů_BalTec'!A481,0)","v":0}]
["378058",0,null,"Protection basket complete with screws",null,null,{"$f":"IF(A482='vyhledávání dílů'!$B$4,'seznamy dílů_BalTec'!A482,0)","v":0}]
["378424",0,null,"Lubricator cartridge LC-S60",null,null,{"$f":"IF(A483='vyhledávání dílů'!$B$4,'seznamy dílů_BalTec'!A483,0)","v":0}]
["378427",0,null,"Adapter MS",null,null,{"$f":"IF(A484='vyhledávání dílů'!$B$4,'seznamy dílů_BalTec'!A484,0)","v":0}]
["378428",0,null,"Plastic clamp black A105",null,null,{"$f":"IF(A485='vyhledávání dílů'!$B$4,'seznamy dílů_BalTec'!A485,0)","v":0}]
["379008",0,null,"Filter/Water separator MF 08 incl. Angle PL 15024",null,null,{"$f":"IF(A486='vyhledávání dílů'!$B$4,'seznamy dílů_BalTec'!A486,0)","v":0}]
["379427",0,null,"Mist lubricator MDL-08",null,null,{"$f":"IF(A487='vyhledávání dílů'!$B$4,'seznamy dílů_BalTec'!A487,0)","v":0}]
["379915",0,null,"Sound absorber plastic WO 0003 3/8\"\"\"",null,null,{"$f":"IF(A488='vyhledávání dílů'!$B$4,'seznamy dílů_BalTec'!A488,0)","v":0}]
["379923",0,null,"Sound absorber 1/8",null,null,{"$f":"IF(A489='vyhledávání dílů'!$B$4,'seznamy dílů_BalTec'!A489,0)","v":0}]
["379941",0,null,"Sound absorber PSK 14",null,null,{"$f":"IF(A490='vyhledávání dílů'!$B$4,'seznamy dílů_BalTec'!A490,0)","v":0}]
["379942",0,null,"Air filter PSY 18",null,null,{"$f":"IF(A491='vyhledávání dílů'!$B$4,'seznamy dílů_BalTec'!A491,0)","v":0}]
["379943",0,null,"Air filter PSY 38",null,null,{"$f":"IF(A492='vyhledávání dílů'!$B$4,'seznamy dílů_BalTec'!A492,0)","v":0}]
["379952",0,null,"Sound absorber U-3/8-B",null,null,{"$f":"IF(A493='vyhledávání dílů'!$B$4,'seznamy dílů_BalTec'!A493,0)","v":0}]
["379959",0,null,"Oil separator with sound absorber",null,null,{"$f":"IF(A494='vyhledávání dílů'!$B$4,'seznamy dílů_BalTec'!A494,0)","v":0}]
["380010",0,null,"Lubrication pump Type TM-1/LCH-954 110V,50/60Hz, without float switch",null,null,{"$f":"IF(A495='vyhledávání dílů'!$B$4,'seznamy dílů_BalTec'!A495,0)","v":0}]
["380021",0,null,"Hydraulic motor M8/1",null,null,{"$f":"IF(A496='vyhledávání dílů'!$B$4,'seznamy dílů_BalTec'!A496,0)","v":0}]
["387713",0,null,"Hydraulic hose TRACTOR/2TDN5 L=1.330 DKOL 6L DKOL 6L",null,null,{"$f":"IF(A497='vyhledávání dílů'!$B$4,'seznamy dílů_BalTec'!A497,0)","v":0}]
["387716",0,null,"Hydraulic tube PTA-025 L=1.330 BEL 6L BEL 6L",null,null,{"$f":"IF(A498='vyhledávání dílů'!$B$4,'seznamy dílů_BalTec'!A498,0)","v":0}]
["388019",0,null,"Hydraulic hose ASTRO/3DN12 L=0.800 CEL 15L DKOL 15L",null,null,{"$f":"IF(A499='vyhledávání dílů'!$B$4,'seznamy dílů_BalTec'!A499,0)","v":0}]
["388039",0,null,"Hydraulic tube 301SN-8 L=0.800 CEL 15L DKOL 15L",null,null,{"$f":"IF(A500='vyhledávání dílů'!$B$4,'seznamy dílů_BalTec'!A500,0)","v":0}]
["388049",0,null,"Hydraulic hose Hydroflex 301SN-4 L=1.200 DKOL 8L DKOL 8L",null,null,{"$f":"IF(A501='vyhledávání dílů'!$B$4,'seznamy dílů_BalTec'!A501,0)","v":0}]
["388052",0,null,"Hydraulic hose 301 SN-10 L=2.000 DKOS 20S DKOS 90ø 20S",null,null,{"$f":"IF(A502='vyhledávání dílů'!$B$4,'seznamy dílů_BalTec'!A502,0)","v":0}]
["389902",0,null,"Protection cap AM-22x1,5",null,null,{"$f":"IF(A503='vyhledávání dílů'!$B$4,'seznamy dílů_BalTec'!A503,0)","v":0}]
["389903",0,null,"screw cap AM-22x1,5",null,null,{"$f":"IF(A504='vyhledávání dílů'!$B$4,'seznamy dílů_BalTec'!A504,0)","v":0}]
["389904",0,null,"screw cap AM-22x1,5",null,null,{"$f":"IF(A505='vyhledávání dílů'!$B$4,'seznamy dílů_BalTec'!A505,0)","v":0}]
["389910",0,null,"PCam",null,null,{"$f":"IF(A506='vyhledávání dílů'!$B$4,'seznamy dílů_BalTec'!A506,0)","v":0}]
["389911",0,null,"PCam 3126 08 00",null,null,{"$f":"IF(A507='vyhledávání dílů'!$B$4,'seznamy dílů_BalTec'!A507,0)","v":0}]
["389912",0,null,"PCam 3126 10 00",null,null,{"$f":"IF(A508='vyhledávání dílů'!$B$4,'seznamy dílů_BalTec'!A508,0)","v":0}]
["389913",0,null,"PCam",null,null,{"$f":"IF(A509='vyhledávání dílů'!$B$4,'seznamy dílů_BalTec'!A509,0)","v":0}]
["389922",0,null,"Locking cap CV-PK-6",null,null,{"$f":"IF(A510='vyhledávání dílů'!$B$4,'seznamy dílů_BalTec'!A510,0)","v":0}]
["390001",0,null,"Rod gripper magnet",null,null,{"$f":"IF(A511='vyhledávání dílů'!$B$4,'seznamy dílů_BalTec'!A511,0)","v":0}]
["390002",0,null,"Rod gripper magnet",null,null,{"$f":"IF(A512='vyhledávání dílů'!$B$4,'seznamy dílů_BalTec'!A512,0)","v":0}]
["390053",0,null,"Star knob acc. drawing",null,null,{"$f":"IF(A513='vyhledávání dílů'!$B$4,'seznamy dílů_BalTec'!A513,0)","v":0}]
["390059",0,null,"Star knob conversion kit DVPA/DRPA-10-H",null,null,{"$f":"IF(A514='vyhledávání dílů'!$B$4,'seznamy dílů_BalTec'!A514,0)","v":0}]
["390108",0,null,"Key",null,null,{"$f":"IF(A515='vyhledávání dílů'!$B$4,'seznamy dílů_BalTec'!A515,0)","v":0}]
["390154",0,null,"Crank handle SW 10",null,null,{"$f":"IF(A516='vyhledávání dílů'!$B$4,'seznamy dílů_BalTec'!A516,0)","v":0}]
["390156",0,null,"Crank handle spec. SW 14",null,null,{"$f":"IF(A517='vyhledávání dílů'!$B$4,'seznamy dílů_BalTec'!A517,0)","v":0}]
["391202",0,null,"Circular buffer version B",null,null,{"$f":"IF(A518='vyhledávání dílů'!$B$4,'seznamy dílů_BalTec'!A518,0)","v":0}]
["393003",0,null,"Bevel gear wheel",null,null,{"$f":"IF(A519='vyhledávání dílů'!$B$4,'seznamy dílů_BalTec'!A519,0)","v":0}]
["393004",0,null,"Bevel gear wheel",null,null,{"$f":"IF(A520='vyhledávání dílů'!$B$4,'seznamy dílů_BalTec'!A520,0)","v":0}]
["393050",0,null,"Axial ball bearing acc. Drawing",null,null,{"$f":"IF(A521='vyhledávání dílů'!$B$4,'seznamy dílů_BalTec'!A521,0)","v":0}]
["393051",0,null,"Axial ball bearing acc. Drawing",null,null,{"$f":"IF(A522='vyhledávání dílů'!$B$4,'seznamy dílů_BalTec'!A522,0)","v":0}]
["393052",0,null,"Bushing-type bearing self lubricating",null,null,{"$f":"IF(A523='vyhledávání dílů'!$B$4,'seznamy dílů_BalTec'!A523,0)","v":0}]
["393059",0,null,"Axial Grooved ball-bearing 51114#E",null,null,{"$f":"IF(A524='vyhledávání dílů'!$B$4,'seznamy dílů_BalTec'!A524,0)","v":0}]
["393100",0,null,"Spherical plain bearing",null,null,{"$f":"IF(A525='vyhledávání dílů'!$B$4,'seznamy dílů_BalTec'!A525,0)","v":0}]
["393101",0,null,"Spherical bearing acc. drawing 393.101",null,null,{"$f":"IF(A526='vyhledávání dílů'!$B$4,'seznamy dílů_BalTec'!A526,0)","v":0}]
["394070",0,null,"Adjusting screw acc. drawing",null,null,{"$f":"IF(A527='vyhledávání dílů'!$B$4,'seznamy dílů_BalTec'!A527,0)","v":0}]
["394072",0,null,"Locking nut",null,null,{"$f":"IF(A528='vyhledávání dílů'!$B$4,'seznamy dílů_BalTec'!A528,0)","v":0}]
["398006",0,null,"Cylinder lock",null,null,{"$f":"IF(A529='vyhledávání dílů'!$B$4,'seznamy dílů_BalTec'!A529,0)","v":0}]
["398007",0,null,"Driving band acc. drawing",null,null,{"$f":"IF(A530='vyhledávání dílů'!$B$4,'seznamy dílů_BalTec'!A530,0)","v":0}]
["398008",0,null,"Driving band",null,null,{"$f":"IF(A531='vyhledávání dílů'!$B$4,'seznamy dílů_BalTec'!A531,0)","v":0}]
["398013",0,null,"Ruler acc. drawing",null,null,{"$f":"IF(A532='vyhledávání dílů'!$B$4,'seznamy dílů_BalTec'!A532,0)","v":0}]
["413935",0,"Drucktransmitter - senzor",null,null,null,{"$f":"IF(A533='vyhledávání dílů'!$B$4,'seznamy dílů_BalTec'!A533,0)","v":0}]
["451001",0,null,"Hexagonal pin spanner 2mm DIN 911",null,null,{"$f":"IF(A534='vyhledávání dílů'!$B$4,'seznamy dílů_BalTec'!A534,0)","v":0}]
["451002",0,null,"Hexagonal pin spanner 2,5mm DIN 911",null,null,{"$f":"IF(A535='vyhledávání dílů'!$B$4,'seznamy dílů_BalTec'!A535,0)","v":0}]
["451003",0,null,"Hexagonal pin spanner 3mm DIN 911",null,null,{"$f":"IF(A536='vyhledávání dílů'!$B$4,'seznamy dílů_BalTec'!A536,0)","v":0}]
["451004",0,null,"Hexagonal pin spanner 4mm DIN 911",null,null,{"$f":"IF(A537='vyhledávání dílů'!$B$4,'seznamy dílů_BalTec'!A537,0)","v":0}]
["451007",0,null,"Hexagonal pin spanner 10mm DIN 911",null,null,{"$f":"IF(A538='vyhledávání dílů'!$B$4,'seznamy dílů_BalTec'!A538,0)","v":0}]
["451009",0,null,"Hexagonal pin spanner 14mm DIN 911",null,null,{"$f":"IF(A539='vyhledávání dílů'!$B$4,'seznamy dílů_BalTec'!A539,0)","v":0}]
["451010",0,null,"Hexagonal pin spanner 1,5mm DIN 911",null,null,{"$f":"IF(A540='vyhledávání dílů'!$B$4,'seznamy dílů_BalTec'!A540,0)","v":0}]
["453102",0,null,"Flat spanner  SW 7 DIN 894",null,null,{"$f":"IF(A541='vyhledávání dílů'!$B$4,'seznamy dílů_BalTec'!A541,0)","v":0}]
["453105",0,null,"Single open-ended spanner",null,null,{"$f":"IF(A542='vyhledávání dílů'!$B$4,'seznamy dílů_BalTec'!A542,0)","v":0}]
["453112",0,null,"Single open-enden spanner",null,null,{"$f":"IF(A543='vyhledávání dílů'!$B$4,'seznamy dílů_BalTec'!A543,0)","v":0}]
["453120",0,null,"Open-ended ratched spanner SW13",null,null,{"$f":"IF(A544='vyhledávání dílů'!$B$4,'seznamy dílů_BalTec'!A544,0)","v":0}]
["453130",0,null,"hook spanner DIN1810B with round pin Ø6 hardened",null,null,{"$f":"IF(A545='vyhledávání dílů'!$B$4,'seznamy dílů_BalTec'!A545,0)","v":0}]
["459540",0,null,"T-nut M8 nominal dimension 10 DIN 508",null,null,{"$f":"IF(A546='vyhledávání dílů'!$B$4,'seznamy dílů_BalTec'!A546,0)","v":0}]
["459541",0,null,"T-nut M10 nominal dimension 12 DIN 508",null,null,{"$f":"IF(A547='vyhledávání dílů'!$B$4,'seznamy dílů_BalTec'!A547,0)","v":0}]
["459547",0,null,"T-nut light",null,null,{"$f":"IF(A548='vyhledávání dílů'!$B$4,'seznamy dílů_BalTec'!A548,0)","v":0}]
["459805",0,null,"High pressure grease pistol",null,null,{"$f":"IF(A549='vyhledávání dílů'!$B$4,'seznamy dílů_BalTec'!A549,0)","v":0}]
["459806",0,null,"Grease gun Nr 31651",null,null,{"$f":"IF(A550='vyhledávání dílů'!$B$4,'seznamy dílů_BalTec'!A550,0)","v":0}]
["459807",0,null,"Grease gun ",null,null,{"$f":"IF(A551='vyhledávání dílů'!$B$4,'seznamy dílů_BalTec'!A551,0)","v":0}]
["520145",0,null,"Power supply cable for footswitch 2x1mm2, L=2.5m",null,null,{"$f":"IF(A552='vyhledávání dílů'!$B$4,'seznamy dílů_BalTec'!A552,0)","v":0}]
["520161",0,null,"Power supply cable for finger guard device 4x0.75",null,null,{"$f":"IF(A553='vyhledávání dílů'!$B$4,'seznamy dílů_BalTec'!A553,0)","v":0}]
["520167",0,null,"Thermo plastic cable 3x1mm2, L=4.9m",null,null,{"$f":"IF(A554='vyhledávání dílů'!$B$4,'seznamy dílů_BalTec'!A554,0)","v":0}]
["520169",0,null,"Power supply cable for motor Td 4x1.5mm2 L= 1800 mm",null,null,{"$f":"IF(A555='vyhledávání dílů'!$B$4,'seznamy dílů_BalTec'!A555,0)","v":0}]
["520170",0,null,"Power supply cable for motor 1ph, Td 3x1.5mm2, L=1580 mm",null,null,{"$f":"IF(A556='vyhledávání dílů'!$B$4,'seznamy dílů_BalTec'!A556,0)","v":0}]
["520179",0,null,"Power supply cable micro switch Td 2x1 mm2 Gesamtlänge 1100mm",null,null,{"$f":"IF(A557='vyhledávání dílů'!$B$4,'seznamy dílů_BalTec'!A557,0)","v":0}]
["520186",0,null,"Connection cable LC-2H",null,null,{"$f":"IF(A558='vyhledávání dílů'!$B$4,'seznamy dílů_BalTec'!A558,0)","v":0}]
["520218",0,null,"Power supply cable motor acc. drawing 520218",null,null,{"$f":"IF(A559='vyhledávání dílů'!$B$4,'seznamy dílů_BalTec'!A559,0)","v":0}]
["520230",0,null,"Tow bar",null,null,{"$f":"IF(A560='vyhledávání dílů'!$B$4,'seznamy dílů_BalTec'!A560,0)","v":0}]
["520231",0,null,"Power supply cable for 2-hand operation (for LC-controller)",null,null,{"$f":"IF(A561='vyhledávání dílů'!$B$4,'seznamy dílů_BalTec'!A561,0)","v":0}]
["520232",0,null,"Power supply cable RC20",null,null,{"$f":"IF(A562='vyhledávání dílů'!$B$4,'seznamy dílů_BalTec'!A562,0)","v":0}]
["520233",0,null,"Power supply cable for 2-hand operation L=2m",null,null,{"$f":"IF(A563='vyhledávání dílů'!$B$4,'seznamy dílů_BalTec'!A563,0)","v":0}]
["520234",0,null,"Power supply cable valve Td 2x1 mm2  total length 1500mm",null,null,{"$f":"IF(A564='vyhledávání dílů'!$B$4,'seznamy dílů_BalTec'!A564,0)","v":0}]
["520235",0,null,"Power supply cable valve Td 2x1 mm2 total length 1300mm",null,null,{"$f":"IF(A565='vyhledávání dílů'!$B$4,'seznamy dílů_BalTec'!A565,0)","v":0}]
["520236",0,null,"Connection cable X52-X17 for relay module in RC-20",null,null,{"$f":"IF(A566='vyhledávání dílů'!$B$4,'seznamy dílů_BalTec'!A566,0)","v":0}]
["520237",0,null,"Connection cable X37-X32 for relais module in RC-20",null,null,{"$f":"IF(A567='vyhledávání dílů'!$B$4,'seznamy dílů_BalTec'!A567,0)","v":0}]
["520242",0,null,"HPP cable extension set of 3 cables (X11/12/13), length 3 m",null,null,{"$f":"IF(A568='vyhledávání dílů'!$B$4,'seznamy dílů_BalTec'!A568,0)","v":0}]
["520242",0,null,"HPP cable extension set of 3 cables (X11/12/13), 5m",null,null,{"$f":"IF(A569='vyhledávání dílů'!$B$4,'seznamy dílů_BalTec'!A569,0)","v":0}]
["520242",0,null,"HPP cable extension set of 3 cables (X11/12/13), 1.5m",null,null,{"$f":"IF(A570='vyhledávání dílů'!$B$4,'seznamy dílů_BalTec'!A570,0)","v":0}]
["520252",0,null,"Cable pCam X1, X3  7-pole, male",null,null,{"$f":"IF(A571='vyhledávání dílů'!$B$4,'seznamy dílů_BalTec'!A571,0)","v":0}]
["520276",0,null,"Cable socket X2  7-pole, female",null,null,{"$f":"IF(A572='vyhledávání dílů'!$B$4,'seznamy dílů_BalTec'!A572,0)","v":0}]
["520618",0,null,"Cable pCam X21, X22  4-pole, male",null,null,{"$f":"IF(A573='vyhledávání dílů'!$B$4,'seznamy dílů_BalTec'!A573,0)","v":0}]
["520619",0,null,"Cable socket X20  4-pole, female ",null,null,{"$f":"IF(A574='vyhledávání dílů'!$B$4,'seznamy dílů_BalTec'!A574,0)","v":0}]
["520644",0,null,"Cable for My-Com switch M75/S35 ESG 32SH0200/051998",null,null,{"$f":"IF(A575='vyhledávání dílů'!$B$4,'seznamy dílů_BalTec'!A575,0)","v":0}]
["521080",0,null,"Extension cable HPP X1, 3m",null,null,{"$f":"IF(A576='vyhledávání dílů'!$B$4,'seznamy dílů_BalTec'!A576,0)","v":0}]
["521080",0,null,"Extension cable HPP X3, 3m",null,null,{"$f":"IF(A577='vyhledávání dílů'!$B$4,'seznamy dílů_BalTec'!A577,0)","v":0}]
["521080",0,null,"Extension cable HPP X5, 3m",null,null,{"$f":"IF(A578='vyhledávání dílů'!$B$4,'seznamy dílů_BalTec'!A578,0)","v":0}]
["522043",0,null,"Main switch Typ A3-8E-NR-X83",null,null,{"$f":"IF(A579='vyhledávání dílů'!$B$4,'seznamy dílů_BalTec'!A579,0)","v":0}]
["522044",0,null,"Main switch SNT A3-8E-F910-Z20",null,null,{"$f":"IF(A580='vyhledávání dílů'!$B$4,'seznamy dílů_BalTec'!A580,0)","v":0}]
["522102",0,null,"rotary knob red  ",null,null,{"$f":"IF(A581='vyhledávání dílů'!$B$4,'seznamy dílů_BalTec'!A581,0)","v":0}]
["522296",0,null,"Emergency stop red press button",null,null,{"$f":"IF(A582='vyhledávání dílů'!$B$4,'seznamy dílů_BalTec'!A582,0)","v":0}]
["522297",3,"Tlačítko (Dvouruč. Ovládání)","Press buton green",null,null,{"$f":"IF(A583='vyhledávání dílů'!$B$4,'seznamy dílů_BalTec'!A583,0)","v":0}]
["522304",0,null,"Main switch complete for LC-controller",null,null,{"$f":"IF(A584='vyhledávání dílů'!$B$4,'seznamy dílů_BalTec'!A584,0)","v":0}]
["522427",0,null,"Foot switch F1-U1Z-UN",null,null,{"$f":"IF(A585='vyhledávání dílů'!$B$4,'seznamy dílů_BalTec'!A585,0)","v":0}]
["522513",0,null,"Proximity switch IFRM 05P15A1/L PNP M5x25 cable length 2m",null,null,{"$f":"IF(A586='vyhledávání dílů'!$B$4,'seznamy dílů_BalTec'!A586,0)","v":0}]
["522517",0,null,"Proximity switch BES 516-3005-E5-C-S 49 M5 PNP/NO",null,null,{"$f":"IF(A587='vyhledávání dílů'!$B$4,'seznamy dílů_BalTec'!A587,0)","v":0}]
["522518",0,null,"Proximity switch BES 516-324-G-S49-C M8 PNP/NO",null,null,{"$f":"IF(A588='vyhledávání dílů'!$B$4,'seznamy dílů_BalTec'!A588,0)","v":0}]
["522519",1,"senzor základní polohy","Proximity switch  M8 PNP/NO","p.15",null,{"$f":"IF(A589='vyhledávání dílů'!$B$4,'seznamy dílů_BalTec'!A589,0)","v":0}]
["522522",0,null,"Proximity switch  M8x1x70, PNP/NO IFRM 08P15/407172",null,null,{"$f":"IF(A590='vyhledávání dílů'!$B$4,'seznamy dílů_BalTec'!A590,0)","v":0}]
["522523",0,null,"Proximity switch 8x8 PNP",null,null,{"$f":"IF(A591='vyhledávání dílů'!$B$4,'seznamy dílů_BalTec'!A591,0)","v":0}]
["522531",0,null,"Cable box BKS-S 48-PU-03",null,null,{"$f":"IF(A592='vyhledávání dílů'!$B$4,'seznamy dílů_BalTec'!A592,0)","v":0}]
["522532",0,null," pCam-in connector angular with cable 3m",null,null,{"$f":"IF(A593='vyhledávání dílů'!$B$4,'seznamy dílů_BalTec'!A593,0)","v":0}]
["522533",0,null," pCam-in connector straight with cable 3m",null,null,{"$f":"IF(A594='vyhledávání dílů'!$B$4,'seznamy dílů_BalTec'!A594,0)","v":0}]
["522545",1,"matka držáku senzoru základní p.","Fixing nut E-8, M10 x 1","p.14",null,{"$f":"IF(A595='vyhledávání dílů'!$B$4,'seznamy dílů_BalTec'!A595,0)","v":0}]
["522602",0,null,"Proximity switch  IFR 08.82.05/K314 Namur M 8x1x45",null,null,{"$f":"IF(A596='vyhledávání dílů'!$B$4,'seznamy dílů_BalTec'!A596,0)","v":0}]
["522636",0,null,"Micro switch",null,null,{"$f":"IF(A597='vyhledávání dílů'!$B$4,'seznamy dílů_BalTec'!A597,0)","v":0}]
["522639",0,null,"Proximity switch PNP IFR 08.26.35/ K 772",null,null,{"$f":"IF(A598='vyhledávání dílů'!$B$4,'seznamy dílů_BalTec'!A598,0)","v":0}]
["522665",0,null,"Proximity switch M8x1 PNP/NO (BES 516-324-SA33)",null,null,{"$f":"IF(A599='vyhledávání dílů'!$B$4,'seznamy dílů_BalTec'!A599,0)","v":0}]
["522676",0,null,"My-Com switch M75/S35",null,null,{"$f":"IF(A600='vyhledávání dílů'!$B$4,'seznamy dílů_BalTec'!A600,0)","v":0}]
["522821",0,null,"Motor protection switch M1630 BV 0,4-0,63 Amp. MZ",null,null,{"$f":"IF(A601='vyhledávání dílů'!$B$4,'seznamy dílů_BalTec'!A601,0)","v":0}]
["522823",0,null,"Motor protection switch M1630 BV 1,0T2MZ",null,null,{"$f":"IF(A602='vyhledávání dílů'!$B$4,'seznamy dílů_BalTec'!A602,0)","v":0}]
["522836",0,null,"Motor protection switch M1630BV4.0T2MZ HC 2,5-4,0 Amp.",null,null,{"$f":"IF(A603='vyhledávání dílů'!$B$4,'seznamy dílů_BalTec'!A603,0)","v":0}]
["522928",0,null,"RC-Glied RC 3 BU 3x575VAC 4kW",null,null,{"$f":"IF(A604='vyhledávání dílů'!$B$4,'seznamy dílů_BalTec'!A604,0)","v":0}]
["524206",0,null,"Thermo relay CT4-6A (4,0-6,0A)",null,null,{"$f":"IF(A605='vyhledávání dílů'!$B$4,'seznamy dílů_BalTec'!A605,0)","v":0}]
["524211",0,null,"Thermo relay MT03-I 1.7 - 2.4 A",null,null,{"$f":"IF(A606='vyhledávání dílů'!$B$4,'seznamy dílů_BalTec'!A606,0)","v":0}]
["524223",0,null,"Thermo relay ZE-1.6, 1.0 - 1.6 A",null,null,{"$f":"IF(A607='vyhledávání dílů'!$B$4,'seznamy dílů_BalTec'!A607,0)","v":0}]
["524224",0,null,"Thermo relay ZE-2.4, 1.6 - 2.4 A",null,null,{"$f":"IF(A608='vyhledávání dílů'!$B$4,'seznamy dílů_BalTec'!A608,0)","v":0}]
["524225",2,"Termo relé 2,4…4.0 A","Thermo relay ZE-4, 2.4 - 4.0 A",null,null,{"$f":"IF(A609='vyhledávání dílů'!$B$4,'seznamy dílů_BalTec'!A609,0)","v":0}]
["524226",0,null,"Thermo relay ZE-6, 4.0 - 6.0 A",null,null,{"$f":"IF(A610='vyhledávání dílů'!$B$4,'seznamy dílů_BalTec'!A610,0)","v":0}]
["524227",0,null,"Thermo relay T 7 DU 9,0 6,0 - 9,0 A",null,null,{"$f":"IF(A611='vyhledávání dílů'!$B$4,'seznamy dílů_BalTec'!A611,0)","v":0}]
["524228",0,null,"Thermo relay T 7 DU 12,0 9,0 - 12,0 A",null,null,{"$f":"IF(A612='vyhledávání dílů'!$B$4,'seznamy dílů_BalTec'!A612,0)","v":0}]
["524702",0,null,"Two-hand relay ELAN 24V DC",null,null,{"$f":"IF(A613='vyhledávání dílů'!$B$4,'seznamy dílů_BalTec'!A613,0)","v":0}]
["524703",1,"relé dvouručního spouštění ","Zweihandrelais ,,ELAN\"",null,null,{"$f":"IF(A614='vyhledávání dílů'!$B$4,'seznamy dílů_BalTec'!A614,0)","v":0}]
["524704",1,"relé dvouručního spouštění ","Two-hand relay SAFE Z, 24VDC",null,null,{"$f":"IF(A615='vyhledávání dílů'!$B$4,'seznamy dílů_BalTec'!A615,0)","v":0}]
["524708",0,null,"Two-hand relay SAFE CZ, 24VDC",null,null,{"$f":"IF(A616='vyhledávání dílů'!$B$4,'seznamy dílů_BalTec'!A616,0)","v":0}]
["525095",0,null,"Plexiglass cover",null,null,{"$f":"IF(A617='vyhledávání dílů'!$B$4,'seznamy dílů_BalTec'!A617,0)","v":0}]
["525202",0,null,"Counter nut PG 7, Nr. 418",null,null,{"$f":"IF(A618='vyhledávání dílů'!$B$4,'seznamy dílů_BalTec'!A618,0)","v":0}]
["525203",0,null,"Counter nut PG 9, Nr. 419",null,null,{"$f":"IF(A619='vyhledávání dílů'!$B$4,'seznamy dílů_BalTec'!A619,0)","v":0}]
["525204",0,null,"Counter nut PG 11, brazen",null,null,{"$f":"IF(A620='vyhledávání dílů'!$B$4,'seznamy dílů_BalTec'!A620,0)","v":0}]
["525302",0,null,"Cable bride TC - 104",null,null,{"$f":"IF(A621='vyhledávání dílů'!$B$4,'seznamy dílů_BalTec'!A621,0)","v":0}]
["525304",0,null,"Cable bride for cable D=10 mm, galvinised",null,null,{"$f":"IF(A622='vyhledávání dílů'!$B$4,'seznamy dílů_BalTec'!A622,0)","v":0}]
["525305",1,"držák kabelu","Cable bride 4971 A","p. 6",null,{"$f":"IF(A623='vyhledávání dílů'!$B$4,'seznamy dílů_BalTec'!A623,0)","v":0}]
["525308",0,null,"Cable bride 4969 B",null,null,{"$f":"IF(A624='vyhledávání dílů'!$B$4,'seznamy dílů_BalTec'!A624,0)","v":0}]
["525313",0,null,"Cable bride 7,0 mm, steel, galvinised",null,null,{"$f":"IF(A625='vyhledávání dílů'!$B$4,'seznamy dílů_BalTec'!A625,0)","v":0}]
["525718",0,null,"Cable fitting 5-10 mm  Nr. 1009.60",null,null,{"$f":"IF(A626='vyhledávání dílů'!$B$4,'seznamy dílů_BalTec'!A626,0)","v":0}]
["525724",0,null,"Cable fitting Pg 16  8-15 mm",null,null,{"$f":"IF(A627='vyhledávání dílů'!$B$4,'seznamy dílů_BalTec'!A627,0)","v":0}]
["525770",0,null,"Cable fitting Pg 7  1507.40 4-6,5mm",null,null,{"$f":"IF(A628='vyhledávání dílů'!$B$4,'seznamy dílů_BalTec'!A628,0)","v":0}]
["525771",0,null,"Cable fitting Pg 9  6-10 mm, schwarz",null,null,{"$f":"IF(A629='vyhledávání dílů'!$B$4,'seznamy dílů_BalTec'!A629,0)","v":0}]
["525772",0,null,"Cable fitting Pg 11  -12 mm",null,null,{"$f":"IF(A630='vyhledávání dílů'!$B$4,'seznamy dílů_BalTec'!A630,0)","v":0}]
["525782",0,null,"Cable fitting Pg 9  4,5 - 6,0 mm",null,null,{"$f":"IF(A631='vyhledávání dílů'!$B$4,'seznamy dílů_BalTec'!A631,0)","v":0}]
["525792",0,null,"Cable fitting Pg 13  6.0-12.0 mm",null,null,{"$f":"IF(A632='vyhledávání dílů'!$B$4,'seznamy dílů_BalTec'!A632,0)","v":0}]
["525894",0,null,"Reduction flange M20x1.5 / PG11 3520.11",null,null,{"$f":"IF(A633='vyhledávání dílů'!$B$4,'seznamy dílů_BalTec'!A633,0)","v":0}]
["527501",0,null,"Tube lamp 24V/25W base E14",null,null,{"$f":"IF(A634='vyhledávání dílů'!$B$4,'seznamy dílů_BalTec'!A634,0)","v":0}]
["527731",0,null,"Halogen bulb 12V/20W Nr. 41900",null,null,{"$f":"IF(A635='vyhledávání dílů'!$B$4,'seznamy dílů_BalTec'!A635,0)","v":0}]
["528541",0,null,"Press-binder",null,null,{"$f":"IF(A636='vyhledávání dílů'!$B$4,'seznamy dílů_BalTec'!A636,0)","v":0}]
["530134",0,null,"control box modul Typ  080018-01",null,null,{"$f":"IF(A637='vyhledávání dílů'!$B$4,'seznamy dílů_BalTec'!A637,0)","v":0}]
["530160",0,null,"control box modul Typ  080019-03",null,null,{"$f":"IF(A638='vyhledávání dílů'!$B$4,'seznamy dílů_BalTec'!A638,0)","v":0}]
["530313",0,null,"Two-hand relay TH1S acc. specification",null,null,{"$f":"IF(A639='vyhledávání dílů'!$B$4,'seznamy dílů_BalTec'!A639,0)","v":0}]
["530354",0,null,"Base unit RC 20",null,null,{"$f":"IF(A640='vyhledávání dílů'!$B$4,'seznamy dílů_BalTec'!A640,0)","v":0}]
["530355",0,null,"Power supply unit for 200-575 V",null,null,{"$f":"IF(A641='vyhledávání dílů'!$B$4,'seznamy dílů_BalTec'!A641,0)","v":0}]
["530356",0,null,"Contactor module pneumatic machine",null,null,{"$f":"IF(A642='vyhledávání dílů'!$B$4,'seznamy dílů_BalTec'!A642,0)","v":0}]
["530357",0,null,"Contactor module pneumatic double machine",null,null,{"$f":"IF(A643='vyhledávání dílů'!$B$4,'seznamy dílů_BalTec'!A643,0)","v":0}]
["530358",0,null,"Contactor module for hydraulic machine",null,null,{"$f":"IF(A644='vyhledávání dílů'!$B$4,'seznamy dílů_BalTec'!A644,0)","v":0}]
["530367",1,"čelní panel RC- 20",null,null,null,{"$f":"IF(A645='vyhledávání dílů'!$B$4,'seznamy dílů_BalTec'!A645,0)","v":0}]
["530371",0,null,"Power supply unit 120-440 V",null,null,{"$f":"IF(A646='vyhledávání dílů'!$B$4,'seznamy dílů_BalTec'!A646,0)","v":0}]
["530372",0,"Promod","starý typ s bílíma relátkama",null,null,{"$f":"IF(A647='vyhledávání dílů'!$B$4,'seznamy dílů_BalTec'!A647,0)","v":0}]
["530374",0,null,"Proportional valve-driver",null,null,{"$f":"IF(A648='vyhledávání dílů'!$B$4,'seznamy dílů_BalTec'!A648,0)","v":0}]
["530375",0,null,"STF cable kit standard",null,null,{"$f":"IF(A649='vyhledávání dílů'!$B$4,'seznamy dílů_BalTec'!A649,0)","v":0}]
["530380",1,"Simod 2HMR",null,null,null,{"$f":"IF(A650='vyhledávání dílů'!$B$4,'seznamy dílů_BalTec'!A650,0)","v":0}]
["530381",0,"Simod 2HMRS",null,null,null,{"$f":"IF(A651='vyhledávání dílů'!$B$4,'seznamy dílů_BalTec'!A651,0)","v":0}]
["530386",0,null,"SIMOD 2HMR for RC-10",null,null,{"$f":"IF(A652='vyhledávání dílů'!$B$4,'seznamy dílů_BalTec'!A652,0)","v":0}]
["530387",1,"Simod 2HMRS RC/10","SIMOD 2HMRS for RC-10",null,null,{"$f":"IF(A653='vyhledávání dílů'!$B$4,'seznamy dílů_BalTec'!A653,0)","v":0}]
["530390",0,null,"Current supply SUPMOD 200 - 575 VAC",null,null,{"$f":"IF(A654='vyhledávání dílů'!$B$4,'seznamy dílů_BalTec'!A654,0)","v":0}]
["530455",1,"Simod APS",null,null,null,{"$f":"IF(A655='vyhledávání dílů'!$B$4,'seznamy dílů_BalTec'!A655,0)","v":0}]
["530458",1,"čelní panel RC- 20A","Front unit complete RC-20A",null,null,{"$f":"IF(A656='vyhledávání dílů'!$B$4,'seznamy dílů_BalTec'!A656,0)","v":0}]
["530465",2,"N Simod 2HMR-SSR","Simod 2HMR-SSR 2-hand activation RIESE CE-conform",null,null,{"$f":"IF(A657='vyhledávání dílů'!$B$4,'seznamy dílů_BalTec'!A657,0)","v":0}]
["530466",1,"N Simod 2HMRS-SSR","Simod 2HMRS-SSR 2-hand activation RIESE CE-conform",null,null,{"$f":"IF(A658='vyhledávání dílů'!$B$4,'seznamy dílů_BalTec'!A658,0)","v":0}]
["530467",1,"N Simod AM-SSR","Simod AM-SSR footswitch activation",null,null,{"$f":"IF(A659='vyhledávání dílů'!$B$4,'seznamy dílů_BalTec'!A659,0)","v":0}]
["530468",5,"N Simod AMS-SSR","Simod AMS-SSR additional safety input",null,null,{"$f":"IF(A660='vyhledávání dílů'!$B$4,'seznamy dílů_BalTec'!A660,0)","v":0}]
["530469",1,"N Simod APSF-SSR","Simod APSF-SSR for RC-20A",null,null,{"$f":"IF(A661='vyhledávání dílů'!$B$4,'seznamy dílů_BalTec'!A661,0)","v":0}]
["530470",3,"N Smod APHSF-SSR","Simod APHSF-SSR for controls RC-20A",null,null,{"$f":"IF(A662='vyhledávání dílů'!$B$4,'seznamy dílů_BalTec'!A662,0)","v":0}]
["530471",1,"N Simod APSU-SSR","Simod APSU-SSR for RC 20A",null,null,{"$f":"IF(A663='vyhledávání dílů'!$B$4,'seznamy dílů_BalTec'!A663,0)","v":0}]
["530472",1,"Simod APHSU-SSR","Simod APHSU-SSR for RC-20A",null,null,{"$f":"IF(A664='vyhledávání dílů'!$B$4,'seznamy dílů_BalTec'!A664,0)","v":0}]
["530478",0,null,"Simod A2HS-SSR for RC-20 key switch",null,null,{"$f":"IF(A665='vyhledávání dílů'!$B$4,'seznamy dílů_BalTec'!A665,0)","v":0}]
["530481",3,"Promod",null,null,null,{"$f":"IF(A666='vyhledávání dílů'!$B$4,'seznamy dílů_BalTec'!A666,0)","v":0}]
["530485",0,null,"RC20A pCam module X2",null,null,{"$f":"IF(A667='vyhledávání dílů'!$B$4,'seznamy dílů_BalTec'!A667,0)","v":0}]
["530485",0,null,"RC20A pCam module X4",null,null,{"$f":"IF(A668='vyhledávání dílů'!$B$4,'seznamy dílů_BalTec'!A668,0)","v":0}]
["530485",0,null,"RC20A pCam module 10",null,null,{"$f":"IF(A669='vyhledávání dílů'!$B$4,'seznamy dílů_BalTec'!A669,0)","v":0}]
["530907",0,null,"Touch-Panel PC to RNC-HPP",null,null,{"$f":"IF(A670='vyhledávání dílů'!$B$4,'seznamy dílů_BalTec'!A670,0)","v":0}]
["530907",0,null,"WAGO Controller",null,null,{"$f":"IF(A671='vyhledávání dílů'!$B$4,'seznamy dílů_BalTec'!A671,0)","v":0}]
["530907",0,null,"WAGO digital input terminal 8DI 24V DC 3.0ms",null,null,{"$f":"IF(A672='vyhledávání dílů'!$B$4,'seznamy dílů_BalTec'!A672,0)","v":0}]
["530907",0,null,"WAGO digital output terminal 8DO 24V DC 0.5A",null,null,{"$f":"IF(A673='vyhledávání dílů'!$B$4,'seznamy dílů_BalTec'!A673,0)","v":0}]
["530907",0,null,"WAGO potential supply 24V DC",null,null,{"$f":"IF(A674='vyhledávání dílů'!$B$4,'seznamy dílů_BalTec'!A674,0)","v":0}]
["530907",0,null,"Emergency stop safety relay Safe TN (TA)",null,null,{"$f":"IF(A675='vyhledávání dílů'!$B$4,'seznamy dílů_BalTec'!A675,0)","v":0}]
["530907",0,null,"Extension module Safe X4",null,null,{"$f":"IF(A676='vyhledávání dílů'!$B$4,'seznamy dílů_BalTec'!A676,0)","v":0}]
["530923",1,"čelní panel Hpp-25","Frontpanel compl. to HPP-25",null,null,{"$f":"IF(A677='vyhledávání dílů'!$B$4,'seznamy dílů_BalTec'!A677,0)","v":0}]
["530954",0,null,"Voltage regulator 24VDC for HPP-25 1x200-240 V / 3x200-600 V",null,null,{"$f":"IF(A678='vyhledávání dílů'!$B$4,'seznamy dílů_BalTec'!A678,0)","v":0}]
["530956",0,null,"Voltage regulator 24VDC for HPP 3 x 380-500 V",null,null,{"$f":"IF(A679='vyhledávání dílů'!$B$4,'seznamy dílů_BalTec'!A679,0)","v":0}]
["530976",0,null,"Micro SD card 2G for HPP-25",null,null,{"$f":"IF(A680='vyhledávání dílů'!$B$4,'seznamy dílů_BalTec'!A680,0)","v":0}]
["530999",0,null,"USB-Memorystick Slide, 4GB",null,null,{"$f":"IF(A681='vyhledávání dílů'!$B$4,'seznamy dílů_BalTec'!A681,0)","v":0}]
["531053",0,null,"EPROM for RX steering/control",null,null,{"$f":"IF(A682='vyhledávání dílů'!$B$4,'seznamy dílů_BalTec'!A682,0)","v":0}]
["531114",0,null,"Add-on kit X4 RC-30: 2-hand operation",null,null,{"$f":"IF(A683='vyhledávání dílů'!$B$4,'seznamy dílů_BalTec'!A683,0)","v":0}]
["531114",0,null,"Connection X4 RC-30: instant stop",null,null,{"$f":"IF(A684='vyhledávání dílů'!$B$4,'seznamy dílů_BalTec'!A684,0)","v":0}]
["531115",0,null,"Connection X5 RC-30: analogue output, rapid speed/working\nspeed, Ini lower end position ",null,null,{"$f":"IF(A685='vyhledávání dílů'!$B$4,'seznamy dílů_BalTec'!A685,0)","v":0}]
["531115",0,null,"Connection X5 RC-30: NHE-E",null,null,{"$f":"IF(A686='vyhledávání dílů'!$B$4,'seznamy dílů_BalTec'!A686,0)","v":0}]
["531115",0,null,"Add-on kit X22 RC-30: RNR brake tablemotor",null,null,{"$f":"IF(A687='vyhledávání dílů'!$B$4,'seznamy dílů_BalTec'!A687,0)","v":0}]
["531116",0,null,"Connection X6 RC-30: ext. Safety, reset ext. Safety",null,null,{"$f":"IF(A688='vyhledávání dílů'!$B$4,'seznamy dílů_BalTec'!A688,0)","v":0}]
["531117",0,null,"Connection X7 RC-30: keyswitch (2-hand - footswitch)",null,null,{"$f":"IF(A689='vyhledávání dílů'!$B$4,'seznamy dílů_BalTec'!A689,0)","v":0}]
["531117",0,null,"Connection X7 RC-30: finger guard device",null,null,{"$f":"IF(A690='vyhledávání dílů'!$B$4,'seznamy dílů_BalTec'!A690,0)","v":0}]
["531118",0,null,"Connection X8 RC-30: ext. Reset, status RC ok/err",null,null,{"$f":"IF(A691='vyhledávání dílů'!$B$4,'seznamy dílů_BalTec'!A691,0)","v":0}]
["531122",0,null,"Add-on kit X22 RC-30: hydraulic motor",null,null,{"$f":"IF(A692='vyhledávání dílů'!$B$4,'seznamy dílů_BalTec'!A692,0)","v":0}]
["531122",0,null,"Add-on kit X22 RC-30: Motor 2",null,null,{"$f":"IF(A693='vyhledávání dílů'!$B$4,'seznamy dílů_BalTec'!A693,0)","v":0}]
["531150",0,null,"Mounting kit transformer 230 VAC RC-30",null,null,{"$f":"IF(A694='vyhledávání dílů'!$B$4,'seznamy dílů_BalTec'!A694,0)","v":0}]
["531151",0,null,"Sliding plate",null,null,{"$f":"IF(A695='vyhledávání dílů'!$B$4,'seznamy dílů_BalTec'!A695,0)","v":0}]
["533222",1,"contactor(stykač)","Contactor 24V DC",null,null,{"$f":"IF(A696='vyhledávání dílů'!$B$4,'seznamy dílů_BalTec'!A696,0)","v":0}]
["534081",0,null,"Relay module for Error-Code RC20",null,null,{"$f":"IF(A697='vyhledávání dílů'!$B$4,'seznamy dílů_BalTec'!A697,0)","v":0}]
["540341",0,null,"Rev transmitter",null,null,{"$f":"IF(A698='vyhledávání dílů'!$B$4,'seznamy dílů_BalTec'!A698,0)","v":0}]
["540342",2,"tlakový senzor","Pressure transmitter 0-100 bar",null,null,{"$f":"IF(A699='vyhledávání dílů'!$B$4,'seznamy dílů_BalTec'!A699,0)","v":0}]
["540344",0,null,"Pressure transmitter 0-200 bar",null,null,{"$f":"IF(A700='vyhledávání dílů'!$B$4,'seznamy dílů_BalTec'!A700,0)","v":0}]
["540345",0,null,"Process interface 110-230 VAC QMS-STF-2",null,null,{"$f":"IF(A701='vyhledávání dílů'!$B$4,'seznamy dílů_BalTec'!A701,0)","v":0}]
["540347",0,null,"Cable Splitter Enc./Press. QMS-STF-2",null,null,{"$f":"IF(A702='vyhledávání dílů'!$B$4,'seznamy dílů_BalTec'!A702,0)","v":0}]
["540348",0,null,"Data recording card AT-MIO-16E-10 zu QMS-STF-2",null,null,{"$f":"IF(A703='vyhledávání dílů'!$B$4,'seznamy dílů_BalTec'!A703,0)","v":0}]
["540350",0,null,"Cable for AT-MIO (5m long) QMS-STF-2",null,null,{"$f":"IF(A704='vyhledávání dílů'!$B$4,'seznamy dílů_BalTec'!A704,0)","v":0}]
["540384",0,null,"Pressure transmitter 0-100 bar",null,null,{"$f":"IF(A705='vyhledávání dílů'!$B$4,'seznamy dílů_BalTec'!A705,0)","v":0}]
["540407",1,"senzor dráhy","Magnetic field sensor with cable 2 m","p. 7",null,{"$f":"IF(A706='vyhledávání dílů'!$B$4,'seznamy dílů_BalTec'!A706,0)","v":0}]
["540408",1,"magnetický pásek","Magnetic tape cut L=58mm for MLFK 10T7105/N100","p. 8",null,{"$f":"IF(A707='vyhledávání dílů'!$B$4,'seznamy dílů_BalTec'!A707,0)","v":0}]
["540409",0,null,"Magnetic tape cut L=25mm for MLFK 10T7105/N100",null,null,{"$f":"IF(A708='vyhledávání dílů'!$B$4,'seznamy dílů_BalTec'!A708,0)","v":0}]
["540412",0,null,"Magnetic tape cut L=100 for MLFK 10T7105/N100",null,null,{"$f":"IF(A709='vyhledávání dílů'!$B$4,'seznamy dílů_BalTec'!A709,0)","v":0}]
["542854",0,null,"Electric motor 3 x 220-460 V, 50/60 cps",null,null,{"$f":"IF(A710='vyhledávání dílů'!$B$4,'seznamy dílů_BalTec'!A710,0)","v":0}]
["542854",0,null,"Fan cover (plastic) for elctric motor 542854 Lafert (RN/RNE 331)",null,null,{"$f":"IF(A711='vyhledávání dílů'!$B$4,'seznamy dílů_BalTec'!A711,0)","v":0}]
["542855",0,null,"Electric motor 1.1kW, 3x330/575V, 60Hz, 4-polig, CURUS-Ausführung",null,null,{"$f":"IF(A712='vyhledávání dílů'!$B$4,'seznamy dílů_BalTec'!A712,0)","v":0}]
["542856",0,null,"Electric motor AM 80Z AA 4",null,null,{"$f":"IF(A713='vyhledávání dílů'!$B$4,'seznamy dílů_BalTec'!A713,0)","v":0}]
["542860",0,null,"Electric motor",null,null,{"$f":"IF(A714='vyhledávání dílů'!$B$4,'seznamy dílů_BalTec'!A714,0)","v":0}]
["542861",0,null,"Electric motor",null,null,{"$f":"IF(A715='vyhledávání dílů'!$B$4,'seznamy dílů_BalTec'!A715,0)","v":0}]
["542872",0,null,"Fan cover for RN 180",null,null,{"$f":"IF(A716='vyhledávání dílů'!$B$4,'seznamy dílů_BalTec'!A716,0)","v":0}]
["542873",0,null,"Fan cover (plastic) for elctric motor RN 280",null,null,{"$f":"IF(A717='vyhledávání dílů'!$B$4,'seznamy dílů_BalTec'!A717,0)","v":0}]
["542874",0,null,"Fan for electric motor AM 56 FY4",null,null,{"$f":"IF(A718='vyhledávání dílů'!$B$4,'seznamy dílů_BalTec'!A718,0)","v":0}]
["542876",0,null,"Fan AMEB 71",null,null,{"$f":"IF(A719='vyhledávání dílů'!$B$4,'seznamy dílů_BalTec'!A719,0)","v":0}]
["542878",0,null,"Electric motor 3 x 220-480 V, 50/60 cps",null,null,{"$f":"IF(A720='vyhledávání dílů'!$B$4,'seznamy dílů_BalTec'!A720,0)","v":0}]
["542883",0,null,"Electric motor 3 x 220-480 V, 50/60 cps",null,null,{"$f":"IF(A721='vyhledávání dílů'!$B$4,'seznamy dílů_BalTec'!A721,0)","v":0}]
["542885",0,null,"Electric motor AM 71 NY 4 CSA design 3 x 575 V, 60 Hz",null,null,{"$f":"IF(A722='vyhledávání dílů'!$B$4,'seznamy dílů_BalTec'!A722,0)","v":0}]
["542891",0,null,"Fan",null,null,{"$f":"IF(A723='vyhledávání dílů'!$B$4,'seznamy dílů_BalTec'!A723,0)","v":0}]
["542894",0,null,"Electric motor DS-Motor AM 100 LS 4",null,null,{"$f":"IF(A724='vyhledávání dílů'!$B$4,'seznamy dílů_BalTec'!A724,0)","v":0}]
["542981",0,null,"Fan cover (steel panel) for electric motor AM 56Z AA + ZBA, inner-Ø 109mm",null,null,{"$f":"IF(A725='vyhledávání dílů'!$B$4,'seznamy dílů_BalTec'!A725,0)","v":0}]
["542982",0,null,"Case small (plastic) for AM 56",null,null,{"$f":"IF(A726='vyhledávání dílů'!$B$4,'seznamy dílů_BalTec'!A726,0)","v":0}]
["811021",0,null,"Spindle",null,null,{"$f":"IF(A727='vyhledávání dílů'!$B$4,'seznamy dílů_BalTec'!A727,0)","v":0}]
["811022",0,null,"Plate",null,null,{"$f":"IF(A728='vyhledávání dílů'!$B$4,'seznamy dílů_BalTec'!A728,0)","v":0}]
["811023",0,null,"Nut",null,null,{"$f":"IF(A729='vyhledávání dílů'!$B$4,'seznamy dílů_BalTec'!A729,0)","v":0}]
["811035",1,"ozubené kolo","Internal ring gear","p. 16",null,{"$f":"IF(A730='vyhledávání dílů'!$B$4,'seznamy dílů_BalTec'!A730,0)","v":0}]
["811036",0,null,"Eccentric shaft",null,null,{"$f":"IF(A731='vyhledávání dílů'!$B$4,'seznamy dílů_BalTec'!A731,0)","v":0}]
["811041",0,null,"Eccentric sleeve",null,null,{"$f":"IF(A732='vyhledávání dílů'!$B$4,'seznamy dílů_BalTec'!A732,0)","v":0}]
["811049",0,null,"Nose cap",null,null,{"$f":"IF(A733='vyhledávání dílů'!$B$4,'seznamy dílů_BalTec'!A733,0)","v":0}]
["811084",0,null,"Tightening bolt",null,null,{"$f":"IF(A734='vyhledávání dílů'!$B$4,'seznamy dílů_BalTec'!A734,0)","v":0}]
["812005",2,"Čep","Pivot pin","p.7",null,{"$f":"IF(A735='vyhledávání dílů'!$B$4,'seznamy dílů_BalTec'!A735,0)","v":0}]
["812007",2,"Ložiskové pouzdro","Roller cage","p.8",null,{"$f":"IF(A736='vyhledávání dílů'!$B$4,'seznamy dílů_BalTec'!A736,0)","v":0}]
["812022",0,null,"Lateral guide plate pre-worked",null,null,{"$f":"IF(A737='vyhledávání dílů'!$B$4,'seznamy dílů_BalTec'!A737,0)","v":0}]
["812023",0,null,"Support plate, pre-worked",null,null,{"$f":"IF(A738='vyhledávání dílů'!$B$4,'seznamy dílů_BalTec'!A738,0)","v":0}]
["813000",0,null,"Ruler RN 080",null,null,{"$f":"IF(A739='vyhledávání dílů'!$B$4,'seznamy dílů_BalTec'!A739,0)","v":0}]
["813024",0,null,"Frame",null,null,{"$f":"IF(A740='vyhledávání dílů'!$B$4,'seznamy dílů_BalTec'!A740,0)","v":0}]
["813025",0,null,"Cover plate",null,null,{"$f":"IF(A741='vyhledávání dílů'!$B$4,'seznamy dílů_BalTec'!A741,0)","v":0}]
["813026",0,null,"Cover plate",null,null,{"$f":"IF(A742='vyhledávání dílů'!$B$4,'seznamy dílů_BalTec'!A742,0)","v":0}]
["813032",0,null,"Guard ring R 80",null,null,{"$f":"IF(A743='vyhledávání dílů'!$B$4,'seznamy dílů_BalTec'!A743,0)","v":0}]
["813032",0,null,"Guard ring R 80",null,null,{"$f":"IF(A744='vyhledávání dílů'!$B$4,'seznamy dílů_BalTec'!A744,0)","v":0}]
["813032",0,null,"Guard ring R 100",null,null,{"$f":"IF(A745='vyhledávání dílů'!$B$4,'seznamy dílů_BalTec'!A745,0)","v":0}]
["813032",0,null,"Guard ring R 65",null,null,{"$f":"IF(A746='vyhledávání dílů'!$B$4,'seznamy dílů_BalTec'!A746,0)","v":0}]
["813088",0,null,"Guide sleeve",null,null,{"$f":"IF(A747='vyhledávání dílů'!$B$4,'seznamy dílů_BalTec'!A747,0)","v":0}]
["813089",0,null,"Cam",null,null,{"$f":"IF(A748='vyhledávání dílů'!$B$4,'seznamy dílů_BalTec'!A748,0)","v":0}]
["813091",0,null,"Machine plate",null,null,{"$f":"IF(A749='vyhledávání dílů'!$B$4,'seznamy dílů_BalTec'!A749,0)","v":0}]
["813092",0,null,"Data plate USA",null,null,{"$f":"IF(A750='vyhledávání dílů'!$B$4,'seznamy dílů_BalTec'!A750,0)","v":0}]
["813103",0,null,"Stop flange RN 080/081",null,null,{"$f":"IF(A751='vyhledávání dílů'!$B$4,'seznamy dílů_BalTec'!A751,0)","v":0}]
["814001",9,"miska","Pressure cup R=65/L=39 mm for RN/RNE 081/181/231/241","p.13",null,{"$f":"IF(A752='vyhledávání dílů'!$B$4,'seznamy dílů_BalTec'!A752,0)","v":0}]
["814002",0,null,"Motor flange RN 081",null,null,{"$f":"IF(A753='vyhledávání dílů'!$B$4,'seznamy dílů_BalTec'!A753,0)","v":0}]
["814003",0,null,"Motor flange RN 081 to AEG motors with 3000 resp. 3600 rpm.",null,null,{"$f":"IF(A754='vyhledávání dílů'!$B$4,'seznamy dílů_BalTec'!A754,0)","v":0}]
["814008",0,null,"Machine table RN 080/081",null,null,{"$f":"IF(A755='vyhledávání dílů'!$B$4,'seznamy dílů_BalTec'!A755,0)","v":0}]
["814010",7,"miska","Pressure cup R=80/L=54 mm for RN/RNE 081/181/231/241","p.14",null,{"$f":"IF(A756='vyhledávání dílů'!$B$4,'seznamy dílů_BalTec'!A756,0)","v":0}]
["814012",0,null,"Pressure cup R=100/L=74 mm for RN/RNE 081/181/231/241",null,null,{"$f":"IF(A757='vyhledávání dílů'!$B$4,'seznamy dílů_BalTec'!A757,0)","v":0}]
["814014",0,null,"Pressure cup R=120/L=94 mm for RN/RNE 081/181/231/241",null,null,{"$f":"IF(A758='vyhledávání dílů'!$B$4,'seznamy dílů_BalTec'!A758,0)","v":0}]
["814016",0,null,"Pressure cup R=132/L=106 mm for RN/RNE 081/181/231/241",null,null,{"$f":"IF(A759='vyhledávání dílů'!$B$4,'seznamy dílů_BalTec'!A759,0)","v":0}]
["814018",0,"excentrická hřídel","Eccenter shaft for RN/RNE 081/181/231/241","p.17",null,{"$f":"IF(A760='vyhledávání dílů'!$B$4,'seznamy dílů_BalTec'!A760,0)","v":0}]
["814019",0,null,"Nose cap for pressure pad",null,null,{"$f":"IF(A761='vyhledávání dílů'!$B$4,'seznamy dílů_BalTec'!A761,0)","v":0}]
["814021",0,null,"Cast housing RN 080/081",null,null,{"$f":"IF(A762='vyhledávání dílů'!$B$4,'seznamy dílů_BalTec'!A762,0)","v":0}]
["814028",0,null,"Guide flange",null,null,{"$f":"IF(A763='vyhledávání dílů'!$B$4,'seznamy dílů_BalTec'!A763,0)","v":0}]
["814040",0,null,"Machine column RN 081/080",null,null,{"$f":"IF(A764='vyhledávání dílů'!$B$4,'seznamy dílů_BalTec'!A764,0)","v":0}]
["814050",6,"kloub ","Tool holder R=65/L=39 mm for RN/RNE 081/181/231/241","p.8",null,{"$f":"IF(A765='vyhledávání dílů'!$B$4,'seznamy dílů_BalTec'!A765,0)","v":0}]
["814051",5,"kloub ","Tool holder R=80/L=54 mm for RN/RNE 081/181/231/241","p.9",null,{"$f":"IF(A766='vyhledávání dílů'!$B$4,'seznamy dílů_BalTec'!A766,0)","v":0}]
["814052",1,null,"Tool holder R=100/L=74 mm for RN/RNE 081/181/231/241",null,null,{"$f":"IF(A767='vyhledávání dílů'!$B$4,'seznamy dílů_BalTec'!A767,0)","v":0}]
["814053",0,null,"Tool holder R=120/L=94 mm for RN/RNE 081/181/231/241",null,null,{"$f":"IF(A768='vyhledávání dílů'!$B$4,'seznamy dílů_BalTec'!A768,0)","v":0}]
["814054",0,null,"Toolholder R=132/L=106 mm for RN/RNE 081/181/231/241",null,null,{"$f":"IF(A769='vyhledávání dílů'!$B$4,'seznamy dílů_BalTec'!A769,0)","v":0}]
["814056",0,null,"Guiding sleeve",null,null,{"$f":"IF(A770='vyhledávání dílů'!$B$4,'seznamy dílů_BalTec'!A770,0)","v":0}]
["814057",0,null,"Cap",null,null,{"$f":"IF(A771='vyhledávání dílů'!$B$4,'seznamy dílů_BalTec'!A771,0)","v":0}]
["814058",0,null,"Cap for pressure pad",null,null,{"$f":"IF(A772='vyhledávání dílů'!$B$4,'seznamy dílů_BalTec'!A772,0)","v":0}]
["814059",0,null,"Protective tube",null,null,{"$f":"IF(A773='vyhledávání dílů'!$B$4,'seznamy dílů_BalTec'!A773,0)","v":0}]
["814060",0,null,"Cover plate",null,null,{"$f":"IF(A774='vyhledávání dílů'!$B$4,'seznamy dílů_BalTec'!A774,0)","v":0}]
["814066",0,null,"Adjustment ring",null,null,{"$f":"IF(A775='vyhledávání dílů'!$B$4,'seznamy dílů_BalTec'!A775,0)","v":0}]
["814067",0,null,"holder",null,null,{"$f":"IF(A776='vyhledávání dílů'!$B$4,'seznamy dílů_BalTec'!A776,0)","v":0}]
["814068",0,null,"Label \"CE\" according to our drawing 814068",null,null,{"$f":"IF(A777='vyhledávání dílů'!$B$4,'seznamy dílů_BalTec'!A777,0)","v":0}]
["814083",0,null,"Proximity switch holder RN 081",null,null,{"$f":"IF(A778='vyhledávání dílů'!$B$4,'seznamy dílů_BalTec'!A778,0)","v":0}]
["814087",0,null,"holder (for valve)",null,null,{"$f":"IF(A779='vyhledávání dílů'!$B$4,'seznamy dílů_BalTec'!A779,0)","v":0}]
["814093",0,null,"caution label \"hand injury/safety gloves/safety glasses\"",null,null,{"$f":"IF(A780='vyhledávání dílů'!$B$4,'seznamy dílů_BalTec'!A780,0)","v":0}]
["814112",0,null,"Autom. greasing: submodule cylinder",null,null,{"$f":"IF(A781='vyhledávání dílů'!$B$4,'seznamy dílů_BalTec'!A781,0)","v":0}]
["817006",0,null,"MRX-1 support plate, pre-worked",null,null,{"$f":"IF(A782='vyhledávání dílů'!$B$4,'seznamy dílů_BalTec'!A782,0)","v":0}]
["817016",0,null,"MRX-1 guide plate, pre-worked",null,null,{"$f":"IF(A783='vyhledávání dílů'!$B$4,'seznamy dílů_BalTec'!A783,0)","v":0}]
["817139",1,"Přítlačná deska","Pressure plate","p.4",null,{"$f":"IF(A784='vyhledávání dílů'!$B$4,'seznamy dílů_BalTec'!A784,0)","v":0}]
["817140",0,null,"MRX-2 guide plate, blank",null,null,{"$f":"IF(A785='vyhledávání dílů'!$B$4,'seznamy dílů_BalTec'!A785,0)","v":0}]
["817141",0,null,"MRX-2 support plate, blank",null,null,{"$f":"IF(A786='vyhledávání dílů'!$B$4,'seznamy dílů_BalTec'!A786,0)","v":0}]
["817142",1,"Vodící kroužek","Guide ring","p.9",null,{"$f":"IF(A787='vyhledávání dílů'!$B$4,'seznamy dílů_BalTec'!A787,0)","v":0}]
["817146",0,null,"Support plate, pre-worked",null,null,{"$f":"IF(A788='vyhledávání dílů'!$B$4,'seznamy dílů_BalTec'!A788,0)","v":0}]
["820013",0,null,"Pressure cup R=80/L=54 mm",null,null,{"$f":"IF(A789='vyhledávání dílů'!$B$4,'seznamy dílů_BalTec'!A789,0)","v":0}]
["820023",0,null,"Pressure cup R=65/L=39 mm",null,null,{"$f":"IF(A790='vyhledávání dílů'!$B$4,'seznamy dílů_BalTec'!A790,0)","v":0}]
["820026",4,"pružina","pressure spring","p.3",null,{"$f":"IF(A791='vyhledávání dílů'!$B$4,'seznamy dílů_BalTec'!A791,0)","v":0}]
["820028",0,null,"Slot stone",null,null,{"$f":"IF(A792='vyhledávání dílů'!$B$4,'seznamy dílů_BalTec'!A792,0)","v":0}]
["820029",0,null,"Bolt",null,null,{"$f":"IF(A793='vyhledávání dílů'!$B$4,'seznamy dílů_BalTec'!A793,0)","v":0}]
["820055",0,null,"Pressure cup R=100/L=74 mm",null,null,{"$f":"IF(A794='vyhledávání dílů'!$B$4,'seznamy dílů_BalTec'!A794,0)","v":0}]
["821016",0,null,"Internal ring gear",null,null,{"$f":"IF(A795='vyhledávání dílů'!$B$4,'seznamy dílů_BalTec'!A795,0)","v":0}]
["821018",0,null,"Eccenter shaft",null,null,{"$f":"IF(A796='vyhledávání dílů'!$B$4,'seznamy dílů_BalTec'!A796,0)","v":0}]
["821049",0,null,"Pressure cup R=120",null,null,{"$f":"IF(A797='vyhledávání dílů'!$B$4,'seznamy dílů_BalTec'!A797,0)","v":0}]
["821050",0,null,"Pressure cup R=132",null,null,{"$f":"IF(A798='vyhledávání dílů'!$B$4,'seznamy dílů_BalTec'!A798,0)","v":0}]
["821438",0,null,"Tool holder R=65/L=39 mm",null,null,{"$f":"IF(A799='vyhledávání dílů'!$B$4,'seznamy dílů_BalTec'!A799,0)","v":0}]
["821851",0,null,"Tool holder R=80/L=54 mm",null,null,{"$f":"IF(A800='vyhledávání dílů'!$B$4,'seznamy dílů_BalTec'!A800,0)","v":0}]
["821852",0,null,"Tool holder R=100/L=74 mm",null,null,{"$f":"IF(A801='vyhledávání dílů'!$B$4,'seznamy dílů_BalTec'!A801,0)","v":0}]
["821853",0,null,"Toolholder R=120/L=94 mm",null,null,{"$f":"IF(A802='vyhledávání dílů'!$B$4,'seznamy dílů_BalTec'!A802,0)","v":0}]
["821854",0,null,"Toolholder R=132",null,null,{"$f":"IF(A803='vyhledávání dílů'!$B$4,'seznamy dílů_BalTec'!A803,0)","v":0}]
["823008",0,null,"Adjustment ring",null,null,{"$f":"IF(A804='vyhledávání dílů'!$B$4,'seznamy dílů_BalTec'!A804,0)","v":0}]
["823011",0,null,"Nose cap",null,null,{"$f":"IF(A805='vyhledávání dílů'!$B$4,'seznamy dílů_BalTec'!A805,0)","v":0}]
["823016",0,null,"Excenter sleeve",null,null,{"$f":"IF(A806='vyhledávání dílů'!$B$4,'seznamy dílů_BalTec'!A806,0)","v":0}]
["823020",0,null,"Piston",null,null,{"$f":"IF(A807='vyhledávání dílů'!$B$4,'seznamy dílů_BalTec'!A807,0)","v":0}]
["823021",0,null,"Key",null,null,{"$f":"IF(A808='vyhledávání dílů'!$B$4,'seznamy dílů_BalTec'!A808,0)","v":0}]
["823022",0,null,"Excenter shaft",null,null,{"$f":"IF(A809='vyhledávání dílů'!$B$4,'seznamy dílů_BalTec'!A809,0)","v":0}]
["823023",1,"měřítko 30mm","Scale","p.15",null,{"$f":"IF(A810='vyhledávání dílů'!$B$4,'seznamy dílů_BalTec'!A810,0)","v":0}]
["823027",0,null,"Buffer washer",null,null,{"$f":"IF(A811='vyhledávání dílů'!$B$4,'seznamy dílů_BalTec'!A811,0)","v":0}]
["823028",0,null,"Clamping jaw, right",null,null,{"$f":"IF(A812='vyhledávání dílů'!$B$4,'seznamy dílů_BalTec'!A812,0)","v":0}]
["823029",0,null,"Clamping jaw, left",null,null,{"$f":"IF(A813='vyhledávání dílů'!$B$4,'seznamy dílů_BalTec'!A813,0)","v":0}]
["823030",0,null,"Sheeting",null,null,{"$f":"IF(A814='vyhledávání dílů'!$B$4,'seznamy dílů_BalTec'!A814,0)","v":0}]
["823031",0,null,"Sheeting",null,null,{"$f":"IF(A815='vyhledávání dílů'!$B$4,'seznamy dílů_BalTec'!A815,0)","v":0}]
["823032",0,null,"Ruler",null,null,{"$f":"IF(A816='vyhledávání dílů'!$B$4,'seznamy dílů_BalTec'!A816,0)","v":0}]
["823045",0,null,"Nose cap for pressure pad",null,null,{"$f":"IF(A817='vyhledávání dílů'!$B$4,'seznamy dílů_BalTec'!A817,0)","v":0}]
["823046",0,null,"Pressure spring",null,null,{"$f":"IF(A818='vyhledávání dílů'!$B$4,'seznamy dílů_BalTec'!A818,0)","v":0}]
["823047",0,null,"Slot stone",null,null,{"$f":"IF(A819='vyhledávání dílů'!$B$4,'seznamy dílů_BalTec'!A819,0)","v":0}]
["823049",0,null,"Push handle",null,null,{"$f":"IF(A820='vyhledávání dílů'!$B$4,'seznamy dílů_BalTec'!A820,0)","v":0}]
["823054",0,null,"Crank rod",null,null,{"$f":"IF(A821='vyhledávání dílů'!$B$4,'seznamy dílů_BalTec'!A821,0)","v":0}]
["823055",0,null,"Shifter rod",null,null,{"$f":"IF(A822='vyhledávání dílů'!$B$4,'seznamy dílů_BalTec'!A822,0)","v":0}]
["823056",0,null,"Shaft Type FS",null,null,{"$f":"IF(A823='vyhledávání dílů'!$B$4,'seznamy dílů_BalTec'!A823,0)","v":0}]
["823057",0,null,"Guide bolt",null,null,{"$f":"IF(A824='vyhledávání dílů'!$B$4,'seznamy dílů_BalTec'!A824,0)","v":0}]
["823058",0,null,"Spacer pipe",null,null,{"$f":"IF(A825='vyhledávání dílů'!$B$4,'seznamy dílů_BalTec'!A825,0)","v":0}]
["823059",0,null,"Roller pin",null,null,{"$f":"IF(A826='vyhledávání dílů'!$B$4,'seznamy dílů_BalTec'!A826,0)","v":0}]
["823060",0,null,"Piston FS",null,null,{"$f":"IF(A827='vyhledávání dílů'!$B$4,'seznamy dílů_BalTec'!A827,0)","v":0}]
["823061",0,null,"Spacing washer FS",null,null,{"$f":"IF(A828='vyhledávání dílů'!$B$4,'seznamy dílů_BalTec'!A828,0)","v":0}]
["823062",0,null,"Lever",null,null,{"$f":"IF(A829='vyhledávání dílů'!$B$4,'seznamy dílů_BalTec'!A829,0)","v":0}]
["823063",0,null,"Lever",null,null,{"$f":"IF(A830='vyhledávání dílů'!$B$4,'seznamy dílů_BalTec'!A830,0)","v":0}]
["823064",0,null,"Guide pipe",null,null,{"$f":"IF(A831='vyhledávání dílů'!$B$4,'seznamy dílů_BalTec'!A831,0)","v":0}]
["823065",0,null,"Guide piece",null,null,{"$f":"IF(A832='vyhledávání dílů'!$B$4,'seznamy dílů_BalTec'!A832,0)","v":0}]
["823066",0,null,"Cylinder element for FS",null,null,{"$f":"IF(A833='vyhledávání dílů'!$B$4,'seznamy dílů_BalTec'!A833,0)","v":0}]
["823067",0,null,"Motor flange",null,null,{"$f":"IF(A834='vyhledávání dílů'!$B$4,'seznamy dílů_BalTec'!A834,0)","v":0}]
["823069",1,"dolní píst","Guide sleeve","p. 4",null,{"$f":"IF(A835='vyhledávání dílů'!$B$4,'seznamy dílů_BalTec'!A835,0)","v":0}]
["823071",0,null,"Piston",null,null,{"$f":"IF(A836='vyhledávání dílů'!$B$4,'seznamy dílů_BalTec'!A836,0)","v":0}]
["823072",0,null,"Angle",null,null,{"$f":"IF(A837='vyhledávání dílů'!$B$4,'seznamy dílů_BalTec'!A837,0)","v":0}]
["823073",0,null,"Washer",null,null,{"$f":"IF(A838='vyhledávání dílů'!$B$4,'seznamy dílů_BalTec'!A838,0)","v":0}]
["823076",0,null,"Wave",null,null,{"$f":"IF(A839='vyhledávání dílů'!$B$4,'seznamy dílů_BalTec'!A839,0)","v":0}]
["823078",0,null,"Guide pipe ",null,null,{"$f":"IF(A840='vyhledávání dílů'!$B$4,'seznamy dílů_BalTec'!A840,0)","v":0}]
["823079",0,null,"Shifter rod",null,null,{"$f":"IF(A841='vyhledávání dílů'!$B$4,'seznamy dílů_BalTec'!A841,0)","v":0}]
["823084",0,null,"Piston",null,null,{"$f":"IF(A842='vyhledávání dílů'!$B$4,'seznamy dílů_BalTec'!A842,0)","v":0}]
["823085",0,null,"Cap",null,null,{"$f":"IF(A843='vyhledávání dílů'!$B$4,'seznamy dílů_BalTec'!A843,0)","v":0}]
["823099",0,null,"Attachment screw",null,null,{"$f":"IF(A844='vyhledávání dílů'!$B$4,'seznamy dílů_BalTec'!A844,0)","v":0}]
["823109",0,null,"washer",null,null,{"$f":"IF(A845='vyhledávání dílů'!$B$4,'seznamy dílů_BalTec'!A845,0)","v":0}]
["823110",0,null,"washer",null,null,{"$f":"IF(A846='vyhledávání dílů'!$B$4,'seznamy dílů_BalTec'!A846,0)","v":0}]
["823116",0,null,"Slide",null,null,{"$f":"IF(A847='vyhledávání dílů'!$B$4,'seznamy dílů_BalTec'!A847,0)","v":0}]
["823133",0,null,"Limiting ring",null,null,{"$f":"IF(A848='vyhledávání dílů'!$B$4,'seznamy dílů_BalTec'!A848,0)","v":0}]
["823134",0,null,"Interim piece",null,null,{"$f":"IF(A849='vyhledávání dílů'!$B$4,'seznamy dílů_BalTec'!A849,0)","v":0}]
["823135",0,null,"Peen blank R=40",null,null,{"$f":"IF(A850='vyhledávání dílů'!$B$4,'seznamy dílů_BalTec'!A850,0)","v":0}]
["823136",0,null,"Bearing plate Rough machined",null,null,{"$f":"IF(A851='vyhledávání dílů'!$B$4,'seznamy dílů_BalTec'!A851,0)","v":0}]
["823137",0,null,"Lateral guide plate Rough machined",null,null,{"$f":"IF(A852='vyhledávání dílů'!$B$4,'seznamy dílů_BalTec'!A852,0)","v":0}]
["823138",0,null,"Flange",null,null,{"$f":"IF(A853='vyhledávání dílů'!$B$4,'seznamy dílů_BalTec'!A853,0)","v":0}]
["823139",0,null,"Guide ring",null,null,{"$f":"IF(A854='vyhledávání dílů'!$B$4,'seznamy dílů_BalTec'!A854,0)","v":0}]
["823140",0,null,"Roller guide plate",null,null,{"$f":"IF(A855='vyhledávání dílů'!$B$4,'seznamy dílů_BalTec'!A855,0)","v":0}]
["823141",0,null,"Guide star",null,null,{"$f":"IF(A856='vyhledávání dílů'!$B$4,'seznamy dílů_BalTec'!A856,0)","v":0}]
["823142",0,null,"Bearing cage",null,null,{"$f":"IF(A857='vyhledávání dílů'!$B$4,'seznamy dílů_BalTec'!A857,0)","v":0}]
["823143",0,null,"Ring spacer",null,null,{"$f":"IF(A858='vyhledávání dílů'!$B$4,'seznamy dílů_BalTec'!A858,0)","v":0}]
["823144",0,null,"Pressure plate",null,null,{"$f":"IF(A859='vyhledávání dílů'!$B$4,'seznamy dílů_BalTec'!A859,0)","v":0}]
["823145",0,null,"Lug",null,null,{"$f":"IF(A860='vyhledávání dílů'!$B$4,'seznamy dílů_BalTec'!A860,0)","v":0}]
["823146",0,null,"Drive flange",null,null,{"$f":"IF(A861='vyhledávání dílů'!$B$4,'seznamy dílů_BalTec'!A861,0)","v":0}]
["823147",0,null,"Box",null,null,{"$f":"IF(A862='vyhledávání dílů'!$B$4,'seznamy dílů_BalTec'!A862,0)","v":0}]
["823159",0,null,"Rivet stem moulded blank R=40 Ball DM 6,5",null,null,{"$f":"IF(A863='vyhledávání dílů'!$B$4,'seznamy dílů_BalTec'!A863,0)","v":0}]
["823170",0,null,"Attachment screw",null,null,{"$f":"IF(A864='vyhledávání dílů'!$B$4,'seznamy dílů_BalTec'!A864,0)","v":0}]
["823176",0,null,"Piston",null,null,{"$f":"IF(A865='vyhledávání dílů'!$B$4,'seznamy dílů_BalTec'!A865,0)","v":0}]
["823177",0,null,"Piston",null,null,{"$f":"IF(A866='vyhledávání dílů'!$B$4,'seznamy dílů_BalTec'!A866,0)","v":0}]
["823191",0,null,"Eccentric shaft Hettich-manufacturing",null,null,{"$f":"IF(A867='vyhledávání dílů'!$B$4,'seznamy dílů_BalTec'!A867,0)","v":0}]
["823192",0,null,"washer",null,null,{"$f":"IF(A868='vyhledávání dílů'!$B$4,'seznamy dílů_BalTec'!A868,0)","v":0}]
["823193",0,null,"Ring spacer",null,null,{"$f":"IF(A869='vyhledávání dílů'!$B$4,'seznamy dílů_BalTec'!A869,0)","v":0}]
["823194",0,null,"Washer",null,null,{"$f":"IF(A870='vyhledávání dílů'!$B$4,'seznamy dílů_BalTec'!A870,0)","v":0}]
["823195",0,null,"Cam",null,null,{"$f":"IF(A871='vyhledávání dílů'!$B$4,'seznamy dílů_BalTec'!A871,0)","v":0}]
["823641",0,null,"lubricating kit",null,null,{"$f":"IF(A872='vyhledávání dílů'!$B$4,'seznamy dílů_BalTec'!A872,0)","v":0}]
["824000",0,null,"Cast housing",null,null,{"$f":"IF(A873='vyhledávání dílů'!$B$4,'seznamy dílů_BalTec'!A873,0)","v":0}]
["824001",0,null,"Motor flange to electro motor RN/RNE 241",null,null,{"$f":"IF(A874='vyhledávání dílů'!$B$4,'seznamy dílů_BalTec'!A874,0)","v":0}]
["824003",0,null,"Guiding bushing",null,null,{"$f":"IF(A875='vyhledávání dílů'!$B$4,'seznamy dílů_BalTec'!A875,0)","v":0}]
["824004",0,null,"Cam",null,null,{"$f":"IF(A876='vyhledávání dílů'!$B$4,'seznamy dílů_BalTec'!A876,0)","v":0}]
["824005",0,null,"Polygon wave",null,null,{"$f":"IF(A877='vyhledávání dílů'!$B$4,'seznamy dílů_BalTec'!A877,0)","v":0}]
["824009",0,null,"Key",null,null,{"$f":"IF(A878='vyhledávání dílů'!$B$4,'seznamy dílů_BalTec'!A878,0)","v":0}]
["824011",0,null,"Polygon wave",null,null,{"$f":"IF(A879='vyhledávání dílů'!$B$4,'seznamy dílů_BalTec'!A879,0)","v":0}]
["824013",0,null,"Motor flange to hydraulic motor RN/RNE 241",null,null,{"$f":"IF(A880='vyhledávání dílů'!$B$4,'seznamy dílů_BalTec'!A880,0)","v":0}]
["824022",0,null,"Spindle",null,null,{"$f":"IF(A881='vyhledávání dílů'!$B$4,'seznamy dílů_BalTec'!A881,0)","v":0}]
["824023",0,null,"Nut",null,null,{"$f":"IF(A882='vyhledávání dílů'!$B$4,'seznamy dílů_BalTec'!A882,0)","v":0}]
["824024",0,null,"Gear block",null,null,{"$f":"IF(A883='vyhledávání dílů'!$B$4,'seznamy dílů_BalTec'!A883,0)","v":0}]
["824025",0,null,"Adjustable wave",null,null,{"$f":"IF(A884='vyhledávání dílů'!$B$4,'seznamy dílů_BalTec'!A884,0)","v":0}]
["824027",0,null,"Ruler",null,null,{"$f":"IF(A885='vyhledávání dílů'!$B$4,'seznamy dílů_BalTec'!A885,0)","v":0}]
["824030",0,null,"Intermediate flange",null,null,{"$f":"IF(A886='vyhledávání dílů'!$B$4,'seznamy dílů_BalTec'!A886,0)","v":0}]
["824034",0,null,"Bevel gear",null,null,{"$f":"IF(A887='vyhledávání dílů'!$B$4,'seznamy dílů_BalTec'!A887,0)","v":0}]
["824035",0,null,"Bevel gear",null,null,{"$f":"IF(A888='vyhledávání dílů'!$B$4,'seznamy dílů_BalTec'!A888,0)","v":0}]
["824036",0,null,"washer",null,null,{"$f":"IF(A889='vyhledávání dílů'!$B$4,'seznamy dílů_BalTec'!A889,0)","v":0}]
["824042",0,null,"Cap RN 081/181/231/241",null,null,{"$f":"IF(A890='vyhledávání dílů'!$B$4,'seznamy dílů_BalTec'!A890,0)","v":0}]
["824043",0,null,"Piston",null,null,{"$f":"IF(A891='vyhledávání dílů'!$B$4,'seznamy dílů_BalTec'!A891,0)","v":0}]
["824049",0,null,"Machine table",null,null,{"$f":"IF(A892='vyhledávání dílů'!$B$4,'seznamy dílů_BalTec'!A892,0)","v":0}]
["824051",0,null,"Interim piece",null,null,{"$f":"IF(A893='vyhledávání dílů'!$B$4,'seznamy dílů_BalTec'!A893,0)","v":0}]
["824053",0,null,"Proximity switch holder",null,null,{"$f":"IF(A894='vyhledávání dílů'!$B$4,'seznamy dílů_BalTec'!A894,0)","v":0}]
["824056",0,null,"Adjustment ring",null,null,{"$f":"IF(A895='vyhledávání dílů'!$B$4,'seznamy dílů_BalTec'!A895,0)","v":0}]
["824057",0,null,"Connection piece",null,null,{"$f":"IF(A896='vyhledávání dílů'!$B$4,'seznamy dílů_BalTec'!A896,0)","v":0}]
["824061",0,null,"Cover pipe",null,null,{"$f":"IF(A897='vyhledávání dílů'!$B$4,'seznamy dílů_BalTec'!A897,0)","v":0}]
["824063",0,null,"Cover",null,null,{"$f":"IF(A898='vyhledávání dílů'!$B$4,'seznamy dílů_BalTec'!A898,0)","v":0}]
["825002",0,null,"Limiting ring",null,null,{"$f":"IF(A899='vyhledávání dílů'!$B$4,'seznamy dílů_BalTec'!A899,0)","v":0}]
["825009",0,null,"Sleeve",null,null,{"$f":"IF(A900='vyhledávání dílů'!$B$4,'seznamy dílů_BalTec'!A900,0)","v":0}]
["825031",0,null,"Damping piston",null,null,{"$f":"IF(A901='vyhledávání dílů'!$B$4,'seznamy dílů_BalTec'!A901,0)","v":0}]
["825033",0,null,"Plate",null,null,{"$f":"IF(A902='vyhledávání dílů'!$B$4,'seznamy dílů_BalTec'!A902,0)","v":0}]
["825035",0,null,"Flange",null,null,{"$f":"IF(A903='vyhledávání dílů'!$B$4,'seznamy dílů_BalTec'!A903,0)","v":0}]
["825036",0,null,"Key",null,null,{"$f":"IF(A904='vyhledávání dílů'!$B$4,'seznamy dílů_BalTec'!A904,0)","v":0}]
["825038",3,"uložení ex. Hřídele","Eccenter sleeve for RN/RNE 081/181/231/241","p. 7",null,{"$f":"IF(A905='vyhledávání dílů'!$B$4,'seznamy dílů_BalTec'!A905,0)","v":0}]
["825039",0,null,"Washer for RN/RNE 081/181/231/241",null,null,{"$f":"IF(A906='vyhledávání dílů'!$B$4,'seznamy dílů_BalTec'!A906,0)","v":0}]
["825049",0,null,"Machine column",null,null,{"$f":"IF(A907='vyhledávání dílů'!$B$4,'seznamy dílů_BalTec'!A907,0)","v":0}]
["825053",0,null,"Motor shaft",null,null,{"$f":"IF(A908='vyhledávání dílů'!$B$4,'seznamy dílů_BalTec'!A908,0)","v":0}]
["825056",0,null,"Cast housing",null,null,{"$f":"IF(A909='vyhledávání dílů'!$B$4,'seznamy dílů_BalTec'!A909,0)","v":0}]
["825057",0,null,"Motor flange",null,null,{"$f":"IF(A910='vyhledávání dílů'!$B$4,'seznamy dílů_BalTec'!A910,0)","v":0}]
["825060",0,null,"Polygon shaft",null,null,{"$f":"IF(A911='vyhledávání dílů'!$B$4,'seznamy dílů_BalTec'!A911,0)","v":0}]
["825061",0,null,"Motor flange",null,null,{"$f":"IF(A912='vyhledávání dílů'!$B$4,'seznamy dílů_BalTec'!A912,0)","v":0}]
["825062",0,null,"Control box holder (for RC-10 controller)",null,null,{"$f":"IF(A913='vyhledávání dílů'!$B$4,'seznamy dílů_BalTec'!A913,0)","v":0}]
["825064",0,null,"Guide rail",null,null,{"$f":"IF(A914='vyhledávání dílů'!$B$4,'seznamy dílů_BalTec'!A914,0)","v":0}]
["825065",0,null,"Mounting angle",null,null,{"$f":"IF(A915='vyhledávání dílů'!$B$4,'seznamy dílů_BalTec'!A915,0)","v":0}]
["825066",0,null,"Adjustment ring",null,null,{"$f":"IF(A916='vyhledávání dílů'!$B$4,'seznamy dílů_BalTec'!A916,0)","v":0}]
["825067",0,null,"Connecting piece",null,null,{"$f":"IF(A917='vyhledávání dílů'!$B$4,'seznamy dílů_BalTec'!A917,0)","v":0}]
["825068",0,null,"Spacer",null,null,{"$f":"IF(A918='vyhledávání dílů'!$B$4,'seznamy dílů_BalTec'!A918,0)","v":0}]
["825073",0,null,"Cover tube",null,null,{"$f":"IF(A919='vyhledávání dílů'!$B$4,'seznamy dílů_BalTec'!A919,0)","v":0}]
["825074",0,null,"Clamping fixture",null,null,{"$f":"IF(A920='vyhledávání dílů'!$B$4,'seznamy dílů_BalTec'!A920,0)","v":0}]
["825075",0,null,"Control box support ",null,null,{"$f":"IF(A921='vyhledávání dílů'!$B$4,'seznamy dílů_BalTec'!A921,0)","v":0}]
["825077",0,null,"Motor flange",null,null,{"$f":"IF(A922='vyhledávání dílů'!$B$4,'seznamy dílů_BalTec'!A922,0)","v":0}]
["825079",0,null,"Protective tube RN/E 181,231,281,331,381 STF",null,null,{"$f":"IF(A923='vyhledávání dílů'!$B$4,'seznamy dílů_BalTec'!A923,0)","v":0}]
["825080",0,null,"Damping piston RN/E 181 STF",null,null,{"$f":"IF(A924='vyhledávání dílů'!$B$4,'seznamy dílů_BalTec'!A924,0)","v":0}]
["825081",0,null,"Distance block",null,null,{"$f":"IF(A925='vyhledávání dílů'!$B$4,'seznamy dílů_BalTec'!A925,0)","v":0}]
["825082",0,null,"Bracket  RN/E 181/231 STF",null,null,{"$f":"IF(A926='vyhledávání dílů'!$B$4,'seznamy dílů_BalTec'!A926,0)","v":0}]
["825083",0,null,"Compression lever for RN/RNE 181/231/281/331/381 STF",null,null,{"$f":"IF(A927='vyhledávání dílů'!$B$4,'seznamy dílů_BalTec'!A927,0)","v":0}]
["825084",0,null,"Cam lever for RN/RNE 181/231/331/381 STF",null,null,{"$f":"IF(A928='vyhledávání dílů'!$B$4,'seznamy dílů_BalTec'!A928,0)","v":0}]
["825085",0,null,"Path lever RN/E 181 STF ",null,null,{"$f":"IF(A929='vyhledávání dílů'!$B$4,'seznamy dílů_BalTec'!A929,0)","v":0}]
["825086",0,null,"Spacer",null,null,{"$f":"IF(A930='vyhledávání dílů'!$B$4,'seznamy dílů_BalTec'!A930,0)","v":0}]
["825087",0,null,"Clamping piece RN/E 181/231/281/331 STF",null,null,{"$f":"IF(A931='vyhledávání dílů'!$B$4,'seznamy dílů_BalTec'!A931,0)","v":0}]
["825088",0,null,"Distributor RN/E 181 HPP/STF",null,null,{"$f":"IF(A932='vyhledávání dílů'!$B$4,'seznamy dílů_BalTec'!A932,0)","v":0}]
["825089",0,null,"Case for path measuring system STF",null,null,{"$f":"IF(A933='vyhledávání dílů'!$B$4,'seznamy dílů_BalTec'!A933,0)","v":0}]
["825090",0,null,"Bearing bracket for path measuring system STF",null,null,{"$f":"IF(A934='vyhledávání dílů'!$B$4,'seznamy dílů_BalTec'!A934,0)","v":0}]
["825091",0,null,"Spring case holder for path measuring system STF",null,null,{"$f":"IF(A935='vyhledávání dílů'!$B$4,'seznamy dílů_BalTec'!A935,0)","v":0}]
["825092",0,null,"Spring case for path measuring system STF",null,null,{"$f":"IF(A936='vyhledávání dílů'!$B$4,'seznamy dílů_BalTec'!A936,0)","v":0}]
["825093",0,null,"Coil for path measuring system STF",null,null,{"$f":"IF(A937='vyhledávání dílů'!$B$4,'seznamy dílů_BalTec'!A937,0)","v":0}]
["825094",0,null,"Spring cover for path measuring system STF",null,null,{"$f":"IF(A938='vyhledávání dílů'!$B$4,'seznamy dílů_BalTec'!A938,0)","v":0}]
["825095",0,null,"Thread guide (stroke max. 50mm) for path measuring system STF ",null,null,{"$f":"IF(A939='vyhledávání dílů'!$B$4,'seznamy dílů_BalTec'!A939,0)","v":0}]
["825096",0,null,"Support",null,null,{"$f":"IF(A940='vyhledávání dílů'!$B$4,'seznamy dílů_BalTec'!A940,0)","v":0}]
["825097",0,null,"Wave",null,null,{"$f":"IF(A941='vyhledávání dílů'!$B$4,'seznamy dílů_BalTec'!A941,0)","v":0}]
["825098",0,null,"Stopper for path measuring system",null,null,{"$f":"IF(A942='vyhledávání dílů'!$B$4,'seznamy dílů_BalTec'!A942,0)","v":0}]
["825099",0,null,"Cover to distance measuring system",null,null,{"$f":"IF(A943='vyhledávání dílů'!$B$4,'seznamy dílů_BalTec'!A943,0)","v":0}]
["825100",0,null,"Thread guide (stroke max. 100mm) for path measuring system STF ",null,null,{"$f":"IF(A944='vyhledávání dílů'!$B$4,'seznamy dílů_BalTec'!A944,0)","v":0}]
["825102",0,null,"Retaining plate",null,null,{"$f":"IF(A945='vyhledávání dílů'!$B$4,'seznamy dílů_BalTec'!A945,0)","v":0}]
["825103",0,null,"Guide bar 50mm",null,null,{"$f":"IF(A946='vyhledávání dílů'!$B$4,'seznamy dílů_BalTec'!A946,0)","v":0}]
["825104",0,null,"Cover right with slot RN/E 181 STF",null,null,{"$f":"IF(A947='vyhledávání dílů'!$B$4,'seznamy dílů_BalTec'!A947,0)","v":0}]
["825107",2,"horní píst","damping piston ","p. 3",null,{"$f":"IF(A948='vyhledávání dílů'!$B$4,'seznamy dílů_BalTec'!A948,0)","v":0}]
["825110",0,null,"Sticker BalTec",null,null,{"$f":"IF(A949='vyhledávání dílů'!$B$4,'seznamy dílů_BalTec'!A949,0)","v":0}]
["825111",0,null,"Damping piston",null,null,{"$f":"IF(A950='vyhledávání dílů'!$B$4,'seznamy dílů_BalTec'!A950,0)","v":0}]
["825112",0,null,"Cam",null,null,{"$f":"IF(A951='vyhledávání dílů'!$B$4,'seznamy dílů_BalTec'!A951,0)","v":0}]
["825113",0,null,"Upper flange ",null,null,{"$f":"IF(A952='vyhledávání dílů'!$B$4,'seznamy dílů_BalTec'!A952,0)","v":0}]
["825117",0,null,"Spindle",null,null,{"$f":"IF(A953='vyhledávání dílů'!$B$4,'seznamy dílů_BalTec'!A953,0)","v":0}]
["825118",0,null,"Bearing block",null,null,{"$f":"IF(A954='vyhledávání dílů'!$B$4,'seznamy dílů_BalTec'!A954,0)","v":0}]
["825121",0,null,"Cast housing RN/E 231 90mm stroke",null,null,{"$f":"IF(A955='vyhledávání dílů'!$B$4,'seznamy dílů_BalTec'!A955,0)","v":0}]
["825122",0,null,"Motor flange RN/E 231 STF 90mm stroke",null,null,{"$f":"IF(A956='vyhledávání dílů'!$B$4,'seznamy dílů_BalTec'!A956,0)","v":0}]
["825123",0,null,"Guiding sleeve RN/E 231 90mm stroke",null,null,{"$f":"IF(A957='vyhledávání dílů'!$B$4,'seznamy dílů_BalTec'!A957,0)","v":0}]
["825124",0,null,"Damping piston RN/E 231 STF, 90mm stroke",null,null,{"$f":"IF(A958='vyhledávání dílů'!$B$4,'seznamy dílů_BalTec'!A958,0)","v":0}]
["825125",0,null,"Adjustment ring RN/E 231 90mm stroke",null,null,{"$f":"IF(A959='vyhledávání dílů'!$B$4,'seznamy dílů_BalTec'!A959,0)","v":0}]
["825126",0,null,"Cover tube RN/E 231 90mm stroke",null,null,{"$f":"IF(A960='vyhledávání dílů'!$B$4,'seznamy dílů_BalTec'!A960,0)","v":0}]
["825127",0,null,"Connecting piece RN/E 231 90mm stroke",null,null,{"$f":"IF(A961='vyhledávání dílů'!$B$4,'seznamy dílů_BalTec'!A961,0)","v":0}]
["825128",0,null,"Key RN/E 231 90mm Hub",null,null,{"$f":"IF(A962='vyhledávání dílů'!$B$4,'seznamy dílů_BalTec'!A962,0)","v":0}]
["825129",0,null,"Piston",null,null,{"$f":"IF(A963='vyhledávání dílů'!$B$4,'seznamy dílů_BalTec'!A963,0)","v":0}]
["825130",0,null,"Polygon wave",null,null,{"$f":"IF(A964='vyhledávání dílů'!$B$4,'seznamy dílů_BalTec'!A964,0)","v":0}]
["825131",0,null,"Cam RN/E 231 90mm stroke",null,null,{"$f":"IF(A965='vyhledávání dílů'!$B$4,'seznamy dílů_BalTec'!A965,0)","v":0}]
["825132",0,null,"Anti twist locking pin RN/E 231 STF 90mm stroke",null,null,{"$f":"IF(A966='vyhledávání dílů'!$B$4,'seznamy dílů_BalTec'!A966,0)","v":0}]
["825133",0,null,"Protective tube RN/E 231 STF 90mm stroke",null,null,{"$f":"IF(A967='vyhledávání dílů'!$B$4,'seznamy dílů_BalTec'!A967,0)","v":0}]
["825134",0,null,"Spacer ring RN/E 231 STF 90mm stroke",null,null,{"$f":"IF(A968='vyhledávání dílů'!$B$4,'seznamy dílů_BalTec'!A968,0)","v":0}]
["825135",0,null,"Cover right with slot RN/E 231 STF 90mm stroke",null,null,{"$f":"IF(A969='vyhledávání dílů'!$B$4,'seznamy dílů_BalTec'!A969,0)","v":0}]
["825150",0,null,"Anvil for RNC 181/231",null,null,{"$f":"IF(A970='vyhledávání dílů'!$B$4,'seznamy dílů_BalTec'!A970,0)","v":0}]
["825156",0,null,"Casing sheet left/right",null,null,{"$f":"IF(A971='vyhledávání dílů'!$B$4,'seznamy dílů_BalTec'!A971,0)","v":0}]
["825161",0,null,"Plate",null,null,{"$f":"IF(A972='vyhledávání dílů'!$B$4,'seznamy dílů_BalTec'!A972,0)","v":0}]
["825167",0,null,"Cover holder for RN/RNE 181/231",null,null,{"$f":"IF(A973='vyhledávání dílů'!$B$4,'seznamy dílů_BalTec'!A973,0)","v":0}]
["825169",0,null,"Protecting sheet",null,null,{"$f":"IF(A974='vyhledávání dílů'!$B$4,'seznamy dílů_BalTec'!A974,0)","v":0}]
["825170",0,null,"Intermediate plate for RNC 181/231/281",null,null,{"$f":"IF(A975='vyhledávání dílů'!$B$4,'seznamy dílů_BalTec'!A975,0)","v":0}]
["825177",0,null,"Motor flange RN/E 231 90mm stroke",null,null,{"$f":"IF(A976='vyhledávání dílů'!$B$4,'seznamy dílů_BalTec'!A976,0)","v":0}]
["825262",0,null,"Slide",null,null,{"$f":"IF(A977='vyhledávání dílů'!$B$4,'seznamy dílů_BalTec'!A977,0)","v":0}]
["825265",0,null,"Turning lever",null,null,{"$f":"IF(A978='vyhledávání dílů'!$B$4,'seznamy dílů_BalTec'!A978,0)","v":0}]
["825274",1,"Dráhový senzor 231: Kryt","Cover","p. 5",null,{"$f":"IF(A979='vyhledávání dílů'!$B$4,'seznamy dílů_BalTec'!A979,0)","v":0}]
["825282",0,null,"Cover",null,null,{"$f":"IF(A980='vyhledávání dílů'!$B$4,'seznamy dílů_BalTec'!A980,0)","v":0}]
["825283",1,"držák senzoru základní polohy","Sensor support","p.1",null,{"$f":"IF(A981='vyhledávání dílů'!$B$4,'seznamy dílů_BalTec'!A981,0)","v":0}]
["825284",1,"držák elka pro mag. Kroužek","Support","p. 2",null,{"$f":"IF(A982='vyhledávání dílů'!$B$4,'seznamy dílů_BalTec'!A982,0)","v":0}]
["825285",2,"objímka pro dr. Senzor","Clamping ring ","p. 3",null,{"$f":"IF(A983='vyhledávání dílů'!$B$4,'seznamy dílů_BalTec'!A983,0)","v":0}]
["825288",0,null,"Support plate",null,null,{"$f":"IF(A984='vyhledávání dílů'!$B$4,'seznamy dílů_BalTec'!A984,0)","v":0}]
["825289",0,null,"Lower cover",null,null,{"$f":"IF(A985='vyhledávání dílů'!$B$4,'seznamy dílů_BalTec'!A985,0)","v":0}]
["825292",0,null,"Basic plate small",null,null,{"$f":"IF(A986='vyhledávání dílů'!$B$4,'seznamy dílů_BalTec'!A986,0)","v":0}]
["825294",0,null,"Adjustment spindle",null,null,{"$f":"IF(A987='vyhledávání dílů'!$B$4,'seznamy dílů_BalTec'!A987,0)","v":0}]
["825298",0,null,"Distance plate",null,null,{"$f":"IF(A988='vyhledávání dílů'!$B$4,'seznamy dílů_BalTec'!A988,0)","v":0}]
["825299",0,null,"Upper cover",null,null,{"$f":"IF(A989='vyhledávání dílů'!$B$4,'seznamy dílů_BalTec'!A989,0)","v":0}]
["825309",0,null,"Path measuring system (measuring length 50 mm)",null,null,{"$f":"IF(A990='vyhledávání dílů'!$B$4,'seznamy dílů_BalTec'!A990,0)","v":0}]
["825901",0,null,"Damping piston RN/E 181",null,null,{"$f":"IF(A991='vyhledávání dílů'!$B$4,'seznamy dílů_BalTec'!A991,0)","v":0}]
["825902",0,null,"Motor flange",null,null,{"$f":"IF(A992='vyhledávání dílů'!$B$4,'seznamy dílů_BalTec'!A992,0)","v":0}]
["825903",0,null,"Motor flange (refinishinging) RN/E 181 HPP",null,null,{"$f":"IF(A993='vyhledávání dílů'!$B$4,'seznamy dílů_BalTec'!A993,0)","v":0}]
["826001",0,null,"Piston",null,null,{"$f":"IF(A994='vyhledávání dílů'!$B$4,'seznamy dílů_BalTec'!A994,0)","v":0}]
["826002",0,null,"Piston",null,null,{"$f":"IF(A995='vyhledávání dílů'!$B$4,'seznamy dílů_BalTec'!A995,0)","v":0}]
["826012",0,null,"Cover hood",null,null,{"$f":"IF(A996='vyhledávání dílů'!$B$4,'seznamy dílů_BalTec'!A996,0)","v":0}]
["826019",1,"dolní píst","guide sleeve","p.4",null,{"$f":"IF(A997='vyhledávání dílů'!$B$4,'seznamy dílů_BalTec'!A997,0)","v":0}]
["826022",0,null,"Adjustment ring",null,null,{"$f":"IF(A998='vyhledávání dílů'!$B$4,'seznamy dílů_BalTec'!A998,0)","v":0}]
["826023",5,"měřítko 40mm","ruler","p.15",null,{"$f":"IF(A999='vyhledávání dílů'!$B$4,'seznamy dílů_BalTec'!A999,0)","v":0}]
["826024",0,null,"Motor flange",null,null,{"$f":"IF(A1000='vyhledávání dílů'!$B$4,'seznamy dílů_BalTec'!A1000,0)","v":0}]
["826025",0,null,"Cast housing RN231 (refinishinging)",null,null,{"$f":"IF(A1001='vyhledávání dílů'!$B$4,'seznamy dílů_BalTec'!A1001,0)","v":0}]
["826026",0,null,"Flange",null,null,{"$f":"IF(A1002='vyhledávání dílů'!$B$4,'seznamy dílů_BalTec'!A1002,0)","v":0}]
["826027",0,null,"Polygon shaft for RN 231",null,null,{"$f":"IF(A1003='vyhledávání dílů'!$B$4,'seznamy dílů_BalTec'!A1003,0)","v":0}]
["826030",3,"klín (pod měřítko)","Key","p.14",null,{"$f":"IF(A1004='vyhledávání dílů'!$B$4,'seznamy dílů_BalTec'!A1004,0)","v":0}]
["826031",0,null,"Pivot",null,null,{"$f":"IF(A1005='vyhledávání dílů'!$B$4,'seznamy dílů_BalTec'!A1005,0)","v":0}]
["826034",0,null,"Motor flange for US motor",null,null,{"$f":"IF(A1006='vyhledávání dílů'!$B$4,'seznamy dílů_BalTec'!A1006,0)","v":0}]
["826035",0,null,"Polygon shaft ",null,null,{"$f":"IF(A1007='vyhledávání dílů'!$B$4,'seznamy dílů_BalTec'!A1007,0)","v":0}]
["826036",0,null,"Connection piece",null,null,{"$f":"IF(A1008='vyhledávání dílů'!$B$4,'seznamy dílů_BalTec'!A1008,0)","v":0}]
["826037",0,null,"Swivel arm RNF/RNFS 231",null,null,{"$f":"IF(A1009='vyhledávání dílů'!$B$4,'seznamy dílů_BalTec'!A1009,0)","v":0}]
["826039",0,null,"Intermediate plate RNS 231",null,null,{"$f":"IF(A1010='vyhledávání dílů'!$B$4,'seznamy dílů_BalTec'!A1010,0)","v":0}]
["826042",0,null,"Cover pipe",null,null,{"$f":"IF(A1011='vyhledávání dílů'!$B$4,'seznamy dílů_BalTec'!A1011,0)","v":0}]
["826057",0,null,"Motor flange (refinishinging) RN/E 231 STF",null,null,{"$f":"IF(A1012='vyhledávání dílů'!$B$4,'seznamy dílů_BalTec'!A1012,0)","v":0}]
["826059",0,null,"Path lever RN/E 231 STF",null,null,{"$f":"IF(A1013='vyhledávání dílů'!$B$4,'seznamy dílů_BalTec'!A1013,0)","v":0}]
["826060",0,null,"Distributor RN/E 231/281 STF/HPP",null,null,{"$f":"IF(A1014='vyhledávání dílů'!$B$4,'seznamy dílů_BalTec'!A1014,0)","v":0}]
["826061",0,null,"Wave RN/E 231 STF",null,null,{"$f":"IF(A1015='vyhledávání dílů'!$B$4,'seznamy dílů_BalTec'!A1015,0)","v":0}]
["826063",0,null,"Damping piston for RN/RNE 231 STF",null,null,{"$f":"IF(A1016='vyhledávání dílů'!$B$4,'seznamy dílů_BalTec'!A1016,0)","v":0}]
["826064",0,null,"Connecting flange",null,null,{"$f":"IF(A1017='vyhledávání dílů'!$B$4,'seznamy dílů_BalTec'!A1017,0)","v":0}]
["826066",0,null,"Clamping block RN/E 181,231,281,381 STF",null,null,{"$f":"IF(A1018='vyhledávání dílů'!$B$4,'seznamy dílů_BalTec'!A1018,0)","v":0}]
["826067",0,null,"Cover right with slot RN/E 231 STF",null,null,{"$f":"IF(A1019='vyhledávání dílů'!$B$4,'seznamy dílů_BalTec'!A1019,0)","v":0}]
["826068",1,"vedení hřídele motoru","Cam for RN 231","p.6",null,{"$f":"IF(A1020='vyhledávání dílů'!$B$4,'seznamy dílů_BalTec'!A1020,0)","v":0}]
["826069",0,null,"Damping piston",null,null,{"$f":"IF(A1021='vyhledávání dílů'!$B$4,'seznamy dílů_BalTec'!A1021,0)","v":0}]
["826071",0,null,"Damping piston",null,null,{"$f":"IF(A1022='vyhledávání dílů'!$B$4,'seznamy dílů_BalTec'!A1022,0)","v":0}]
["826072",0,null,"Cam",null,null,{"$f":"IF(A1023='vyhledávání dílů'!$B$4,'seznamy dílů_BalTec'!A1023,0)","v":0}]
["826073",0,null,"Upper flange ",null,null,{"$f":"IF(A1024='vyhledávání dílů'!$B$4,'seznamy dílů_BalTec'!A1024,0)","v":0}]
["826074",0,null,"Protective tube",null,null,{"$f":"IF(A1025='vyhledávání dílů'!$B$4,'seznamy dílů_BalTec'!A1025,0)","v":0}]
["826075",0,null,"Motor flange",null,null,{"$f":"IF(A1026='vyhledávání dílů'!$B$4,'seznamy dílů_BalTec'!A1026,0)","v":0}]
["826098",0,null,"Riveting stroke limit switch basic unit NHE - premounted 181-381 ",null,null,{"$f":"IF(A1027='vyhledávání dílů'!$B$4,'seznamy dílů_BalTec'!A1027,0)","v":0}]
["826102",0,null,"Basic plate large",null,null,{"$f":"IF(A1028='vyhledávání dílů'!$B$4,'seznamy dílů_BalTec'!A1028,0)","v":0}]
["826104",1,"díl pro magnetický pásek","Magnetic tape support","p. 4",null,{"$f":"IF(A1029='vyhledávání dílů'!$B$4,'seznamy dílů_BalTec'!A1029,0)","v":0}]
["826111",0,null,"Damping piston RN/E231",null,null,{"$f":"IF(A1030='vyhledávání dílů'!$B$4,'seznamy dílů_BalTec'!A1030,0)","v":0}]
["826112",0,null,"Motor flange",null,null,{"$f":"IF(A1031='vyhledávání dílů'!$B$4,'seznamy dílů_BalTec'!A1031,0)","v":0}]
["826113",1,"horní příruba","Motor flange (refinishing) RN/RNE 231 HPP","p.4",null,{"$f":"IF(A1032='vyhledávání dílů'!$B$4,'seznamy dílů_BalTec'!A1032,0)","v":0}]
["826121",1,"horní píst","damping piston ","p.3",null,{"$f":"IF(A1033='vyhledávání dílů'!$B$4,'seznamy dílů_BalTec'!A1033,0)","v":0}]
["828051",0,null,"Washer for sample rivets",null,null,{"$f":"IF(A1034='vyhledávání dílů'!$B$4,'seznamy dílů_BalTec'!A1034,0)","v":0}]
["828052",0,null,"Washer for riveting samples",null,null,{"$f":"IF(A1035='vyhledávání dílů'!$B$4,'seznamy dílů_BalTec'!A1035,0)","v":0}]
["828053",0,null,"Washer for riveting samples",null,null,{"$f":"IF(A1036='vyhledávání dílů'!$B$4,'seznamy dílů_BalTec'!A1036,0)","v":0}]
["828054",0,null,"Washer for riveting samples",null,null,{"$f":"IF(A1037='vyhledávání dílů'!$B$4,'seznamy dílů_BalTec'!A1037,0)","v":0}]
["828055",0,null,"Hollow rivet for riveting samples",null,null,{"$f":"IF(A1038='vyhledávání dílů'!$B$4,'seznamy dílů_BalTec'!A1038,0)","v":0}]
["828056",0,null,"Hollow rivet for riveting samples",null,null,{"$f":"IF(A1039='vyhledávání dílů'!$B$4,'seznamy dílů_BalTec'!A1039,0)","v":0}]
["828059",0,null,"Solid rivet for riveting samples",null,null,{"$f":"IF(A1040='vyhledávání dílů'!$B$4,'seznamy dílů_BalTec'!A1040,0)","v":0}]
["828060",0,null,"Sample rivet",null,null,{"$f":"IF(A1041='vyhledávání dílů'!$B$4,'seznamy dílů_BalTec'!A1041,0)","v":0}]
["828064",0,null,"Riveting support",null,null,{"$f":"IF(A1042='vyhledávání dílů'!$B$4,'seznamy dílů_BalTec'!A1042,0)","v":0}]
["828067",0,null,"Bolt",null,null,{"$f":"IF(A1043='vyhledávání dílů'!$B$4,'seznamy dílů_BalTec'!A1043,0)","v":0}]
["828068",0,null,"Bolt",null,null,{"$f":"IF(A1044='vyhledávání dílů'!$B$4,'seznamy dílů_BalTec'!A1044,0)","v":0}]
["828069",0,null,"Rivet pedestal",null,null,{"$f":"IF(A1045='vyhledávání dílů'!$B$4,'seznamy dílů_BalTec'!A1045,0)","v":0}]
["828265",0,null,"Solid rivet",null,null,{"$f":"IF(A1046='vyhledávání dílů'!$B$4,'seznamy dílů_BalTec'!A1046,0)","v":0}]
["828266",0,null,"Hollow rivet",null,null,{"$f":"IF(A1047='vyhledávání dílů'!$B$4,'seznamy dílů_BalTec'!A1047,0)","v":0}]
["828267",0,null,"Washer for riveting sample",null,null,{"$f":"IF(A1048='vyhledávání dílů'!$B$4,'seznamy dílů_BalTec'!A1048,0)","v":0}]
["828269",0,null,"Rivet pedestal",null,null,{"$f":"IF(A1049='vyhledávání dílů'!$B$4,'seznamy dílů_BalTec'!A1049,0)","v":0}]
["828272",0,null,"Solid rivet",null,null,{"$f":"IF(A1050='vyhledávání dílů'!$B$4,'seznamy dílů_BalTec'!A1050,0)","v":0}]
["828273",0,null,"Rivets (samples)",null,null,{"$f":"IF(A1051='vyhledávání dílů'!$B$4,'seznamy dílů_BalTec'!A1051,0)","v":0}]
["828278",0,null,"Solid rivet",null,null,{"$f":"IF(A1052='vyhledávání dílů'!$B$4,'seznamy dílů_BalTec'!A1052,0)","v":0}]
["829303",0,null,"Threaded piece",null,null,{"$f":"IF(A1053='vyhledávání dílů'!$B$4,'seznamy dílů_BalTec'!A1053,0)","v":0}]
["829304",0,null,"Bearing piece",null,null,{"$f":"IF(A1054='vyhledávání dílů'!$B$4,'seznamy dílů_BalTec'!A1054,0)","v":0}]
["831009",0,null,"Bearing bush",null,null,{"$f":"IF(A1055='vyhledávání dílů'!$B$4,'seznamy dílů_BalTec'!A1055,0)","v":0}]
["831011",0,null,"Spacer bush",null,null,{"$f":"IF(A1056='vyhledávání dílů'!$B$4,'seznamy dílů_BalTec'!A1056,0)","v":0}]
["831059",0,null,"Plate RN 081",null,null,{"$f":"IF(A1057='vyhledávání dílů'!$B$4,'seznamy dílů_BalTec'!A1057,0)","v":0}]
["835008",0,null,"Alignment key",null,null,{"$f":"IF(A1058='vyhledávání dílů'!$B$4,'seznamy dílů_BalTec'!A1058,0)","v":0}]
["835010",0,null,"Adjustment ring",null,null,{"$f":"IF(A1059='vyhledávání dílů'!$B$4,'seznamy dílů_BalTec'!A1059,0)","v":0}]
["835023",0,null,"Washer type 280",null,null,{"$f":"IF(A1060='vyhledávání dílů'!$B$4,'seznamy dílů_BalTec'!A1060,0)","v":0}]
["835043",0,null,"Ruler RN/RNE 281",null,null,{"$f":"IF(A1061='vyhledávání dílů'!$B$4,'seznamy dílů_BalTec'!A1061,0)","v":0}]
["835078",0,null,"Piston",null,null,{"$f":"IF(A1062='vyhledávání dílů'!$B$4,'seznamy dílů_BalTec'!A1062,0)","v":0}]
["835080",0,null,"Piston",null,null,{"$f":"IF(A1063='vyhledávání dílů'!$B$4,'seznamy dílů_BalTec'!A1063,0)","v":0}]
["835085",0,null,"Polygon wave",null,null,{"$f":"IF(A1064='vyhledávání dílů'!$B$4,'seznamy dílů_BalTec'!A1064,0)","v":0}]
["835086",0,null,"Cam",null,null,{"$f":"IF(A1065='vyhledávání dílů'!$B$4,'seznamy dílů_BalTec'!A1065,0)","v":0}]
["835089",0,null,"Cap",null,null,{"$f":"IF(A1066='vyhledávání dílů'!$B$4,'seznamy dílů_BalTec'!A1066,0)","v":0}]
["835090",0,null,"Spindle Typ RN 281",null,null,{"$f":"IF(A1067='vyhledávání dílů'!$B$4,'seznamy dílů_BalTec'!A1067,0)","v":0}]
["835092",0,null,"Connection piece",null,null,{"$f":"IF(A1068='vyhledávání dílů'!$B$4,'seznamy dílů_BalTec'!A1068,0)","v":0}]
["835093",0,null,"Pressure pad cap",null,null,{"$f":"IF(A1069='vyhledávání dílů'!$B$4,'seznamy dílů_BalTec'!A1069,0)","v":0}]
["835096",0,null,"Housing/Casting",null,null,{"$f":"IF(A1070='vyhledávání dílů'!$B$4,'seznamy dílů_BalTec'!A1070,0)","v":0}]
["835098",0,null,"Flange",null,null,{"$f":"IF(A1071='vyhledávání dílů'!$B$4,'seznamy dílů_BalTec'!A1071,0)","v":0}]
["835099",0,null,"Bearing plate preworked",null,null,{"$f":"IF(A1072='vyhledávání dílů'!$B$4,'seznamy dílů_BalTec'!A1072,0)","v":0}]
["835100",0,null,"Pressure plate",null,null,{"$f":"IF(A1073='vyhledávání dílů'!$B$4,'seznamy dílů_BalTec'!A1073,0)","v":0}]
["835101",0,null,"Guide plate, pre-worked",null,null,{"$f":"IF(A1074='vyhledávání dílů'!$B$4,'seznamy dílů_BalTec'!A1074,0)","v":0}]
["835102",0,null,"Roller guide plate",null,null,{"$f":"IF(A1075='vyhledávání dílů'!$B$4,'seznamy dílů_BalTec'!A1075,0)","v":0}]
["835103",0,null,"Guiding insert (star-guide)",null,null,{"$f":"IF(A1076='vyhledávání dílů'!$B$4,'seznamy dílů_BalTec'!A1076,0)","v":0}]
["835104",0,null,"Cage",null,null,{"$f":"IF(A1077='vyhledávání dílů'!$B$4,'seznamy dílů_BalTec'!A1077,0)","v":0}]
["835105",0,null,"Guide ring",null,null,{"$f":"IF(A1078='vyhledávání dílů'!$B$4,'seznamy dílů_BalTec'!A1078,0)","v":0}]
["835106",0,null,"Space ring",null,null,{"$f":"IF(A1079='vyhledávání dílů'!$B$4,'seznamy dílů_BalTec'!A1079,0)","v":0}]
["835107",0,null,"Guide bolt",null,null,{"$f":"IF(A1080='vyhledávání dílů'!$B$4,'seznamy dílů_BalTec'!A1080,0)","v":0}]
["835108",0,null,"Pressure range",null,null,{"$f":"IF(A1081='vyhledávání dílů'!$B$4,'seznamy dílů_BalTec'!A1081,0)","v":0}]
["835117",0,null,"Nut",null,null,{"$f":"IF(A1082='vyhledávání dílů'!$B$4,'seznamy dílů_BalTec'!A1082,0)","v":0}]
["835118",0,null,"Gear block",null,null,{"$f":"IF(A1083='vyhledávání dílů'!$B$4,'seznamy dílů_BalTec'!A1083,0)","v":0}]
["835119",0,null,"Internal ring gear",null,null,{"$f":"IF(A1084='vyhledávání dílů'!$B$4,'seznamy dílů_BalTec'!A1084,0)","v":0}]
["835122",0,null,"Cover",null,null,{"$f":"IF(A1085='vyhledávání dílů'!$B$4,'seznamy dílů_BalTec'!A1085,0)","v":0}]
["835123",0,null,"Clamp jaw",null,null,{"$f":"IF(A1086='vyhledávání dílů'!$B$4,'seznamy dílů_BalTec'!A1086,0)","v":0}]
["835124",0,null,"Clamp jaw",null,null,{"$f":"IF(A1087='vyhledávání dílů'!$B$4,'seznamy dílů_BalTec'!A1087,0)","v":0}]
["835125",0,null,"Adjustment wave",null,null,{"$f":"IF(A1088='vyhledávání dílů'!$B$4,'seznamy dílů_BalTec'!A1088,0)","v":0}]
["835127",0,null,"Cover, right",null,null,{"$f":"IF(A1089='vyhledávání dílů'!$B$4,'seznamy dílů_BalTec'!A1089,0)","v":0}]
["835128",0,null,"Cover, left",null,null,{"$f":"IF(A1090='vyhledávání dílů'!$B$4,'seznamy dílů_BalTec'!A1090,0)","v":0}]
["835138",0,null,"Cast housing",null,null,{"$f":"IF(A1091='vyhledávání dílů'!$B$4,'seznamy dílů_BalTec'!A1091,0)","v":0}]
["835139",0,null,"Pressure cup R=100 RNE 280 horiz./upside down use",null,null,{"$f":"IF(A1092='vyhledávání dílů'!$B$4,'seznamy dílů_BalTec'!A1092,0)","v":0}]
["835140",0,null,"Motor flange",null,null,{"$f":"IF(A1093='vyhledávání dílů'!$B$4,'seznamy dílů_BalTec'!A1093,0)","v":0}]
["835143",0,null,"Holder",null,null,{"$f":"IF(A1094='vyhledávání dílů'!$B$4,'seznamy dílů_BalTec'!A1094,0)","v":0}]
["835144",0,null,"blow-off block",null,null,{"$f":"IF(A1095='vyhledávání dílů'!$B$4,'seznamy dílů_BalTec'!A1095,0)","v":0}]
["835150",0,null,"Washer",null,null,{"$f":"IF(A1096='vyhledávání dílů'!$B$4,'seznamy dílů_BalTec'!A1096,0)","v":0}]
["835151",0,null,"Washer",null,null,{"$f":"IF(A1097='vyhledávání dílů'!$B$4,'seznamy dílů_BalTec'!A1097,0)","v":0}]
["835152",0,null,"Distance ring",null,null,{"$f":"IF(A1098='vyhledávání dílů'!$B$4,'seznamy dílů_BalTec'!A1098,0)","v":0}]
["835153",0,null,"bar / I.D.",null,null,{"$f":"IF(A1099='vyhledávání dílů'!$B$4,'seznamy dílů_BalTec'!A1099,0)","v":0}]
["835157",0,null,"Polygon wave",null,null,{"$f":"IF(A1100='vyhledávání dílů'!$B$4,'seznamy dílů_BalTec'!A1100,0)","v":0}]
["835160",0,null,"Cover plate",null,null,{"$f":"IF(A1101='vyhledávání dílů'!$B$4,'seznamy dílů_BalTec'!A1101,0)","v":0}]
["835161",0,null,"Frame",null,null,{"$f":"IF(A1102='vyhledávání dílů'!$B$4,'seznamy dílů_BalTec'!A1102,0)","v":0}]
["835169",0,null,"Pressure cup R=116 RNE 280 horiz./upside down use",null,null,{"$f":"IF(A1103='vyhledávání dílů'!$B$4,'seznamy dílů_BalTec'!A1103,0)","v":0}]
["835170",0,null,"Pressure cup R=132/L=100 RNE 280 horiz./upside down use",null,null,{"$f":"IF(A1104='vyhledávání dílů'!$B$4,'seznamy dílů_BalTec'!A1104,0)","v":0}]
["835171",0,null,"Pressure cup R=148  RNE 280 horiz./upside down use",null,null,{"$f":"IF(A1105='vyhledávání dílů'!$B$4,'seznamy dílů_BalTec'!A1105,0)","v":0}]
["835172",0,null,"Pressure cup R=148 RN/E 280 vertical top down",null,null,{"$f":"IF(A1106='vyhledávání dílů'!$B$4,'seznamy dílů_BalTec'!A1106,0)","v":0}]
["835176",0,null,"Cap",null,null,{"$f":"IF(A1107='vyhledávání dílů'!$B$4,'seznamy dílů_BalTec'!A1107,0)","v":0}]
["835179",0,null,"Pivot",null,null,{"$f":"IF(A1108='vyhledávání dílů'!$B$4,'seznamy dílů_BalTec'!A1108,0)","v":0}]
["835183",0,null,"Cover hood",null,null,{"$f":"IF(A1109='vyhledávání dílů'!$B$4,'seznamy dílů_BalTec'!A1109,0)","v":0}]
["835187",0,null,"Angle",null,null,{"$f":"IF(A1110='vyhledávání dílů'!$B$4,'seznamy dílů_BalTec'!A1110,0)","v":0}]
["835188",0,null,"Anvil",null,null,{"$f":"IF(A1111='vyhledávání dílů'!$B$4,'seznamy dílů_BalTec'!A1111,0)","v":0}]
["835190",0,null,"Purge block",null,null,{"$f":"IF(A1112='vyhledávání dílů'!$B$4,'seznamy dílů_BalTec'!A1112,0)","v":0}]
["835194",0,null,"Gear block to RNR",null,null,{"$f":"IF(A1113='vyhledávání dílů'!$B$4,'seznamy dílů_BalTec'!A1113,0)","v":0}]
["835195",0,null,"Indicating label RNR lubricant kit",null,null,{"$f":"IF(A1114='vyhledávání dílů'!$B$4,'seznamy dílů_BalTec'!A1114,0)","v":0}]
["835196",0,null,"Bracket",null,null,{"$f":"IF(A1115='vyhledávání dílů'!$B$4,'seznamy dílů_BalTec'!A1115,0)","v":0}]
["835199",0,null,"Gearblock left",null,null,{"$f":"IF(A1116='vyhledávání dílů'!$B$4,'seznamy dílů_BalTec'!A1116,0)","v":0}]
["835200",0,null,"Gearblock right",null,null,{"$f":"IF(A1117='vyhledávání dílů'!$B$4,'seznamy dílů_BalTec'!A1117,0)","v":0}]
["835201",0,null,"Feeder plate",null,null,{"$f":"IF(A1118='vyhledávání dílů'!$B$4,'seznamy dílů_BalTec'!A1118,0)","v":0}]
["835202",0,null,"Spindle RND 280",null,null,{"$f":"IF(A1119='vyhledávání dílů'!$B$4,'seznamy dílů_BalTec'!A1119,0)","v":0}]
["835207",0,null,"Mounting angle",null,null,{"$f":"IF(A1120='vyhledávání dílů'!$B$4,'seznamy dílů_BalTec'!A1120,0)","v":0}]
["835211",0,null,"Ring guard R=100",null,null,{"$f":"IF(A1121='vyhledávání dílů'!$B$4,'seznamy dílů_BalTec'!A1121,0)","v":0}]
["835217",0,null,"Cam",null,null,{"$f":"IF(A1122='vyhledávání dílů'!$B$4,'seznamy dílů_BalTec'!A1122,0)","v":0}]
["835218",0,null,"Drive flange",null,null,{"$f":"IF(A1123='vyhledávání dílů'!$B$4,'seznamy dílů_BalTec'!A1123,0)","v":0}]
["835219",0,null,"Housing",null,null,{"$f":"IF(A1124='vyhledávání dílů'!$B$4,'seznamy dílů_BalTec'!A1124,0)","v":0}]
["835222",0,null,"Pressure plate",null,null,{"$f":"IF(A1125='vyhledávání dílů'!$B$4,'seznamy dílů_BalTec'!A1125,0)","v":0}]
["835230",0,null,"Spacer pipe",null,null,{"$f":"IF(A1126='vyhledávání dílů'!$B$4,'seznamy dílů_BalTec'!A1126,0)","v":0}]
["835236",0,null,"Guide rail",null,null,{"$f":"IF(A1127='vyhledávání dílů'!$B$4,'seznamy dílů_BalTec'!A1127,0)","v":0}]
["835237",0,null,"Plate",null,null,{"$f":"IF(A1128='vyhledávání dílů'!$B$4,'seznamy dílů_BalTec'!A1128,0)","v":0}]
["835242",0,null,"Cover plate",null,null,{"$f":"IF(A1129='vyhledávání dílů'!$B$4,'seznamy dílů_BalTec'!A1129,0)","v":0}]
["835243",0,null,"Cover plate",null,null,{"$f":"IF(A1130='vyhledávání dílů'!$B$4,'seznamy dílů_BalTec'!A1130,0)","v":0}]
["835247",0,null,"Limiting ring",null,null,{"$f":"IF(A1131='vyhledávání dílů'!$B$4,'seznamy dílů_BalTec'!A1131,0)","v":0}]
["835250",0,null,"Spacer pipe",null,null,{"$f":"IF(A1132='vyhledávání dílů'!$B$4,'seznamy dílů_BalTec'!A1132,0)","v":0}]
["835265",0,null,"Key",null,null,{"$f":"IF(A1133='vyhledávání dílů'!$B$4,'seznamy dílů_BalTec'!A1133,0)","v":0}]
["835266",0,null,"Piston",null,null,{"$f":"IF(A1134='vyhledávání dílů'!$B$4,'seznamy dílů_BalTec'!A1134,0)","v":0}]
["835311",0,null,"Toolholder R=100/L=68 mm for RN/RNE 280",null,null,{"$f":"IF(A1135='vyhledávání dílů'!$B$4,'seznamy dílů_BalTec'!A1135,0)","v":0}]
["835311",0,null,"Toolholder R=116",null,null,{"$f":"IF(A1136='vyhledávání dílů'!$B$4,'seznamy dílů_BalTec'!A1136,0)","v":0}]
["835311",0,null,"Toolholder R=132/L=100",null,null,{"$f":"IF(A1137='vyhledávání dílů'!$B$4,'seznamy dílů_BalTec'!A1137,0)","v":0}]
["835311",0,null,"Toolholder R=148/L=116 mm",null,null,{"$f":"IF(A1138='vyhledávání dílů'!$B$4,'seznamy dílů_BalTec'!A1138,0)","v":0}]
["836008",0,null,"Cover hood RN 280 / RNE 280",null,null,{"$f":"IF(A1139='vyhledávání dílů'!$B$4,'seznamy dílů_BalTec'!A1139,0)","v":0}]
["836022",0,null,"Sleeve",null,null,{"$f":"IF(A1140='vyhledávání dílů'!$B$4,'seznamy dílů_BalTec'!A1140,0)","v":0}]
["836028",0,null,"Pressure spring",null,null,{"$f":"IF(A1141='vyhledávání dílů'!$B$4,'seznamy dílů_BalTec'!A1141,0)","v":0}]
["836031",0,null,"Oil divert ring MRN 3",null,null,{"$f":"IF(A1142='vyhledávání dílů'!$B$4,'seznamy dílů_BalTec'!A1142,0)","v":0}]
["838000",0,null,"Connection piece",null,null,{"$f":"IF(A1143='vyhledávání dílů'!$B$4,'seznamy dílů_BalTec'!A1143,0)","v":0}]
["838003",0,null,"Flange",null,null,{"$f":"IF(A1144='vyhledávání dílů'!$B$4,'seznamy dílů_BalTec'!A1144,0)","v":0}]
["838004",1,"oranžová příruba ","cap","p.1",null,{"$f":"IF(A1145='vyhledávání dílů'!$B$4,'seznamy dílů_BalTec'!A1145,0)","v":0}]
["838005",0,null,"Cam",null,null,{"$f":"IF(A1146='vyhledávání dílů'!$B$4,'seznamy dílů_BalTec'!A1146,0)","v":0}]
["838007",0,null,"Damping piston",null,null,{"$f":"IF(A1147='vyhledávání dílů'!$B$4,'seznamy dílů_BalTec'!A1147,0)","v":0}]
["838008",1,"dolní píst","guide sleeve","p.2",null,{"$f":"IF(A1148='vyhledávání dílů'!$B$4,'seznamy dílů_BalTec'!A1148,0)","v":0}]
["838014",3,"excentrická hřídel","Eccenter wave","p.17",null,{"$f":"IF(A1149='vyhledávání dílů'!$B$4,'seznamy dílů_BalTec'!A1149,0)","v":0}]
["838016",0,null,"Pressure pad cap",null,null,{"$f":"IF(A1150='vyhledávání dílů'!$B$4,'seznamy dílů_BalTec'!A1150,0)","v":0}]
["838023",0,null,"Piston",null,null,{"$f":"IF(A1151='vyhledávání dílů'!$B$4,'seznamy dílů_BalTec'!A1151,0)","v":0}]
["838033",0,null,"Piston",null,null,{"$f":"IF(A1152='vyhledávání dílů'!$B$4,'seznamy dílů_BalTec'!A1152,0)","v":0}]
["838044",0,null,"Ring arm R=100",null,null,{"$f":"IF(A1153='vyhledávání dílů'!$B$4,'seznamy dílů_BalTec'!A1153,0)","v":0}]
["838046",0,null,"Cast housing RN281 (refinishinging)",null,null,{"$f":"IF(A1154='vyhledávání dílů'!$B$4,'seznamy dílů_BalTec'!A1154,0)","v":0}]
["838047",0,null,"Flange for USA motor",null,null,{"$f":"IF(A1155='vyhledávání dílů'!$B$4,'seznamy dílů_BalTec'!A1155,0)","v":0}]
["838048",0,null,"Cover hood",null,null,{"$f":"IF(A1156='vyhledávání dílů'!$B$4,'seznamy dílů_BalTec'!A1156,0)","v":0}]
["838049",1,"horní příruba","motor flange","p.6",null,{"$f":"IF(A1157='vyhledávání dílů'!$B$4,'seznamy dílů_BalTec'!A1157,0)","v":0}]
["838050",3,"kloub ","Toolholder R=100/L=68 mm for RN/RNE 281/331/381","p.8",null,{"$f":"IF(A1158='vyhledávání dílů'!$B$4,'seznamy dílů_BalTec'!A1158,0)","v":0}]
["838051",2,"kloub ","Tool holder R=116/L=84 mm","p.9",null,{"$f":"IF(A1159='vyhledávání dílů'!$B$4,'seznamy dílů_BalTec'!A1159,0)","v":0}]
["838052",0,null,"Toolholder R=132/L=100 mm",null,null,{"$f":"IF(A1160='vyhledávání dílů'!$B$4,'seznamy dílů_BalTec'!A1160,0)","v":0}]
["838053",0,null,"Toolholder R=148/L=116 mm",null,null,{"$f":"IF(A1161='vyhledávání dílů'!$B$4,'seznamy dílů_BalTec'!A1161,0)","v":0}]
["838056",0,null,"Adjustment ring",null,null,{"$f":"IF(A1162='vyhledávání dílů'!$B$4,'seznamy dílů_BalTec'!A1162,0)","v":0}]
["838058",3,"miska","Pressure cup R=100/L=68 mm for RN/RNE 281/331/381","p. 12",null,{"$f":"IF(A1163='vyhledávání dílů'!$B$4,'seznamy dílů_BalTec'!A1163,0)","v":0}]
["838059",3,"miska","Pressure cup R=116/L=84 mm","p. 13",null,{"$f":"IF(A1164='vyhledávání dílů'!$B$4,'seznamy dílů_BalTec'!A1164,0)","v":0}]
["838060",0,null,"Pressure cup R=132/L=100 mm",null,null,{"$f":"IF(A1165='vyhledávání dílů'!$B$4,'seznamy dílů_BalTec'!A1165,0)","v":0}]
["838061",0,null,"Pressure cup R=148/L=116 mm",null,null,{"$f":"IF(A1166='vyhledávání dílů'!$B$4,'seznamy dílů_BalTec'!A1166,0)","v":0}]
["838062",0,null,"Pressure cup R=191/L=159 mm",null,null,{"$f":"IF(A1167='vyhledávání dílů'!$B$4,'seznamy dílů_BalTec'!A1167,0)","v":0}]
["838063",0,null,"Column",null,null,{"$f":"IF(A1168='vyhledávání dílů'!$B$4,'seznamy dílů_BalTec'!A1168,0)","v":0}]
["838064",0,null,"Intermediate plate",null,null,{"$f":"IF(A1169='vyhledávání dílů'!$B$4,'seznamy dílů_BalTec'!A1169,0)","v":0}]
["838066",0,null,"Key",null,null,{"$f":"IF(A1170='vyhledávání dílů'!$B$4,'seznamy dílů_BalTec'!A1170,0)","v":0}]
["838066",0,null,"Key",null,null,{"$f":"IF(A1171='vyhledávání dílů'!$B$4,'seznamy dílů_BalTec'!A1171,0)","v":0}]
["838067",0,null,"Cover plate",null,null,{"$f":"IF(A1172='vyhledávání dílů'!$B$4,'seznamy dílů_BalTec'!A1172,0)","v":0}]
["838068",0,null,"Machine column",null,null,{"$f":"IF(A1173='vyhledávání dílů'!$B$4,'seznamy dílů_BalTec'!A1173,0)","v":0}]
["838070",0,null,"Cast housing for RN/RNE 281/112",null,null,{"$f":"IF(A1174='vyhledávání dílů'!$B$4,'seznamy dílů_BalTec'!A1174,0)","v":0}]
["838072",0,null,"Damping piston for RN/RNE 281/112",null,null,{"$f":"IF(A1175='vyhledávání dílů'!$B$4,'seznamy dílů_BalTec'!A1175,0)","v":0}]
["838073",0,null,"Guiding bushing for RN/RNE 281/112",null,null,{"$f":"IF(A1176='vyhledávání dílů'!$B$4,'seznamy dílů_BalTec'!A1176,0)","v":0}]
["838074",0,null,"Cam for RN/RNE 281/112",null,null,{"$f":"IF(A1177='vyhledávání dílů'!$B$4,'seznamy dílů_BalTec'!A1177,0)","v":0}]
["838076",0,null,"Connection piece RN/RNE 281/112",null,null,{"$f":"IF(A1178='vyhledávání dílů'!$B$4,'seznamy dílů_BalTec'!A1178,0)","v":0}]
["838077",0,null,"Adjustment ring RN/RNE 281/112",null,null,{"$f":"IF(A1179='vyhledávání dílů'!$B$4,'seznamy dílů_BalTec'!A1179,0)","v":0}]
["838079",0,null,"Piston RN/RNE 281/112",null,null,{"$f":"IF(A1180='vyhledávání dílů'!$B$4,'seznamy dílů_BalTec'!A1180,0)","v":0}]
["838081",0,null,"Polygon wave RN/RNE 281/112",null,null,{"$f":"IF(A1181='vyhledávání dílů'!$B$4,'seznamy dílů_BalTec'!A1181,0)","v":0}]
["838083",0,null,"Toolholder R=170/L=138 mm",null,null,{"$f":"IF(A1182='vyhledávání dílů'!$B$4,'seznamy dílů_BalTec'!A1182,0)","v":0}]
["838084",0,null,"Pressure cup R=170/L=138 mm",null,null,{"$f":"IF(A1183='vyhledávání dílů'!$B$4,'seznamy dílů_BalTec'!A1183,0)","v":0}]
["838085",0,null,"Toolholder R=191/L=159 mm",null,null,{"$f":"IF(A1184='vyhledávání dílů'!$B$4,'seznamy dílů_BalTec'!A1184,0)","v":0}]
["838086",0,null,"Pressure cup R=240/L=208 mm",null,null,{"$f":"IF(A1185='vyhledávání dílů'!$B$4,'seznamy dílů_BalTec'!A1185,0)","v":0}]
["838087",0,null,"Toolholder R=240/L=208 mm",null,null,{"$f":"IF(A1186='vyhledávání dílů'!$B$4,'seznamy dílů_BalTec'!A1186,0)","v":0}]
["838091",0,null,"Rivet nut",null,null,{"$f":"IF(A1187='vyhledávání dílů'!$B$4,'seznamy dílů_BalTec'!A1187,0)","v":0}]
["838092",0,null,"Suppot plate",null,null,{"$f":"IF(A1188='vyhledávání dílů'!$B$4,'seznamy dílů_BalTec'!A1188,0)","v":0}]
["838094",9,"pojistný šroub M5 červený","Locking screw",null,null,{"$f":"IF(A1189='vyhledávání dílů'!$B$4,'seznamy dílů_BalTec'!A1189,0)","v":0}]
["838097",0,null,"Cover pipe",null,null,{"$f":"IF(A1190='vyhledávání dílů'!$B$4,'seznamy dílů_BalTec'!A1190,0)","v":0}]
["838099",0,null,"Cover pipe RN/RNE 281/112",null,null,{"$f":"IF(A1191='vyhledávání dílů'!$B$4,'seznamy dílů_BalTec'!A1191,0)","v":0}]
["838109",1,"pojistný pásek 331","clamping fixture",null,null,{"$f":"IF(A1192='vyhledávání dílů'!$B$4,'seznamy dílů_BalTec'!A1192,0)","v":0}]
["838116",1,"Horní příruba","Motor Flange","p. 12",null,{"$f":"IF(A1193='vyhledávání dílů'!$B$4,'seznamy dílů_BalTec'!A1193,0)","v":0}]
["838119",0,"horní píst","damping piston ","p.3",null,{"$f":"IF(A1194='vyhledávání dílů'!$B$4,'seznamy dílů_BalTec'!A1194,0)","v":0}]
["838120",0,null,"Wave",null,null,{"$f":"IF(A1195='vyhledávání dílů'!$B$4,'seznamy dílů_BalTec'!A1195,0)","v":0}]
["838121",0,null,"Holder",null,null,{"$f":"IF(A1196='vyhledávání dílů'!$B$4,'seznamy dílů_BalTec'!A1196,0)","v":0}]
["838122",0,null,"Transmission lever RN/E 281 STF",null,null,{"$f":"IF(A1197='vyhledávání dílů'!$B$4,'seznamy dílů_BalTec'!A1197,0)","v":0}]
["838123",0,null,"Path lever RN/E 281 STF",null,null,{"$f":"IF(A1198='vyhledávání dílů'!$B$4,'seznamy dílů_BalTec'!A1198,0)","v":0}]
["838128",0,null,"Flange RN/RNE 281L/80",null,null,{"$f":"IF(A1199='vyhledávání dílů'!$B$4,'seznamy dílů_BalTec'!A1199,0)","v":0}]
["838129",0,null,"Connection piece RN/RNE 281L/331L/80",null,null,{"$f":"IF(A1200='vyhledávání dílů'!$B$4,'seznamy dílů_BalTec'!A1200,0)","v":0}]
["838130",0,null,"Guiding bushing RN/RNE 281L/331L/80",null,null,{"$f":"IF(A1201='vyhledávání dílů'!$B$4,'seznamy dílů_BalTec'!A1201,0)","v":0}]
["838131",0,null,"Damping joint-ring CYBU RN/RNE 281L/331L/80",null,null,{"$f":"IF(A1202='vyhledávání dílů'!$B$4,'seznamy dílů_BalTec'!A1202,0)","v":0}]
["838132",0,null,"Ruler RN/RNE 281L/331L/80",null,null,{"$f":"IF(A1203='vyhledávání dílů'!$B$4,'seznamy dílů_BalTec'!A1203,0)","v":0}]
["838133",0,null,"Cover pipe RN/RNE 281L/331L/80",null,null,{"$f":"IF(A1204='vyhledávání dílů'!$B$4,'seznamy dílů_BalTec'!A1204,0)","v":0}]
["838134",0,null,"Adjustment ring RN/RNE 281L/331L/80",null,null,{"$f":"IF(A1205='vyhledávání dílů'!$B$4,'seznamy dílů_BalTec'!A1205,0)","v":0}]
["838135",0,null,"Key",null,null,{"$f":"IF(A1206='vyhledávání dílů'!$B$4,'seznamy dílů_BalTec'!A1206,0)","v":0}]
["838136",0,null,"Motorflange RN/RNE 281L/80",null,null,{"$f":"IF(A1207='vyhledávání dílů'!$B$4,'seznamy dílů_BalTec'!A1207,0)","v":0}]
["838142",0,null,"Cover with the right slot RN/E 281 STF",null,null,{"$f":"IF(A1208='vyhledávání dílů'!$B$4,'seznamy dílů_BalTec'!A1208,0)","v":0}]
["838143",0,null,"Damping piston for RN 281",null,null,{"$f":"IF(A1209='vyhledávání dílů'!$B$4,'seznamy dílů_BalTec'!A1209,0)","v":0}]
["838144",1,"vedení hřídele motoru ","cam","p. 6",null,{"$f":"IF(A1210='vyhledávání dílů'!$B$4,'seznamy dílů_BalTec'!A1210,0)","v":0}]
["838145",0,null,"Cast housing RN/RNE 281L/80",null,null,{"$f":"IF(A1211='vyhledávání dílů'!$B$4,'seznamy dílů_BalTec'!A1211,0)","v":0}]
["838146",1,"Lomený hřídel","Polygon shaft for RN 281","p.7",null,{"$f":"IF(A1212='vyhledávání dílů'!$B$4,'seznamy dílů_BalTec'!A1212,0)","v":0}]
["838148",0,null,"Motor shaft for RN 281",null,null,{"$f":"IF(A1213='vyhledávání dílů'!$B$4,'seznamy dílů_BalTec'!A1213,0)","v":0}]
["838150",0,null,"Polygon wave RN/RNE 281L/80",null,null,{"$f":"IF(A1214='vyhledávání dílů'!$B$4,'seznamy dílů_BalTec'!A1214,0)","v":0}]
["838151",0,null,"Plate",null,null,{"$f":"IF(A1215='vyhledávání dílů'!$B$4,'seznamy dílů_BalTec'!A1215,0)","v":0}]
["838153",0,null,"Spindle",null,null,{"$f":"IF(A1216='vyhledávání dílů'!$B$4,'seznamy dílů_BalTec'!A1216,0)","v":0}]
["838155",1,"horní píst pro SN ","Upper piston","p.3",null,{"$f":"IF(A1217='vyhledávání dílů'!$B$4,'seznamy dílů_BalTec'!A1217,0)","v":0}]
["838156",0,null,"Cam",null,null,{"$f":"IF(A1218='vyhledávání dílů'!$B$4,'seznamy dílů_BalTec'!A1218,0)","v":0}]
["838157",0,null,"Upper flange ",null,null,{"$f":"IF(A1219='vyhledávání dílů'!$B$4,'seznamy dílů_BalTec'!A1219,0)","v":0}]
["838158",0,null,"Protective tube",null,null,{"$f":"IF(A1220='vyhledávání dílů'!$B$4,'seznamy dílů_BalTec'!A1220,0)","v":0}]
["838159",0,null,"Motor flange",null,null,{"$f":"IF(A1221='vyhledávání dílů'!$B$4,'seznamy dílů_BalTec'!A1221,0)","v":0}]
["838181",0,null,"Cover bracket for RN/RNE 281",null,null,{"$f":"IF(A1222='vyhledávání dílů'!$B$4,'seznamy dílů_BalTec'!A1222,0)","v":0}]
["838224",0,null,"Support",null,null,{"$f":"IF(A1223='vyhledávání dílů'!$B$4,'seznamy dílů_BalTec'!A1223,0)","v":0}]
["838226",0,null,"Damping piston",null,null,{"$f":"IF(A1224='vyhledávání dílů'!$B$4,'seznamy dílů_BalTec'!A1224,0)","v":0}]
["838227",0,null,"Motor flange",null,null,{"$f":"IF(A1225='vyhledávání dílů'!$B$4,'seznamy dílů_BalTec'!A1225,0)","v":0}]
["838228",0,null,"Motor flange RN/E 281 HPP",null,null,{"$f":"IF(A1226='vyhledávání dílů'!$B$4,'seznamy dílů_BalTec'!A1226,0)","v":0}]
["840036",0,null,"Pressure cup R=116/L=84 mm, RN/E 280 vertical top down",null,null,{"$f":"IF(A1227='vyhledávání dílů'!$B$4,'seznamy dílů_BalTec'!A1227,0)","v":0}]
["840039",0,null,"Eccenter wave",null,null,{"$f":"IF(A1228='vyhledávání dílů'!$B$4,'seznamy dílů_BalTec'!A1228,0)","v":0}]
["840041",0,null,"Eccenter sleeve",null,null,{"$f":"IF(A1229='vyhledávání dílů'!$B$4,'seznamy dílů_BalTec'!A1229,0)","v":0}]
["840042",0,null,"Cam",null,null,{"$f":"IF(A1230='vyhledávání dílů'!$B$4,'seznamy dílů_BalTec'!A1230,0)","v":0}]
["840100",0,null,"Pressure cup R=100/L=68 mm RN/RNE 280, PN 300 vertical top down",null,null,{"$f":"IF(A1231='vyhledávání dílů'!$B$4,'seznamy dílů_BalTec'!A1231,0)","v":0}]
["840110",0,null,"Pressure cup R=132, RN/E 280 vertical top down",null,null,{"$f":"IF(A1232='vyhledávání dílů'!$B$4,'seznamy dílů_BalTec'!A1232,0)","v":0}]
["840139",2,"pružina","pressure spring","p.6",null,{"$f":"IF(A1233='vyhledávání dílů'!$B$4,'seznamy dílů_BalTec'!A1233,0)","v":0}]
["840155",0,null,"Sleeve",null,null,{"$f":"IF(A1234='vyhledávání dílů'!$B$4,'seznamy dílů_BalTec'!A1234,0)","v":0}]
["840340",0,null,"Toothed lock washer",null,null,{"$f":"IF(A1235='vyhledávání dílů'!$B$4,'seznamy dílů_BalTec'!A1235,0)","v":0}]
["840341",0,null,"Toothed lock washer",null,null,{"$f":"IF(A1236='vyhledávání dílů'!$B$4,'seznamy dílů_BalTec'!A1236,0)","v":0}]
["841005",null,null,"Pressure cup R=116, RN/E 380,  vertical top down",null,null,{"$f":"IF(A1237='vyhledávání dílů'!$B$4,'seznamy dílů_BalTec'!A1237,0)","v":0}]
["841006",0,null,"Internal ring gear",null,null,{"$f":"IF(A1238='vyhledávání dílů'!$B$4,'seznamy dílů_BalTec'!A1238,0)","v":0}]
["841020",null,null,"Pressure cup R=132, RN/E 380,  vertical top down",null,null,{"$f":"IF(A1239='vyhledávání dílů'!$B$4,'seznamy dílů_BalTec'!A1239,0)","v":0}]
["841028",null,null,"Pressure cup R=100/L=68 mm, RN/E 380,  vertical top down",null,null,{"$f":"IF(A1240='vyhledávání dílů'!$B$4,'seznamy dílů_BalTec'!A1240,0)","v":0}]
["841035",null,null,"Pressure cup R=148, RN/E 380,  vertical top down",null,null,{"$f":"IF(A1241='vyhledávání dílů'!$B$4,'seznamy dílů_BalTec'!A1241,0)","v":0}]
["842008",0,null,"Piston",null,null,{"$f":"IF(A1242='vyhledávání dílů'!$B$4,'seznamy dílů_BalTec'!A1242,0)","v":0}]
["842010",0,null,"Piston",null,null,{"$f":"IF(A1243='vyhledávání dílů'!$B$4,'seznamy dílů_BalTec'!A1243,0)","v":0}]
["842014",0,null,"Ruler",null,null,{"$f":"IF(A1244='vyhledávání dílů'!$B$4,'seznamy dílů_BalTec'!A1244,0)","v":0}]
["842016",0,null,"Key",null,null,{"$f":"IF(A1245='vyhledávání dílů'!$B$4,'seznamy dílů_BalTec'!A1245,0)","v":0}]
["842052",0,null,"Eccenter shaft",null,null,{"$f":"IF(A1246='vyhledávání dílů'!$B$4,'seznamy dílů_BalTec'!A1246,0)","v":0}]
["842053",2,"ozubené kolo","Internal ring gear","p.16",null,{"$f":"IF(A1247='vyhledávání dílů'!$B$4,'seznamy dílů_BalTec'!A1247,0)","v":0}]
["842057",0,null,"Machine table type 381",null,null,{"$f":"IF(A1248='vyhledávání dílů'!$B$4,'seznamy dílů_BalTec'!A1248,0)","v":0}]
["842059",0,null,"Clamping jaw, left",null,null,{"$f":"IF(A1249='vyhledávání dílů'!$B$4,'seznamy dílů_BalTec'!A1249,0)","v":0}]
["842060",0,null,"Clamping jaw, right",null,null,{"$f":"IF(A1250='vyhledávání dílů'!$B$4,'seznamy dílů_BalTec'!A1250,0)","v":0}]
["842061",0,null,"Sheeting left",null,null,{"$f":"IF(A1251='vyhledávání dílů'!$B$4,'seznamy dílů_BalTec'!A1251,0)","v":0}]
["842062",0,null,"sheeting right",null,null,{"$f":"IF(A1252='vyhledávání dílů'!$B$4,'seznamy dílů_BalTec'!A1252,0)","v":0}]
["842066",0,null,"Connection piece",null,null,{"$f":"IF(A1253='vyhledávání dílů'!$B$4,'seznamy dílů_BalTec'!A1253,0)","v":0}]
["842067",0,null,"Flange",null,null,{"$f":"IF(A1254='vyhledávání dílů'!$B$4,'seznamy dílů_BalTec'!A1254,0)","v":0}]
["842068",0,null,"Polygon wave",null,null,{"$f":"IF(A1255='vyhledávání dílů'!$B$4,'seznamy dílů_BalTec'!A1255,0)","v":0}]
["842069",0,null,"Pipe clamp",null,null,{"$f":"IF(A1256='vyhledávání dílů'!$B$4,'seznamy dílů_BalTec'!A1256,0)","v":0}]
["842072",0,null,"Cap",null,null,{"$f":"IF(A1257='vyhledávání dílů'!$B$4,'seznamy dílů_BalTec'!A1257,0)","v":0}]
["842075",0,null,"Cap",null,null,{"$f":"IF(A1258='vyhledávání dílů'!$B$4,'seznamy dílů_BalTec'!A1258,0)","v":0}]
["842076",0,null,"Pressure cup R=100, RN/E 380, horiz./upside down use",null,null,{"$f":"IF(A1259='vyhledávání dílů'!$B$4,'seznamy dílů_BalTec'!A1259,0)","v":0}]
["842077",0,null,"Gear block",null,null,{"$f":"IF(A1260='vyhledávání dílů'!$B$4,'seznamy dílů_BalTec'!A1260,0)","v":0}]
["842080",0,null,"Spindle",null,null,{"$f":"IF(A1261='vyhledávání dílů'!$B$4,'seznamy dílů_BalTec'!A1261,0)","v":0}]
["842081",0,null,"Ruler sawn",null,null,{"$f":"IF(A1262='vyhledávání dílů'!$B$4,'seznamy dílů_BalTec'!A1262,0)","v":0}]
["842084",0,null,"Pressure pad cap",null,null,{"$f":"IF(A1263='vyhledávání dílů'!$B$4,'seznamy dílů_BalTec'!A1263,0)","v":0}]
["842085",0,null,"Cast housing",null,null,{"$f":"IF(A1264='vyhledávání dílů'!$B$4,'seznamy dílů_BalTec'!A1264,0)","v":0}]
["842087",0,null,"Valve block",null,null,{"$f":"IF(A1265='vyhledávání dílů'!$B$4,'seznamy dílů_BalTec'!A1265,0)","v":0}]
["842088",0,null,"Polygon wave",null,null,{"$f":"IF(A1266='vyhledávání dílů'!$B$4,'seznamy dílů_BalTec'!A1266,0)","v":0}]
["842092",0,null,"Tube",null,null,{"$f":"IF(A1267='vyhledávání dílů'!$B$4,'seznamy dílů_BalTec'!A1267,0)","v":0}]
["842096",0,null,"Control shaft",null,null,{"$f":"IF(A1268='vyhledávání dílů'!$B$4,'seznamy dílů_BalTec'!A1268,0)","v":0}]
["842100",0,null,"Pressure cup R=116/L=84 mm, RN/E 380, horiz./upside down use",null,null,{"$f":"IF(A1269='vyhledávání dílů'!$B$4,'seznamy dílů_BalTec'!A1269,0)","v":0}]
["842101",0,null,"Pressure cup R=132, RN/E 380, horiz./upside down use",null,null,{"$f":"IF(A1270='vyhledávání dílů'!$B$4,'seznamy dílů_BalTec'!A1270,0)","v":0}]
["842102",0,null,"Pressure cup R=148, RN/E 380, horiz./upside down use",null,null,{"$f":"IF(A1271='vyhledávání dílů'!$B$4,'seznamy dílů_BalTec'!A1271,0)","v":0}]
["842111",0,null,"washer",null,null,{"$f":"IF(A1272='vyhledávání dílů'!$B$4,'seznamy dílů_BalTec'!A1272,0)","v":0}]
["842122",0,null,"Adapter sleeve RN 280",null,null,{"$f":"IF(A1273='vyhledávání dílů'!$B$4,'seznamy dílů_BalTec'!A1273,0)","v":0}]
["842123",0,null,"Flange",null,null,{"$f":"IF(A1274='vyhledávání dílů'!$B$4,'seznamy dílů_BalTec'!A1274,0)","v":0}]
["842124",0,null,"Motor flange",null,null,{"$f":"IF(A1275='vyhledávání dílů'!$B$4,'seznamy dílů_BalTec'!A1275,0)","v":0}]
["842127",0,null,"Gear block right",null,null,{"$f":"IF(A1276='vyhledávání dílů'!$B$4,'seznamy dílů_BalTec'!A1276,0)","v":0}]
["842128",0,null,"Nut",null,null,{"$f":"IF(A1277='vyhledávání dílů'!$B$4,'seznamy dílů_BalTec'!A1277,0)","v":0}]
["842142",0,null,"Table",null,null,{"$f":"IF(A1278='vyhledávání dílů'!$B$4,'seznamy dílů_BalTec'!A1278,0)","v":0}]
["842152",0,null,"Cam",null,null,{"$f":"IF(A1279='vyhledávání dílů'!$B$4,'seznamy dílů_BalTec'!A1279,0)","v":0}]
["842153",0,null,"Drive flange",null,null,{"$f":"IF(A1280='vyhledávání dílů'!$B$4,'seznamy dílů_BalTec'!A1280,0)","v":0}]
["842154",0,null,"Key",null,null,{"$f":"IF(A1281='vyhledávání dílů'!$B$4,'seznamy dílů_BalTec'!A1281,0)","v":0}]
["842154",0,null,"Key",null,null,{"$f":"IF(A1282='vyhledávání dílů'!$B$4,'seznamy dílů_BalTec'!A1282,0)","v":0}]
["842154",0,null,"Key",null,null,{"$f":"IF(A1283='vyhledávání dílů'!$B$4,'seznamy dílů_BalTec'!A1283,0)","v":0}]
["842154",0,null,"Key",null,null,{"$f":"IF(A1284='vyhledávání dílů'!$B$4,'seznamy dílů_BalTec'!A1284,0)","v":0}]
["842154",0,null,"Key",null,null,{"$f":"IF(A1285='vyhledávání dílů'!$B$4,'seznamy dílů_BalTec'!A1285,0)","v":0}]
["842157",0,null,"Cover panel left",null,null,{"$f":"IF(A1286='vyhledávání dílů'!$B$4,'seznamy dílů_BalTec'!A1286,0)","v":0}]
["842158",0,null,"Cover panel right",null,null,{"$f":"IF(A1287='vyhledávání dílů'!$B$4,'seznamy dílů_BalTec'!A1287,0)","v":0}]
["842159",0,null,"Spindle",null,null,{"$f":"IF(A1288='vyhledávání dílů'!$B$4,'seznamy dílů_BalTec'!A1288,0)","v":0}]
["842160",0,null,"Fitting plate RNS",null,null,{"$f":"IF(A1289='vyhledávání dílů'!$B$4,'seznamy dílů_BalTec'!A1289,0)","v":0}]
["842166",0,null,"Cover plate",null,null,{"$f":"IF(A1290='vyhledávání dílů'!$B$4,'seznamy dílů_BalTec'!A1290,0)","v":0}]
["842178",0,null,"Key",null,null,{"$f":"IF(A1291='vyhledávání dílů'!$B$4,'seznamy dílů_BalTec'!A1291,0)","v":0}]
["842179",0,null,"Polygon wave ",null,null,{"$f":"IF(A1292='vyhledávání dílů'!$B$4,'seznamy dílů_BalTec'!A1292,0)","v":0}]
["842189",0,null,"Starting washer",null,null,{"$f":"IF(A1293='vyhledávání dílů'!$B$4,'seznamy dílů_BalTec'!A1293,0)","v":0}]
["842190",0,null,"Starting washer",null,null,{"$f":"IF(A1294='vyhledávání dílů'!$B$4,'seznamy dílů_BalTec'!A1294,0)","v":0}]
["842213",0,null,"Cover hood",null,null,{"$f":"IF(A1295='vyhledávání dílů'!$B$4,'seznamy dílů_BalTec'!A1295,0)","v":0}]
["842219",0,null,"Sleeve",null,null,{"$f":"IF(A1296='vyhledávání dílů'!$B$4,'seznamy dílů_BalTec'!A1296,0)","v":0}]
["843004",0,null,"Machine table",null,null,{"$f":"IF(A1297='vyhledávání dílů'!$B$4,'seznamy dílů_BalTec'!A1297,0)","v":0}]
["843009",0,null,"Piston",null,null,{"$f":"IF(A1298='vyhledávání dílů'!$B$4,'seznamy dílů_BalTec'!A1298,0)","v":0}]
["843020",0,null,"Cast housing RNE 330",null,null,{"$f":"IF(A1299='vyhledávání dílů'!$B$4,'seznamy dílů_BalTec'!A1299,0)","v":0}]
["843024",0,null,"Table",null,null,{"$f":"IF(A1300='vyhledávání dílů'!$B$4,'seznamy dílů_BalTec'!A1300,0)","v":0}]
["843073",0,null,"Cover tube",null,null,{"$f":"IF(A1301='vyhledávání dílů'!$B$4,'seznamy dílů_BalTec'!A1301,0)","v":0}]
["843074",0,null,"Flange",null,null,{"$f":"IF(A1302='vyhledávání dílů'!$B$4,'seznamy dílů_BalTec'!A1302,0)","v":0}]
["843075",0,null,"Piston",null,null,{"$f":"IF(A1303='vyhledávání dílů'!$B$4,'seznamy dílů_BalTec'!A1303,0)","v":0}]
["847002",0,null,"basic plate",null,null,{"$f":"IF(A1304='vyhledávání dílů'!$B$4,'seznamy dílů_BalTec'!A1304,0)","v":0}]
["847003",0,null,"Upper bracket ",null,null,{"$f":"IF(A1305='vyhledávání dílů'!$B$4,'seznamy dílů_BalTec'!A1305,0)","v":0}]
["847004",0,null,"Lower bracket ",null,null,{"$f":"IF(A1306='vyhledávání dílů'!$B$4,'seznamy dílů_BalTec'!A1306,0)","v":0}]
["847005",0,null,"Wave",null,null,{"$f":"IF(A1307='vyhledávání dílů'!$B$4,'seznamy dílů_BalTec'!A1307,0)","v":0}]
["847006",0,null,"Magnetic tape support",null,null,{"$f":"IF(A1308='vyhledávání dílů'!$B$4,'seznamy dílů_BalTec'!A1308,0)","v":0}]
["847007",0,null,"Sensor support",null,null,{"$f":"IF(A1309='vyhledávání dílů'!$B$4,'seznamy dílů_BalTec'!A1309,0)","v":0}]
["847010",0,null,"Cover",null,null,{"$f":"IF(A1310='vyhledávání dílů'!$B$4,'seznamy dílů_BalTec'!A1310,0)","v":0}]
["847011",0,null,"Sliding plate",null,null,{"$f":"IF(A1311='vyhledávání dílů'!$B$4,'seznamy dílů_BalTec'!A1311,0)","v":0}]
["847012",0,null,"Counter plate",null,null,{"$f":"IF(A1312='vyhledávání dílů'!$B$4,'seznamy dílů_BalTec'!A1312,0)","v":0}]
["852000",0,null,"Washer",null,null,{"$f":"IF(A1313='vyhledávání dílů'!$B$4,'seznamy dílů_BalTec'!A1313,0)","v":0}]
["852001",0,null,"Piston",null,null,{"$f":"IF(A1314='vyhledávání dílů'!$B$4,'seznamy dílů_BalTec'!A1314,0)","v":0}]
["852002",4,"uložení ex. Hřídele","Eccenter sleeve RN 381/RN 281/RN331","p.7",null,{"$f":"IF(A1315='vyhledávání dílů'!$B$4,'seznamy dílů_BalTec'!A1315,0)","v":0}]
["852004",0,null,"cam",null,null,{"$f":"IF(A1316='vyhledávání dílů'!$B$4,'seznamy dílů_BalTec'!A1316,0)","v":0}]
["852005",0,null,"Flange bottom",null,null,{"$f":"IF(A1317='vyhledávání dílů'!$B$4,'seznamy dílů_BalTec'!A1317,0)","v":0}]
["852008",0,null,"Lower piston",null,null,{"$f":"IF(A1318='vyhledávání dílů'!$B$4,'seznamy dílů_BalTec'!A1318,0)","v":0}]
["852009",0,null,"Proximity switch clamp",null,null,{"$f":"IF(A1319='vyhledávání dílů'!$B$4,'seznamy dílů_BalTec'!A1319,0)","v":0}]
["852010",0,null,"Proximity switch clamp",null,null,{"$f":"IF(A1320='vyhledávání dílů'!$B$4,'seznamy dílů_BalTec'!A1320,0)","v":0}]
["852019",0,null,"Flange bottom RN/RNE 381/90",null,null,{"$f":"IF(A1321='vyhledávání dílů'!$B$4,'seznamy dílů_BalTec'!A1321,0)","v":0}]
["852020",0,null,"Connection piece",null,null,{"$f":"IF(A1322='vyhledávání dílů'!$B$4,'seznamy dílů_BalTec'!A1322,0)","v":0}]
["852021",0,null,"Piston top RN/RNE 381/90",null,null,{"$f":"IF(A1323='vyhledávání dílů'!$B$4,'seznamy dílů_BalTec'!A1323,0)","v":0}]
["852022",0,null,"Piston, bottom RN/RNE 381/90",null,null,{"$f":"IF(A1324='vyhledávání dílů'!$B$4,'seznamy dílů_BalTec'!A1324,0)","v":0}]
["852023",0,null,"Motor flange RN/RNE 381/90",null,null,{"$f":"IF(A1325='vyhledávání dílů'!$B$4,'seznamy dílů_BalTec'!A1325,0)","v":0}]
["852024",0,null,"Cast housing RN/RNE 381/90",null,null,{"$f":"IF(A1326='vyhledávání dílů'!$B$4,'seznamy dílů_BalTec'!A1326,0)","v":0}]
["852026",0,null,"Spacer pipe RN/RNE 381/90",null,null,{"$f":"IF(A1327='vyhledávání dílů'!$B$4,'seznamy dílů_BalTec'!A1327,0)","v":0}]
["852028",0,null,"Cast housing",null,null,{"$f":"IF(A1328='vyhledávání dílů'!$B$4,'seznamy dílů_BalTec'!A1328,0)","v":0}]
["852030",0,null,"Adjustment ring",null,null,{"$f":"IF(A1329='vyhledávání dílů'!$B$4,'seznamy dílů_BalTec'!A1329,0)","v":0}]
["852031",0,null,"Cast for RN 381",null,null,{"$f":"IF(A1330='vyhledávání dílů'!$B$4,'seznamy dílů_BalTec'!A1330,0)","v":0}]
["852032",0,null,"Tube",null,null,{"$f":"IF(A1331='vyhledávání dílů'!$B$4,'seznamy dílů_BalTec'!A1331,0)","v":0}]
["852033",0,null,"Motor flange",null,null,{"$f":"IF(A1332='vyhledávání dílů'!$B$4,'seznamy dílů_BalTec'!A1332,0)","v":0}]
["852037",0,null,"Intermediate plate",null,null,{"$f":"IF(A1333='vyhledávání dílů'!$B$4,'seznamy dílů_BalTec'!A1333,0)","v":0}]
["852039",0,null,"Adjustment ring RN/RNE 381/90",null,null,{"$f":"IF(A1334='vyhledávání dílů'!$B$4,'seznamy dílů_BalTec'!A1334,0)","v":0}]
["852040",0,null,"Cover tube",null,null,{"$f":"IF(A1335='vyhledávání dílů'!$B$4,'seznamy dílů_BalTec'!A1335,0)","v":0}]
["852043",0,null,"Motor flange RN/E 381 STF",null,null,{"$f":"IF(A1336='vyhledávání dílů'!$B$4,'seznamy dílů_BalTec'!A1336,0)","v":0}]
["852045",0,null,"Bracket RN/E 381 STF",null,null,{"$f":"IF(A1337='vyhledávání dílů'!$B$4,'seznamy dílů_BalTec'!A1337,0)","v":0}]
["852046",0,null,"Path lever RN/E 381 STF",null,null,{"$f":"IF(A1338='vyhledávání dílů'!$B$4,'seznamy dílů_BalTec'!A1338,0)","v":0}]
["852047",0,null,"Distance plate RN/E 381 STF",null,null,{"$f":"IF(A1339='vyhledávání dílů'!$B$4,'seznamy dílů_BalTec'!A1339,0)","v":0}]
["852048",0,null,"Clamping piece RN/E 381 STF",null,null,{"$f":"IF(A1340='vyhledávání dílů'!$B$4,'seznamy dílů_BalTec'!A1340,0)","v":0}]
["852049",0,null,"Distance ring RN/E 381 STF",null,null,{"$f":"IF(A1341='vyhledávání dílů'!$B$4,'seznamy dílů_BalTec'!A1341,0)","v":0}]
["852050",0,null,"Tube",null,null,{"$f":"IF(A1342='vyhledávání dílů'!$B$4,'seznamy dílů_BalTec'!A1342,0)","v":0}]
["852052",0,null,"Cover with the right slot RN/E 381 STF",null,null,{"$f":"IF(A1343='vyhledávání dílů'!$B$4,'seznamy dílů_BalTec'!A1343,0)","v":0}]
["852054",0,null,"Cam",null,null,{"$f":"IF(A1344='vyhledávání dílů'!$B$4,'seznamy dílů_BalTec'!A1344,0)","v":0}]
["852055",0,null,"Polygon shaft",null,null,{"$f":"IF(A1345='vyhledávání dílů'!$B$4,'seznamy dílů_BalTec'!A1345,0)","v":0}]
["852057",0,null,"Piston, top",null,null,{"$f":"IF(A1346='vyhledávání dílů'!$B$4,'seznamy dílů_BalTec'!A1346,0)","v":0}]
["852058",0,null,"Upper piston",null,null,{"$f":"IF(A1347='vyhledávání dílů'!$B$4,'seznamy dílů_BalTec'!A1347,0)","v":0}]
["852062",0,null,"Cover pipe",null,null,{"$f":"IF(A1348='vyhledávání dílů'!$B$4,'seznamy dílů_BalTec'!A1348,0)","v":0}]
["852071",0,null,"Adjustment ring",null,null,{"$f":"IF(A1349='vyhledávání dílů'!$B$4,'seznamy dílů_BalTec'!A1349,0)","v":0}]
["852093",0,null,"Cast housing",null,null,{"$f":"IF(A1350='vyhledávání dílů'!$B$4,'seznamy dílů_BalTec'!A1350,0)","v":0}]
["852094",0,null,"piston top",null,null,{"$f":"IF(A1351='vyhledávání dílů'!$B$4,'seznamy dílů_BalTec'!A1351,0)","v":0}]
["852095",0,null,"motor flange",null,null,{"$f":"IF(A1352='vyhledávání dílů'!$B$4,'seznamy dílů_BalTec'!A1352,0)","v":0}]
["852096",0,null,"Motor flange (refinished) RN/E 381 HPP",null,null,{"$f":"IF(A1353='vyhledávání dílů'!$B$4,'seznamy dílů_BalTec'!A1353,0)","v":0}]
["853000",0,null,"Container cover-exit RN 081",null,null,{"$f":"IF(A1354='vyhledávání dílů'!$B$4,'seznamy dílů_BalTec'!A1354,0)","v":0}]
["853001",0,null,"Container cover connection",null,null,{"$f":"IF(A1355='vyhledávání dílů'!$B$4,'seznamy dílů_BalTec'!A1355,0)","v":0}]
["853002",0,null,"Cylinder tube",null,null,{"$f":"IF(A1356='vyhledávání dílů'!$B$4,'seznamy dílů_BalTec'!A1356,0)","v":0}]
["853005",0,null,"Angle bracket",null,null,{"$f":"IF(A1357='vyhledávání dílů'!$B$4,'seznamy dílů_BalTec'!A1357,0)","v":0}]
["853007",0,null,"Connecting piece",null,null,{"$f":"IF(A1358='vyhledávání dílů'!$B$4,'seznamy dílů_BalTec'!A1358,0)","v":0}]
["853009",0,null,"Flange",null,null,{"$f":"IF(A1359='vyhledávání dílů'!$B$4,'seznamy dílů_BalTec'!A1359,0)","v":0}]
["853010",0,null,"Machine column",null,null,{"$f":"IF(A1360='vyhledávání dílů'!$B$4,'seznamy dílů_BalTec'!A1360,0)","v":0}]
["853015",0,null,"Damping piston",null,null,{"$f":"IF(A1361='vyhledávání dílů'!$B$4,'seznamy dílů_BalTec'!A1361,0)","v":0}]
["853017",2,"dolní píst","guide sleeve","p. 4",null,{"$f":"IF(A1362='vyhledávání dílů'!$B$4,'seznamy dílů_BalTec'!A1362,0)","v":0}]
["853037",0,null,"Motor flange",null,null,{"$f":"IF(A1363='vyhledávání dílů'!$B$4,'seznamy dílů_BalTec'!A1363,0)","v":0}]
["853044",0,null,"Interim plate RNS 331",null,null,{"$f":"IF(A1364='vyhledávání dílů'!$B$4,'seznamy dílů_BalTec'!A1364,0)","v":0}]
["853048",0,null,"Cover pipe",null,null,{"$f":"IF(A1365='vyhledávání dílů'!$B$4,'seznamy dílů_BalTec'!A1365,0)","v":0}]
["853049",0,null,"Base plate",null,null,{"$f":"IF(A1366='vyhledávání dílů'!$B$4,'seznamy dílů_BalTec'!A1366,0)","v":0}]
["853050",0,null,"Clamping fixture ",null,null,{"$f":"IF(A1367='vyhledávání dílů'!$B$4,'seznamy dílů_BalTec'!A1367,0)","v":0}]
["853054",0,null,"Bracket",null,null,{"$f":"IF(A1368='vyhledávání dílů'!$B$4,'seznamy dílů_BalTec'!A1368,0)","v":0}]
["853059",0,null,"wave RN/E 331/381/231L STF",null,null,{"$f":"IF(A1369='vyhledávání dílů'!$B$4,'seznamy dílů_BalTec'!A1369,0)","v":0}]
["853060",0,null,"Bracket RN/E 381 STF",null,null,{"$f":"IF(A1370='vyhledávání dílů'!$B$4,'seznamy dílů_BalTec'!A1370,0)","v":0}]
["853061",0,null,"Path lever RN/E 331 STF",null,null,{"$f":"IF(A1371='vyhledávání dílů'!$B$4,'seznamy dílů_BalTec'!A1371,0)","v":0}]
["853062",0,null,"Distributor piece",null,null,{"$f":"IF(A1372='vyhledávání dílů'!$B$4,'seznamy dílů_BalTec'!A1372,0)","v":0}]
["853064",0,null,"Spacer block",null,null,{"$f":"IF(A1373='vyhledávání dílů'!$B$4,'seznamy dílů_BalTec'!A1373,0)","v":0}]
["853066",0,null,"Cover right with slot RN/E 331 STF",null,null,{"$f":"IF(A1374='vyhledávání dílů'!$B$4,'seznamy dílů_BalTec'!A1374,0)","v":0}]
["853067",0,null,"damping piston STF",null,null,{"$f":"IF(A1375='vyhledávání dílů'!$B$4,'seznamy dílů_BalTec'!A1375,0)","v":0}]
["853068",0,null,"Damping piston",null,null,{"$f":"IF(A1376='vyhledávání dílů'!$B$4,'seznamy dílů_BalTec'!A1376,0)","v":0}]
["853069",0,null,"Cast housing RN/RNE 331L/80",null,null,{"$f":"IF(A1377='vyhledávání dílů'!$B$4,'seznamy dílů_BalTec'!A1377,0)","v":0}]
["853070",0,null,"Motor flange RN/RNE 331L/80",null,null,{"$f":"IF(A1378='vyhledávání dílů'!$B$4,'seznamy dílů_BalTec'!A1378,0)","v":0}]
["853071",0,null,"Flange RN/RNE 331L/80",null,null,{"$f":"IF(A1379='vyhledávání dílů'!$B$4,'seznamy dílů_BalTec'!A1379,0)","v":0}]
["853073",0,null,"Dirt filter",null,null,{"$f":"IF(A1380='vyhledávání dílů'!$B$4,'seznamy dílů_BalTec'!A1380,0)","v":0}]
["853074",0,null,"Polygon wave",null,null,{"$f":"IF(A1381='vyhledávání dílů'!$B$4,'seznamy dílů_BalTec'!A1381,0)","v":0}]
["853080",0,null,"Cover holder for RN/RNE 331/381",null,null,{"$f":"IF(A1382='vyhledávání dílů'!$B$4,'seznamy dílů_BalTec'!A1382,0)","v":0}]
["853114",0,null,"Cast housing",null,null,{"$f":"IF(A1383='vyhledávání dílů'!$B$4,'seznamy dílů_BalTec'!A1383,0)","v":0}]
["853115",0,null,"Damping piston",null,null,{"$f":"IF(A1384='vyhledávání dílů'!$B$4,'seznamy dílů_BalTec'!A1384,0)","v":0}]
["853116",0,null,"Motor flange",null,null,{"$f":"IF(A1385='vyhledávání dílů'!$B$4,'seznamy dílů_BalTec'!A1385,0)","v":0}]
["853117",0,null,"Motor flanage RN/E 331 HPP",null,null,{"$f":"IF(A1386='vyhledávání dílů'!$B$4,'seznamy dílů_BalTec'!A1386,0)","v":0}]
["853121",0,null,"Cover",null,null,{"$f":"IF(A1387='vyhledávání dílů'!$B$4,'seznamy dílů_BalTec'!A1387,0)","v":0}]
["853122",0,null,"Bracket",null,null,{"$f":"IF(A1388='vyhledávání dílů'!$B$4,'seznamy dílů_BalTec'!A1388,0)","v":0}]
["854000",0,null,"Pressure cup R=148",null,null,{"$f":"IF(A1389='vyhledávání dílů'!$B$4,'seznamy dílů_BalTec'!A1389,0)","v":0}]
["854001",0,null,"Pressure cup R=196",null,null,{"$f":"IF(A1390='vyhledávání dílů'!$B$4,'seznamy dílů_BalTec'!A1390,0)","v":0}]
["854004",0,null,"Eccenter wave",null,null,{"$f":"IF(A1391='vyhledávání dílů'!$B$4,'seznamy dílů_BalTec'!A1391,0)","v":0}]
["854005",0,null,"Eccenter sleeve",null,null,{"$f":"IF(A1392='vyhledávání dílů'!$B$4,'seznamy dílů_BalTec'!A1392,0)","v":0}]
["854006",0,null,"Cam",null,null,{"$f":"IF(A1393='vyhledávání dílů'!$B$4,'seznamy dílů_BalTec'!A1393,0)","v":0}]
["854008",0,null,"Piston below",null,null,{"$f":"IF(A1394='vyhledávání dílů'!$B$4,'seznamy dílů_BalTec'!A1394,0)","v":0}]
["854009",0,null,"Motor flange",null,null,{"$f":"IF(A1395='vyhledávání dílů'!$B$4,'seznamy dílů_BalTec'!A1395,0)","v":0}]
["854010",0,null,"Starting washer",null,null,{"$f":"IF(A1396='vyhledávání dílů'!$B$4,'seznamy dílů_BalTec'!A1396,0)","v":0}]
["854011",0,null,"Starting washer",null,null,{"$f":"IF(A1397='vyhledávání dílů'!$B$4,'seznamy dílů_BalTec'!A1397,0)","v":0}]
["854015",0,null,"Internal ring gear",null,null,{"$f":"IF(A1398='vyhledávání dílů'!$B$4,'seznamy dílů_BalTec'!A1398,0)","v":0}]
["854016",0,null,"Distance tube",null,null,{"$f":"IF(A1399='vyhledávání dílů'!$B$4,'seznamy dílů_BalTec'!A1399,0)","v":0}]
["854017",0,null,"washer",null,null,{"$f":"IF(A1400='vyhledávání dílů'!$B$4,'seznamy dílů_BalTec'!A1400,0)","v":0}]
["854018",0,null,"Distance tube",null,null,{"$f":"IF(A1401='vyhledávání dílů'!$B$4,'seznamy dílů_BalTec'!A1401,0)","v":0}]
["854019",0,null,"Scale",null,null,{"$f":"IF(A1402='vyhledávání dílů'!$B$4,'seznamy dílů_BalTec'!A1402,0)","v":0}]
["854021",0,null,"Polygon wave",null,null,{"$f":"IF(A1403='vyhledávání dílů'!$B$4,'seznamy dílů_BalTec'!A1403,0)","v":0}]
["854036",0,null,"Cast housing for RNE 481",null,null,{"$f":"IF(A1404='vyhledávání dílů'!$B$4,'seznamy dílů_BalTec'!A1404,0)","v":0}]
["854059",0,null,"Cap",null,null,{"$f":"IF(A1405='vyhledávání dílů'!$B$4,'seznamy dílů_BalTec'!A1405,0)","v":0}]
["854064",0,null,"Adjustment ring",null,null,{"$f":"IF(A1406='vyhledávání dílů'!$B$4,'seznamy dílů_BalTec'!A1406,0)","v":0}]
["854067",0,null,"Pressure cup R=240",null,null,{"$f":"IF(A1407='vyhledávání dílů'!$B$4,'seznamy dílů_BalTec'!A1407,0)","v":0}]
["854068",0,null,"Pressure jacket R=290",null,null,{"$f":"IF(A1408='vyhledávání dílů'!$B$4,'seznamy dílů_BalTec'!A1408,0)","v":0}]
["854070",0,null,"Tool holder R=148 for RNE/RNS 481",null,null,{"$f":"IF(A1409='vyhledávání dílů'!$B$4,'seznamy dílů_BalTec'!A1409,0)","v":0}]
["854071",0,null,"Tool holder R=196",null,null,{"$f":"IF(A1410='vyhledávání dílů'!$B$4,'seznamy dílů_BalTec'!A1410,0)","v":0}]
["854072",0,null,"Tool holder compl. R=240",null,null,{"$f":"IF(A1411='vyhledávání dílů'!$B$4,'seznamy dílů_BalTec'!A1411,0)","v":0}]
["854073",0,null,"Tool holder compl. R=290",null,null,{"$f":"IF(A1412='vyhledávání dílů'!$B$4,'seznamy dílů_BalTec'!A1412,0)","v":0}]
["854077",0,null,"Pressure spring",null,null,{"$f":"IF(A1413='vyhledávání dílů'!$B$4,'seznamy dílů_BalTec'!A1413,0)","v":0}]
["854079",0,null,"Adjustment ring",null,null,{"$f":"IF(A1414='vyhledávání dílů'!$B$4,'seznamy dílů_BalTec'!A1414,0)","v":0}]
["854081",0,null,"Cover tube",null,null,{"$f":"IF(A1415='vyhledávání dílů'!$B$4,'seznamy dílů_BalTec'!A1415,0)","v":0}]
["854085",0,null,"Clamping fixture complete",null,null,{"$f":"IF(A1416='vyhledávání dílů'!$B$4,'seznamy dílů_BalTec'!A1416,0)","v":0}]
["854086",0,null,"Cam",null,null,{"$f":"IF(A1417='vyhledávání dílů'!$B$4,'seznamy dílů_BalTec'!A1417,0)","v":0}]
["854087",0,null,"Polygon wave",null,null,{"$f":"IF(A1418='vyhledávání dílů'!$B$4,'seznamy dílů_BalTec'!A1418,0)","v":0}]
["854089",0,null,"Lower flange",null,null,{"$f":"IF(A1419='vyhledávání dílů'!$B$4,'seznamy dílů_BalTec'!A1419,0)","v":0}]
["854090",0,null,"Connecting piece",null,null,{"$f":"IF(A1420='vyhledávání dílů'!$B$4,'seznamy dílů_BalTec'!A1420,0)","v":0}]
["854091",0,null,"Key",null,null,{"$f":"IF(A1421='vyhledávání dílů'!$B$4,'seznamy dílů_BalTec'!A1421,0)","v":0}]
["854125",0,null,"Piston below",null,null,{"$f":"IF(A1422='vyhledávání dílů'!$B$4,'seznamy dílů_BalTec'!A1422,0)","v":0}]
["854126",0,null,"Piston",null,null,{"$f":"IF(A1423='vyhledávání dílů'!$B$4,'seznamy dílů_BalTec'!A1423,0)","v":0}]
["860051",0,null,"Stopper plate",null,null,{"$f":"IF(A1424='vyhledávání dílů'!$B$4,'seznamy dílů_BalTec'!A1424,0)","v":0}]
["860076",0,null,"Plate",null,null,{"$f":"IF(A1425='vyhledávání dílů'!$B$4,'seznamy dílů_BalTec'!A1425,0)","v":0}]
["862228",0,null,"Adapter sleeve for RN 280",null,null,{"$f":"IF(A1426='vyhledávání dílů'!$B$4,'seznamy dílů_BalTec'!A1426,0)","v":0}]
["863026",0,null,"Peen shank for MRX-1",null,null,{"$f":"IF(A1427='vyhledávání dílů'!$B$4,'seznamy dílů_BalTec'!A1427,0)","v":0}]
["863046",0,null,"Peen head pre-worked for MRX-1",null,null,{"$f":"IF(A1428='vyhledávání dílů'!$B$4,'seznamy dílů_BalTec'!A1428,0)","v":0}]
["864721",0,null,"Proximity switch mounting",null,null,{"$f":"IF(A1429='vyhledávání dílů'!$B$4,'seznamy dílů_BalTec'!A1429,0)","v":0}]
["865856",0,null,"Bearing",null,null,{"$f":"IF(A1430='vyhledávání dílů'!$B$4,'seznamy dílů_BalTec'!A1430,0)","v":0}]
["865857",0,null,"Guide block",null,null,{"$f":"IF(A1431='vyhledávání dílů'!$B$4,'seznamy dílů_BalTec'!A1431,0)","v":0}]
["865858",0,null,"slide",null,null,{"$f":"IF(A1432='vyhledávání dílů'!$B$4,'seznamy dílů_BalTec'!A1432,0)","v":0}]
["865859",0,null,"Switch block",null,null,{"$f":"IF(A1433='vyhledávání dílů'!$B$4,'seznamy dílů_BalTec'!A1433,0)","v":0}]
["865860",0,null,"End pin",null,null,{"$f":"IF(A1434='vyhledávání dílů'!$B$4,'seznamy dílů_BalTec'!A1434,0)","v":0}]
["865861",0,null,"Adjustable spindle",null,null,{"$f":"IF(A1435='vyhledávání dílů'!$B$4,'seznamy dílů_BalTec'!A1435,0)","v":0}]
["865862",0,null,"Nut",null,null,{"$f":"IF(A1436='vyhledávání dílů'!$B$4,'seznamy dílů_BalTec'!A1436,0)","v":0}]
["865864",0,null,"Box",null,null,{"$f":"IF(A1437='vyhledávání dílů'!$B$4,'seznamy dílů_BalTec'!A1437,0)","v":0}]
["865866",0,null,"Base plate",null,null,{"$f":"IF(A1438='vyhledávání dílů'!$B$4,'seznamy dílů_BalTec'!A1438,0)","v":0}]
["865894",0,null,"Baffle plate 60 mm for RN 231",null,null,{"$f":"IF(A1439='vyhledávání dílů'!$B$4,'seznamy dílů_BalTec'!A1439,0)","v":0}]
["865899",0,null,"Cap",null,null,{"$f":"IF(A1440='vyhledávání dílů'!$B$4,'seznamy dílů_BalTec'!A1440,0)","v":0}]
["865901",0,null,"Bracket",null,null,{"$f":"IF(A1441='vyhledávání dílů'!$B$4,'seznamy dílů_BalTec'!A1441,0)","v":0}]
["865902",0,null,"Cover plate",null,null,{"$f":"IF(A1442='vyhledávání dílů'!$B$4,'seznamy dílů_BalTec'!A1442,0)","v":0}]
["865903",0,null,"Cover plate",null,null,{"$f":"IF(A1443='vyhledávání dílů'!$B$4,'seznamy dílů_BalTec'!A1443,0)","v":0}]
["865904",0,null,"Bracket",null,null,{"$f":"IF(A1444='vyhledávání dílů'!$B$4,'seznamy dílů_BalTec'!A1444,0)","v":0}]
["865916",0,null,"Feather key (refinished)",null,null,{"$f":"IF(A1445='vyhledávání dílů'!$B$4,'seznamy dílů_BalTec'!A1445,0)","v":0}]
["865918",0,null,"Transport angle",null,null,{"$f":"IF(A1446='vyhledávání dílů'!$B$4,'seznamy dílů_BalTec'!A1446,0)","v":0}]
["865988",0,null,"Anti-twist device",null,null,{"$f":"IF(A1447='vyhledávání dílů'!$B$4,'seznamy dílů_BalTec'!A1447,0)","v":0}]
["865999",0,null,"Cover plate",null,null,{"$f":"IF(A1448='vyhledávání dílů'!$B$4,'seznamy dílů_BalTec'!A1448,0)","v":0}]
["866018",0,null,"Nose cap for RNE/RNS 481 STF (refinished)",null,null,{"$f":"IF(A1449='vyhledávání dílů'!$B$4,'seznamy dílů_BalTec'!A1449,0)","v":0}]
["866020",0,null,"Bearing",null,null,{"$f":"IF(A1450='vyhledávání dílů'!$B$4,'seznamy dílů_BalTec'!A1450,0)","v":0}]
["866023",0,null,"plate",null,null,{"$f":"IF(A1451='vyhledávání dílů'!$B$4,'seznamy dílů_BalTec'!A1451,0)","v":0}]
["866025",0,null,"Lower path lever",null,null,{"$f":"IF(A1452='vyhledávání dílů'!$B$4,'seznamy dílů_BalTec'!A1452,0)","v":0}]
["866027",0,null,"Anti-rotation pin RNE 481 STF",null,null,{"$f":"IF(A1453='vyhledávání dílů'!$B$4,'seznamy dílů_BalTec'!A1453,0)","v":0}]
["866029",0,null,"Clamp ring",null,null,{"$f":"IF(A1454='vyhledávání dílů'!$B$4,'seznamy dílů_BalTec'!A1454,0)","v":0}]
["866051",0,null,"Guide 100 mm",null,null,{"$f":"IF(A1455='vyhledávání dílů'!$B$4,'seznamy dílů_BalTec'!A1455,0)","v":0}]
["867937",0,null,"Pressure spring",null,null,{"$f":"IF(A1456='vyhledávání dílů'!$B$4,'seznamy dílů_BalTec'!A1456,0)","v":0}]
["896078",0,null,"Spindle EN/E 20/35 kN",null,null,{"$f":"IF(A1457='vyhledávání dílů'!$B$4,'seznamy dílů_BalTec'!A1457,0)","v":0}]
["896079",0,null,"Damping piston EN/E 20/35 kN",null,null,{"$f":"IF(A1458='vyhledávání dílů'!$B$4,'seznamy dílů_BalTec'!A1458,0)","v":0}]
["896080",0,null,"Guide sleeve EN/E 35kN",null,null,{"$f":"IF(A1459='vyhledávání dílů'!$B$4,'seznamy dílů_BalTec'!A1459,0)","v":0}]
["896081",0,null,"Lower flange EN/E 20kN",null,null,{"$f":"IF(A1460='vyhledávání dílů'!$B$4,'seznamy dílů_BalTec'!A1460,0)","v":0}]
["896082",0,null,"Lower flange EN/E 35kN",null,null,{"$f":"IF(A1461='vyhledávání dílů'!$B$4,'seznamy dílů_BalTec'!A1461,0)","v":0}]
["896083",0,null,"Upper flange EN/E 20kN",null,null,{"$f":"IF(A1462='vyhledávání dílů'!$B$4,'seznamy dílů_BalTec'!A1462,0)","v":0}]
["896084",0,null,"Upper flange EN/E 35kN",null,null,{"$f":"IF(A1463='vyhledávání dílů'!$B$4,'seznamy dílů_BalTec'!A1463,0)","v":0}]
["896085",0,null,"Distance bush EN/E 20/35 kN",null,null,{"$f":"IF(A1464='vyhledávání dílů'!$B$4,'seznamy dílů_BalTec'!A1464,0)","v":0}]
["896088",0,null,"Tension ring EN/E 20/35kN",null,null,{"$f":"IF(A1465='vyhledávání dílů'!$B$4,'seznamy dílů_BalTec'!A1465,0)","v":0}]
["896089",0,null,"Upper piston EN/E 20kN ",null,null,{"$f":"IF(A1466='vyhledávání dílů'!$B$4,'seznamy dílů_BalTec'!A1466,0)","v":0}]
["896090",0,null,"Lower piston EN/E 20kN",null,null,{"$f":"IF(A1467='vyhledávání dílů'!$B$4,'seznamy dílů_BalTec'!A1467,0)","v":0}]
["896092",0,null,"Adjustment strike EN/E 20/35kN",null,null,{"$f":"IF(A1468='vyhledávání dílů'!$B$4,'seznamy dílů_BalTec'!A1468,0)","v":0}]
["896095",0,null,"Upper piston EN/E 35kN ",null,null,{"$f":"IF(A1469='vyhledávání dílů'!$B$4,'seznamy dílů_BalTec'!A1469,0)","v":0}]
["896096",0,null,"Lower piston EN/E 35kN",null,null,{"$f":"IF(A1470='vyhledávání dílů'!$B$4,'seznamy dílů_BalTec'!A1470,0)","v":0}]
["896098",0,null,"Adjusting toothed wheel  EN/E 20/35kN",null,null,{"$f":"IF(A1471='vyhledávání dílů'!$B$4,'seznamy dílů_BalTec'!A1471,0)","v":0}]
["896099",0,null,"Drive shaft EN/E 35kN",null,null,{"$f":"IF(A1472='vyhledávání dílů'!$B$4,'seznamy dílů_BalTec'!A1472,0)","v":0}]
["896108",0,null,"Reduction flange",null,null,{"$f":"IF(A1473='vyhledávání dílů'!$B$4,'seznamy dílů_BalTec'!A1473,0)","v":0}]
["896109",0,null,"Spline shaft EN/E 20/35kN",null,null,{"$f":"IF(A1474='vyhledávání dílů'!$B$4,'seznamy dílů_BalTec'!A1474,0)","v":0}]
["896110",0,null,"Bushing EN/E 20/35kN",null,null,{"$f":"IF(A1475='vyhledávání dílů'!$B$4,'seznamy dílů_BalTec'!A1475,0)","v":0}]
["896111",0,null,"Key EN/E 20/35kN",null,null,{"$f":"IF(A1476='vyhledávání dílů'!$B$4,'seznamy dílů_BalTec'!A1476,0)","v":0}]
["896113",0,null,"Shaft EN/E 20/35kN",null,null,{"$f":"IF(A1477='vyhledávání dílů'!$B$4,'seznamy dílů_BalTec'!A1477,0)","v":0}]
["896114",0,null,"Bevel gear wheel EN/E 20/35kN",null,null,{"$f":"IF(A1478='vyhledávání dílů'!$B$4,'seznamy dílů_BalTec'!A1478,0)","v":0}]
["896120",0,null,"Guide sleeve EN/E 20kN",null,null,{"$f":"IF(A1479='vyhledávání dílů'!$B$4,'seznamy dílů_BalTec'!A1479,0)","v":0}]
["896123",0,null,"Motor flange EN/E 20/35kN",null,null,{"$f":"IF(A1480='vyhledávání dílů'!$B$4,'seznamy dílů_BalTec'!A1480,0)","v":0}]
["896125",0,null,"Clamping ring EN/E 20/35kN",null,null,{"$f":"IF(A1481='vyhledávání dílů'!$B$4,'seznamy dílů_BalTec'!A1481,0)","v":0}]
["896126",0,null,"Magnetic tape support for EN/E 20/35kN",null,null,{"$f":"IF(A1482='vyhledávání dílů'!$B$4,'seznamy dílů_BalTec'!A1482,0)","v":0}]
["896127",0,null,"Sensor support EN/E 20/35kN",null,null,{"$f":"IF(A1483='vyhledávání dílů'!$B$4,'seznamy dílů_BalTec'!A1483,0)","v":0}]
["896128",0,null,"Cover for stroke adjustment EN/E 20/35kN",null,null,{"$f":"IF(A1484='vyhledávání dílů'!$B$4,'seznamy dílů_BalTec'!A1484,0)","v":0}]
["896129",0,null,"Cover for path measurement EN/E 20/35kN",null,null,{"$f":"IF(A1485='vyhledávání dílů'!$B$4,'seznamy dílů_BalTec'!A1485,0)","v":0}]
["896130",0,null,"Distance ring EN20/35 kN",null,null,{"$f":"IF(A1486='vyhledávání dílů'!$B$4,'seznamy dílů_BalTec'!A1486,0)","v":0}]
["896131",0,null,"Orbital head 5° LS 84, FH 28 zu EN/E 20/35kN",null,null,{"$f":"IF(A1487='vyhledávání dílů'!$B$4,'seznamy dílů_BalTec'!A1487,0)","v":0}]
["896132",0,null,"Orbital head 3° LS 116, FH 60 zu EN/E 20/35kN",null,null,{"$f":"IF(A1488='vyhledávání dílů'!$B$4,'seznamy dílů_BalTec'!A1488,0)","v":0}]
["896133",0,null,"Rivet sleeve EN20/35",null,null,{"$f":"IF(A1489='vyhledávání dílů'!$B$4,'seznamy dílů_BalTec'!A1489,0)","v":0}]
["896134",0,null,"Distance ring EN20/35 for orbital riveting head",null,null,{"$f":"IF(A1490='vyhledávání dílů'!$B$4,'seznamy dílů_BalTec'!A1490,0)","v":0}]
["896179",0,null,"Spindle key shaft",null,null,{"$f":"IF(A1491='vyhledávání dílů'!$B$4,'seznamy dílů_BalTec'!A1491,0)","v":0}]
[null,null,null,null,null,null,{"$f":"IF(A1492='vyhledávání dílů'!$B$4,'seznamy dílů_BalTec'!A1492,0)","v":0}]
[null,null,null,null,null,null,{"$f":"IF(A1493='vyhledávání dílů'!$B$4,'seznamy dílů_BalTec'!A1493,0)","v":0}]
[null,null,null,null,null,null,{"$f":"IF(A1494='vyhledávání dílů'!$B$4,'seznamy dílů_BalTec'!A1494,0)","v":0}]
[null,null,null,null,null,null,{"$f":"IF(A1495='vyhledávání dílů'!$B$4,'seznamy dílů_BalTec'!A1495,0)","v":0}]
[null,null,null,null,null,null,{"$f":"IF(A1496='vyhledávání dílů'!$B$4,'seznamy dílů_BalTec'!A1496,0)","v":0}]
[null,null,null,null,null,null,{"$f":"IF(A1497='vyhledávání dílů'!$B$4,'seznamy dílů_BalTec'!A1497,0)","v":0}]
[null,null,null,null,null,null,{"$f":"IF(A1498='vyhledávání dílů'!$B$4,'seznamy dílů_BalTec'!A1498,0)","v":0}]
[null,null,null,null,null,null,{"$f":"IF(A1499='vyhledávání dílů'!$B$4,'seznamy dílů_BalTec'!A1499,0)","v":0}]
[null,null,null,null,null,null,{"$f":"IF(A1500='vyhledávání dílů'!$B$4,'seznamy dílů_BalTec'!A1500,0)","v":0}]
[null,null,null,null,null,null,{"$f":"IF(A1501='vyhledávání dílů'!$B$4,'seznamy dílů_BalTec'!A1501,0)","v":0}]
[null,null,null,null,null,null,{"$f":"IF(A1502='vyhledávání dílů'!$B$4,'seznamy dílů_BalTec'!A1502,0)","v":0}]
[null,null,null,null,null,null,{"$f":"IF(A1503='vyhledávání dílů'!$B$4,'seznamy dílů_BalTec'!A1503,0)","v":0}]
[null,null,null,null,null,null,{"$f":"IF(A1504='vyhledávání dílů'!$B$4,'seznamy dílů_BalTec'!A1504,0)","v":0}]
[null,null,null,null,null,null,{"$f":"IF(A1505='vyhledávání dílů'!$B$4,'seznamy dílů_BalTec'!A1505,0)","v":0}]
[null,null,null,null,null,null,{"$f":"IF(A1506='vyhledávání dílů'!$B$4,'seznamy dílů_BalTec'!A1506,0)","v":0}]
[null,null,null,null,null,null,{"$f":"IF(A1507='vyhledávání dílů'!$B$4,'seznamy dílů_BalTec'!A1507,0)","v":0}]
[null,null,null,null,null,null,{"$f":"IF(A1508='vyhledávání dílů'!$B$4,'seznamy dílů_BalTec'!A1508,0)","v":0}]
[null,null,null,null,null,null,{"$f":"IF(A1509='vyhledávání dílů'!$B$4,'seznamy dílů_BalTec'!A1509,0)","v":0}]
[null,null,null,null,null,null,{"$f":"IF(A1510='vyhledávání dílů'!$B$4,'seznamy dílů_BalTec'!A1510,0)","v":0}]
[null,null,null,null,null,null,{"$f":"IF(A1511='vyhledávání dílů'!$B$4,'seznamy dílů_BalTec'!A1511,0)","v":0}]
[null,null,null,null,null,null,{"$f":"IF(A1512='vyhledávání dílů'!$B$4,'seznamy dílů_BalTec'!A1512,0)","v":0}]
[null,null,null,null,null,null,{"$f":"IF(A1513='vyhledávání dílů'!$B$4,'seznamy dílů_BalTec'!A1513,0)","v":0}]
[null,null,null,null,null,null,{"$f":"IF(A1514='vyhledávání dílů'!$B$4,'seznamy dílů_BalTec'!A1514,0)","v":0}]
[null,null,null,null,null,null,{"$f":"IF(A1515='vyhledávání dílů'!$B$4,'seznamy dílů_BalTec'!A1515,0)","v":0}]
[null,null,null,null,null,null,{"$f":"IF(A1516='vyhledávání dílů'!$B$4,'seznamy dílů_BalTec'!A1516,0)","v":0}]
[null,null,null,null,null,null,{"$f":"IF(A1517='vyhledávání dílů'!$B$4,'seznamy dílů_BalTec'!A1517,0)","v":0}]
[null,null,null,null,null,null,{"$f":"IF(A1518='vyhledávání dílů'!$B$4,'seznamy dílů_BalTec'!A1518,0)","v":0}]
[null,null,null,null,null,null,{"$f":"IF(A1519='vyhledávání dílů'!$B$4,'seznamy dílů_BalTec'!A1519,0)","v":0}]
[null,null,null,null,null,null,{"$f":"IF(A1520='vyhledávání dílů'!$B$4,'seznamy dílů_BalTec'!A1520,0)","v":0}]
[null,null,null,null,null,null,{"$f":"IF(A1521='vyhledávání dílů'!$B$4,'seznamy dílů_BalTec'!A1521,0)","v":0}]
[null,null,null,null,null,null,{"$f":"IF(A1522='vyhledávání dílů'!$B$4,'seznamy dílů_BalTec'!A1522,0)","v":0}]
[null,null,null,null,null,null,{"$f":"IF(A1523='vyhledávání dílů'!$B$4,'seznamy dílů_BalTec'!A1523,0)","v":0}]
[null,null,null,null,null,null,{"$f":"IF(A1524='vyhledávání dílů'!$B$4,'seznamy dílů_BalTec'!A1524,0)","v":0}]
[null,null,null,null,null,null,{"$f":"IF(A1525='vyhledávání dílů'!$B$4,'seznamy dílů_BalTec'!A1525,0)","v":0}]
[null,null,null,null,null,null,{"$f":"IF(A1526='vyhledávání dílů'!$B$4,'seznamy dílů_BalTec'!A1526,0)","v":0}]
[null,null,null,null,null,null,{"$f":"IF(A1527='vyhledávání dílů'!$B$4,'seznamy dílů_BalTec'!A1527,0)","v":0}]
[null,null,null,null,null,null,{"$f":"IF(A1528='vyhledávání dílů'!$B$4,'seznamy dílů_BalTec'!A1528,0)","v":0}]
[null,null,null,null,null,null,{"$f":"IF(A1529='vyhledávání dílů'!$B$4,'seznamy dílů_BalTec'!A1529,0)","v":0}]
[null,null,null,null,null,null,{"$f":"IF(A1530='vyhledávání dílů'!$B$4,'seznamy dílů_BalTec'!A1530,0)","v":0}]
[null,null,null,null,null,null,{"$f":"IF(A1531='vyhledávání dílů'!$B$4,'seznamy dílů_BalTec'!A1531,0)","v":0}]
[null,null,null,null,null,null,{"$f":"IF(A1532='vyhledávání dílů'!$B$4,'seznamy dílů_BalTec'!A1532,0)","v":0}]
[null,null,null,null,null,null,{"$f":"IF(A1533='vyhledávání dílů'!$B$4,'seznamy dílů_BalTec'!A1533,0)","v":0}]
[null,null,null,null,null,null,{"$f":"IF(A1534='vyhledávání dílů'!$B$4,'seznamy dílů_BalTec'!A1534,0)","v":0}]
[null,null,null,null,null,null,{"$f":"IF(A1535='vyhledávání dílů'!$B$4,'seznamy dílů_BalTec'!A1535,0)","v":0}]
[null,null,null,null,null,null,{"$f":"IF(A1536='vyhledávání dílů'!$B$4,'seznamy dílů_BalTec'!A1536,0)","v":0}]
[null,null,null,null,null,null,{"$f":"IF(A1537='vyhledávání dílů'!$B$4,'seznamy dílů_BalTec'!A1537,0)","v":0}]
[null,null,null,null,null,null,{"$f":"IF(A1538='vyhledávání dílů'!$B$4,'seznamy dílů_BalTec'!A1538,0)","v":0}]
[null,null,null,null,null,null,{"$f":"IF(A1539='vyhledávání dílů'!$B$4,'seznamy dílů_BalTec'!A1539,0)","v":0}]
[null,null,null,null,null,null,{"$f":"IF(A1540='vyhledávání dílů'!$B$4,'seznamy dílů_BalTec'!A1540,0)","v":0}]
[null,null,null,null,null,null,{"$f":"IF(A1541='vyhledávání dílů'!$B$4,'seznamy dílů_BalTec'!A1541,0)","v":0}]
[null,null,null,null,null,null,{"$f":"IF(A1542='vyhledávání dílů'!$B$4,'seznamy dílů_BalTec'!A1542,0)","v":0}]
[null,null,null,null,null,null,{"$f":"IF(A1543='vyhledávání dílů'!$B$4,'seznamy dílů_BalTec'!A1543,0)","v":0}]
[null,null,null,null,null,null,{"$f":"IF(A1544='vyhledávání dílů'!$B$4,'seznamy dílů_BalTec'!A1544,0)","v":0}]
[null,null,null,null,null,null,{"$f":"IF(A1545='vyhledávání dílů'!$B$4,'seznamy dílů_BalTec'!A1545,0)","v":0}]
[null,null,null,null,null,null,{"$f":"IF(A1546='vyhledávání dílů'!$B$4,'seznamy dílů_BalTec'!A1546,0)","v":0}]
[null,null,null,null,null,null,{"$f":"IF(A1547='vyhledávání dílů'!$B$4,'seznamy dílů_BalTec'!A1547,0)","v":0}]
[null,null,null,null,null,null,{"$f":"IF(A1548='vyhledávání dílů'!$B$4,'seznamy dílů_BalTec'!A1548,0)","v":0}]
[null,null,null,null,null,null,{"$f":"IF(A1549='vyhledávání dílů'!$B$4,'seznamy dílů_BalTec'!A1549,0)","v":0}]
[null,null,null,null,null,null,{"$f":"IF(A1550='vyhledávání dílů'!$B$4,'seznamy dílů_BalTec'!A1550,0)","v":0}]
[null,null,null,null,null,null,{"$f":"IF(A1551='vyhledávání dílů'!$B$4,'seznamy dílů_BalTec'!A1551,0)","v":0}]
[null,null,null,null,null,null,{"$f":"IF(A1552='vyhledávání dílů'!$B$4,'seznamy dílů_BalTec'!A1552,0)","v":0}]
[null,null,null,null,null,null,{"$f":"IF(A1553='vyhledávání dílů'!$B$4,'seznamy dílů_BalTec'!A1553,0)","v":0}]
[null,null,null,null,null,null,{"$f":"IF(A1554='vyhledávání dílů'!$B$4,'seznamy dílů_BalTec'!A1554,0)","v":0}]
[null,null,null,null,null,null,{"$f":"IF(A1555='vyhledávání dílů'!$B$4,'seznamy dílů_BalTec'!A1555,0)","v":0}]
[null,null,null,null,null,null,{"$f":"IF(A1556='vyhledávání dílů'!$B$4,'seznamy dílů_BalTec'!A1556,0)","v":0}]
[null,null,null,null,null,null,{"$f":"IF(A1557='vyhledávání dílů'!$B$4,'seznamy dílů_BalTec'!A1557,0)","v":0}]
[null,null,null,null,null,null,{"$f":"IF(A1558='vyhledávání dílů'!$B$4,'seznamy dílů_BalTec'!A1558,0)","v":0}]
[null,null,null,null,null,null,{"$f":"IF(A1559='vyhledávání dílů'!$B$4,'seznamy dílů_BalTec'!A1559,0)","v":0}]
[null,null,null,null,null,null,{"$f":"IF(A1560='vyhledávání dílů'!$B$4,'seznamy dílů_BalTec'!A1560,0)","v":0}]
[null,null,null,null,null,null,{"$f":"IF(A1561='vyhledávání dílů'!$B$4,'seznamy dílů_BalTec'!A1561,0)","v":0}]
[null,null,null,null,null,null,{"$f":"IF(A1562='vyhledávání dílů'!$B$4,'seznamy dílů_BalTec'!A1562,0)","v":0}]
[null,null,null,null,null,null,{"$f":"IF(A1563='vyhledávání dílů'!$B$4,'seznamy dílů_BalTec'!A1563,0)","v":0}]
[null,null,null,null,null,null,{"$f":"IF(A1564='vyhledávání dílů'!$B$4,'seznamy dílů_BalTec'!A1564,0)","v":0}]
[null,null,null,null,null,null,{"$f":"IF(A1565='vyhledávání dílů'!$B$4,'seznamy dílů_BalTec'!A1565,0)","v":0}]
[null,null,null,null,null,null,{"$f":"IF(A1566='vyhledávání dílů'!$B$4,'seznamy dílů_BalTec'!A1566,0)","v":0}]
[null,null,null,null,null,null,{"$f":"IF(A1567='vyhledávání dílů'!$B$4,'seznamy dílů_BalTec'!A1567,0)","v":0}]
[null,null,null,null,null,null,{"$f":"IF(A1568='vyhledávání dílů'!$B$4,'seznamy dílů_BalTec'!A1568,0)","v":0}]
[null,null,null,null,null,null,{"$f":"IF(A1569='vyhledávání dílů'!$B$4,'seznamy dílů_BalTec'!A1569,0)","v":0}]
[null,null,null,null,null,null,{"$f":"IF(A1570='vyhledávání dílů'!$B$4,'seznamy dílů_BalTec'!A1570,0)","v":0}]
[null,null,null,null,null,null,{"$f":"IF(A1571='vyhledávání dílů'!$B$4,'seznamy dílů_BalTec'!A1571,0)","v":0}]
[null,null,null,null,null,null,{"$f":"IF(A1572='vyhledávání dílů'!$B$4,'seznamy dílů_BalTec'!A1572,0)","v":0}]
[null,null,null,null,null,null,{"$f":"IF(A1573='vyhledávání dílů'!$B$4,'seznamy dílů_BalTec'!A1573,0)","v":0}]
[null,null,null,null,null,null,{"$f":"IF(A1574='vyhledávání dílů'!$B$4,'seznamy dílů_BalTec'!A1574,0)","v":0}]
[null,null,null,null,null,null,{"$f":"IF(A1575='vyhledávání dílů'!$B$4,'seznamy dílů_BalTec'!A1575,0)","v":0}]
[null,null,null,null,null,null,{"$f":"IF(A1576='vyhledávání dílů'!$B$4,'seznamy dílů_BalTec'!A1576,0)","v":0}]
[null,null,null,null,null,null,{"$f":"IF(A1577='vyhledávání dílů'!$B$4,'seznamy dílů_BalTec'!A1577,0)","v":0}]
[null,null,null,null,null,null,{"$f":"IF(A1578='vyhledávání dílů'!$B$4,'seznamy dílů_BalTec'!A1578,0)","v":0}]
[null,null,null,null,null,null,{"$f":"IF(A1579='vyhledávání dílů'!$B$4,'seznamy dílů_BalTec'!A1579,0)","v":0}]
[null,null,null,null,null,null,{"$f":"IF(A1580='vyhledávání dílů'!$B$4,'seznamy dílů_BalTec'!A1580,0)","v":0}]
[null,null,null,null,null,null,{"$f":"IF(A1581='vyhledávání dílů'!$B$4,'seznamy dílů_BalTec'!A1581,0)","v":0}]
[null,null,null,null,null,null,{"$f":"IF(A1582='vyhledávání dílů'!$B$4,'seznamy dílů_BalTec'!A1582,0)","v":0}]
[null,null,null,null,null,null,{"$f":"IF(A1583='vyhledávání dílů'!$B$4,'seznamy dílů_BalTec'!A1583,0)","v":0}]
[null,null,null,null,null,null,{"$f":"IF(A1584='vyhledávání dílů'!$B$4,'seznamy dílů_BalTec'!A1584,0)","v":0}]
[null,null,null,null,null,null,{"$f":"IF(A1585='vyhledávání dílů'!$B$4,'seznamy dílů_BalTec'!A1585,0)","v":0}]
[null,null,null,null,null,null,{"$f":"IF(A1586='vyhledávání dílů'!$B$4,'seznamy dílů_BalTec'!A1586,0)","v":0}]
[null,null,null,null,null,null,{"$f":"IF(A1587='vyhledávání dílů'!$B$4,'seznamy dílů_BalTec'!A1587,0)","v":0}]
[null,null,null,null,null,null,{"$f":"IF(A1588='vyhledávání dílů'!$B$4,'seznamy dílů_BalTec'!A1588,0)","v":0}]
[null,null,null,null,null,null,{"$f":"IF(A1589='vyhledávání dílů'!$B$4,'seznamy dílů_BalTec'!A1589,0)","v":0}]
[null,null,null,null,null,null,{"$f":"IF(A1590='vyhledávání dílů'!$B$4,'seznamy dílů_BalTec'!A1590,0)","v":0}]
[null,null,null,null,null,null,{"$f":"IF(A1591='vyhledávání dílů'!$B$4,'seznamy dílů_BalTec'!A1591,0)","v":0}]
[null,null,null,null,null,null,{"$f":"IF(A1592='vyhledávání dílů'!$B$4,'seznamy dílů_BalTec'!A1592,0)","v":0}]
[null,null,null,null,null,null,{"$f":"IF(A1593='vyhledávání dílů'!$B$4,'seznamy dílů_BalTec'!A1593,0)","v":0}]
[null,null,null,null,null,null,{"$f":"IF(A1594='vyhledávání dílů'!$B$4,'seznamy dílů_BalTec'!A1594,0)","v":0}]
[null,null,null,null,null,null,{"$f":"IF(A1595='vyhledávání dílů'!$B$4,'seznamy dílů_BalTec'!A1595,0)","v":0}]
[null,null,null,null,null,null,{"$f":"IF(A1596='vyhledávání dílů'!$B$4,'seznamy dílů_BalTec'!A1596,0)","v":0}]
[null,null,null,null,null,null,{"$f":"IF(A1597='vyhledávání dílů'!$B$4,'seznamy dílů_BalTec'!A1597,0)","v":0}]
[null,null,null,null,null,null,{"$f":"IF(A1598='vyhledávání dílů'!$B$4,'seznamy dílů_BalTec'!A1598,0)","v":0}]
[null,null,null,null,null,null,{"$f":"IF(A1599='vyhledávání dílů'!$B$4,'seznamy dílů_BalTec'!A1599,0)","v":0}]
[null,null,null,null,null,null,{"$f":"IF(A1600='vyhledávání dílů'!$B$4,'seznamy dílů_BalTec'!A1600,0)","v":0}]
[null,null,null,null,null,null,{"$f":"IF(A1601='vyhledávání dílů'!$B$4,'seznamy dílů_BalTec'!A1601,0)","v":0}]
[null,null,null,null,null,null,{"$f":"IF(A1602='vyhledávání dílů'!$B$4,'seznamy dílů_BalTec'!A1602,0)","v":0}]
[null,null,null,null,null,null,{"$f":"IF(A1603='vyhledávání dílů'!$B$4,'seznamy dílů_BalTec'!A1603,0)","v":0}]
[null,null,null,null,null,null,{"$f":"IF(A1604='vyhledávání dílů'!$B$4,'seznamy dílů_BalTec'!A1604,0)","v":0}]
[null,null,null,null,null,null,{"$f":"IF(A1605='vyhledávání dílů'!$B$4,'seznamy dílů_BalTec'!A1605,0)","v":0}]
[null,null,null,null,null,null,{"$f":"IF(A1606='vyhledávání dílů'!$B$4,'seznamy dílů_BalTec'!A1606,0)","v":0}]
[null,null,null,null,null,null,{"$f":"IF(A1607='vyhledávání dílů'!$B$4,'seznamy dílů_BalTec'!A1607,0)","v":0}]
[null,null,null,null,null,null,{"$f":"IF(A1608='vyhledávání dílů'!$B$4,'seznamy dílů_BalTec'!A1608,0)","v":0}]
[null,null,null,null,null,null,{"$f":"IF(A1609='vyhledávání dílů'!$B$4,'seznamy dílů_BalTec'!A1609,0)","v":0}]
[null,null,null,null,null,null,{"$f":"IF(A1610='vyhledávání dílů'!$B$4,'seznamy dílů_BalTec'!A1610,0)","v":0}]
[null,null,null,null,null,null,{"$f":"IF(A1611='vyhledávání dílů'!$B$4,'seznamy dílů_BalTec'!A1611,0)","v":0}]
[null,null,null,null,null,null,{"$f":"IF(A1612='vyhledávání dílů'!$B$4,'seznamy dílů_BalTec'!A1612,0)","v":0}]
[null,null,null,null,null,null,{"$f":"IF(A1613='vyhledávání dílů'!$B$4,'seznamy dílů_BalTec'!A1613,0)","v":0}]
[null,null,null,null,null,null,{"$f":"IF(A1614='vyhledávání dílů'!$B$4,'seznamy dílů_BalTec'!A1614,0)","v":0}]
[null,null,null,null,null,null,{"$f":"IF(A1615='vyhledávání dílů'!$B$4,'seznamy dílů_BalTec'!A1615,0)","v":0}]
[null,null,null,null,null,null,{"$f":"IF(A1616='vyhledávání dílů'!$B$4,'seznamy dílů_BalTec'!A1616,0)","v":0}]
[null,null,null,null,null,null,{"$f":"IF(A1617='vyhledávání dílů'!$B$4,'seznamy dílů_BalTec'!A1617,0)","v":0}]
[null,null,null,null,null,null,{"$f":"IF(A1618='vyhledávání dílů'!$B$4,'seznamy dílů_BalTec'!A1618,0)","v":0}]
[null,null,null,null,null,null,{"$f":"IF(A1619='vyhledávání dílů'!$B$4,'seznamy dílů_BalTec'!A1619,0)","v":0}]
[null,null,null,null,null,null,{"$f":"IF(A1620='vyhledávání dílů'!$B$4,'seznamy dílů_BalTec'!A1620,0)","v":0}]
[null,null,null,null,null,null,{"$f":"IF(A1621='vyhledávání dílů'!$B$4,'seznamy dílů_BalTec'!A1621,0)","v":0}]
[null,null,null,null,null,null,{"$f":"IF(A1622='vyhledávání dílů'!$B$4,'seznamy dílů_BalTec'!A1622,0)","v":0}]
[null,null,null,null,null,null,{"$f":"IF(A1623='vyhledávání dílů'!$B$4,'seznamy dílů_BalTec'!A1623,0)","v":0}]
[null,null,null,null,null,null,{"$f":"IF(A1624='vyhledávání dílů'!$B$4,'seznamy dílů_BalTec'!A1624,0)","v":0}]
[null,null,null,null,null,null,{"$f":"IF(A1625='vyhledávání dílů'!$B$4,'seznamy dílů_BalTec'!A1625,0)","v":0}]
[null,null,null,null,null,null,{"$f":"IF(A1626='vyhledávání dílů'!$B$4,'seznamy dílů_BalTec'!A1626,0)","v":0}]
[null,null,null,null,null,null,{"$f":"IF(A1627='vyhledávání dílů'!$B$4,'seznamy dílů_BalTec'!A1627,0)","v":0}]
[null,null,null,null,null,null,{"$f":"IF(A1628='vyhledávání dílů'!$B$4,'seznamy dílů_BalTec'!A1628,0)","v":0}]
[null,null,null,null,null,null,{"$f":"IF(A1629='vyhledávání dílů'!$B$4,'seznamy dílů_BalTec'!A1629,0)","v":0}]
[null,null,null,null,null,null,{"$f":"IF(A1630='vyhledávání dílů'!$B$4,'seznamy dílů_BalTec'!A1630,0)","v":0}]
[null,null,null,null,null,null,{"$f":"IF(A1631='vyhledávání dílů'!$B$4,'seznamy dílů_BalTec'!A1631,0)","v":0}]
[null,null,null,null,null,null,{"$f":"IF(A1632='vyhledávání dílů'!$B$4,'seznamy dílů_BalTec'!A1632,0)","v":0}]
[null,null,null,null,null,null,{"$f":"IF(A1633='vyhledávání dílů'!$B$4,'seznamy dílů_BalTec'!A1633,0)","v":0}]
[null,null,null,null,null,null,{"$f":"IF(A1634='vyhledávání dílů'!$B$4,'seznamy dílů_BalTec'!A1634,0)","v":0}]
[null,null,null,null,null,null,{"$f":"IF(A1635='vyhledávání dílů'!$B$4,'seznamy dílů_BalTec'!A1635,0)","v":0}]
[null,null,null,null,null,null,{"$f":"IF(A1636='vyhledávání dílů'!$B$4,'seznamy dílů_BalTec'!A1636,0)","v":0}]
[null,null,null,null,null,null,{"$f":"IF(A1637='vyhledávání dílů'!$B$4,'seznamy dílů_BalTec'!A1637,0)","v":0}]
[null,null,null,null,null,null,{"$f":"IF(A1638='vyhledávání dílů'!$B$4,'seznamy dílů_BalTec'!A1638,0)","v":0}]
[null,null,null,null,null,null,{"$f":"IF(A1639='vyhledávání dílů'!$B$4,'seznamy dílů_BalTec'!A1639,0)","v":0}]
[null,null,null,null,null,null,{"$f":"IF(A1640='vyhledávání dílů'!$B$4,'seznamy dílů_BalTec'!A1640,0)","v":0}]
[null,null,null,null,null,null,{"$f":"IF(A1641='vyhledávání dílů'!$B$4,'seznamy dílů_BalTec'!A1641,0)","v":0}]
[null,null,null,null,null,null,{"$f":"IF(A1642='vyhledávání dílů'!$B$4,'seznamy dílů_BalTec'!A1642,0)","v":0}]
[null,null,null,null,null,null,{"$f":"IF(A1643='vyhledávání dílů'!$B$4,'seznamy dílů_BalTec'!A1643,0)","v":0}]
[null,null,null,null,null,null,{"$f":"IF(A1644='vyhledávání dílů'!$B$4,'seznamy dílů_BalTec'!A1644,0)","v":0}]
[null,null,null,null,null,null,{"$f":"IF(A1645='vyhledávání dílů'!$B$4,'seznamy dílů_BalTec'!A1645,0)","v":0}]
[null,null,null,null,null,null,{"$f":"IF(A1646='vyhledávání dílů'!$B$4,'seznamy dílů_BalTec'!A1646,0)","v":0}]
[null,null,null,null,null,null,{"$f":"IF(A1647='vyhledávání dílů'!$B$4,'seznamy dílů_BalTec'!A1647,0)","v":0}]
[null,null,null,null,null,null,{"$f":"IF(A1648='vyhledávání dílů'!$B$4,'seznamy dílů_BalTec'!A1648,0)","v":0}]
[null,null,null,null,null,null,{"$f":"IF(A1649='vyhledávání dílů'!$B$4,'seznamy dílů_BalTec'!A1649,0)","v":0}]
[null,null,null,null,null,null,{"$f":"IF(A1650='vyhledávání dílů'!$B$4,'seznamy dílů_BalTec'!A1650,0)","v":0}]
[null,null,null,null,null,null,{"$f":"IF(A1651='vyhledávání dílů'!$B$4,'seznamy dílů_BalTec'!A1651,0)","v":0}]
[null,null,null,null,null,null,{"$f":"IF(A1652='vyhledávání dílů'!$B$4,'seznamy dílů_BalTec'!A1652,0)","v":0}]
[null,null,null,null,null,null,{"$f":"IF(A1653='vyhledávání dílů'!$B$4,'seznamy dílů_BalTec'!A1653,0)","v":0}]
[null,null,null,null,null,null,{"$f":"IF(A1654='vyhledávání dílů'!$B$4,'seznamy dílů_BalTec'!A1654,0)","v":0}]
[null,null,null,null,null,null,{"$f":"IF(A1655='vyhledávání dílů'!$B$4,'seznamy dílů_BalTec'!A1655,0)","v":0}]
[null,null,null,null,null,null,{"$f":"IF(A1656='vyhledávání dílů'!$B$4,'seznamy dílů_BalTec'!A1656,0)","v":0}]
[null,null,null,null,null,null,{"$f":"IF(A1657='vyhledávání dílů'!$B$4,'seznamy dílů_BalTec'!A1657,0)","v":0}]
[null,null,null,null,null,null,{"$f":"IF(A1658='vyhledávání dílů'!$B$4,'seznamy dílů_BalTec'!A1658,0)","v":0}]
[null,null,null,null,null,null,{"$f":"IF(A1659='vyhledávání dílů'!$B$4,'seznamy dílů_BalTec'!A1659,0)","v":0}]
[null,null,null,null,null,null,{"$f":"IF(A1660='vyhledávání dílů'!$B$4,'seznamy dílů_BalTec'!A1660,0)","v":0}]
[null,null,null,null,null,null,{"$f":"IF(A1661='vyhledávání dílů'!$B$4,'seznamy dílů_BalTec'!A1661,0)","v":0}]
[null,null,null,null,null,null,{"$f":"IF(A1662='vyhledávání dílů'!$B$4,'seznamy dílů_BalTec'!A1662,0)","v":0}]
[null,null,null,null,null,null,{"$f":"IF(A1663='vyhledávání dílů'!$B$4,'seznamy dílů_BalTec'!A1663,0)","v":0}]
[null,null,null,null,null,null,{"$f":"IF(A1664='vyhledávání dílů'!$B$4,'seznamy dílů_BalTec'!A1664,0)","v":0}]
[null,null,null,null,null,null,{"$f":"IF(A1665='vyhledávání dílů'!$B$4,'seznamy dílů_BalTec'!A1665,0)","v":0}]
[null,null,null,null,null,null,{"$f":"IF(A1666='vyhledávání dílů'!$B$4,'seznamy dílů_BalTec'!A1666,0)","v":0}]
[null,null,null,null,null,null,{"$f":"IF(A1667='vyhledávání dílů'!$B$4,'seznamy dílů_BalTec'!A1667,0)","v":0}]
[null,null,null,null,null,null,{"$f":"IF(A1668='vyhledávání dílů'!$B$4,'seznamy dílů_BalTec'!A1668,0)","v":0}]
[null,null,null,null,null,null,{"$f":"IF(A1669='vyhledávání dílů'!$B$4,'seznamy dílů_BalTec'!A1669,0)","v":0}]
[null,null,null,null,null,null,{"$f":"IF(A1670='vyhledávání dílů'!$B$4,'seznamy dílů_BalTec'!A1670,0)","v":0}]
[null,null,null,null,null,null,{"$f":"IF(A1671='vyhledávání dílů'!$B$4,'seznamy dílů_BalTec'!A1671,0)","v":0}]
[null,null,null,null,null,null,{"$f":"IF(A1672='vyhledávání dílů'!$B$4,'seznamy dílů_BalTec'!A1672,0)","v":0}]
[null,null,null,null,null,null,{"$f":"IF(A1673='vyhledávání dílů'!$B$4,'seznamy dílů_BalTec'!A1673,0)","v":0}]
[null,null,null,null,null,null,{"$f":"IF(A1674='vyhledávání dílů'!$B$4,'seznamy dílů_BalTec'!A1674,0)","v":0}]
[null,null,null,null,null,null,{"$f":"IF(A1675='vyhledávání dílů'!$B$4,'seznamy dílů_BalTec'!A1675,0)","v":0}]
[null,null,null,null,null,null,{"$f":"IF(A1676='vyhledávání dílů'!$B$4,'seznamy dílů_BalTec'!A1676,0)","v":0}]
[null,null,null,null,null,null,{"$f":"IF(A1677='vyhledávání dílů'!$B$4,'seznamy dílů_BalTec'!A1677,0)","v":0}]
[null,null,null,null,null,null,{"$f":"IF(A1678='vyhledávání dílů'!$B$4,'seznamy dílů_BalTec'!A1678,0)","v":0}]
[null,null,null,null,null,null,{"$f":"IF(A1679='vyhledávání dílů'!$B$4,'seznamy dílů_BalTec'!A1679,0)","v":0}]
[null,null,null,null,null,null,{"$f":"IF(A1680='vyhledávání dílů'!$B$4,'seznamy dílů_BalTec'!A1680,0)","v":0}]
[null,null,null,null,null,null,{"$f":"IF(A1681='vyhledávání dílů'!$B$4,'seznamy dílů_BalTec'!A1681,0)","v":0}]
[null,null,null,null,null,null,{"$f":"IF(A1682='vyhledávání dílů'!$B$4,'seznamy dílů_BalTec'!A1682,0)","v":0}]
[null,null,null,null,null,null,{"$f":"IF(A1683='vyhledávání dílů'!$B$4,'seznamy dílů_BalTec'!A1683,0)","v":0}]
[null,null,null,null,null,null,{"$f":"IF(A1684='vyhledávání dílů'!$B$4,'seznamy dílů_BalTec'!A1684,0)","v":0}]
[null,null,null,null,null,null,{"$f":"IF(A1685='vyhledávání dílů'!$B$4,'seznamy dílů_BalTec'!A1685,0)","v":0}]
[null,null,null,null,null,null,{"$f":"IF(A1686='vyhledávání dílů'!$B$4,'seznamy dílů_BalTec'!A1686,0)","v":0}]
[null,null,null,null,null,null,{"$f":"IF(A1687='vyhledávání dílů'!$B$4,'seznamy dílů_BalTec'!A1687,0)","v":0}]
[null,null,null,null,null,null,{"$f":"IF(A1688='vyhledávání dílů'!$B$4,'seznamy dílů_BalTec'!A1688,0)","v":0}]
[null,null,null,null,null,null,{"$f":"IF(A1689='vyhledávání dílů'!$B$4,'seznamy dílů_BalTec'!A1689,0)","v":0}]
[null,null,null,null,null,null,{"$f":"IF(A1690='vyhledávání dílů'!$B$4,'seznamy dílů_BalTec'!A1690,0)","v":0}]
[null,null,null,null,null,null,{"$f":"IF(A1691='vyhledávání dílů'!$B$4,'seznamy dílů_BalTec'!A1691,0)","v":0}]
[null,null,null,null,null,null,{"$f":"IF(A1692='vyhledávání dílů'!$B$4,'seznamy dílů_BalTec'!A1692,0)","v":0}]
[null,null,null,null,null,null,{"$f":"IF(A1693='vyhledávání dílů'!$B$4,'seznamy dílů_BalTec'!A1693,0)","v":0}]
[null,null,null,null,null,null,{"$f":"IF(A1694='vyhledávání dílů'!$B$4,'seznamy dílů_BalTec'!A1694,0)","v":0}]
[null,null,null,null,null,null,{"$f":"IF(A1695='vyhledávání dílů'!$B$4,'seznamy dílů_BalTec'!A1695,0)","v":0}]
[null,null,null,null,null,null,{"$f":"IF(A1696='vyhledávání dílů'!$B$4,'seznamy dílů_BalTec'!A1696,0)","v":0}]
[null,null,null,null,null,null,{"$f":"IF(A1697='vyhledávání dílů'!$B$4,'seznamy dílů_BalTec'!A1697,0)","v":0}]
[null,null,null,null,null,null,{"$f":"IF(A1698='vyhledávání dílů'!$B$4,'seznamy dílů_BalTec'!A1698,0)","v":0}]
[null,null,null,null,null,null,{"$f":"IF(A1699='vyhledávání dílů'!$B$4,'seznamy dílů_BalTec'!A1699,0)","v":0}]
[null,null,null,null,null,null,{"$f":"IF(A1700='vyhledávání dílů'!$B$4,'seznamy dílů_BalTec'!A1700,0)","v":0}]
[null,null,null,null,null,null,{"$f":"IF(A1701='vyhledávání dílů'!$B$4,'seznamy dílů_BalTec'!A1701,0)","v":0}]
[null,null,null,null,null,null,{"$f":"IF(A1702='vyhledávání dílů'!$B$4,'seznamy dílů_BalTec'!A1702,0)","v":0}]
[null,null,null,null,null,null,{"$f":"IF(A1703='vyhledávání dílů'!$B$4,'seznamy dílů_BalTec'!A1703,0)","v":0}]
[null,null,null,null,null,null,{"$f":"IF(A1704='vyhledávání dílů'!$B$4,'seznamy dílů_BalTec'!A1704,0)","v":0}]
[null,null,null,null,null,null,{"$f":"IF(A1705='vyhledávání dílů'!$B$4,'seznamy dílů_BalTec'!A1705,0)","v":0}]
[null,null,null,null,null,null,{"$f":"IF(A1706='vyhledávání dílů'!$B$4,'seznamy dílů_BalTec'!A1706,0)","v":0}]
[null,null,null,null,null,null,{"$f":"IF(A1707='vyhledávání dílů'!$B$4,'seznamy dílů_BalTec'!A1707,0)","v":0}]
[null,null,null,null,null,null,{"$f":"IF(A1708='vyhledávání dílů'!$B$4,'seznamy dílů_BalTec'!A1708,0)","v":0}]
[null,null,null,null,null,null,{"$f":"IF(A1709='vyhledávání dílů'!$B$4,'seznamy dílů_BalTec'!A1709,0)","v":0}]
[null,null,null,null,null,null,{"$f":"IF(A1710='vyhledávání dílů'!$B$4,'seznamy dílů_BalTec'!A1710,0)","v":0}]
[null,null,null,null,null,null,{"$f":"IF(A1711='vyhledávání dílů'!$B$4,'seznamy dílů_BalTec'!A1711,0)","v":0}]
[null,null,null,null,null,null,{"$f":"IF(A1712='vyhledávání dílů'!$B$4,'seznamy dílů_BalTec'!A1712,0)","v":0}]
[null,null,null,null,null,null,{"$f":"IF(A1713='vyhledávání dílů'!$B$4,'seznamy dílů_BalTec'!A1713,0)","v":0}]
[null,null,null,null,null,null,{"$f":"IF(A1714='vyhledávání dílů'!$B$4,'seznamy dílů_BalTec'!A1714,0)","v":0}]
[null,null,null,null,null,null,{"$f":"IF(A1715='vyhledávání dílů'!$B$4,'seznamy dílů_BalTec'!A1715,0)","v":0}]
[null,null,null,null,null,null,{"$f":"IF(A1716='vyhledávání dílů'!$B$4,'seznamy dílů_BalTec'!A1716,0)","v":0}]
[null,null,null,null,null,null,{"$f":"IF(A1717='vyhledávání dílů'!$B$4,'seznamy dílů_BalTec'!A1717,0)","v":0}]
[null,null,null,null,null,null,{"$f":"IF(A1718='vyhledávání dílů'!$B$4,'seznamy dílů_BalTec'!A1718,0)","v":0}]
[null,null,null,null,null,null,{"$f":"IF(A1719='vyhledávání dílů'!$B$4,'seznamy dílů_BalTec'!A1719,0)","v":0}]
[null,null,null,null,null,null,{"$f":"IF(A1720='vyhledávání dílů'!$B$4,'seznamy dílů_BalTec'!A1720,0)","v":0}]
[null,null,null,null,null,null,{"$f":"IF(A1721='vyhledávání dílů'!$B$4,'seznamy dílů_BalTec'!A1721,0)","v":0}]
[null,null,null,null,null,null,{"$f":"IF(A1722='vyhledávání dílů'!$B$4,'seznamy dílů_BalTec'!A1722,0)","v":0}]
[null,null,null,null,null,null,{"$f":"IF(A1723='vyhledávání dílů'!$B$4,'seznamy dílů_BalTec'!A1723,0)","v":0}]
[null,null,null,null,null,null,{"$f":"IF(A1724='vyhledávání dílů'!$B$4,'seznamy dílů_BalTec'!A1724,0)","v":0}]
[null,null,null,null,null,null,{"$f":"IF(A1725='vyhledávání dílů'!$B$4,'seznamy dílů_BalTec'!A1725,0)","v":0}]
[null,null,null,null,null,null,{"$f":"IF(A1726='vyhledávání dílů'!$B$4,'seznamy dílů_BalTec'!A1726,0)","v":0}]
[null,null,null,null,null,null,{"$f":"IF(A1727='vyhledávání dílů'!$B$4,'seznamy dílů_BalTec'!A1727,0)","v":0}]
[null,null,null,null,null,null,{"$f":"IF(A1728='vyhledávání dílů'!$B$4,'seznamy dílů_BalTec'!A1728,0)","v":0}]
[null,null,null,null,null,null,{"$f":"IF(A1729='vyhledávání dílů'!$B$4,'seznamy dílů_BalTec'!A1729,0)","v":0}]
[null,null,null,null,null,null,{"$f":"IF(A1730='vyhledávání dílů'!$B$4,'seznamy dílů_BalTec'!A1730,0)","v":0}]
[null,null,null,null,null,null,{"$f":"IF(A1731='vyhledávání dílů'!$B$4,'seznamy dílů_BalTec'!A1731,0)","v":0}]
[null,null,null,null,null,null,{"$f":"IF(A1732='vyhledávání dílů'!$B$4,'seznamy dílů_BalTec'!A1732,0)","v":0}]
[null,null,null,null,null,null,{"$f":"IF(A1733='vyhledávání dílů'!$B$4,'seznamy dílů_BalTec'!A1733,0)","v":0}]
[null,null,null,null,null,null,{"$f":"IF(A1734='vyhledávání dílů'!$B$4,'seznamy dílů_BalTec'!A1734,0)","v":0}]
[null,null,null,null,null,null,{"$f":"IF(A1735='vyhledávání dílů'!$B$4,'seznamy dílů_BalTec'!A1735,0)","v":0}]
[null,null,null,null,null,null,{"$f":"IF(A1736='vyhledávání dílů'!$B$4,'seznamy dílů_BalTec'!A1736,0)","v":0}]
[null,null,null,null,null,null,{"$f":"IF(A1737='vyhledávání dílů'!$B$4,'seznamy dílů_BalTec'!A1737,0)","v":0}]
[null,null,null,null,null,null,{"$f":"IF(A1738='vyhledávání dílů'!$B$4,'seznamy dílů_BalTec'!A1738,0)","v":0}]
[null,null,null,null,null,null,{"$f":"IF(A1739='vyhledávání dílů'!$B$4,'seznamy dílů_BalTec'!A1739,0)","v":0}]
[null,null,null,null,null,null,{"$f":"IF(A1740='vyhledávání dílů'!$B$4,'seznamy dílů_BalTec'!A1740,0)","v":0}]
[null,null,null,null,null,null,{"$f":"IF(A1741='vyhledávání dílů'!$B$4,'seznamy dílů_BalTec'!A1741,0)","v":0}]
[null,null,null,null,null,null,{"$f":"IF(A1742='vyhledávání dílů'!$B$4,'seznamy dílů_BalTec'!A1742,0)","v":0}]
[null,null,null,null,null,null,{"$f":"IF(A1743='vyhledávání dílů'!$B$4,'seznamy dílů_BalTec'!A1743,0)","v":0}]
[null,null,null,null,null,null,{"$f":"IF(A1744='vyhledávání dílů'!$B$4,'seznamy dílů_BalTec'!A1744,0)","v":0}]
[null,null,null,null,null,null,{"$f":"IF(A1745='vyhledávání dílů'!$B$4,'seznamy dílů_BalTec'!A1745,0)","v":0}]
[null,null,null,null,null,null,{"$f":"IF(A1746='vyhledávání dílů'!$B$4,'seznamy dílů_BalTec'!A1746,0)","v":0}]
[null,null,null,null,null,null,{"$f":"IF(A1747='vyhledávání dílů'!$B$4,'seznamy dílů_BalTec'!A1747,0)","v":0}]
[null,null,null,null,null,null,{"$f":"IF(A1748='vyhledávání dílů'!$B$4,'seznamy dílů_BalTec'!A1748,0)","v":0}]
[null,null,null,null,null,null,{"$f":"IF(A1749='vyhledávání dílů'!$B$4,'seznamy dílů_BalTec'!A1749,0)","v":0}]
[null,null,null,null,null,null,{"$f":"IF(A1750='vyhledávání dílů'!$B$4,'seznamy dílů_BalTec'!A1750,0)","v":0}]
[null,null,null,null,null,null,{"$f":"IF(A1751='vyhledávání dílů'!$B$4,'seznamy dílů_BalTec'!A1751,0)","v":0}]
[null,null,null,null,null,null,{"$f":"IF(A1752='vyhledávání dílů'!$B$4,'seznamy dílů_BalTec'!A1752,0)","v":0}]
[null,null,null,null,null,null,{"$f":"IF(A1753='vyhledávání dílů'!$B$4,'seznamy dílů_BalTec'!A1753,0)","v":0}]
[null,null,null,null,null,null,{"$f":"IF(A1754='vyhledávání dílů'!$B$4,'seznamy dílů_BalTec'!A1754,0)","v":0}]
[null,null,null,null,null,null,{"$f":"IF(A1755='vyhledávání dílů'!$B$4,'seznamy dílů_BalTec'!A1755,0)","v":0}]
[null,null,null,null,null,null,{"$f":"IF(A1756='vyhledávání dílů'!$B$4,'seznamy dílů_BalTec'!A1756,0)","v":0}]
[null,null,null,null,null,null,{"$f":"IF(A1757='vyhledávání dílů'!$B$4,'seznamy dílů_BalTec'!A1757,0)","v":0}]
[null,null,null,null,null,null,{"$f":"IF(A1758='vyhledávání dílů'!$B$4,'seznamy dílů_BalTec'!A1758,0)","v":0}]
[null,null,null,null,null,null,{"$f":"IF(A1759='vyhledávání dílů'!$B$4,'seznamy dílů_BalTec'!A1759,0)","v":0}]
[null,null,null,null,null,null,{"$f":"IF(A1760='vyhledávání dílů'!$B$4,'seznamy dílů_BalTec'!A1760,0)","v":0}]
[null,null,null,null,null,null,{"$f":"IF(A1761='vyhledávání dílů'!$B$4,'seznamy dílů_BalTec'!A1761,0)","v":0}]
[null,null,null,null,null,null,{"$f":"IF(A1762='vyhledávání dílů'!$B$4,'seznamy dílů_BalTec'!A1762,0)","v":0}]
[null,null,null,null,null,null,{"$f":"IF(A1763='vyhledávání dílů'!$B$4,'seznamy dílů_BalTec'!A1763,0)","v":0}]
[null,null,null,null,null,null,{"$f":"IF(A1764='vyhledávání dílů'!$B$4,'seznamy dílů_BalTec'!A1764,0)","v":0}]
[null,null,null,null,null,null,{"$f":"IF(A1765='vyhledávání dílů'!$B$4,'seznamy dílů_BalTec'!A1765,0)","v":0}]
[null,null,null,null,null,null,{"$f":"IF(A1766='vyhledávání dílů'!$B$4,'seznamy dílů_BalTec'!A1766,0)","v":0}]
[null,null,null,null,null,null,{"$f":"IF(A1767='vyhledávání dílů'!$B$4,'seznamy dílů_BalTec'!A1767,0)","v":0}]
[null,null,null,null,null,null,{"$f":"IF(A1768='vyhledávání dílů'!$B$4,'seznamy dílů_BalTec'!A1768,0)","v":0}]
[null,null,null,null,null,null,{"$f":"IF(A1769='vyhledávání dílů'!$B$4,'seznamy dílů_BalTec'!A1769,0)","v":0}]
[null,null,null,null,null,null,{"$f":"IF(A1770='vyhledávání dílů'!$B$4,'seznamy dílů_BalTec'!A1770,0)","v":0}]
[null,null,null,null,null,null,{"$f":"IF(A1771='vyhledávání dílů'!$B$4,'seznamy dílů_BalTec'!A1771,0)","v":0}]
[null,null,null,null,null,null,{"$f":"IF(A1772='vyhledávání dílů'!$B$4,'seznamy dílů_BalTec'!A1772,0)","v":0}]
[null,null,null,null,null,null,{"$f":"IF(A1773='vyhledávání dílů'!$B$4,'seznamy dílů_BalTec'!A1773,0)","v":0}]
[null,null,null,null,null,null,{"$f":"IF(A1774='vyhledávání dílů'!$B$4,'seznamy dílů_BalTec'!A1774,0)","v":0}]
[null,null,null,null,null,null,{"$f":"IF(A1775='vyhledávání dílů'!$B$4,'seznamy dílů_BalTec'!A1775,0)","v":0}]
[null,null,null,null,null,null,{"$f":"IF(A1776='vyhledávání dílů'!$B$4,'seznamy dílů_BalTec'!A1776,0)","v":0}]
[null,null,null,null,null,null,{"$f":"IF(A1777='vyhledávání dílů'!$B$4,'seznamy dílů_BalTec'!A1777,0)","v":0}]
[null,null,null,null,null,null,{"$f":"IF(A1778='vyhledávání dílů'!$B$4,'seznamy dílů_BalTec'!A1778,0)","v":0}]
[null,null,null,null,null,null,{"$f":"IF(A1779='vyhledávání dílů'!$B$4,'seznamy dílů_BalTec'!A1779,0)","v":0}]
[null,null,null,null,null,null,{"$f":"IF(A1780='vyhledávání dílů'!$B$4,'seznamy dílů_BalTec'!A1780,0)","v":0}]
[null,null,null,null,null,null,{"$f":"IF(A1781='vyhledávání dílů'!$B$4,'seznamy dílů_BalTec'!A1781,0)","v":0}]
[null,null,null,null,null,null,{"$f":"IF(A1782='vyhledávání dílů'!$B$4,'seznamy dílů_BalTec'!A1782,0)","v":0}]
[null,null,null,null,null,null,{"$f":"IF(A1783='vyhledávání dílů'!$B$4,'seznamy dílů_BalTec'!A1783,0)","v":0}]
[null,null,null,null,null,null,{"$f":"IF(A1784='vyhledávání dílů'!$B$4,'seznamy dílů_BalTec'!A1784,0)","v":0}]
[null,null,null,null,null,null,{"$f":"IF(A1785='vyhledávání dílů'!$B$4,'seznamy dílů_BalTec'!A1785,0)","v":0}]
[null,null,null,null,null,null,{"$f":"IF(A1786='vyhledávání dílů'!$B$4,'seznamy dílů_BalTec'!A1786,0)","v":0}]
[null,null,null,null,null,null,{"$f":"IF(A1787='vyhledávání dílů'!$B$4,'seznamy dílů_BalTec'!A1787,0)","v":0}]
[null,null,null,null,null,null,{"$f":"IF(A1788='vyhledávání dílů'!$B$4,'seznamy dílů_BalTec'!A1788,0)","v":0}]
[null,null,null,null,null,null,{"$f":"IF(A1789='vyhledávání dílů'!$B$4,'seznamy dílů_BalTec'!A1789,0)","v":0}]
[null,null,null,null,null,null,{"$f":"IF(A1790='vyhledávání dílů'!$B$4,'seznamy dílů_BalTec'!A1790,0)","v":0}]
[null,null,null,null,null,null,{"$f":"IF(A1791='vyhledávání dílů'!$B$4,'seznamy dílů_BalTec'!A1791,0)","v":0}]
[null,null,null,null,null,null,{"$f":"IF(A1792='vyhledávání dílů'!$B$4,'seznamy dílů_BalTec'!A1792,0)","v":0}]
[null,null,null,null,null,null,{"$f":"IF(A1793='vyhledávání dílů'!$B$4,'seznamy dílů_BalTec'!A1793,0)","v":0}]
[null,null,null,null,null,null,{"$f":"IF(A1794='vyhledávání dílů'!$B$4,'seznamy dílů_BalTec'!A1794,0)","v":0}]
[null,null,null,null,null,null,{"$f":"IF(A1795='vyhledávání dílů'!$B$4,'seznamy dílů_BalTec'!A1795,0)","v":0}]
[null,null,null,null,null,null,{"$f":"IF(A1796='vyhledávání dílů'!$B$4,'seznamy dílů_BalTec'!A1796,0)","v":0}]
[null,null,null,null,null,null,{"$f":"IF(A1797='vyhledávání dílů'!$B$4,'seznamy dílů_BalTec'!A1797,0)","v":0}]
[null,null,null,null,null,null,{"$f":"IF(A1798='vyhledávání dílů'!$B$4,'seznamy dílů_BalTec'!A1798,0)","v":0}]
[null,null,null,null,null,null,{"$f":"IF(A1799='vyhledávání dílů'!$B$4,'seznamy dílů_BalTec'!A1799,0)","v":0}]
[null,null,null,null,null,null,{"$f":"IF(A1800='vyhledávání dílů'!$B$4,'seznamy dílů_BalTec'!A1800,0)","v":0}]
[null,null,null,null,null,null,{"$f":"IF(A1801='vyhledávání dílů'!$B$4,'seznamy dílů_BalTec'!A1801,0)","v":0}]
[null,null,null,null,null,null,{"$f":"IF(A1802='vyhledávání dílů'!$B$4,'seznamy dílů_BalTec'!A1802,0)","v":0}]
[null,null,null,null,null,null,{"$f":"IF(A1803='vyhledávání dílů'!$B$4,'seznamy dílů_BalTec'!A1803,0)","v":0}]
[null,null,null,null,null,null,{"$f":"IF(A1804='vyhledávání dílů'!$B$4,'seznamy dílů_BalTec'!A1804,0)","v":0}]
[null,null,null,null,null,null,{"$f":"IF(A1805='vyhledávání dílů'!$B$4,'seznamy dílů_BalTec'!A1805,0)","v":0}]
[null,null,null,null,null,null,{"$f":"IF(A1806='vyhledávání dílů'!$B$4,'seznamy dílů_BalTec'!A1806,0)","v":0}]
[null,null,null,null,null,null,{"$f":"IF(A1807='vyhledávání dílů'!$B$4,'seznamy dílů_BalTec'!A1807,0)","v":0}]
[null,null,null,null,null,null,{"$f":"IF(A1808='vyhledávání dílů'!$B$4,'seznamy dílů_BalTec'!A1808,0)","v":0}]
[null,null,null,null,null,null,{"$f":"IF(A1809='vyhledávání dílů'!$B$4,'seznamy dílů_BalTec'!A1809,0)","v":0}]
[null,null,null,null,null,null,{"$f":"IF(A1810='vyhledávání dílů'!$B$4,'seznamy dílů_BalTec'!A1810,0)","v":0}]
[null,null,null,null,null,null,{"$f":"IF(A1811='vyhledávání dílů'!$B$4,'seznamy dílů_BalTec'!A1811,0)","v":0}]
[null,null,null,null,null,null,{"$f":"IF(A1812='vyhledávání dílů'!$B$4,'seznamy dílů_BalTec'!A1812,0)","v":0}]
[null,null,null,null,null,null,{"$f":"IF(A1813='vyhledávání dílů'!$B$4,'seznamy dílů_BalTec'!A1813,0)","v":0}]
[null,null,null,null,null,null,{"$f":"IF(A1814='vyhledávání dílů'!$B$4,'seznamy dílů_BalTec'!A1814,0)","v":0}]
[null,null,null,null,null,null,{"$f":"IF(A1815='vyhledávání dílů'!$B$4,'seznamy dílů_BalTec'!A1815,0)","v":0}]
[null,null,null,null,null,null,{"$f":"IF(A1816='vyhledávání dílů'!$B$4,'seznamy dílů_BalTec'!A1816,0)","v":0}]
[null,null,null,null,null,null,{"$f":"IF(A1817='vyhledávání dílů'!$B$4,'seznamy dílů_BalTec'!A1817,0)","v":0}]
[null,null,null,null,null,null,{"$f":"IF(A1818='vyhledávání dílů'!$B$4,'seznamy dílů_BalTec'!A1818,0)","v":0}]
[null,null,null,null,null,null,{"$f":"IF(A1819='vyhledávání dílů'!$B$4,'seznamy dílů_BalTec'!A1819,0)","v":0}]
[null,null,null,null,null,null,{"$f":"IF(A1820='vyhledávání dílů'!$B$4,'seznamy dílů_BalTec'!A1820,0)","v":0}]
[null,null,null,null,null,null,{"$f":"IF(A1821='vyhledávání dílů'!$B$4,'seznamy dílů_BalTec'!A1821,0)","v":0}]
[null,null,null,null,null,null,{"$f":"IF(A1822='vyhledávání dílů'!$B$4,'seznamy dílů_BalTec'!A1822,0)","v":0}]
[null,null,null,null,null,null,{"$f":"IF(A1823='vyhledávání dílů'!$B$4,'seznamy dílů_BalTec'!A1823,0)","v":0}]
[null,null,null,null,null,null,{"$f":"IF(A1824='vyhledávání dílů'!$B$4,'seznamy dílů_BalTec'!A1824,0)","v":0}]
[null,null,null,null,null,null,{"$f":"IF(A1825='vyhledávání dílů'!$B$4,'seznamy dílů_BalTec'!A1825,0)","v":0}]
[null,null,null,null,null,null,{"$f":"IF(A1826='vyhledávání dílů'!$B$4,'seznamy dílů_BalTec'!A1826,0)","v":0}]
[null,null,null,null,null,null,{"$f":"IF(A1827='vyhledávání dílů'!$B$4,'seznamy dílů_BalTec'!A1827,0)","v":0}]
[null,null,null,null,null,null,{"$f":"IF(A1828='vyhledávání dílů'!$B$4,'seznamy dílů_BalTec'!A1828,0)","v":0}]
[null,null,null,null,null,null,{"$f":"IF(A1829='vyhledávání dílů'!$B$4,'seznamy dílů_BalTec'!A1829,0)","v":0}]
[null,null,null,null,null,null,{"$f":"IF(A1830='vyhledávání dílů'!$B$4,'seznamy dílů_BalTec'!A1830,0)","v":0}]
[null,null,null,null,null,null,{"$f":"IF(A1831='vyhledávání dílů'!$B$4,'seznamy dílů_BalTec'!A1831,0)","v":0}]
[null,null,null,null,null,null,{"$f":"IF(A1832='vyhledávání dílů'!$B$4,'seznamy dílů_BalTec'!A1832,0)","v":0}]
[null,null,null,null,null,null,{"$f":"IF(A1833='vyhledávání dílů'!$B$4,'seznamy dílů_BalTec'!A1833,0)","v":0}]
[null,null,null,null,null,null,{"$f":"IF(A1834='vyhledávání dílů'!$B$4,'seznamy dílů_BalTec'!A1834,0)","v":0}]
[null,null,null,null,null,null,{"$f":"IF(A1835='vyhledávání dílů'!$B$4,'seznamy dílů_BalTec'!A1835,0)","v":0}]
[null,null,null,null,null,null,{"$f":"IF(A1836='vyhledávání dílů'!$B$4,'seznamy dílů_BalTec'!A1836,0)","v":0}]
[null,null,null,null,null,null,{"$f":"IF(A1837='vyhledávání dílů'!$B$4,'seznamy dílů_BalTec'!A1837,0)","v":0}]
[null,null,null,null,null,null,{"$f":"IF(A1838='vyhledávání dílů'!$B$4,'seznamy dílů_BalTec'!A1838,0)","v":0}]
[null,null,null,null,null,null,{"$f":"IF(A1839='vyhledávání dílů'!$B$4,'seznamy dílů_BalTec'!A1839,0)","v":0}]
[null,null,null,null,null,null,{"$f":"IF(A1840='vyhledávání dílů'!$B$4,'seznamy dílů_BalTec'!A1840,0)","v":0}]
[null,null,null,null,null,null,{"$f":"IF(A1841='vyhledávání dílů'!$B$4,'seznamy dílů_BalTec'!A1841,0)","v":0}]
[null,null,null,null,null,null,{"$f":"IF(A1842='vyhledávání dílů'!$B$4,'seznamy dílů_BalTec'!A1842,0)","v":0}]
[null,null,null,null,null,null,{"$f":"IF(A1843='vyhledávání dílů'!$B$4,'seznamy dílů_BalTec'!A1843,0)","v":0}]
[null,null,null,null,null,null,{"$f":"IF(A1844='vyhledávání dílů'!$B$4,'seznamy dílů_BalTec'!A1844,0)","v":0}]
[null,null,null,null,null,null,{"$f":"IF(A1845='vyhledávání dílů'!$B$4,'seznamy dílů_BalTec'!A1845,0)","v":0}]
[null,null,null,null,null,null,{"$f":"IF(A1846='vyhledávání dílů'!$B$4,'seznamy dílů_BalTec'!A1846,0)","v":0}]
[null,null,null,null,null,null,{"$f":"IF(A1847='vyhledávání dílů'!$B$4,'seznamy dílů_BalTec'!A1847,0)","v":0}]
[null,null,null,null,null,null,{"$f":"IF(A1848='vyhledávání dílů'!$B$4,'seznamy dílů_BalTec'!A1848,0)","v":0}]
[null,null,null,null,null,null,{"$f":"IF(A1849='vyhledávání dílů'!$B$4,'seznamy dílů_BalTec'!A1849,0)","v":0}]
[null,null,null,null,null,null,{"$f":"IF(A1850='vyhledávání dílů'!$B$4,'seznamy dílů_BalTec'!A1850,0)","v":0}]
[null,null,null,null,null,null,{"$f":"IF(A1851='vyhledávání dílů'!$B$4,'seznamy dílů_BalTec'!A1851,0)","v":0}]
[null,null,null,null,null,null,{"$f":"IF(A1852='vyhledávání dílů'!$B$4,'seznamy dílů_BalTec'!A1852,0)","v":0}]
[null,null,null,null,null,null,{"$f":"IF(A1853='vyhledávání dílů'!$B$4,'seznamy dílů_BalTec'!A1853,0)","v":0}]
[null,null,null,null,null,null,{"$f":"IF(A1854='vyhledávání dílů'!$B$4,'seznamy dílů_BalTec'!A1854,0)","v":0}]
[null,null,null,null,null,null,{"$f":"IF(A1855='vyhledávání dílů'!$B$4,'seznamy dílů_BalTec'!A1855,0)","v":0}]
[null,null,null,null,null,null,{"$f":"IF(A1856='vyhledávání dílů'!$B$4,'seznamy dílů_BalTec'!A1856,0)","v":0}]
[null,null,null,null,null,null,{"$f":"IF(A1857='vyhledávání dílů'!$B$4,'seznamy dílů_BalTec'!A1857,0)","v":0}]
[null,null,null,null,null,null,{"$f":"IF(A1858='vyhledávání dílů'!$B$4,'seznamy dílů_BalTec'!A1858,0)","v":0}]
[null,null,null,null,null,null,{"$f":"IF(A1859='vyhledávání dílů'!$B$4,'seznamy dílů_BalTec'!A1859,0)","v":0}]
[null,null,null,null,null,null,{"$f":"IF(A1860='vyhledávání dílů'!$B$4,'seznamy dílů_BalTec'!A1860,0)","v":0}]
[null,null,null,null,null,null,{"$f":"IF(A1861='vyhledávání dílů'!$B$4,'seznamy dílů_BalTec'!A1861,0)","v":0}]
[null,null,null,null,null,null,{"$f":"IF(A1862='vyhledávání dílů'!$B$4,'seznamy dílů_BalTec'!A1862,0)","v":0}]
[null,null,null,null,null,null,{"$f":"IF(A1863='vyhledávání dílů'!$B$4,'seznamy dílů_BalTec'!A1863,0)","v":0}]
[null,null,null,null,null,null,{"$f":"IF(A1864='vyhledávání dílů'!$B$4,'seznamy dílů_BalTec'!A1864,0)","v":0}]
[null,null,null,null,null,null,{"$f":"IF(A1865='vyhledávání dílů'!$B$4,'seznamy dílů_BalTec'!A1865,0)","v":0}]
[null,null,null,null,null,null,{"$f":"IF(A1866='vyhledávání dílů'!$B$4,'seznamy dílů_BalTec'!A1866,0)","v":0}]
[null,null,null,null,null,null,{"$f":"IF(A1867='vyhledávání dílů'!$B$4,'seznamy dílů_BalTec'!A1867,0)","v":0}]
[null,null,null,null,null,null,{"$f":"IF(A1868='vyhledávání dílů'!$B$4,'seznamy dílů_BalTec'!A1868,0)","v":0}]
[null,null,null,null,null,null,{"$f":"IF(A1869='vyhledávání dílů'!$B$4,'seznamy dílů_BalTec'!A1869,0)","v":0}]
[null,null,null,null,null,null,{"$f":"IF(A1870='vyhledávání dílů'!$B$4,'seznamy dílů_BalTec'!A1870,0)","v":0}]
[null,null,null,null,null,null,{"$f":"IF(A1871='vyhledávání dílů'!$B$4,'seznamy dílů_BalTec'!A1871,0)","v":0}]
[null,null,null,null,null,null,{"$f":"IF(A1872='vyhledávání dílů'!$B$4,'seznamy dílů_BalTec'!A1872,0)","v":0}]
[null,null,null,null,null,null,{"$f":"IF(A1873='vyhledávání dílů'!$B$4,'seznamy dílů_BalTec'!A1873,0)","v":0}]
[null,null,null,null,null,null,{"$f":"IF(A1874='vyhledávání dílů'!$B$4,'seznamy dílů_BalTec'!A1874,0)","v":0}]
[null,null,null,null,null,null,{"$f":"IF(A1875='vyhledávání dílů'!$B$4,'seznamy dílů_BalTec'!A1875,0)","v":0}]
[null,null,null,null,null,null,{"$f":"IF(A1876='vyhledávání dílů'!$B$4,'seznamy dílů_BalTec'!A1876,0)","v":0}]
[null,null,null,null,null,null,{"$f":"IF(A1877='vyhledávání dílů'!$B$4,'seznamy dílů_BalTec'!A1877,0)","v":0}]
[null,null,null,null,null,null,{"$f":"IF(A1878='vyhledávání dílů'!$B$4,'seznamy dílů_BalTec'!A1878,0)","v":0}]
[null,null,null,null,null,null,{"$f":"IF(A1879='vyhledávání dílů'!$B$4,'seznamy dílů_BalTec'!A1879,0)","v":0}]
[null,null,null,null,null,null,{"$f":"IF(A1880='vyhledávání dílů'!$B$4,'seznamy dílů_BalTec'!A1880,0)","v":0}]
[null,null,null,null,null,null,{"$f":"IF(A1881='vyhledávání dílů'!$B$4,'seznamy dílů_BalTec'!A1881,0)","v":0}]
[null,null,null,null,null,null,{"$f":"IF(A1882='vyhledávání dílů'!$B$4,'seznamy dílů_BalTec'!A1882,0)","v":0}]
[null,null,null,null,null,null,{"$f":"IF(A1883='vyhledávání dílů'!$B$4,'seznamy dílů_BalTec'!A1883,0)","v":0}]
[null,null,null,null,null,null,{"$f":"IF(A1884='vyhledávání dílů'!$B$4,'seznamy dílů_BalTec'!A1884,0)","v":0}]
[null,null,null,null,null,null,{"$f":"IF(A1885='vyhledávání dílů'!$B$4,'seznamy dílů_BalTec'!A1885,0)","v":0}]
[null,null,null,null,null,null,{"$f":"IF(A1886='vyhledávání dílů'!$B$4,'seznamy dílů_BalTec'!A1886,0)","v":0}]
[null,null,null,null,null,null,{"$f":"IF(A1887='vyhledávání dílů'!$B$4,'seznamy dílů_BalTec'!A1887,0)","v":0}]
[null,null,null,null,null,null,{"$f":"IF(A1888='vyhledávání dílů'!$B$4,'seznamy dílů_BalTec'!A1888,0)","v":0}]
[null,null,null,null,null,null,{"$f":"IF(A1889='vyhledávání dílů'!$B$4,'seznamy dílů_BalTec'!A1889,0)","v":0}]
[null,null,null,null,null,null,{"$f":"IF(A1890='vyhledávání dílů'!$B$4,'seznamy dílů_BalTec'!A1890,0)","v":0}]
[null,null,null,null,null,null,{"$f":"IF(A1891='vyhledávání dílů'!$B$4,'seznamy dílů_BalTec'!A1891,0)","v":0}]
[null,null,null,null,null,null,{"$f":"IF(A1892='vyhledávání dílů'!$B$4,'seznamy dílů_BalTec'!A1892,0)","v":0}]
[null,null,null,null,null,null,{"$f":"IF(A1893='vyhledávání dílů'!$B$4,'seznamy dílů_BalTec'!A1893,0)","v":0}]
[null,null,null,null,null,null,{"$f":"IF(A1894='vyhledávání dílů'!$B$4,'seznamy dílů_BalTec'!A1894,0)","v":0}]
[null,null,null,null,null,null,{"$f":"IF(A1895='vyhledávání dílů'!$B$4,'seznamy dílů_BalTec'!A1895,0)","v":0}]
[null,null,null,null,null,null,{"$f":"IF(A1896='vyhledávání dílů'!$B$4,'seznamy dílů_BalTec'!A1896,0)","v":0}]
[null,null,null,null,null,null,{"$f":"IF(A1897='vyhledávání dílů'!$B$4,'seznamy dílů_BalTec'!A1897,0)","v":0}]
[null,null,null,null,null,null,{"$f":"IF(A1898='vyhledávání dílů'!$B$4,'seznamy dílů_BalTec'!A1898,0)","v":0}]
[null,null,null,null,null,null,{"$f":"IF(A1899='vyhledávání dílů'!$B$4,'seznamy dílů_BalTec'!A1899,0)","v":0}]
[null,null,null,null,null,null,{"$f":"IF(A1900='vyhledávání dílů'!$B$4,'seznamy dílů_BalTec'!A1900,0)","v":0}]
[null,null,null,null,null,null,{"$f":"IF(A1901='vyhledávání dílů'!$B$4,'seznamy dílů_BalTec'!A1901,0)","v":0}]
[null,null,null,null,null,null,{"$f":"IF(A1902='vyhledávání dílů'!$B$4,'seznamy dílů_BalTec'!A1902,0)","v":0}]
[null,null,null,null,null,null,{"$f":"IF(A1903='vyhledávání dílů'!$B$4,'seznamy dílů_BalTec'!A1903,0)","v":0}]
[null,null,null,null,null,null,{"$f":"IF(A1904='vyhledávání dílů'!$B$4,'seznamy dílů_BalTec'!A1904,0)","v":0}]
[null,null,null,null,null,null,{"$f":"IF(A1905='vyhledávání dílů'!$B$4,'seznamy dílů_BalTec'!A1905,0)","v":0}]
[null,null,null,null,null,null,{"$f":"IF(A1906='vyhledávání dílů'!$B$4,'seznamy dílů_BalTec'!A1906,0)","v":0}]
[null,null,null,null,null,null,{"$f":"IF(A1907='vyhledávání dílů'!$B$4,'seznamy dílů_BalTec'!A1907,0)","v":0}]
[null,null,null,null,null,null,{"$f":"IF(A1908='vyhledávání dílů'!$B$4,'seznamy dílů_BalTec'!A1908,0)","v":0}]
[null,null,null,null,null,null,{"$f":"IF(A1909='vyhledávání dílů'!$B$4,'seznamy dílů_BalTec'!A1909,0)","v":0}]
[null,null,null,null,null,null,{"$f":"IF(A1910='vyhledávání dílů'!$B$4,'seznamy dílů_BalTec'!A1910,0)","v":0}]
[null,null,null,null,null,null,{"$f":"IF(A1911='vyhledávání dílů'!$B$4,'seznamy dílů_BalTec'!A1911,0)","v":0}]
[null,null,null,null,null,null,{"$f":"IF(A1912='vyhledávání dílů'!$B$4,'seznamy dílů_BalTec'!A1912,0)","v":0}]
[null,null,null,null,null,null,{"$f":"IF(A1913='vyhledávání dílů'!$B$4,'seznamy dílů_BalTec'!A1913,0)","v":0}]
[null,null,null,null,null,null,{"$f":"IF(A1914='vyhledávání dílů'!$B$4,'seznamy dílů_BalTec'!A1914,0)","v":0}]
[null,null,null,null,null,null,{"$f":"IF(A1915='vyhledávání dílů'!$B$4,'seznamy dílů_BalTec'!A1915,0)","v":0}]
[null,null,null,null,null,null,{"$f":"IF(A1916='vyhledávání dílů'!$B$4,'seznamy dílů_BalTec'!A1916,0)","v":0}]
[null,null,null,null,null,null,{"$f":"IF(A1917='vyhledávání dílů'!$B$4,'seznamy dílů_BalTec'!A1917,0)","v":0}]
[null,null,null,null,null,null,{"$f":"IF(A1918='vyhledávání dílů'!$B$4,'seznamy dílů_BalTec'!A1918,0)","v":0}]
[null,null,null,null,null,null,{"$f":"IF(A1919='vyhledávání dílů'!$B$4,'seznamy dílů_BalTec'!A1919,0)","v":0}]
[null,null,null,null,null,null,{"$f":"IF(A1920='vyhledávání dílů'!$B$4,'seznamy dílů_BalTec'!A1920,0)","v":0}]
[null,null,null,null,null,null,{"$f":"IF(A1921='vyhledávání dílů'!$B$4,'seznamy dílů_BalTec'!A1921,0)","v":0}]
[null,null,null,null,null,null,{"$f":"IF(A1922='vyhledávání dílů'!$B$4,'seznamy dílů_BalTec'!A1922,0)","v":0}]
[null,null,null,null,null,null,{"$f":"IF(A1923='vyhledávání dílů'!$B$4,'seznamy dílů_BalTec'!A1923,0)","v":0}]
[null,null,null,null,null,null,{"$f":"IF(A1924='vyhledávání dílů'!$B$4,'seznamy dílů_BalTec'!A1924,0)","v":0}]
[null,null,null,null,null,null,{"$f":"IF(A1925='vyhledávání dílů'!$B$4,'seznamy dílů_BalTec'!A1925,0)","v":0}]
[null,null,null,null,null,null,{"$f":"IF(A1926='vyhledávání dílů'!$B$4,'seznamy dílů_BalTec'!A1926,0)","v":0}]
[null,null,null,null,null,null,{"$f":"IF(A1927='vyhledávání dílů'!$B$4,'seznamy dílů_BalTec'!A1927,0)","v":0}]
[null,null,null,null,null,null,{"$f":"IF(A1928='vyhledávání dílů'!$B$4,'seznamy dílů_BalTec'!A1928,0)","v":0}]
[null,null,null,null,null,null,{"$f":"IF(A1929='vyhledávání dílů'!$B$4,'seznamy dílů_BalTec'!A1929,0)","v":0}]
[null,null,null,null,null,null,{"$f":"IF(A1930='vyhledávání dílů'!$B$4,'seznamy dílů_BalTec'!A1930,0)","v":0}]
[null,null,null,null,null,null,{"$f":"IF(A1931='vyhledávání dílů'!$B$4,'seznamy dílů_BalTec'!A1931,0)","v":0}]
[null,null,null,null,null,null,{"$f":"IF(A1932='vyhledávání dílů'!$B$4,'seznamy dílů_BalTec'!A1932,0)","v":0}]
[null,null,null,null,null,null,{"$f":"IF(A1933='vyhledávání dílů'!$B$4,'seznamy dílů_BalTec'!A1933,0)","v":0}]
[null,null,null,null,null,null,{"$f":"IF(A1934='vyhledávání dílů'!$B$4,'seznamy dílů_BalTec'!A1934,0)","v":0}]
[null,null,null,null,null,null,{"$f":"IF(A1935='vyhledávání dílů'!$B$4,'seznamy dílů_BalTec'!A1935,0)","v":0}]
[null,null,null,null,null,null,{"$f":"IF(A1936='vyhledávání dílů'!$B$4,'seznamy dílů_BalTec'!A1936,0)","v":0}]
[null,null,null,null,null,null,{"$f":"IF(A1937='vyhledávání dílů'!$B$4,'seznamy dílů_BalTec'!A1937,0)","v":0}]
[null,null,null,null,null,null,{"$f":"IF(A1938='vyhledávání dílů'!$B$4,'seznamy dílů_BalTec'!A1938,0)","v":0}]
[null,null,null,null,null,null,{"$f":"IF(A1939='vyhledávání dílů'!$B$4,'seznamy dílů_BalTec'!A1939,0)","v":0}]
[null,null,null,null,null,null,{"$f":"IF(A1940='vyhledávání dílů'!$B$4,'seznamy dílů_BalTec'!A1940,0)","v":0}]
[null,null,null,null,null,null,{"$f":"IF(A1941='vyhledávání dílů'!$B$4,'seznamy dílů_BalTec'!A1941,0)","v":0}]
[null,null,null,null,null,null,{"$f":"IF(A1942='vyhledávání dílů'!$B$4,'seznamy dílů_BalTec'!A1942,0)","v":0}]
[null,null,null,null,null,null,{"$f":"IF(A1943='vyhledávání dílů'!$B$4,'seznamy dílů_BalTec'!A1943,0)","v":0}]
[null,null,null,null,null,null,{"$f":"IF(A1944='vyhledávání dílů'!$B$4,'seznamy dílů_BalTec'!A1944,0)","v":0}]
[null,null,null,null,null,null,{"$f":"IF(A1945='vyhledávání dílů'!$B$4,'seznamy dílů_BalTec'!A1945,0)","v":0}]
[null,null,null,null,null,null,{"$f":"IF(A1946='vyhledávání dílů'!$B$4,'seznamy dílů_BalTec'!A1946,0)","v":0}]
[null,null,null,null,null,null,{"$f":"IF(A1947='vyhledávání dílů'!$B$4,'seznamy dílů_BalTec'!A1947,0)","v":0}]
[null,null,null,null,null,null,{"$f":"IF(A1948='vyhledávání dílů'!$B$4,'seznamy dílů_BalTec'!A1948,0)","v":0}]
[null,null,null,null,null,null,{"$f":"IF(A1949='vyhledávání dílů'!$B$4,'seznamy dílů_BalTec'!A1949,0)","v":0}]
[null,null,null,null,null,null,{"$f":"IF(A1950='vyhledávání dílů'!$B$4,'seznamy dílů_BalTec'!A1950,0)","v":0}]
[null,null,null,null,null,null,{"$f":"IF(A1951='vyhledávání dílů'!$B$4,'seznamy dílů_BalTec'!A1951,0)","v":0}]
[null,null,null,null,null,null,{"$f":"IF(A1952='vyhledávání dílů'!$B$4,'seznamy dílů_BalTec'!A1952,0)","v":0}]
[null,null,null,null,null,null,{"$f":"IF(A1953='vyhledávání dílů'!$B$4,'seznamy dílů_BalTec'!A1953,0)","v":0}]
[null,null,null,null,null,null,{"$f":"IF(A1954='vyhledávání dílů'!$B$4,'seznamy dílů_BalTec'!A1954,0)","v":0}]
[null,null,null,null,null,null,{"$f":"IF(A1955='vyhledávání dílů'!$B$4,'seznamy dílů_BalTec'!A1955,0)","v":0}]
[null,null,null,null,null,null,{"$f":"IF(A1956='vyhledávání dílů'!$B$4,'seznamy dílů_BalTec'!A1956,0)","v":0}]
[null,null,null,null,null,null,{"$f":"IF(A1957='vyhledávání dílů'!$B$4,'seznamy dílů_BalTec'!A1957,0)","v":0}]
[null,null,null,null,null,null,{"$f":"IF(A1958='vyhledávání dílů'!$B$4,'seznamy dílů_BalTec'!A1958,0)","v":0}]
[null,null,null,null,null,null,{"$f":"IF(A1959='vyhledávání dílů'!$B$4,'seznamy dílů_BalTec'!A1959,0)","v":0}]
[null,null,null,null,null,null,{"$f":"IF(A1960='vyhledávání dílů'!$B$4,'seznamy dílů_BalTec'!A1960,0)","v":0}]
[null,null,null,null,null,null,{"$f":"IF(A1961='vyhledávání dílů'!$B$4,'seznamy dílů_BalTec'!A1961,0)","v":0}]
[null,null,null,null,null,null,{"$f":"IF(A1962='vyhledávání dílů'!$B$4,'seznamy dílů_BalTec'!A1962,0)","v":0}]
[null,null,null,null,null,null,{"$f":"IF(A1963='vyhledávání dílů'!$B$4,'seznamy dílů_BalTec'!A1963,0)","v":0}]
[null,null,null,null,null,null,{"$f":"IF(A1964='vyhledávání dílů'!$B$4,'seznamy dílů_BalTec'!A1964,0)","v":0}]
[null,null,null,null,null,null,{"$f":"IF(A1965='vyhledávání dílů'!$B$4,'seznamy dílů_BalTec'!A1965,0)","v":0}]
[null,null,null,null,null,null,{"$f":"IF(A1966='vyhledávání dílů'!$B$4,'seznamy dílů_BalTec'!A1966,0)","v":0}]
[null,null,null,null,null,null,{"$f":"IF(A1967='vyhledávání dílů'!$B$4,'seznamy dílů_BalTec'!A1967,0)","v":0}]
[null,null,null,null,null,null,{"$f":"IF(A1968='vyhledávání dílů'!$B$4,'seznamy dílů_BalTec'!A1968,0)","v":0}]
[null,null,null,null,null,null,{"$f":"IF(A1969='vyhledávání dílů'!$B$4,'seznamy dílů_BalTec'!A1969,0)","v":0}]
[null,null,null,null,null,null,{"$f":"IF(A1970='vyhledávání dílů'!$B$4,'seznamy dílů_BalTec'!A1970,0)","v":0}]
[null,null,null,null,null,null,{"$f":"IF(A1971='vyhledávání dílů'!$B$4,'seznamy dílů_BalTec'!A1971,0)","v":0}]
[null,null,null,null,null,null,{"$f":"IF(A1972='vyhledávání dílů'!$B$4,'seznamy dílů_BalTec'!A1972,0)","v":0}]
[null,null,null,null,null,null,{"$f":"IF(A1973='vyhledávání dílů'!$B$4,'seznamy dílů_BalTec'!A1973,0)","v":0}]
[null,null,null,null,null,null,{"$f":"IF(A1974='vyhledávání dílů'!$B$4,'seznamy dílů_BalTec'!A1974,0)","v":0}]
[null,null,null,null,null,null,{"$f":"IF(A1975='vyhledávání dílů'!$B$4,'seznamy dílů_BalTec'!A1975,0)","v":0}]
[null,null,null,null,null,null,{"$f":"IF(A1976='vyhledávání dílů'!$B$4,'seznamy dílů_BalTec'!A1976,0)","v":0}]
[null,null,null,null,null,null,{"$f":"IF(A1977='vyhledávání dílů'!$B$4,'seznamy dílů_BalTec'!A1977,0)","v":0}]
[null,null,null,null,null,null,{"$f":"IF(A1978='vyhledávání dílů'!$B$4,'seznamy dílů_BalTec'!A1978,0)","v":0}]
[null,null,null,null,null,null,{"$f":"IF(A1979='vyhledávání dílů'!$B$4,'seznamy dílů_BalTec'!A1979,0)","v":0}]
[null,null,null,null,null,null,{"$f":"IF(A1980='vyhledávání dílů'!$B$4,'seznamy dílů_BalTec'!A1980,0)","v":0}]
[null,null,null,null,null,null,{"$f":"IF(A1981='vyhledávání dílů'!$B$4,'seznamy dílů_BalTec'!A1981,0)","v":0}]
[null,null,null,null,null,null,{"$f":"IF(A1982='vyhledávání dílů'!$B$4,'seznamy dílů_BalTec'!A1982,0)","v":0}]
[null,null,null,null,null,null,{"$f":"IF(A1983='vyhledávání dílů'!$B$4,'seznamy dílů_BalTec'!A1983,0)","v":0}]
[null,null,null,null,null,null,{"$f":"IF(A1984='vyhledávání dílů'!$B$4,'seznamy dílů_BalTec'!A1984,0)","v":0}]
[null,null,null,null,null,null,{"$f":"IF(A1985='vyhledávání dílů'!$B$4,'seznamy dílů_BalTec'!A1985,0)","v":0}]
[null,null,null,null,null,null,{"$f":"IF(A1986='vyhledávání dílů'!$B$4,'seznamy dílů_BalTec'!A1986,0)","v":0}]
[null,null,null,null,null,null,{"$f":"IF(A1987='vyhledávání dílů'!$B$4,'seznamy dílů_BalTec'!A1987,0)","v":0}]
[null,null,null,null,null,null,{"$f":"IF(A1988='vyhledávání dílů'!$B$4,'seznamy dílů_BalTec'!A1988,0)","v":0}]
[null,null,null,null,null,null,{"$f":"IF(A1989='vyhledávání dílů'!$B$4,'seznamy dílů_BalTec'!A1989,0)","v":0}]
[null,null,null,null,null,null,{"$f":"IF(A1990='vyhledávání dílů'!$B$4,'seznamy dílů_BalTec'!A1990,0)","v":0}]
[null,null,null,null,null,null,{"$f":"IF(A1991='vyhledávání dílů'!$B$4,'seznamy dílů_BalTec'!A1991,0)","v":0}]
[null,null,null,null,null,null,{"$f":"IF(A1992='vyhledávání dílů'!$B$4,'seznamy dílů_BalTec'!A1992,0)","v":0}]
[null,null,null,null,null,null,{"$f":"IF(A1993='vyhledávání dílů'!$B$4,'seznamy dílů_BalTec'!A1993,0)","v":0}]
[null,null,null,null,null,null,{"$f":"IF(A1994='vyhledávání dílů'!$B$4,'seznamy dílů_BalTec'!A1994,0)","v":0}]
[null,null,null,null,null,null,{"$f":"IF(A1995='vyhledávání dílů'!$B$4,'seznamy dílů_BalTec'!A1995,0)","v":0}]
[null,null,null,null,null,null,{"$f":"IF(A1996='vyhledávání dílů'!$B$4,'seznamy dílů_BalTec'!A1996,0)","v":0}]
[null,null,null,null,null,null,{"$f":"IF(A1997='vyhledávání dílů'!$B$4,'seznamy dílů_BalTec'!A1997,0)","v":0}]
[null,null,null,null,null,null,{"$f":"IF(A1998='vyhledávání dílů'!$B$4,'seznamy dílů_BalTec'!A1998,0)","v":0}]
[null,null,null,null,null,null,{"$f":"IF(A1999='vyhledávání dílů'!$B$4,'seznamy dílů_BalTec'!A1999,0)","v":0}]
[null,null,null,null,null,null,{"$f":"IF(A2000='vyhledávání dílů'!$B$4,'seznamy dílů_BalTec'!A2000,0)","v":0}]
[null,null,null,null,null,null,{"$f":"IF(A2001='vyhledávání dílů'!$B$4,'seznamy dílů_BalTec'!A2001,0)","v":0}]
[null,null,null,null,null,null,{"$f":"IF(A2002='vyhledávání dílů'!$B$4,'seznamy dílů_BalTec'!A2002,0)","v":0}]
[null,null,null,null,null,null,{"$f":"IF(A2003='vyhledávání dílů'!$B$4,'seznamy dílů_BalTec'!A2003,0)","v":0}]
[null,null,null,null,null,null,{"$f":"IF(A2004='vyhledávání dílů'!$B$4,'seznamy dílů_BalTec'!A2004,0)","v":0}]
[null,null,null,null,null,null,{"$f":"IF(A2005='vyhledávání dílů'!$B$4,'seznamy dílů_BalTec'!A2005,0)","v":0}]
[null,null,null,null,null,null,{"$f":"IF(A2006='vyhledávání dílů'!$B$4,'seznamy dílů_BalTec'!A2006,0)","v":0}]
[null,null,null,null,null,null,{"$f":"IF(A2007='vyhledávání dílů'!$B$4,'seznamy dílů_BalTec'!A2007,0)","v":0}]
[null,null,null,null,null,null,{"$f":"IF(A2008='vyhledávání dílů'!$B$4,'seznamy dílů_BalTec'!A2008,0)","v":0}]
[null,null,null,null,null,null,{"$f":"IF(A2009='vyhledávání dílů'!$B$4,'seznamy dílů_BalTec'!A2009,0)","v":0}]
[null,null,null,null,null,null,{"$f":"IF(A2010='vyhledávání dílů'!$B$4,'seznamy dílů_BalTec'!A2010,0)","v":0}]
[null,null,null,null,null,null,{"$f":"IF(A2011='vyhledávání dílů'!$B$4,'seznamy dílů_BalTec'!A2011,0)","v":0}]
[null,null,null,null,null,null,{"$f":"IF(A2012='vyhledávání dílů'!$B$4,'seznamy dílů_BalTec'!A2012,0)","v":0}]
[null,null,null,null,null,null,{"$f":"IF(A2013='vyhledávání dílů'!$B$4,'seznamy dílů_BalTec'!A2013,0)","v":0}]
[null,null,null,null,null,null,{"$f":"IF(A2014='vyhledávání dílů'!$B$4,'seznamy dílů_BalTec'!A2014,0)","v":0}]
[null,null,null,null,null,null,{"$f":"IF(A2015='vyhledávání dílů'!$B$4,'seznamy dílů_BalTec'!A2015,0)","v":0}]
[null,null,null,null,null,null,{"$f":"IF(A2016='vyhledávání dílů'!$B$4,'seznamy dílů_BalTec'!A2016,0)","v":0}]
[null,null,null,null,null,null,{"$f":"IF(A2017='vyhledávání dílů'!$B$4,'seznamy dílů_BalTec'!A2017,0)","v":0}]
[null,null,null,null,null,null,{"$f":"IF(A2018='vyhledávání dílů'!$B$4,'seznamy dílů_BalTec'!A2018,0)","v":0}]
[null,null,null,null,null,null,{"$f":"IF(A2019='vyhledávání dílů'!$B$4,'seznamy dílů_BalTec'!A2019,0)","v":0}]
[null,null,null,null,null,null,{"$f":"IF(A2020='vyhledávání dílů'!$B$4,'seznamy dílů_BalTec'!A2020,0)","v":0}]
[null,null,null,null,null,null,{"$f":"IF(A2021='vyhledávání dílů'!$B$4,'seznamy dílů_BalTec'!A2021,0)","v":0}]
[null,null,null,null,null,null,{"$f":"IF(A2022='vyhledávání dílů'!$B$4,'seznamy dílů_BalTec'!A2022,0)","v":0}]
[null,null,null,null,null,null,{"$f":"IF(A2023='vyhledávání dílů'!$B$4,'seznamy dílů_BalTec'!A2023,0)","v":0}]
[null,null,null,null,null,null,{"$f":"IF(A2024='vyhledávání dílů'!$B$4,'seznamy dílů_BalTec'!A2024,0)","v":0}]
[null,null,null,null,null,null,{"$f":"IF(A2025='vyhledávání dílů'!$B$4,'seznamy dílů_BalTec'!A2025,0)","v":0}]
[null,null,null,null,null,null,{"$f":"IF(A2026='vyhledávání dílů'!$B$4,'seznamy dílů_BalTec'!A2026,0)","v":0}]
[null,null,null,null,null,null,{"$f":"IF(A2027='vyhledávání dílů'!$B$4,'seznamy dílů_BalTec'!A2027,0)","v":0}]
[null,null,null,null,null,null,{"$f":"IF(A2028='vyhledávání dílů'!$B$4,'seznamy dílů_BalTec'!A2028,0)","v":0}]
[null,null,null,null,null,null,{"$f":"IF(A2029='vyhledávání dílů'!$B$4,'seznamy dílů_BalTec'!A2029,0)","v":0}]
[null,null,null,null,null,null,{"$f":"IF(A2030='vyhledávání dílů'!$B$4,'seznamy dílů_BalTec'!A2030,0)","v":0}]
[null,null,null,null,null,null,{"$f":"IF(A2031='vyhledávání dílů'!$B$4,'seznamy dílů_BalTec'!A2031,0)","v":0}]
[null,null,null,null,null,null,{"$f":"IF(A2032='vyhledávání dílů'!$B$4,'seznamy dílů_BalTec'!A2032,0)","v":0}]
[null,null,null,null,null,null,{"$f":"IF(A2033='vyhledávání dílů'!$B$4,'seznamy dílů_BalTec'!A2033,0)","v":0}]
[null,null,null,null,null,null,{"$f":"IF(A2034='vyhledávání dílů'!$B$4,'seznamy dílů_BalTec'!A2034,0)","v":0}]
[null,null,null,null,null,null,{"$f":"IF(A2035='vyhledávání dílů'!$B$4,'seznamy dílů_BalTec'!A2035,0)","v":0}]
[null,null,null,null,null,null,{"$f":"IF(A2036='vyhledávání dílů'!$B$4,'seznamy dílů_BalTec'!A2036,0)","v":0}]
[null,null,null,null,null,null,{"$f":"IF(A2037='vyhledávání dílů'!$B$4,'seznamy dílů_BalTec'!A2037,0)","v":0}]
[null,null,null,null,null,null,{"$f":"IF(A2038='vyhledávání dílů'!$B$4,'seznamy dílů_BalTec'!A2038,0)","v":0}]
[null,null,null,null,null,null,{"$f":"IF(A2039='vyhledávání dílů'!$B$4,'seznamy dílů_BalTec'!A2039,0)","v":0}]
[null,null,null,null,null,null,{"$f":"IF(A2040='vyhledávání dílů'!$B$4,'seznamy dílů_BalTec'!A2040,0)","v":0}]
[null,null,null,null,null,null,{"$f":"IF(A2041='vyhledávání dílů'!$B$4,'seznamy dílů_BalTec'!A2041,0)","v":0}]
[null,null,null,null,null,null,{"$f":"IF(A2042='vyhledávání dílů'!$B$4,'seznamy dílů_BalTec'!A2042,0)","v":0}]
[null,null,null,null,null,null,{"$f":"IF(A2043='vyhledávání dílů'!$B$4,'seznamy dílů_BalTec'!A2043,0)","v":0}]
[null,null,null,null,null,null,{"$f":"IF(A2044='vyhledávání dílů'!$B$4,'seznamy dílů_BalTec'!A2044,0)","v":0}]
[null,null,null,null,null,null,{"$f":"IF(A2045='vyhledávání dílů'!$B$4,'seznamy dílů_BalTec'!A2045,0)","v":0}]
[null,null,null,null,null,null,{"$f":"IF(A2046='vyhledávání dílů'!$B$4,'seznamy dílů_BalTec'!A2046,0)","v":0},{"$f":"SUM(G1:G2046)","v":0}]

{"sheet":"seznamy dílů_TOX","index":2,"n_rows":100,"n_cols":18,"rows_kept":100,"cut":false,"hidden":false,"merged":[]}
["objednací č.","počet ","Název dílu česky","Název dílu anglicky ","výkr. Pozice","poznámky",null,null,null,null,null,null,"Název dílu česky","Název dílu anglicky ","výkr. Pozice","objednací č.","počet ","velikost"]
["104610",0,"Doraz","Cushion",null,null,{"$f":"IF(A2='vyhledávání dílů'!$B$16,'seznamy dílů_TOX'!A2,0)","v":"104610"},null,null,null,null,null,"Throttle valve","škrtící ventil",null,"Festo - 151215",1]
["105386",1,"Vodící pouzdro","Guide bush","p.39",null,{"$f":"IF(A3='vyhledávání dílů'!$B$16,'seznamy dílů_TOX'!A3,0)","v":0},null,null,null,null,null,"Throttle valve","škrtící ventil",null,"Festo - 193145",2]
["108802",2,"nástrojvý držák","Tool holder",null,null,{"$f":"IF(A4='vyhledávání dílů'!$B$16,'seznamy dílů_TOX'!A4,0)","v":0},null,null,null,null,null,"Throttle valve","škrtící ventil",null,"Festo - 193147",2]
["110659",1,"Doraz","Cushion",null,null,{"$f":"IF(A5='vyhledávání dílů'!$B$16,'seznamy dílů_TOX'!A5,0)","v":0},null,null,null,null,null,"Throttle valve","škrtící ventil",null,"Festo - 193151",4]
["110666",8,"Tlumič","Muffler ","p.51",null,{"$f":"IF(A6='vyhledávání dílů'!$B$16,'seznamy dílů_TOX'!A6,0)","v":0},null,null,null,null,null,"Throttle valve","škrtící ventil",null,"Festo - 193152",4]
["110674",4,"Tlumič","Muffler ","p.54",null,{"$f":"IF(A7='vyhledávání dílů'!$B$16,'seznamy dílů_TOX'!A7,0)","v":0},null,null,null,null,null,"Bypass","Bypass","p.677",null,2,"S 8. 50. 12 D (použitý)"]
["110689",1,"Mechanická pružina","Compression spring","P.50",null,{"$f":"IF(A8='vyhledávání dílů'!$B$16,'seznamy dílů_TOX'!A8,0)","v":0},null,null,null,null,null,"Bypass","Bypass","p.677",null,1,"S 04. 300. 12 D (použitý)"]
["150359",6,"Plnící olejový nipl","Oil refill nipple","p.62",null,{"$f":"IF(A9='vyhledávání dílů'!$B$16,'seznamy dílů_TOX'!A9,0)","v":0},null,null,null,null,null,"Cushion","Doraz",null,null,1,"Sada pro S 8"]
["150369",2,"Vysokotlaký měřící bod G 1/4","HP measuring connector","p.30 Velký",null,{"$f":"IF(A10='vyhledávání dílů'!$B$16,'seznamy dílů_TOX'!A10,0)","v":0},null,null,null,null,null,"Cushion","Doraz",null,null,null,"Sada pro S 4"]
["150370",24,"Tlumič","Muffler ","p.51",null,{"$f":"IF(A11='vyhledávání dílů'!$B$16,'seznamy dílů_TOX'!A11,0)","v":0},null,null,null,null,null,"Cushion","Doraz",null,null,1,"Sada pro S 2"]
["150576",5,"Tlumič","Muffler ","p.51",null,{"$f":"IF(A12='vyhledávání dílů'!$B$16,'seznamy dílů_TOX'!A12,0)","v":0},null,null,null,null,null,"Cushion","Doraz",null,null,1,"Sada pro S 1"]
["151877",13,"Tlumič","Muffler ","p.51",null,{"$f":"IF(A13='vyhledávání dílů'!$B$16,'seznamy dílů_TOX'!A13,0)","v":0},null,null,null,null,null,"Cushion","Doraz",null,null,1,"Sada pro S 15"]
["151879",9,"Tlumič","Muffler ","p.54",null,{"$f":"IF(A14='vyhledávání dílů'!$B$16,'seznamy dílů_TOX'!A14,0)","v":0},null,null,null,null,null,"Ex. Silový ventil","Ex. Power stroke valve","p.53",null,2,"použité"]
["155800",6,"Vysokotlaký měřící bod M8x1","HP measuring connector","p.30 Malý",null,{"$f":"IF(A15='vyhledávání dílů'!$B$16,'seznamy dílů_TOX'!A15,0)","v":0},null,null,null,null,null,"Feed piston","Přítlačný píst","p.2",null,1,"S 4"]
["156669",1,"Mechanická pružina","Compression spring","p.50",null,{"$f":"IF(A16='vyhledávání dílů'!$B$16,'seznamy dílů_TOX'!A16,0)","v":0},null,null,null,null,null,"Mechanická pružina","Compression spring","p.50",null,1,"S 15. 32. 3"]
["164773",1,"Mechanická pružina","Compression spring","p.50",null,{"$f":"IF(A17='vyhledávání dílů'!$B$16,'seznamy dílů_TOX'!A17,0)","v":0},null,null,null,null,null,"Mechanická pružina","Compression spring","p.50",null,1,"S 4"]
["165433",1,"Tlumič","Muffler ","p.51",null,{"$f":"IF(A18='vyhledávání dílů'!$B$16,'seznamy dílů_TOX'!A18,0)","v":0},null,null,null,null,null,"Oil indicator needle","Indikátor hladiny oleje","p.79,81",null,51]
["167480",2,"Rovné šroubení","Straight screwing",null,null,{"$f":"IF(A19='vyhledávání dílů'!$B$16,'seznamy dílů_TOX'!A19,0)","v":0},null,null,null,null,null,"Tool holder","nástrojvý držák",null,null,1]
["170969",2,"nástrojvý držák","Tool holder",null,null,{"$f":"IF(A20='vyhledávání dílů'!$B$16,'seznamy dílů_TOX'!A20,0)","v":0}]
["171858",6,"Tlumič","Screw fitting","p.443",null,{"$f":"IF(A21='vyhledávání dílů'!$B$16,'seznamy dílů_TOX'!A21,0)","v":0}]
["176591",1,"Mechanická pružina","Compression spring","p.50",null,{"$f":"IF(A22='vyhledávání dílů'!$B$16,'seznamy dílů_TOX'!A22,0)","v":0}]
["210084",9,"X - ventil","Control throttle \"X\"","p.61",null,{"$f":"IF(A23='vyhledávání dílů'!$B$16,'seznamy dílů_TOX'!A23,0)","v":0}]
["215375",1,"Pneumatická pružina","Pressure regulator","p.461","malá",{"$f":"IF(A24='vyhledávání dílů'!$B$16,'seznamy dílů_TOX'!A24,0)","v":0}]
["218599",1,"Mechanická pružina","Compression spring","p.50","K 01. 50. 05 (contitnetal)",{"$f":"IF(A25='vyhledávání dílů'!$B$16,'seznamy dílů_TOX'!A25,0)","v":0}]
["242398",0,"Plnící hadička",null,null,null,{"$f":"IF(A26='vyhledávání dílů'!$B$16,'seznamy dílů_TOX'!A26,0)","v":0}]
["249593",10,"Tlumič","Muffler ","p.54",null,{"$f":"IF(A27='vyhledávání dílů'!$B$16,'seznamy dílů_TOX'!A27,0)","v":0}]
["322995",1,"Plunžr","Plunger piston","p.609","S 1",{"$f":"IF(A28='vyhledávání dílů'!$B$16,'seznamy dílů_TOX'!A28,0)","v":0}]
["338925",1,"Bypass","Bypass","P.677",null,{"$f":"IF(A29='vyhledávání dílů'!$B$16,'seznamy dílů_TOX'!A29,0)","v":0}]
["338926",1,"Bypass","Bypass","p.677",null,{"$f":"IF(A30='vyhledávání dílů'!$B$16,'seznamy dílů_TOX'!A30,0)","v":0}]
[null,null,null,null,null,null,{"$f":"IF(A31='vyhledávání dílů'!$B$16,'seznamy dílů_TOX'!A31,0)","v":0}]
[null,null,null,null,null,null,{"$f":"IF(A32='vyhledávání dílů'!$B$16,'seznamy dílů_TOX'!A32,0)","v":0}]
[null,null,null,null,null,null,{"$f":"IF(A33='vyhledávání dílů'!$B$16,'seznamy dílů_TOX'!A33,0)","v":0}]
[null,null,null,null,null,null,{"$f":"IF(A34='vyhledávání dílů'!$B$16,'seznamy dílů_TOX'!A34,0)","v":0}]
[null,null,null,null,null,null,{"$f":"IF(A35='vyhledávání dílů'!$B$16,'seznamy dílů_TOX'!A35,0)","v":0}]
[null,null,null,null,null,null,{"$f":"IF(A36='vyhledávání dílů'!$B$16,'seznamy dílů_TOX'!A36,0)","v":0}]
[null,null,null,null,null,null,{"$f":"IF(A37='vyhledávání dílů'!$B$16,'seznamy dílů_TOX'!A37,0)","v":0}]
[null,null,null,null,null,null,{"$f":"IF(A38='vyhledávání dílů'!$B$16,'seznamy dílů_TOX'!A38,0)","v":0}]
[null,null,null,null,null,null,{"$f":"IF(A39='vyhledávání dílů'!$B$16,'seznamy dílů_TOX'!A39,0)","v":0}]
[null,null,null,null,null,null,{"$f":"IF(A40='vyhledávání dílů'!$B$16,'seznamy dílů_TOX'!A40,0)","v":0}]
[null,null,null,null,null,null,{"$f":"IF(A41='vyhledávání dílů'!$B$16,'seznamy dílů_TOX'!A41,0)","v":0}]
[null,null,null,null,null,null,{"$f":"IF(A42='vyhledávání dílů'!$B$16,'seznamy dílů_TOX'!A42,0)","v":0}]
[null,null,null,null,null,null,{"$f":"IF(A43='vyhledávání dílů'!$B$16,'seznamy dílů_TOX'!A43,0)","v":0}]
[null,null,null,null,null,null,{"$f":"IF(A44='vyhledávání dílů'!$B$16,'seznamy dílů_TOX'!A44,0)","v":0}]
[null,null,null,null,null,null,{"$f":"IF(A45='vyhledávání dílů'!$B$16,'seznamy dílů_TOX'!A45,0)","v":0}]
[null,null,null,null,null,null,{"$f":"IF(A46='vyhledávání dílů'!$B$16,'seznamy dílů_TOX'!A46,0)","v":0}]
[null,null,null,null,null,null,{"$f":"IF(A47='vyhledávání dílů'!$B$16,'seznamy dílů_TOX'!A47,0)","v":0}]
[null,null,null,null,null,null,{"$f":"IF(A48='vyhledávání dílů'!$B$16,'seznamy dílů_TOX'!A48,0)","v":0}]
[null,null,null,null,null,null,{"$f":"IF(A49='vyhledávání dílů'!$B$16,'seznamy dílů_TOX'!A49,0)","v":0}]
[null,null,null,null,null,null,{"$f":"IF(A50='vyhledávání dílů'!$B$16,'seznamy dílů_TOX'!A50,0)","v":0}]
[null,null,null,null,null,null,{"$f":"IF(A51='vyhledávání dílů'!$B$16,'seznamy dílů_TOX'!A51,0)","v":0}]
[null,null,null,null,null,null,{"$f":"IF(A52='vyhledávání dílů'!$B$16,'seznamy dílů_TOX'!A52,0)","v":0}]
[null,null,null,null,null,null,{"$f":"IF(A53='vyhledávání dílů'!$B$16,'seznamy dílů_TOX'!A53,0)","v":0}]
[null,null,null,null,null,null,{"$f":"IF(A54='vyhledávání dílů'!$B$16,'seznamy dílů_TOX'!A54,0)","v":0}]
[null,null,null,null,null,null,{"$f":"IF(A55='vyhledávání dílů'!$B$16,'seznamy dílů_TOX'!A55,0)","v":0}]
[null,null,null,null,null,null,{"$f":"IF(A56='vyhledávání dílů'!$B$16,'seznamy dílů_TOX'!A56,0)","v":0}]
[null,null,null,null,null,null,{"$f":"IF(A57='vyhledávání dílů'!$B$16,'seznamy dílů_TOX'!A57,0)","v":0}]
[null,null,null,null,null,null,{"$f":"IF(A58='vyhledávání dílů'!$B$16,'seznamy dílů_TOX'!A58,0)","v":0}]
[null,null,null,null,null,null,{"$f":"IF(A59='vyhledávání dílů'!$B$16,'seznamy dílů_TOX'!A59,0)","v":0}]
[null,null,null,null,null,null,{"$f":"IF(A60='vyhledávání dílů'!$B$16,'seznamy dílů_TOX'!A60,0)","v":0}]
[null,null,null,null,null,null,{"$f":"IF(A61='vyhledávání dílů'!$B$16,'seznamy dílů_TOX'!A61,0)","v":0}]
[null,null,null,null,null,null,{"$f":"IF(A62='vyhledávání dílů'!$B$16,'seznamy dílů_TOX'!A62,0)","v":0}]
[null,null,null,null,null,null,{"$f":"IF(A63='vyhledávání dílů'!$B$16,'seznamy dílů_TOX'!A63,0)","v":0}]
[null,null,null,null,null,null,{"$f":"IF(A64='vyhledávání dílů'!$B$16,'seznamy dílů_TOX'!A64,0)","v":0}]
[null,null,null,null,null,null,{"$f":"IF(A65='vyhledávání dílů'!$B$16,'seznamy dílů_TOX'!A65,0)","v":0}]
[null,null,null,null,null,null,{"$f":"IF(A66='vyhledávání dílů'!$B$16,'seznamy dílů_TOX'!A66,0)","v":0}]
[null,null,null,null,null,null,{"$f":"IF(A67='vyhledávání dílů'!$B$16,'seznamy dílů_TOX'!A67,0)","v":0}]
[null,null,null,null,null,null,{"$f":"IF(A68='vyhledávání dílů'!$B$16,'seznamy dílů_TOX'!A68,0)","v":0}]
[null,null,null,null,null,null,{"$f":"IF(A69='vyhledávání dílů'!$B$16,'seznamy dílů_TOX'!A69,0)","v":0}]
[null,null,null,null,null,null,{"$f":"IF(A70='vyhledávání dílů'!$B$16,'seznamy dílů_TOX'!A70,0)","v":0}]
[null,null,null,null,null,null,{"$f":"IF(A71='vyhledávání dílů'!$B$16,'seznamy dílů_TOX'!A71,0)","v":0}]
[null,null,null,null,null,null,{"$f":"IF(A72='vyhledávání dílů'!$B$16,'seznamy dílů_TOX'!A72,0)","v":0}]
[null,null,null,null,null,null,{"$f":"IF(A73='vyhledávání dílů'!$B$16,'seznamy dílů_TOX'!A73,0)","v":0}]
[null,null,null,null,null,null,{"$f":"IF(A74='vyhledávání dílů'!$B$16,'seznamy dílů_TOX'!A74,0)","v":0}]
[null,null,null,null,null,null,{"$f":"IF(A75='vyhledávání dílů'!$B$16,'seznamy dílů_TOX'!A75,0)","v":0}]
[null,null,null,null,null,null,{"$f":"IF(A76='vyhledávání dílů'!$B$16,'seznamy dílů_TOX'!A76,0)","v":0}]
[null,null,null,null,null,null,{"$f":"IF(A77='vyhledávání dílů'!$B$16,'seznamy dílů_TOX'!A77,0)","v":0}]
[null,null,null,null,null,null,{"$f":"IF(A78='vyhledávání dílů'!$B$16,'seznamy dílů_TOX'!A78,0)","v":0}]
[null,null,null,null,null,null,{"$f":"IF(A79='vyhledávání dílů'!$B$16,'seznamy dílů_TOX'!A79,0)","v":0}]
[null,null,null,null,null,null,{"$f":"IF(A80='vyhledávání dílů'!$B$16,'seznamy dílů_TOX'!A80,0)","v":0}]
[null,null,null,null,null,null,{"$f":"IF(A81='vyhledávání dílů'!$B$16,'seznamy dílů_TOX'!A81,0)","v":0}]
[null,null,null,null,null,null,{"$f":"IF(A82='vyhledávání dílů'!$B$16,'seznamy dílů_TOX'!A82,0)","v":0}]
[null,null,null,null,null,null,{"$f":"IF(A83='vyhledávání dílů'!$B$16,'seznamy dílů_TOX'!A83,0)","v":0}]
[null,null,null,null,null,null,{"$f":"IF(A84='vyhledávání dílů'!$B$16,'seznamy dílů_TOX'!A84,0)","v":0}]
[null,null,null,null,null,null,{"$f":"IF(A85='vyhledávání dílů'!$B$16,'seznamy dílů_TOX'!A85,0)","v":0}]
[null,null,null,null,null,null,{"$f":"IF(A86='vyhledávání dílů'!$B$16,'seznamy dílů_TOX'!A86,0)","v":0}]
[null,null,null,null,null,null,{"$f":"IF(A87='vyhledávání dílů'!$B$16,'seznamy dílů_TOX'!A87,0)","v":0}]
[null,null,null,null,null,null,{"$f":"IF(A88='vyhledávání dílů'!$B$16,'seznamy dílů_TOX'!A88,0)","v":0}]
[null,null,null,null,null,null,{"$f":"IF(A89='vyhledávání dílů'!$B$16,'seznamy dílů_TOX'!A89,0)","v":0}]
[null,null,null,null,null,null,{"$f":"IF(A90='vyhledávání dílů'!$B$16,'seznamy dílů_TOX'!A90,0)","v":0}]
[null,null,null,null,null,null,{"$f":"IF(A91='vyhledávání dílů'!$B$16,'seznamy dílů_TOX'!A91,0)","v":0}]
[null,null,null,null,null,null,{"$f":"IF(A92='vyhledávání dílů'!$B$16,'seznamy dílů_TOX'!A92,0)","v":0}]
[null,null,null,null,null,null,{"$f":"IF(A93='vyhledávání dílů'!$B$16,'seznamy dílů_TOX'!A93,0)","v":0}]
[null,null,null,null,null,null,{"$f":"IF(A94='vyhledávání dílů'!$B$16,'seznamy dílů_TOX'!A94,0)","v":0}]
[null,null,null,null,null,null,{"$f":"IF(A95='vyhledávání dílů'!$B$16,'seznamy dílů_TOX'!A95,0)","v":0}]
[null,null,null,null,null,null,{"$f":"IF(A96='vyhledávání dílů'!$B$16,'seznamy dílů_TOX'!A96,0)","v":0}]
[null,null,null,null,null,null,{"$f":"IF(A97='vyhledávání dílů'!$B$16,'seznamy dílů_TOX'!A97,0)","v":0}]
[null,null,null,null,null,null,{"$f":"IF(A98='vyhledávání dílů'!$B$16,'seznamy dílů_TOX'!A98,0)","v":0}]
[null,null,null,null,null,null,{"$f":"IF(A99='vyhledávání dílů'!$B$16,'seznamy dílů_TOX'!A99,0)","v":0}]
[null,null,null,null,null,null,{"$f":"IF(A100='vyhledávání dílů'!$B$16,'seznamy dílů_TOX'!A100,0)","v":0},{"$f":"SUM(G1:G100)","v":0}]

{"sheet":"seznamy dílů_Stöger","index":3,"n_rows":100,"n_cols":8,"rows_kept":100,"cut":false,"hidden":false,"merged":[]}
["Obj. číslo dílce","počet kusů","Název česky","Název Aj"]
["210031",1,"Sada těsnění","Sealing kit",null,null,{"$f":"IF(A2='vyhledávání dílů'!$B$28,'seznamy dílů_Stöger'!A2,0)","v":"210031"}]
["210121",1,"Sada ložisek","Bearing kit",null,null,{"$f":"IF(A3='vyhledávání dílů'!$B$28,'seznamy dílů_Stöger'!A3,0)","v":0}]
["201321",2,"Pružinová podložka","Disc spring ",null,null,{"$f":"IF(A4='vyhledávání dílů'!$B$28,'seznamy dílů_Stöger'!A4,0)","v":0}]
["SPS 2021 000 0000 11",4,"Pouzdro (futro)","Bearing nut",null,null,{"$f":"IF(A5='vyhledávání dílů'!$B$28,'seznamy dílů_Stöger'!A5,0)","v":0}]
["202121",10,"Pojistný kroužek","Circlip",null,null,{"$f":"IF(A6='vyhledávání dílů'!$B$28,'seznamy dílů_Stöger'!A6,0)","v":0}]
["202043",10,"Pojistný kroužek","Circlip",null,null,{"$f":"IF(A7='vyhledávání dílů'!$B$28,'seznamy dílů_Stöger'!A7,0)","v":0}]
["202122",10,"Pojistný kroužek","Circlip",null,null,{"$f":"IF(A8='vyhledávání dílů'!$B$28,'seznamy dílů_Stöger'!A8,0)","v":0}]
["202010",10,"Pojistný kroužek","Circlip",null,null,{"$f":"IF(A9='vyhledávání dílů'!$B$28,'seznamy dílů_Stöger'!A9,0)","v":0}]
["202046",10,"Pojistný kroužek","Circlip",null,null,{"$f":"IF(A10='vyhledávání dílů'!$B$28,'seznamy dílů_Stöger'!A10,0)","v":0}]
["203099",5,"Šroub (červ)","Set Screw",null,null,{"$f":"IF(A11='vyhledávání dílů'!$B$28,'seznamy dílů_Stöger'!A11,0)","v":0}]
["203075",10,"Válcový kolík","Cylinder pin",null,null,{"$f":"IF(A12='vyhledávání dílů'!$B$28,'seznamy dílů_Stöger'!A12,0)","v":0}]
["203107",4,"Nástrčný šroub s kulovou hlavou","Spherical headed socket scr",null,null,{"$f":"IF(A13='vyhledávání dílů'!$B$28,'seznamy dílů_Stöger'!A13,0)","v":0}]
["203029",10,"Válcový šroub","Cylinder screw",null,null,{"$f":"IF(A14='vyhledávání dílů'!$B$28,'seznamy dílů_Stöger'!A14,0)","v":0}]
["KLH 2001 000 0000 15",6,"Napínací šroub","Tension screw",null,null,{"$f":"IF(A15='vyhledávání dílů'!$B$28,'seznamy dílů_Stöger'!A15,0)","v":0}]
["KLH 2001 000 0000 14",8,"Polštářová podložka","Cushion washer",null,null,{"$f":"IF(A16='vyhledávání dílů'!$B$28,'seznamy dílů_Stöger'!A16,0)","v":0}]
["SDH 2001 002 0001 00",1,"Spojka nosné hřídele","Carrier shaft cpl.",null,null,{"$f":"IF(A17='vyhledávání dílů'!$B$28,'seznamy dílů_Stöger'!A17,0)","v":0}]
["SDH 2001 000 0003 00",1,"Magnetický blok","Magnetic block",null,null,{"$f":"IF(A18='vyhledávání dílů'!$B$28,'seznamy dílů_Stöger'!A18,0)","v":0}]
["SDH 2001 002 0000 10",1,"Pouzdro pístu","Piston sleeve ",null,null,{"$f":"IF(A19='vyhledávání dílů'!$B$28,'seznamy dílů_Stöger'!A19,0)","v":0}]
["210096",1,"Sada těsnění","Sealing kit",null,null,{"$f":"IF(A20='vyhledávání dílů'!$B$28,'seznamy dílů_Stöger'!A20,0)","v":0}]
["210475",1,"Sada těsnění","Sealing kit",null,null,{"$f":"IF(A21='vyhledávání dílů'!$B$28,'seznamy dílů_Stöger'!A21,0)","v":0}]
["210095",1,"Sada těsnění","Sealing kit",null,null,{"$f":"IF(A22='vyhledávání dílů'!$B$28,'seznamy dílů_Stöger'!A22,0)","v":0}]
["210122",1,"Sada ložisek","Bearing Kit ",null,null,{"$f":"IF(A23='vyhledávání dílů'!$B$28,'seznamy dílů_Stöger'!A23,0)","v":0}]
["KLH 2501 000 0000 13",8,"Polštářová podložka","Cushion washer",null,null,{"$f":"IF(A24='vyhledávání dílů'!$B$28,'seznamy dílů_Stöger'!A24,0)","v":0}]
["KLH 2501 000 0000 15",6,"Napínací šroub","Tension screw",null,null,{"$f":"IF(A25='vyhledávání dílů'!$B$28,'seznamy dílů_Stöger'!A25,0)","v":0}]
["202011",10,"Pojistný kroužek","Circlip",null,null,{"$f":"IF(A26='vyhledávání dílů'!$B$28,'seznamy dílů_Stöger'!A26,0)","v":0}]
["202031",10,"Pojistný kroužek","Circlip",null,null,{"$f":"IF(A27='vyhledávání dílů'!$B$28,'seznamy dílů_Stöger'!A27,0)","v":0}]
["202032",10,"Pojistný kroužek","Circlip",null,null,{"$f":"IF(A28='vyhledávání dílů'!$B$28,'seznamy dílů_Stöger'!A28,0)","v":0}]
["202012",10,"Pojistný kroužek","Circlip",null,null,{"$f":"IF(A29='vyhledávání dílů'!$B$28,'seznamy dílů_Stöger'!A29,0)","v":0}]
["SDH 2501 003 0001 00",1,"Spojka nosné hřídele","Carrier shaft cpl.",null,null,{"$f":"IF(A30='vyhledávání dílů'!$B$28,'seznamy dílů_Stöger'!A30,0)","v":0}]
["SDH 2501 003 0000 10",1,"Pouzdro pístu","Piston sleeve ",null,null,{"$f":"IF(A31='vyhledávání dílů'!$B$28,'seznamy dílů_Stöger'!A31,0)","v":0}]
["SDH 2501 000 0003 00",1,"Magnetický blok","Magnetic block",null,null,{"$f":"IF(A32='vyhledávání dílů'!$B$28,'seznamy dílů_Stöger'!A32,0)","v":0}]
["202115",10,"Pojistný kroužek","Circlip",null,null,{"$f":"IF(A33='vyhledávání dílů'!$B$28,'seznamy dílů_Stöger'!A33,0)","v":0}]
["203189",5,"Stavěcí šroub","Set Screw",null,null,{"$f":"IF(A34='vyhledávání dílů'!$B$28,'seznamy dílů_Stöger'!A34,0)","v":0}]
["201320",4,"Pružinová podložka","Disc spring ",null,null,{"$f":"IF(A35='vyhledávání dílů'!$B$28,'seznamy dílů_Stöger'!A35,0)","v":0}]
["SPS 1621 000 0000 11",4,"ložisková matice","Bearing nut",null,null,{"$f":"IF(A36='vyhledávání dílů'!$B$28,'seznamy dílů_Stöger'!A36,0)","v":0}]
["203098",4,"Nástrčný šroub s kulovou hlavou","Spherical headed socket scr",null,null,{"$f":"IF(A37='vyhledávání dílů'!$B$28,'seznamy dílů_Stöger'!A37,0)","v":0}]
["203017",10,"Válcový šroub","Cylinder screw",null,null,{"$f":"IF(A38='vyhledávání dílů'!$B$28,'seznamy dílů_Stöger'!A38,0)","v":0}]
["KLH 1601 000 0000 14",6,"Polštářová podložka","Cushion washer",null,null,{"$f":"IF(A39='vyhledávání dílů'!$B$28,'seznamy dílů_Stöger'!A39,0)","v":0}]
["KLH 1601 000 0000 15",8,"Napínací šroub","Tension screw",null,null,{"$f":"IF(A40='vyhledávání dílů'!$B$28,'seznamy dílů_Stöger'!A40,0)","v":0}]
["SDH 1601 001 0001 00",1,"Spojka nosné hřídele","Carrier shaft cpl.",null,null,{"$f":"IF(A41='vyhledávání dílů'!$B$28,'seznamy dílů_Stöger'!A41,0)","v":0}]
["SDH 1601 001 0000 10",1,"Pouzdro pístu","Piston sleeve ",null,null,{"$f":"IF(A42='vyhledávání dílů'!$B$28,'seznamy dílů_Stöger'!A42,0)","v":0}]
["TUZ 1611 000 0000 19",10,"Pojistný kroužek","Seeger circlip ring",null,null,{"$f":"IF(A43='vyhledávání dílů'!$B$28,'seznamy dílů_Stöger'!A43,0)","v":0}]
["202042",10,"Pojistný kroužek","Circlip",null,null,{"$f":"IF(A44='vyhledávání dílů'!$B$28,'seznamy dílů_Stöger'!A44,0)","v":0}]
["202028",10,"Pojistný kroužek","Circlip",null,null,{"$f":"IF(A45='vyhledávání dílů'!$B$28,'seznamy dílů_Stöger'!A45,0)","v":0}]
["202114",10,"Pojistný kroužek","Circlip Half",null,null,{"$f":"IF(A46='vyhledávání dílů'!$B$28,'seznamy dílů_Stöger'!A46,0)","v":0}]
["203087",10,"Stavěcí šroub","Set Screw",null,null,{"$f":"IF(A47='vyhledávání dílů'!$B$28,'seznamy dílů_Stöger'!A47,0)","v":0}]
["202045",10,"Pojistný kroužek","Circlip",null,null,{"$f":"IF(A48='vyhledávání dílů'!$B$28,'seznamy dílů_Stöger'!A48,0)","v":0}]
["203156",10,"Válcový kolík","Cylinder pin",null,null,{"$f":"IF(A49='vyhledávání dílů'!$B$28,'seznamy dílů_Stöger'!A49,0)","v":0}]
["202129",10,"Pojistný kroužek","Circlip",null,null,{"$f":"IF(A50='vyhledávání dílů'!$B$28,'seznamy dílů_Stöger'!A50,0)","v":0}]
["203251",15,"šroub se zapuštěnou hlavou","Countersunk screw",null,null,{"$f":"IF(A51='vyhledávání dílů'!$B$28,'seznamy dílů_Stöger'!A51,0)","v":0}]
[null,null,null,null,null,null,{"$f":"IF(A52='vyhledávání dílů'!$B$28,'seznamy dílů_Stöger'!A52,0)","v":0}]
[null,null,null,null,null,null,{"$f":"IF(A53='vyhledávání dílů'!$B$28,'seznamy dílů_Stöger'!A53,0)","v":0}]
[null,null,null,null,null,null,{"$f":"IF(A54='vyhledávání dílů'!$B$28,'seznamy dílů_Stöger'!A54,0)","v":0}]
[null,null,null,null,null,null,{"$f":"IF(A55='vyhledávání dílů'!$B$28,'seznamy dílů_Stöger'!A55,0)","v":0}]
[null,null,null,null,null,null,{"$f":"IF(A56='vyhledávání dílů'!$B$28,'seznamy dílů_Stöger'!A56,0)","v":0}]
[null,null,null,null,null,null,{"$f":"IF(A57='vyhledávání dílů'!$B$28,'seznamy dílů_Stöger'!A57,0)","v":0}]
[null,null,null,null,null,null,{"$f":"IF(A58='vyhledávání dílů'!$B$28,'seznamy dílů_Stöger'!A58,0)","v":0}]
[null,null,null,null,null,null,{"$f":"IF(A59='vyhledávání dílů'!$B$28,'seznamy dílů_Stöger'!A59,0)","v":0}]
[null,null,null,null,null,null,{"$f":"IF(A60='vyhledávání dílů'!$B$28,'seznamy dílů_Stöger'!A60,0)","v":0}]
[null,null,null,null,null,null,{"$f":"IF(A61='vyhledávání dílů'!$B$28,'seznamy dílů_Stöger'!A61,0)","v":0}]
[null,null,null,null,null,null,{"$f":"IF(A62='vyhledávání dílů'!$B$28,'seznamy dílů_Stöger'!A62,0)","v":0}]
[null,null,null,null,null,null,{"$f":"IF(A63='vyhledávání dílů'!$B$28,'seznamy dílů_Stöger'!A63,0)","v":0}]
[null,null,null,null,null,null,{"$f":"IF(A64='vyhledávání dílů'!$B$28,'seznamy dílů_Stöger'!A64,0)","v":0}]
[null,null,null,null,null,null,{"$f":"IF(A65='vyhledávání dílů'!$B$28,'seznamy dílů_Stöger'!A65,0)","v":0}]
[null,null,null,null,null,null,{"$f":"IF(A66='vyhledávání dílů'!$B$28,'seznamy dílů_Stöger'!A66,0)","v":0}]
[null,null,null,null,null,null,{"$f":"IF(A67='vyhledávání dílů'!$B$28,'seznamy dílů_Stöger'!A67,0)","v":0}]
[null,null,null,null,null,null,{"$f":"IF(A68='vyhledávání dílů'!$B$28,'seznamy dílů_Stöger'!A68,0)","v":0}]
[null,null,null,null,null,null,{"$f":"IF(A69='vyhledávání dílů'!$B$28,'seznamy dílů_Stöger'!A69,0)","v":0}]
[null,null,null,null,null,null,{"$f":"IF(A70='vyhledávání dílů'!$B$28,'seznamy dílů_Stöger'!A70,0)","v":0}]
[null,null,null,null,null,null,{"$f":"IF(A71='vyhledávání dílů'!$B$28,'seznamy dílů_Stöger'!A71,0)","v":0}]
[null,null,null,null,null,null,{"$f":"IF(A72='vyhledávání dílů'!$B$28,'seznamy dílů_Stöger'!A72,0)","v":0}]
[null,null,null,null,null,null,{"$f":"IF(A73='vyhledávání dílů'!$B$28,'seznamy dílů_Stöger'!A73,0)","v":0}]
[null,null,null,null,null,null,{"$f":"IF(A74='vyhledávání dílů'!$B$28,'seznamy dílů_Stöger'!A74,0)","v":0}]
[null,null,null,null,null,null,{"$f":"IF(A75='vyhledávání dílů'!$B$28,'seznamy dílů_Stöger'!A75,0)","v":0}]
[null,null,null,null,null,null,{"$f":"IF(A76='vyhledávání dílů'!$B$28,'seznamy dílů_Stöger'!A76,0)","v":0}]
[null,null,null,null,null,null,{"$f":"IF(A77='vyhledávání dílů'!$B$28,'seznamy dílů_Stöger'!A77,0)","v":0}]
[null,null,null,null,null,null,{"$f":"IF(A78='vyhledávání dílů'!$B$28,'seznamy dílů_Stöger'!A78,0)","v":0}]
[null,null,null,null,null,null,{"$f":"IF(A79='vyhledávání dílů'!$B$28,'seznamy dílů_Stöger'!A79,0)","v":0}]
[null,null,null,null,null,null,{"$f":"IF(A80='vyhledávání dílů'!$B$28,'seznamy dílů_Stöger'!A80,0)","v":0}]
[null,null,null,null,null,null,{"$f":"IF(A81='vyhledávání dílů'!$B$28,'seznamy dílů_Stöger'!A81,0)","v":0}]
[null,null,null,null,null,null,{"$f":"IF(A82='vyhledávání dílů'!$B$28,'seznamy dílů_Stöger'!A82,0)","v":0}]
[null,null,null,null,null,null,{"$f":"IF(A83='vyhledávání dílů'!$B$28,'seznamy dílů_Stöger'!A83,0)","v":0}]
[null,null,null,null,null,null,{"$f":"IF(A84='vyhledávání dílů'!$B$28,'seznamy dílů_Stöger'!A84,0)","v":0}]
[null,null,null,null,null,null,{"$f":"IF(A85='vyhledávání dílů'!$B$28,'seznamy dílů_Stöger'!A85,0)","v":0}]
[null,null,null,null,null,null,{"$f":"IF(A86='vyhledávání dílů'!$B$28,'seznamy dílů_Stöger'!A86,0)","v":0}]
[null,null,null,null,null,null,{"$f":"IF(A87='vyhledávání dílů'!$B$28,'seznamy dílů_Stöger'!A87,0)","v":0}]
[null,null,null,null,null,null,{"$f":"IF(A88='vyhledávání dílů'!$B$28,'seznamy dílů_Stöger'!A88,0)","v":0}]
[null,null,null,null,null,null,{"$f":"IF(A89='vyhledávání dílů'!$B$28,'seznamy dílů_Stöger'!A89,0)","v":0}]
[null,null,null,null,null,null,{"$f":"IF(A90='vyhledávání dílů'!$B$28,'seznamy dílů_Stöger'!A90,0)","v":0}]
[null,null,null,null,null,null,{"$f":"IF(A91='vyhledávání dílů'!$B$28,'seznamy dílů_Stöger'!A91,0)","v":0}]
[null,null,null,null,null,null,{"$f":"IF(A92='vyhledávání dílů'!$B$28,'seznamy dílů_Stöger'!A92,0)","v":0}]
[null,null,null,null,null,null,{"$f":"IF(A93='vyhledávání dílů'!$B$28,'seznamy dílů_Stöger'!A93,0)","v":0}]
[null,null,null,null,null,null,{"$f":"IF(A94='vyhledávání dílů'!$B$28,'seznamy dílů_Stöger'!A94,0)","v":0}]
[null,null,null,null,null,null,{"$f":"IF(A95='vyhledávání dílů'!$B$28,'seznamy dílů_Stöger'!A95,0)","v":0}]
[null,null,null,null,null,null,{"$f":"IF(A96='vyhledávání dílů'!$B$28,'seznamy dílů_Stöger'!A96,0)","v":0}]
[null,null,null,null,null,null,{"$f":"IF(A97='vyhledávání dílů'!$B$28,'seznamy dílů_Stöger'!A97,0)","v":0}]
[null,null,null,null,null,null,{"$f":"IF(A98='vyhledávání dílů'!$B$28,'seznamy dílů_Stöger'!A98,0)","v":0}]
[null,null,null,null,null,null,{"$f":"IF(A99='vyhledávání dílů'!$B$28,'seznamy dílů_Stöger'!A99,0)","v":0}]
[null,null,null,null,null,null,{"$f":"IF(A100='vyhledávání dílů'!$B$28,'seznamy dílů_Stöger'!A100,0)","v":0},{"$f":"SUM(G1:G100)","v":0}]